Workbook

Sheet Introduction
B2: Introduction and model structure | Q2: Transport demand | AX2: Energy consumption | CD2: Transport system cost | DP2: Fuel costs | DT2: Transport system costs - all years | DX2: Vehicles and fuel costs | EC2: Energy demand - all years | EH2: Energy demand - 2050 | EM2: Transport system costs - 2050 | EQ2: Upstream energy losses - all years | EU2: Upstream energy losses - 2050 | EZ2: Dynamic table | FK2: Dynamic table | FW2: Dynamic table | GH2: Dynamic table
DP3: Scenario | DQ3: Fuel | DR3: Year | DS3: m€ | DT3: Scenario | DU3: Cost | DV3: Year | DW3: m€ | DX3: Scenario | DY3: Cost | DZ3: Year | EA3: m€ (static) | EB3: m€ (dynamic) | EC3: Scenario | ED3: Fuel | EE3: Year | EF3: PJ/year | EG3: PJ/year (dynamic | EH3: Scenario | EI3: Fuel | EJ3: Year | EK3: PJ/year | EL3: PJ/year (dynamic | EM3: Scenario | EN3: Cost | EO3: Year | EP3: m€ | EQ3: Scenario | ER3: Fuel | ES3: Year | ET3: PJ/year | EU3: Scenario | EV3: Fuel | EW3: Year | EX3: PJ/year | EZ3: Energy consumption | FB3: 2017 | FC3: 2020 | FD3: 2025 | FE3: 2030 | FF3: 2035 | FG3: 2040 | FH3: 2045 | FI3: 2050 | FK3: Total costs | FN3: 2017 | FO3: 2020 | FP3: 2025 | FQ3: 2030 | FR3: 2035 | FS3: 2040 | FT3: 2045 | FU3: 2050 | FW3: Transport demand | FY3: 2017 | FZ3: 2020 | GA3: 2025 | GB3: 2030 | GC3: 2035 | GD3: 2040 | GE3: 2045 | GF3: 2050 | GH3: Upstream energy losses | GI3: 2017 | GJ3: 2020 | GK3: 2025 | GL3: 2030 | GM3: 2035 | GN3: 2040 | GO3: 2045 | GP3: 2050
B4: TransportPLAN scenario tool | DP4: =$FK$43 -> Baseline | DQ4: Petrol | DR4: 2017 | DS4: =FN60 -> 58769.83695 | DT4: =$FK$43 -> Baseline | DU4: Fuel | DV4: 2017 | DW4: =$FN$75 -> 233567.4891 | DX4: =$FK$43 -> Baseline | DY4: ='Vehicle Costs'!$D$15 -> Cars and vans < 2 ton, investments | DZ4: 2017 | EA4: 622349.2762 | EB4: ='Vehicle Costs'!$E$15 -> 13478.53097 | EC4: =$FK$43 -> Baseline | ED4: Petrol | EE4: 2017 | EF4: 4911.237879 | EG4: =Results!$C$6 -> 106.6721116 | EH4: =$FK$43 -> Baseline | EI4: Petrol | EJ4: 2017 | EK4: 4911.237879 | EL4: =Results!$J$6 -> 0 | EM4: =$FK$43 -> Baseline | EN4: Fuel | EO4: 2017 | EP4: =$FN$75 -> 233567.4891 | EQ4: =$FK$43 -> Baseline | ER4: Upstream losses | ES4: 2017 | ET4: =$GI$40 -> 4972.637056 | EU4: =$FK$43 -> Baseline | EV4: Upstream losses | EW4: 2017 | EX4: =$GI$40 -> 4972.637056 | EZ4: Passenger | FA4: Cars and vans <2t | FB4: ='Scenario overview 2017-2050'!$AD$6 -> 195341.5886 | FC4: ='Scenario overview 2017-2050'!$AD$148 -> 191218.1585 | FD4: ='Scenario overview 2017-2050'!$AD$290 -> 166478.2102 | FE4: ='Scenario overview 2017-2050'!$AD$432 -> 125683.0465 | FF4: ='Scenario overview 2017-2050'!$AD$574 -> 95440.85803 | FG4: ='Scenario overview 2017-2050'!$AD$716 -> 65829.34247 | FH4: ='Scenario overview 2017-2050'!$AD$858 -> 49902.9845 | FI4: ='Scenario overview 2017-2050'!$AD$1000 -> 35941.47158 | FK4: Infrastructure | FL4: Road | FM4: ='Growth, Modal Shift, InfraCosts'!B111 -> O&M | FN4: ='Growth, Modal Shift, InfraCosts'!C111 -> 199.128 | FO4: ='Growth, Modal Shift, InfraCosts'!D111 -> 204.6255255 | FP4: ='Growth, Modal Shift, InfraCosts'!E111 -> 210.3429952 | FQ4: ='Growth, Modal Shift, InfraCosts'!F111 -> 216.3543449 | FR4: ='Growth, Modal Shift, InfraCosts'!G111 -> 214.417443 | FS4: ='Growth, Modal Shift, InfraCosts'!H111 -> 212.631011 | FT4: ='Growth, Modal Shift, InfraCosts'!I111 -> 214.1354291 | FU4: ='Growth, Modal Shift, InfraCosts'!J111 -> 215.6941459 | FW4: Passenger | FX4: Cars and vans <2t | FY4: ='Scenario overview 2017-2050'!$D$6 -> 107929.1967 | FZ4: ='Scenario overview 2017-2050'!$D$148 -> 110540.2751 | GA4: ='Scenario overview 2017-2050'!$D$290 -> 112551.343 | GB4: ='Scenario overview 2017-2050'!$D$432 -> 114623.2799 | GC4: ='Scenario overview 2017-2050'!$D$574 -> 112445.5675 | GD4: ='Scenario overview 2017-2050'!$D$716 -> 110332.5936 | GE4: ='Scenario overview 2017-2050'!$D$858 -> 110332.5936 | GF4: ='Scenario overview 2017-2050'!$D$1000 -> 110332.5936 | GI4: PJ | GJ4: PJ | GK4: PJ | GL4: PJ | GM4: PJ | GN4: PJ | GO4: PJ | GP4: PJ
B5: Aalborg University 2020 | DP5: Baseline | DQ5: Diesel | DR5: 2017 | DS5: 98901.90864 | DT5: Baseline | DU5: Fuel (w/o jetfuel) | DV5: 2017 | DW5: =$FN$76 -> 191859.7234 | DX5: Baseline | DY5: ='Vehicle Costs'!$D$16 -> Cars and vans < 2 ton, O&M | DZ5: 2017 | EA5: 112237.5911 | EB5: ='Vehicle Costs'!$E$16 -> 2430.816513 | EC5: Baseline | ED5: Diesel | EE5: 2017 | EF5: 8264.967629 | EG5: =Results!$C$7 -> 199.9388705 | EH5: Baseline | EI5: Diesel | EJ5: 2017 | EK5: 8264.967629 | EL5: =Results!$J$7 -> 1e-08 | EM5: Baseline | EN5: Fuel (w/o jetfuel) | EO5: 2017 | EP5: =$FN$76 -> 191859.7234 | EQ5: Baseline | ER5: Upstream losses | ES5: 2020 | ET5: =$GJ$40 -> 5135.387123 | EU5: Baseline | EV5: Upstream losses | EW5: 2020 | EX5: =$GJ$40 -> 5135.387123 | FA5: Rail | FB5: ='Scenario overview 2017-2050'!$AD$22 -> 8978.376014 | FC5: ='Scenario overview 2017-2050'!$AD$164 -> 9004.463653 | FD5: ='Scenario overview 2017-2050'!$AD$306 -> 10001.60679 | FE5: ='Scenario overview 2017-2050'!$AD$448 -> 10895.03611 | FF5: ='Scenario overview 2017-2050'!$AD$590 -> 11796.9147 | FG5: ='Scenario overview 2017-2050'!$AD$732 -> 13179.46336 | FH5: ='Scenario overview 2017-2050'!$AD$874 -> 14091.88001 | FI5: ='Scenario overview 2017-2050'!$AD$1016 -> 14749.70476 | FM5: ='Growth, Modal Shift, InfraCosts'!B112 -> New roads | FN5: ='Growth, Modal Shift, InfraCosts'!C112 -> 383.921 | FO5: ='Growth, Modal Shift, InfraCosts'!D112 -> 402.422133 | FP5: ='Growth, Modal Shift, InfraCosts'!E112 -> 243.8912323 | FQ5: ='Growth, Modal Shift, InfraCosts'!F112 -> 249.3949904 | FR5: ='Growth, Modal Shift, InfraCosts'!G112 -> 0 | FS5: ='Growth, Modal Shift, InfraCosts'!H112 -> 0 | FT5: ='Growth, Modal Shift, InfraCosts'!I112 -> 62.26857409 | FU5: ='Growth, Modal Shift, InfraCosts'!J112 -> 64.05756751 | FX5: Rail | FY5: ='Scenario overview 2017-2050'!$D$22 -> 13204.731 | FZ5: ='Scenario overview 2017-2050'!$D$164 -> 13889.68566 | GA5: ='Scenario overview 2017-2050'!$D$306 -> 17574.45656 | GB5: ='Scenario overview 2017-2050'!$D$448 -> 21340.92163 | GC5: ='Scenario overview 2017-2050'!$D$590 -> 24751.38315 | GD5: ='Scenario overview 2017-2050'!$D$732 -> 28179.96365 | GE5: ='Scenario overview 2017-2050'!$D$874 -> 31121.66324 | GF5: ='Scenario overview 2017-2050'!$D$1016 -> 34102.11813 | GH5: Petrol | GI5: ='Upstream energy demand'!C18 -> 23.60648098 | GJ5: ='Upstream energy demand'!D18 -> 22.57607995 | GK5: ='Upstream energy demand'!E18 -> 18.98083297 | GL5: ='Upstream energy demand'!F18 -> 12.80676676 | GM5: ='Upstream energy demand'!G18 -> 8.225612862 | GN5: ='Upstream energy demand'!H18 -> 3.96284968 | GO5: ='Upstream energy demand'!I18 -> 1.943858984 | GP5: ='Upstream energy demand'!J18 -> 0
DP6: Baseline | DQ6: Jet-fuel fossil | DR6: 2017 | DS6: 41707.76567 | DT6: Baseline | DU6: Jetfuel | DV6: 2017 | DW6: =$FN$77 -> 41707.76567 | DX6: Baseline | DY6: ='Vehicle Costs'!$D$17 -> Charging stations, investments | DZ6: 2017 | EA6: 0 | EB6: ='Vehicle Costs'!$E$17 -> 0 | EC6: Baseline | ED6: Jet-fuel fossil | EE6: 2017 | EF6: 3485.406277 | EG6: =Results!$C$8 -> 78.96461177 | EH6: Baseline | EI6: Jet-fuel fossil | EJ6: 2017 | EK6: 3485.406277 | EL6: =Results!$J$8 -> 1e-08 | EM6: Baseline | EN6: Jetfuel | EO6: 2017 | EP6: =$FN$77 -> 41707.76567 | EQ6: Baseline | ER6: Upstream losses | ES6: 2025 | ET6: =$GK$40 -> 4998.808763 | EU6: Baseline | EV6: Upstream losses | EW6: 2025 | EX6: =$GK$40 -> 4998.808763 | FA6: Bus | FB6: ='Scenario overview 2017-2050'!$AD$27 -> 3787.113608 | FC6: ='Scenario overview 2017-2050'!$AD$169 -> 3699.786844 | FD6: ='Scenario overview 2017-2050'!$AD$311 -> 3430.095128 | FE6: ='Scenario overview 2017-2050'!$AD$453 -> 2879.23787 | FF6: ='Scenario overview 2017-2050'!$AD$595 -> 2602.822617 | FG6: ='Scenario overview 2017-2050'!$AD$737 -> 2109.519507 | FH6: ='Scenario overview 2017-2050'!$AD$879 -> 1658.015127 | FI6: ='Scenario overview 2017-2050'!$AD$1021 -> 1009.346266 | FM6: ='Growth, Modal Shift, InfraCosts'!B113 -> eRoads | FN6: ='Growth, Modal Shift, InfraCosts'!C113 -> 0 | FO6: ='Growth, Modal Shift, InfraCosts'!D113 -> 0 | FP6: ='Growth, Modal Shift, InfraCosts'!E113 -> 94.5775515 | FQ6: ='Growth, Modal Shift, InfraCosts'!F113 -> 189.155103 | FR6: ='Growth, Modal Shift, InfraCosts'!G113 -> 189.155103 | FS6: ='Growth, Modal Shift, InfraCosts'!H113 -> 189.155103 | FT6: ='Growth, Modal Shift, InfraCosts'!I113 -> 189.155103 | FU6: ='Growth, Modal Shift, InfraCosts'!J113 -> 189.155103 | FX6: Bus | FY6: ='Scenario overview 2017-2050'!$D$27 -> 4374.271889 | FZ6: ='Scenario overview 2017-2050'!$D$169 -> 4480.096514 | GA6: ='Scenario overview 2017-2050'!$D$311 -> 4820.265506 | GB6: ='Scenario overview 2017-2050'!$D$453 -> 5175.039851 | GC6: ='Scenario overview 2017-2050'!$D$595 -> 5510.644012 | GD6: ='Scenario overview 2017-2050'!$D$737 -> 5851.288409 | GE6: ='Scenario overview 2017-2050'!$D$879 -> 5999.040774 | GF6: ='Scenario overview 2017-2050'!$D$1021 -> 6150.524071 | GH6: Diesel | GI6: ='Upstream energy demand'!C19 -> 49.67270315 | GJ6: ='Upstream energy demand'!D19 -> 48.23861485 | GK6: ='Upstream energy demand'!E19 -> 43.31553517 | GL6: ='Upstream energy demand'!F19 -> 33.49734848 | GM6: ='Upstream energy demand'!G19 -> 23.2623428 | GN6: ='Upstream energy demand'!H19 -> 13.33784845 | GO6: ='Upstream energy demand'!I19 -> 6.831591831 | GP6: ='Upstream energy demand'!J19 -> 2.484394507e-09
DP7: Baseline | DQ7: Biogas | DR7: 2017 | DS7: 0 | DT7: Baseline | DU7: Vehicle | DV7: 2017 | DW7: =$FN$56 -> 699165.5644 | DX7: Baseline | DY7: ='Vehicle Costs'!$D$18 -> Busses, investments | DZ7: 2017 | EA7: 13383.50871 | EB7: ='Vehicle Costs'!$E$18 -> 279.3612352 | EC7: Baseline | ED7: Biogas | EE7: 2017 | EF7: 0 | EG7: =Results!$C$9 -> 0 | EH7: Baseline | EI7: Biogas | EJ7: 2017 | EK7: 0 | EL7: =Results!$J$9 -> 0.1012229198 | EM7: Baseline | EN7: Vehicle | EO7: 2017 | EP7: =$FN$56 -> 699165.5644 | EQ7: Baseline | ER7: Upstream losses | ES7: 2030 | ET7: =$GL$40 -> 4675.224953 | EU7: Baseline | EV7: Upstream losses | EW7: 2030 | EX7: =$GL$40 -> 4675.224953 | FA7: Bicycle/walking | FB7: ='Scenario overview 2017-2050'!$AD$38 -> 0 | FC7: ='Scenario overview 2017-2050'!$AD$180 -> 0 | FD7: ='Scenario overview 2017-2050'!$AD$322 -> 0 | FE7: ='Scenario overview 2017-2050'!$AD$464 -> 0 | FF7: ='Scenario overview 2017-2050'!$AD$606 -> 0 | FG7: ='Scenario overview 2017-2050'!$AD$748 -> 0 | FH7: ='Scenario overview 2017-2050'!$AD$890 -> 0 | FI7: ='Scenario overview 2017-2050'!$AD$1032 -> 0 | FM7: Total roads | FN7: =SUM(FN4:FN6) -> 583.049 | FO7: =SUM(FO4:FO6) -> 607.0476585 | FP7: 548.8117791 | FQ7: 654.9044383 | FR7: 403.572546 | FS7: 401.786114 | FT7: 465.5591062 | FU7: 468.9068164 | FX7: Bicycle/walking | FY7: ='Scenario overview 2017-2050'!$D$38 -> 10705.38791 | FZ7: ='Scenario overview 2017-2050'!$D$180 -> 10705.38791 | GA7: ='Scenario overview 2017-2050'!$D$322 -> 12185.90527 | GB7: ='Scenario overview 2017-2050'!$D$464 -> 13667.01344 | GC7: ='Scenario overview 2017-2050'!$D$606 -> 15093.98526 | GD7: ='Scenario overview 2017-2050'!$D$748 -> 16468.79951 | GE7: ='Scenario overview 2017-2050'!$D$890 -> 16468.79951 | GF7: ='Scenario overview 2017-2050'!$D$1032 -> 16468.79951 | GH7: Jet-fuel fossil | GI7: ='Upstream energy demand'!C20 -> 18.53460019 | GJ7: ='Upstream energy demand'!D20 -> 19.23267458 | GK7: ='Upstream energy demand'!E20 -> 17.5521227 | GL7: ='Upstream energy demand'!F20 -> 15.41421658 | GM7: ='Upstream energy demand'!G20 -> 11.26014131 | GN7: ='Upstream energy demand'!H20 -> 7.304136781 | GO7: ='Upstream energy demand'!I20 -> 3.310274169 | GP7: ='Upstream energy demand'!J20 -> 2.347203358e-09
C8: Scenario module | DP8: Baseline | DQ8: Bioethanol | DR8: 2017 | DS8: 11144.84093 | DT8: Baseline | DU8: Vehicle O&M | DV8: 2017 | DW8: =$FN$57 -> 114711.7667 | DX8: Baseline | DY8: ='Vehicle Costs'!$D$19 -> Busses, O&M | DZ8: 2017 | EA8: 315.4402979 | EB8: ='Vehicle Costs'!$E$19 -> 6.5843564 | EC8: Baseline | ED8: Bioethanol | EE8: 2017 | EF8: 232.1643553 | EG8: =Results!$C$10 -> 5.043598147 | EH8: Baseline | EI8: Bioethanol | EJ8: 2017 | EK8: 232.1643553 | EL8: =Results!$J$10 -> 0 | EM8: Baseline | EN8: Vehicle O&M | EO8: 2017 | EP8: =$FN$57 -> 114711.7667 | EQ8: Baseline | ER8: Upstream losses | ES8: 2035 | ET8: =$GM$40 -> 4737.950236 | EU8: Baseline | EV8: Upstream losses | EW8: 2035 | EX8: =$GM$40 -> 4737.950236 | FA8: Air | FB8: ='Scenario overview 2017-2050'!$AD$43 -> 48042.53824 | FC8: ='Scenario overview 2017-2050'!$AD$185 -> 50047.96409 | FD8: ='Scenario overview 2017-2050'!$AD$327 -> 47295.62291 | FE8: ='Scenario overview 2017-2050'!$AD$469 -> 45299.37812 | FF8: ='Scenario overview 2017-2050'!$AD$611 -> 43099.02771 | FG8: ='Scenario overview 2017-2050'!$AD$753 -> 41599.47728 | FH8: ='Scenario overview 2017-2050'!$AD$895 -> 40501.09632 | FI8: ='Scenario overview 2017-2050'!$AD$1037 -> 39744.16913 | FL8: Rail | FM8: ='Growth, Modal Shift, InfraCosts'!B102 -> Renewal and maintenance | FN8: ='Growth, Modal Shift, InfraCosts'!C115 -> 315.125 | FO8: ='Growth, Modal Shift, InfraCosts'!D115 -> 331.7235352 | FP8: ='Growth, Modal Shift, InfraCosts'!E115 -> 372.227305 | FQ8: ='Growth, Modal Shift, InfraCosts'!F115 -> 416.4081144 | FR8: ='Growth, Modal Shift, InfraCosts'!G115 -> 454.6907948 | FS8: ='Growth, Modal Shift, InfraCosts'!H115 -> 495.1186729 | FT8: ='Growth, Modal Shift, InfraCosts'!I115 -> 525.6380603 | FU8: ='Growth, Modal Shift, InfraCosts'!J115 -> 558.0377519 | FX8: Air (national) | FY8: ='Scenario overview 2017-2050'!$D$44 -> 3.7854 | FZ8: ='Scenario overview 2017-2050'!$D$186 -> 4.076461772 | GA8: ='Scenario overview 2017-2050'!$D$328 -> 3.597886845 | GB8: ='Scenario overview 2017-2050'!$D$470 -> 3.175496417 | GC8: ='Scenario overview 2017-2050'!$D$612 -> 2.802694451 | GD8: ='Scenario overview 2017-2050'!$D$754 -> 2.473659281 | GE8: ='Scenario overview 2017-2050'!$D$896 -> 2.183252704 | GF8: ='Scenario overview 2017-2050'!$D$1038 -> 1.926939739 | GH8: Biogas | GI8: ='Upstream energy demand'!C21 -> 0 | GJ8: ='Upstream energy demand'!D21 -> 0 | GK8: ='Upstream energy demand'!E21 -> -0.000826235822 | GL8: ='Upstream energy demand'!F21 -> -0.001586581994 | GM8: ='Upstream energy demand'!G21 -> -0.003985729647 | GN8: ='Upstream energy demand'!H21 -> -0.004818205384 | GO8: ='Upstream energy demand'!I21 -> -0.006860727292 | GP8: ='Upstream energy demand'!J21 -> -0.009896647371
DP9: Baseline | DQ9: Biodiesel | DR9: 2017 | DS9: 20310.85911 | DT9: Baseline | DU9: EV Charging stations | DV9: 2017 | DW9: =$FN$58 -> 0 | DX9: Baseline | DY9: ='Vehicle Costs'!$D$20 -> Trucks, investments | DZ9: 2017 | EA9: 63432.77948 | EB9: ='Vehicle Costs'!$E$20 -> 670.7131781 | EC9: Baseline | ED9: Biodiesel | EE9: 2017 | EF9: 480.5006626 | EG9: =Results!$C$11 -> 10.23199532 | EH9: Baseline | EI9: Biodiesel | EJ9: 2017 | EK9: 480.5006626 | EL9: =Results!$J$11 -> 0 | EM9: Baseline | EN9: EV Charging stations | EO9: 2017 | EP9: =$FN$58 -> 0 | EQ9: Baseline | ER9: Upstream losses | ES9: 2040 | ET9: =$GN$40 -> 4657.434792 | EU9: Baseline | EV9: Upstream losses | EW9: 2040 | EX9: =$GN$40 -> 4657.434792 | FA9: Sea | FB9: ='Scenario overview 2017-2050'!$AD$49 -> 311.0190348 | FC9: ='Scenario overview 2017-2050'!$AD$191 -> 297.1415481 | FD9: ='Scenario overview 2017-2050'!$AD$333 -> 281.691362 | FE9: ='Scenario overview 2017-2050'!$AD$475 -> 270.4593718 | FF9: ='Scenario overview 2017-2050'!$AD$617 -> 271.7736469 | FG9: ='Scenario overview 2017-2050'!$AD$759 -> 273.7811653 | FH9: ='Scenario overview 2017-2050'!$AD$901 -> 280.6861039 | FI9: ='Scenario overview 2017-2050'!$AD$1043 -> 289.2083422 | FM9: ='Growth, Modal Shift, InfraCosts'!B103 -> New rail constructions | FN9: ='Growth, Modal Shift, InfraCosts'!C116 -> 1087.122 | FO9: ='Growth, Modal Shift, InfraCosts'!D116 -> 1144.001417 | FP9: ='Growth, Modal Shift, InfraCosts'!E116 -> 1545.042 | FQ9: ='Growth, Modal Shift, InfraCosts'!F116 -> 1503.789245 | FR9: ='Growth, Modal Shift, InfraCosts'!G116 -> 1176.344222 | FS9: ='Growth, Modal Shift, InfraCosts'!H116 -> 1138.953322 | FT9: ='Growth, Modal Shift, InfraCosts'!I116 -> 797.7701582 | FU9: ='Growth, Modal Shift, InfraCosts'!J116 -> 797.7478564 | FX9: Air (international) | FY9: ='Scenario overview 2017-2050'!$D$45 -> 28068.67272 | FZ9: ='Scenario overview 2017-2050'!$D$187 -> 30226.8905 | GA9: ='Scenario overview 2017-2050'!$D$329 -> 30189.83339 | GB9: ='Scenario overview 2017-2050'!$D$471 -> 30560.7732 | GC9: ='Scenario overview 2017-2050'!$D$613 -> 30730.49729 | GD9: ='Scenario overview 2017-2050'!$D$755 -> 31190.67399 | GE9: ='Scenario overview 2017-2050'!$D$897 -> 31932.84194 | GF9: ='Scenario overview 2017-2050'!$D$1039 -> 32951.65081 | GH9: Bioethanol | GI9: ='Upstream energy demand'!C22 -> 8.376986153 | GJ9: ='Upstream energy demand'!D22 -> 11.32192724 | GK9: ='Upstream energy demand'!E22 -> 9.51980458 | GL9: ='Upstream energy demand'!F22 -> 7.386739443 | GM9: ='Upstream energy demand'!G22 -> 6.015237607 | GN9: ='Upstream energy demand'!H22 -> 3.532531469 | GO9: ='Upstream energy demand'!I22 -> 2.056355218 | GP9: ='Upstream energy demand'!J22 -> 0
H10: Scenario chooser | DP10: Baseline | DQ10: Bio e-fuel | DR10: 2017 | DS10: 0 | DT10: Baseline | DU10: O&M Road infrastructure | DV10: 2017 | DW10: =$FN$45 -> 30765 | DX10: Baseline | DY10: ='Vehicle Costs'!$D$21 -> Trucks, O&M | DZ10: 2017 | EA10: 2158.735284 | EB10: ='Vehicle Costs'!$E$21 -> 22.82561501 | EC10: Baseline | ED10: Bio e-fuel | EE10: 2017 | EF10: 0 | EG10: =Results!$C$12 -> 0 | EH10: Baseline | EI10: Bio e-fuel | EJ10: 2017 | EK10: 0 | EL10: =Results!$J$12 -> 0 | EM10: Baseline | EN10: O&M Road infrastructure | EO10: 2017 | EP10: =$FN$45 -> 30765 | EQ10: Baseline | ER10: Upstream losses | ES10: 2045 | ET10: =$GO$40 -> 4395.270813 | EU10: Baseline | EV10: Upstream losses | EW10: 2045 | EX10: =$GO$40 -> 4395.270813 | EZ10: Freight | FA10: Truck (national) | FB10: ='Scenario overview 2017-2050'!$AD$60 -> 19644.21439 | FC10: ='Scenario overview 2017-2050'!$AD$202 -> 19871.08892 | FD10: ='Scenario overview 2017-2050'!$AD$344 -> 19229.69399 | FE10: ='Scenario overview 2017-2050'!$AD$486 -> 17537.04951 | FF10: ='Scenario overview 2017-2050'!$AD$628 -> 16282.10365 | FG10: ='Scenario overview 2017-2050'!$AD$770 -> 14218.77628 | FH10: ='Scenario overview 2017-2050'!$AD$912 -> 13285.11721 | FI10: ='Scenario overview 2017-2050'!$AD$1054 -> 12354.19161 | FM10: Total rail | FN10: =SUM(FN8:FN9) -> 1402.247 | FO10: =SUM(FO8:FO9) -> 1475.724952 | FP10: 1917.269305 | FQ10: 1920.197359 | FR10: 1631.035017 | FS10: 1634.071995 | FT10: 1323.408218 | FU10: 1355.785608 | FX10: Sea (national) | FY10: ='Scenario overview 2017-2050'!$D$50 -> 0.001 | FZ10: ='Scenario overview 2017-2050'!$D$192 -> 0.001015075125 | GA10: ='Scenario overview 2017-2050'!$D$334 -> 0.001051103635 | GB10: ='Scenario overview 2017-2050'!$D$476 -> 0.001088410921 | GC10: ='Scenario overview 2017-2050'!$D$618 -> 0.001121457435 | GD10: ='Scenario overview 2017-2050'!$D$760 -> 0.001155507312 | GE10: ='Scenario overview 2017-2050'!$D$902 -> 0.001190591017 | GF10: ='Scenario overview 2017-2050'!$D$1044 -> 0.00122673994 | GH10: Biodiesel | GI10: ='Upstream energy demand'!C23 -> 12.46466183 | GJ10: ='Upstream energy demand'!D23 -> 14.63835631 | GK10: ='Upstream energy demand'!E23 -> 12.98077199 | GL10: ='Upstream energy demand'!F23 -> 10.1066139 | GM10: ='Upstream energy demand'!G23 -> 7.690473178 | GN10: ='Upstream energy demand'!H23 -> 4.358623398 | GO10: ='Upstream energy demand'!I23 -> 2.395021023 | GP10: ='Upstream energy demand'!J23 -> 0
H11: Heavy elec. | DP11: Baseline | DQ11: Bio e-jetfuel | DR11: 2017 | DS11: 0 | DT11: Baseline | DU11: New Road infrastructure | DV11: 2017 | DW11: =$FN$46+$FN$47 -> 66244 | DX11: Baseline | DY11: =Results!$AG$41 -> Cars and vans fuel | DZ11: 2017 | EA11: 122408.8438 | EB11: =Results!$AH$41 -> 3401.736538 | EC11: Baseline | ED11: Bio e-jetfuel | EE11: 2017 | EF11: 0 | EG11: =Results!$C$13 -> 0 | EH11: Baseline | EI11: Bio e-jetfuel | EJ11: 2017 | EK11: 0 | EL11: =Results!$J$13 -> 15.50022596 | EM11: Baseline | EN11: New Road infrastructure | EO11: 2017 | EP11: =$FN$46+$FN$47 -> 66244 | EQ11: Baseline | ER11: Upstream losses | ES11: 2050 | ET11: =$GP$40 -> 4157.187853 | EU11: Baseline | EV11: Upstream losses | EW11: 2050 | EX11: =$GP$40 -> 4157.187853 | GH11: Bio e-fuel | GI11: ='Upstream energy demand'!C24 -> 0 | GJ11: ='Upstream energy demand'!D24 -> 0 | GK11: ='Upstream energy demand'!E24 -> 0 | GL11: ='Upstream energy demand'!F24 -> 0 | GM11: ='Upstream energy demand'!G24 -> 0 | GN11: ='Upstream energy demand'!H24 -> 0 | GO11: ='Upstream energy demand'!I24 -> 0 | GP11: ='Upstream energy demand'!J24 -> 0
DP12: Baseline | DQ12: CO₂ e-fuel | DR12: 2017 | DS12: 0 | DT12: Baseline | DU12: O&M Rail infrastructure | DV12: 2017 | DW12: =$FN$49 -> 28005 | DX12: Baseline | DY12: =Results!$AG$42 -> Bus fuel | DZ12: 2017 | EA12: 5998.221615 | EB12: =Results!$AH$42 -> 67.33044713 | EC12: Baseline | ED12: CO₂ e-fuel | EE12: 2017 | EF12: 0 | EG12: =Results!$C$14 -> 0 | EH12: Baseline | EI12: CO₂ e-fuel | EJ12: 2017 | EK12: 0 | EL12: =Results!$J$14 -> 43.06074126 | EM12: Baseline | EN12: O&M Rail infrastructure | EO12: 2017 | EP12: =$FN$49 -> 28005 | EQ12: =$FK$84 -> Biofuels | ER12: Upstream losses | ES12: 2017 | ET12: =$GI$60 -> 4972.637056 | EU12: =$FK$84 -> Biofuels | EV12: Upstream losses | EW12: 2050 | EX12: =$GP$60 -> 11122.12426 | GH12: Bio e-jetfuel | GI12: ='Upstream energy demand'!C25 -> 0 | GJ12: ='Upstream energy demand'!D25 -> 0 | GK12: ='Upstream energy demand'!E25 -> 0.6113915637 | GL12: ='Upstream energy demand'!F25 -> 2.049551221 | GM12: ='Upstream energy demand'!G25 -> 4.178565636 | GN12: ='Upstream energy demand'!H25 -> 5.377573632 | GO12: ='Upstream energy demand'!I25 -> 7.853378523 | GP12: ='Upstream energy demand'!J25 -> 10.0185882
H13: Fuel scenario | DP13: Baseline | DQ13: CO₂ e-jetfuel | DR13: 2017 | DS13: 0 | DT13: Baseline | DU13: New Rail infrastructure | DV13: 2017 | DW13: =$FN$50 -> 41427 | DX13: Baseline | DY13: =Results!$AG$43 -> Rail fuel | DZ13: 2017 | EA13: 2664.783394 | EB13: =Results!$AH$43 -> 139.0879931 | EC13: Baseline | ED13: CO₂ e-jetfuel | EE13: 2017 | EF13: 0 | EG13: =Results!$C$15 -> 0 | EH13: Baseline | EI13: CO₂ e-jetfuel | EJ13: 2017 | EK13: 0 | EL13: =Results!$J$15 -> 35.45584564 | EM13: Baseline | EN13: New Rail infrastructure | EO13: 2017 | EP13: =$FN$50 -> 41427 | EQ13: Biofuels | ER13: Upstream losses | ES13: 2020 | ET13: =$GJ$60 -> 5135.387123 | EU13: =$FK$125 -> H2 | EV13: Upstream losses | EW13: 2050 | EX13: =GP80 -> 9188.835036 | FA13: Truck (international) | FB13: ='Scenario overview 2017-2050'!$AD$74 -> 28120.8962 | FC13: ='Scenario overview 2017-2050'!$AD$216 -> 28445.66944 | FD13: ='Scenario overview 2017-2050'!$AD$358 -> 29142.20059 | FE13: ='Scenario overview 2017-2050'!$AD$500 -> 26219.72142 | FF13: ='Scenario overview 2017-2050'!$AD$642 -> 22497.62458 | FG13: ='Scenario overview 2017-2050'!$AD$784 -> 19533.55043 | FH13: ='Scenario overview 2017-2050'!$AD$926 -> 19017.78278 | FI13: ='Scenario overview 2017-2050'!$AD$1068 -> 17685.15314 | FL13: Others | FM13: ='Growth, Modal Shift, InfraCosts'!B118 -> Bicycle/walking | FN13: ='Growth, Modal Shift, InfraCosts'!C119 -> 0 | FO13: ='Growth, Modal Shift, InfraCosts'!D119 -> 0 | FP13: ='Growth, Modal Shift, InfraCosts'!E119 -> 1874.646845 | FQ13: ='Growth, Modal Shift, InfraCosts'!F119 -> 1657.585997 | FR13: ='Growth, Modal Shift, InfraCosts'!G119 -> 1432.914573 | FS13: ='Growth, Modal Shift, InfraCosts'!H119 -> 1256.223335 | FT13: ='Growth, Modal Shift, InfraCosts'!I119 -> 0 | FU13: ='Growth, Modal Shift, InfraCosts'!J119 -> 0 | FX13: Sea (international) | FY13: ='Scenario overview 2017-2050'!$D$51 -> 91.5953125 | FZ13: ='Scenario overview 2017-2050'!$D$193 -> 92.97612329 | GA13: ='Scenario overview 2017-2050'!$D$335 -> 96.27616593 | GB13: ='Scenario overview 2017-2050'!$D$477 -> 99.69333844 | GC13: ='Scenario overview 2017-2050'!$D$619 -> 102.7202442 | GD13: ='Scenario overview 2017-2050'!$D$761 -> 105.8390533 | GE13: ='Scenario overview 2017-2050'!$D$903 -> 109.0525563 | GF13: ='Scenario overview 2017-2050'!$D$1045 -> 112.3636282 | GH13: CO₂ e-fuel | GI13: ='Upstream energy demand'!C26 -> 0 | GJ13: ='Upstream energy demand'!D26 -> 0.5175848147 | GK13: ='Upstream energy demand'!E26 -> 2.490125266 | GL13: ='Upstream energy demand'!F26 -> 4.853323184 | GM13: ='Upstream energy demand'!G26 -> 17.15418198 | GN13: ='Upstream energy demand'!H26 -> 29.77192344 | GO13: ='Upstream energy demand'!I26 -> 43.45596143 | GP13: ='Upstream energy demand'!J26 -> 60.61784115
H14: Medium | DP14: Baseline | DQ14: Ammonia | DR14: 2017 | DS14: 0 | DT14: Baseline | DU14: Other | DV14: 2017 | DW14: =$FN$54+$FN$55 -> 0 | DX14: Baseline | DY14: =Results!$AG$46 -> Vans fuel | DZ14: 2017 | EA14: 19061.55089 | EB14: =Results!$AH$46 -> 509.5963169 | EC14: Baseline | ED14: Ammonia | EE14: 2017 | EF14: 0 | EG14: =Results!$C$16 -> 0 | EH14: Baseline | EI14: Ammonia | EJ14: 2017 | EK14: 0 | EL14: =Results!$J$16 -> 0.04916541817 | EM14: Baseline | EN14: Other | EO14: 2017 | EP14: =$FN$54+$FN$55 -> 0 | EQ14: Biofuels | ER14: Upstream losses | ES14: 2025 | ET14: =$GK$60 -> 5907.415628 | EU14: =$FK$166 -> BEV + e-fuels | EV14: Upstream losses | EW14: 2050 | EX14: =GP100 -> 6991.850331 | FA14: Vans (2-6 t) | FB14: ='Scenario overview 2017-2050'!$AD$88 -> 28581.86281 | FC14: ='Scenario overview 2017-2050'!$AD$230 -> 28385.56662 | FD14: ='Scenario overview 2017-2050'!$AD$372 -> 25812.98909 | FE14: ='Scenario overview 2017-2050'!$AD$514 -> 20277.94275 | FF14: ='Scenario overview 2017-2050'!$AD$656 -> 15708.00606 | FG14: ='Scenario overview 2017-2050'!$AD$798 -> 11074.33758 | FH14: ='Scenario overview 2017-2050'!$AD$940 -> 8527.786777 | FI14: ='Scenario overview 2017-2050'!$AD$1082 -> 5624.941809 | FM14: ='Growth, Modal Shift, InfraCosts'!B120 -> Bus | FN14: ='Growth, Modal Shift, InfraCosts'!C121 -> 0 | FO14: ='Growth, Modal Shift, InfraCosts'!D121 -> 0 | FP14: ='Growth, Modal Shift, InfraCosts'!E121 -> 72 | FQ14: ='Growth, Modal Shift, InfraCosts'!F121 -> 72 | FR14: ='Growth, Modal Shift, InfraCosts'!G121 -> 72 | FS14: ='Growth, Modal Shift, InfraCosts'!H121 -> 72 | FT14: ='Growth, Modal Shift, InfraCosts'!I121 -> 0 | FU14: ='Growth, Modal Shift, InfraCosts'!J121 -> 0 | FW14: Freight | FX14: Truck (national) | FY14: ='Scenario overview 2017-2050'!$D$60 -> 21428 | FZ14: ='Scenario overview 2017-2050'!$D$202 -> 22406.79622 | GA14: ='Scenario overview 2017-2050'!$D$344 -> 24138.48315 | GB14: ='Scenario overview 2017-2050'!$D$486 -> 26004.00177 | GC14: ='Scenario overview 2017-2050'!$D$628 -> 27060.93808 | GD14: ='Scenario overview 2017-2050'!$D$770 -> 28160.83371 | GE14: ='Scenario overview 2017-2050'!$D$912 -> 29305.43475 | GF14: ='Scenario overview 2017-2050'!$D$1054 -> 30496.55826 | GH14: CO₂ e-jetfuel | GI14: ='Upstream energy demand'!C27 -> 0 | GJ14: ='Upstream energy demand'!D27 -> 0.2082080783 | GK14: ='Upstream energy demand'!E27 -> 1.610687018 | GL14: ='Upstream energy demand'!F27 -> 3.968000138 | GM14: ='Upstream energy demand'!G27 -> 10.62388759 | GN14: ='Upstream energy demand'!H27 -> 16.03736412 | GO14: ='Upstream energy demand'!I27 -> 19.85158428 | GP14: ='Upstream energy demand'!J27 -> 22.91692506
DP15: Baseline | DQ15: Hydrogen | DR15: 2017 | DS15: 0 | DT15: Baseline | DU15: Fuel | DV15: 2020 | DW15: =$FO$75 -> 237468.7631 | DX15: Baseline | DY15: =Results!$AG$47 -> National truck fuel | DZ15: 2017 | EA15: 16293.96116 | EB15: =Results!$AH$47 -> 347.0283071 | EC15: Baseline | ED15: Hydrogen | EE15: 2017 | EF15: 0 | EG15: =Results!$C$17 -> 0 | EH15: Baseline | EI15: Hydrogen | EJ15: 2017 | EK15: 0 | EL15: =Results!$J$17 -> 0 | EM15: Baseline | EN15: Fuel | EO15: 2020 | EP15: =$FO$75 -> 237468.7631 | EQ15: Biofuels | ER15: Upstream losses | ES15: 2030 | ET15: =$GL$60 -> 6358.665014 | EU15: =$FK$207 -> Heavy elec. | EV15: Upstream losses | EW15: 2050 | EX15: =GP120 -> 4211.404701 | FA15: Rail (national) | FB15: ='Scenario overview 2017-2050'!$AD$104 -> 1394.110442 | FC15: ='Scenario overview 2017-2050'!$AD$246 -> 1370.507183 | FD15: ='Scenario overview 2017-2050'!$AD$388 -> 1294.898365 | FE15: ='Scenario overview 2017-2050'!$AD$530 -> 1246.873067 | FF15: ='Scenario overview 2017-2050'!$AD$672 -> 1135.994549 | FG15: ='Scenario overview 2017-2050'!$AD$814 -> 1160.027593 | FH15: ='Scenario overview 2017-2050'!$AD$956 -> 1127.007468 | FI15: ='Scenario overview 2017-2050'!$AD$1098 -> 1025.532165 | FK15: Vehicles | FL15: Road | FM15: =Results!AG6 -> Vehicles | FN15: =Results!AH6 -> 14428.60538 | FO15: =Results!AI6 -> 14744.96064 | FP15: =Results!AJ6 -> 15639.27809 | FQ15: =Results!AK6 -> 16701.14532 | FR15: =Results!AL6 -> 16615.39776 | FS15: =Results!AM6 -> 16839.98197 | FT15: =Results!AN6 -> 17097.71711 | FU15: =Results!AO6 -> 17356.21317 | FX15: Truck (international) | FY15: ='Scenario overview 2017-2050'!$D$74 -> 20513 | FZ15: ='Scenario overview 2017-2050'!$D$216 -> 21450.00051 | GA15: ='Scenario overview 2017-2050'!$D$358 -> 23107.74243 | GB15: ='Scenario overview 2017-2050'!$D$500 -> 24893.60128 | GC15: ='Scenario overview 2017-2050'!$D$642 -> 25905.40521 | GD15: ='Scenario overview 2017-2050'!$D$784 -> 26958.33404 | GE15: ='Scenario overview 2017-2050'!$D$926 -> 28054.05932 | GF15: ='Scenario overview 2017-2050'!$D$1068 -> 29194.3205 | GH15: Ammonia | GI15: ='Upstream energy demand'!C28 -> 0 | GJ15: ='Upstream energy demand'!D28 -> 0 | GK15: ='Upstream energy demand'!E28 -> 0.003273511772 | GL15: ='Upstream energy demand'!F28 -> 0.006285971506 | GM15: ='Upstream energy demand'!G28 -> 0.01579129417 | GN15: ='Upstream energy demand'!H28 -> 0.0254527043 | GO15: ='Upstream energy demand'!I28 -> 0.03914195703 | GP15: ='Upstream energy demand'!J28 -> 0.0571347215
H16: Include or exclude | DP16: Baseline | DQ16: Natural gas | DR16: 2017 | DS16: 0 | DT16: Baseline | DU16: Fuel (w/o jetfuel) | DV16: 2020 | DW16: =$FO$76 -> 194273.8404 | DX16: Baseline | DY16: =Results!$AG$48 -> International truck fuel | DZ16: 2017 | EA16: 12761.17886 | EB16: =Results!$AH$48 -> 500.47462 | EC16: Baseline | ED16: Natural gas | EE16: 2017 | EF16: 0 | EG16: =Results!$C$18 -> 0 | EH16: Baseline | EI16: Natural gas | EJ16: 2017 | EK16: 0 | EL16: =Results!$J$18 -> 0 | EM16: Baseline | EN16: Fuel (w/o jetfuel) | EO16: 2020 | EP16: =$FO$76 -> 194273.8404 | EQ16: Biofuels | ER16: Upstream losses | ES16: 2035 | ET16: =$GM$60 -> 7288.110008 | EU16: =$FK$248 -> 1.5 TECH | EV16: Upstream losses | EW16: 2050 | EX16: =GP140 -> 4126.5352 | FA16: Rail (international) | FB16: ='Scenario overview 2017-2050'!$AD$109 -> 3264.770911 | FC16: ='Scenario overview 2017-2050'!$AD$251 -> 3463.327415 | FD16: ='Scenario overview 2017-2050'!$AD$393 -> 3821.450877 | FE16: ='Scenario overview 2017-2050'!$AD$535 -> 4216.605899 | FF16: ='Scenario overview 2017-2050'!$AD$677 -> 4497.904589 | FG16: ='Scenario overview 2017-2050'!$AD$819 -> 4797.969309 | FH16: ='Scenario overview 2017-2050'!$AD$961 -> 5118.051981 | FI16: ='Scenario overview 2017-2050'!$AD$1103 -> 5459.488044 | FM16: =Results!AG7 -> Vehicles O&M | FN16: =Results!AH7 -> 2460.226485 | FO16: =Results!AI7 -> 2610.159031 | FP16: =Results!AJ7 -> 2665.781055 | FQ16: =Results!AK7 -> 2658.265493 | FR16: =Results!AL7 -> 2549.381608 | FS16: =Results!AM7 -> 2457.473291 | FT16: =Results!AN7 -> 2436.026422 | FU16: =Results!AO7 -> 2426.949763 | FX16: Vans (2-6 t) | FY16: ='Scenario overview 2017-2050'!$D$88 -> 11540.79 | FZ16: ='Scenario overview 2017-2050'!$D$230 -> 12067.95453 | GA16: ='Scenario overview 2017-2050'!$D$372 -> 13000.61438 | GB16: ='Scenario overview 2017-2050'!$D$514 -> 14005.35391 | GC16: ='Scenario overview 2017-2050'!$D$656 -> 14502.45213 | GD16: ='Scenario overview 2017-2050'!$D$798 -> 15017.19407 | GE16: ='Scenario overview 2017-2050'!$D$940 -> 15550.20598 | GF16: ='Scenario overview 2017-2050'!$D$1082 -> 16102.13631 | GH16: Hydrogen | GI16: ='Upstream energy demand'!C29 -> 0 | GJ16: ='Upstream energy demand'!D29 -> 0 | GK16: ='Upstream energy demand'!E29 -> 0 | GL16: ='Upstream energy demand'!F29 -> 0 | GM16: ='Upstream energy demand'!G29 -> 0 | GN16: ='Upstream energy demand'!H29 -> 0 | GO16: ='Upstream energy demand'!I29 -> 0 | GP16: ='Upstream energy demand'!J29 -> 0
H17: International air - intra EU: | DP17: Baseline | DQ17: Electricity Train / bus / trucks / ships / aircrafts | DR17: 2017 | DS17: 2732.277779 | DT17: Baseline | DU17: Jetfuel | DV17: 2020 | DW17: =$FO$77 -> 43194.92266 | DX17: Baseline | DY17: =Results!$AG$49 -> Truck fuel | DZ17: 2017 | EA17: 29055.14002 | EB17: =Results!$AH$49 -> 847.5029271 | EC17: Baseline | ED17: Electricity Train / bus / trucks / ships / aircrafts | EE17: 2017 | EF17: 281.8233913 | EG17: =Results!$C$19 -> 5.453175603 | EH17: Baseline | EI17: Electricity Train / bus / trucks / ships / aircrafts | EJ17: 2017 | EK17: 281.8233913 | EL17: =Results!$J$19 -> 66.79446132 | EM17: Baseline | EN17: Jetfuel | EO17: 2020 | EP17: =$FO$77 -> 43194.92266 | EQ17: Biofuels | ER17: Upstream losses | ES17: 2040 | ET17: =$GN$60 -> 8727.580459 | EU17: =$FK$289 -> Custom scenario 1 | EV17: Upstream losses | EW17: 2050 | EX17: =GP160 -> 4693.694079 | FA17: Air (national) | FB17: ='Scenario overview 2017-2050'!$AD$114 -> 0.49572 | FC17: ='Scenario overview 2017-2050'!$AD$256 -> 0.5164126974 | FD17: ='Scenario overview 2017-2050'!$AD$398 -> 0.4957049365 | FE17: ='Scenario overview 2017-2050'!$AD$540 -> 0.4758275414 | FF17: ='Scenario overview 2017-2050'!$AD$682 -> 0.4567472148 | FG17: ='Scenario overview 2017-2050'!$AD$824 -> 0.4406530238 | FH17: ='Scenario overview 2017-2050'!$AD$966 -> 0.4251259364 | FI17: ='Scenario overview 2017-2050'!$AD$1108 -> 0.4101459699 | FM17: =Results!AG8 -> EV Charging stations | FN17: =Results!AH8 -> 0 | FO17: =Results!AI8 -> 2.253581244 | FP17: =Results!AJ8 -> 17.3299226 | FQ17: =Results!AK8 -> 47.40879406 | FR17: =Results!AL8 -> 61.49321446 | FS17: =Results!AM8 -> 81.07079696 | FT17: =Results!AN8 -> 91.67336359 | FU17: =Results!AO8 -> 98.06530159 | FX17: Rail (national) | FY17: ='Scenario overview 2017-2050'!$D$104 -> 1976 | FZ17: ='Scenario overview 2017-2050'!$D$246 -> 2127.935875 | GA17: ='Scenario overview 2017-2050'!$D$388 -> 2407.564125 | GB17: ='Scenario overview 2017-2050'!$D$530 -> 2723.937825 | GC17: ='Scenario overview 2017-2050'!$D$672 -> 2905.657473 | GD17: ='Scenario overview 2017-2050'!$D$814 -> 3099.500023 | GE17: ='Scenario overview 2017-2050'!$D$956 -> 3306.27422 | GF17: ='Scenario overview 2017-2050'!$D$1098 -> 3526.84276 | GH17: Natural gas | GI17: ='Upstream energy demand'!C30 -> 0 | GJ17: ='Upstream energy demand'!D30 -> 0 | GK17: ='Upstream energy demand'!E30 -> 0 | GL17: ='Upstream energy demand'!F30 -> 0 | GM17: ='Upstream energy demand'!G30 -> 0 | GN17: ='Upstream energy demand'!H30 -> 0 | GO17: ='Upstream energy demand'!I30 -> 0 | GP17: ='Upstream energy demand'!J30 -> 0
H18: Include | DP18: Baseline | DQ18: Electricity BEV + Plug-in-hybrid | DR18: 2017 | DS18: 0 | DT18: Baseline | DU18: Vehicle | DV18: 2020 | DW18: =$FO$56 -> 714210.3135 | DX18: Baseline | DY18: ='Vehicle Costs'!$D$15 -> Cars and vans < 2 ton, investments | DZ18: 2020 | EA18: 633652.3529 | EB18: ='Vehicle Costs'!$F$15 -> 13757.98481 | EC18: Baseline | ED18: Electricity BEV + Plug-in-hybrid | EE18: 2017 | EF18: 0 | EG18: =Results!$C$20 -> 0 | EH18: Baseline | EI18: Electricity BEV + Plug-in-hybrid | EJ18: 2017 | EK18: 0 | EL18: =Results!$J$20 -> 36.11181799 | EM18: Baseline | EN18: Vehicle | EO18: 2020 | EP18: =$FO$56 -> 714210.3135 | EQ18: Biofuels | ER18: Upstream losses | ES18: 2045 | ET18: =$GO$60 -> 9827.596157 | EU18: =$FK$330 -> Custom scenario 2 | EV18: Upstream losses | EW18: 2050 | EX18: =GP180 -> 7399.178152 | FA18: Air (international) | FB18: ='Scenario overview 2017-2050'!$AD$119 -> 30921.5778 | FC18: ='Scenario overview 2017-2050'!$AD$261 -> 32212.32832 | FD18: ='Scenario overview 2017-2050'!$AD$403 -> 30920.63818 | FE18: ='Scenario overview 2017-2050'!$AD$545 -> 29680.74384 | FF18: ='Scenario overview 2017-2050'!$AD$687 -> 28490.56834 | FG18: ='Scenario overview 2017-2050'!$AD$829 -> 27486.65932 | FH18: ='Scenario overview 2017-2050'!$AD$971 -> 26518.12458 | FI18: ='Scenario overview 2017-2050'!$AD$1113 -> 25583.71765 | FM18: Total vehicles + charging | FN18: =SUM(FN15:FN17) -> 16888.83186 | FO18: =SUM(FO15:FO17) -> 17357.37325 | FP18: 18322.38907 | FQ18: 19406.81961 | FR18: 19226.27258 | FS18: 19378.52606 | FT18: 19625.41689 | FU18: 19881.22823 | FX18: Rail (international) | FY18: ='Scenario overview 2017-2050'!$D$109 -> 4620 | FZ18: ='Scenario overview 2017-2050'!$D$251 -> 4975.234687 | GA18: ='Scenario overview 2017-2050'!$D$393 -> 5629.021386 | GB18: ='Scenario overview 2017-2050'!$D$535 -> 6368.721027 | GC18: ='Scenario overview 2017-2050'!$D$677 -> 6793.591865 | GD18: ='Scenario overview 2017-2050'!$D$819 -> 7246.806735 | GE18: ='Scenario overview 2017-2050'!$D$961 -> 7730.256526 | GF18: ='Scenario overview 2017-2050'!$D$1103 -> 8245.958274 | GH18: Electricity Train / bus / trucks / ships / aircrafts | GI18: ='Upstream energy demand'!C31 -> 0.8395760133 | GJ18: ='Upstream energy demand'!D31 -> 0.9562942765 | GK18: ='Upstream energy demand'!E31 -> 1.514284203 | GL18: ='Upstream energy demand'!F31 -> 2.633213719 | GM18: ='Upstream energy demand'!G31 -> 4.198957782 | GN18: ='Upstream energy demand'!H31 -> 6.325144804 | GO18: ='Upstream energy demand'!I31 -> 8.224562611 | GP18: ='Upstream energy demand'!J31 -> 10.2837377
H19: International air - extra EU: | DP19: Baseline | DQ19: Petrol | DR19: 2020 | DS19: =FO60 -> 56066.31548 | DT19: Baseline | DU19: Vehicle O&M | DV19: 2020 | DW19: =$FO$57 -> 121459.2992 | DX19: Baseline | DY19: ='Vehicle Costs'!$D$16 -> Cars and vans < 2 ton, O&M | DZ19: 2020 | EA19: 118831.068 | EB19: ='Vehicle Costs'!$F$16 -> 2579.191698 | EC19: Baseline | ED19: Petrol | EE19: 2020 | EF19: 4685.31183 | EG19: =Results!$D$6 -> 102.0159728 | EH19: Baseline | EI19: Petrol | EJ19: 2020 | EK19: 4685.31183 | EM19: Baseline | EN19: Vehicle O&M | EO19: 2020 | EP19: =$FO$57 -> 121459.2992 | EQ19: Biofuels | ER19: Upstream losses | ES19: 2050 | ET19: =$GP$60 -> 11122.12426 | EU19: =$FK$371 -> Custom scenario 3 | EV19: Upstream losses | EW19: 2050 | EX19: =GP200 -> 11436.24007 | FA19: Sea (national) | FB19: ='Scenario overview 2017-2050'!$AD$124 -> 0.0003703326198 | FC19: ='Scenario overview 2017-2050'!$AD$266 -> 0.000366634267 | FD19: ='Scenario overview 2017-2050'!$AD$408 -> 0.0003651746429 | FE19: ='Scenario overview 2017-2050'!$AD$550 -> 0.0003683719307 | FF19: ='Scenario overview 2017-2050'!$AD$692 -> 0.0003720054366 | FG19: ='Scenario overview 2017-2050'!$AD$834 -> 0.0003766196378 | FH19: ='Scenario overview 2017-2050'!$AD$976 -> 0.0003880411252 | FI19: ='Scenario overview 2017-2050'!$AD$1118 -> 0.0004018140404 | FK19: Fuels | FL19: All | FM19: =Results!AG21 -> Petrol | FN19: =Results!AH21 -> 1701.974876 | FO19: =Results!AI21 -> 1627.685248 | FP19: =Results!AJ21 -> 1368.475922 | FQ19: =Results!AK21 -> 923.339454 | FR19: =Results!AL21 -> 593.0484276 | FS19: =Results!AM21 -> 285.7126649 | FT19: =Results!AN21 -> 140.1479176 | FU19: =Results!AO21 -> 0 | FX19: Air (national) | FY19: ='Scenario overview 2017-2050'!$D$114 -> 0.0459 | FZ19: ='Scenario overview 2017-2050'!$D$256 -> 0.04942927969 | GA19: ='Scenario overview 2017-2050'!$D$398 -> 0.0501451755 | GB19: ='Scenario overview 2017-2050'!$D$540 -> 0.05087143981 | GC19: ='Scenario overview 2017-2050'!$D$682 -> 0.05160822277 | GD19: ='Scenario overview 2017-2050'!$D$824 -> 0.05235567672 | GE19: ='Scenario overview 2017-2050'!$D$966 -> 0.05311395623 | GF19: ='Scenario overview 2017-2050'!$D$1108 -> 0.05388321808 | GH19: Electricity BEV + Plug-in-hybrid | GI19: ='Upstream energy demand'!C32 -> 0 | GJ19: ='Upstream energy demand'!D32 -> 0.1429757382 | GK19: ='Upstream energy demand'!E32 -> 1.038833351 | GL19: ='Upstream energy demand'!F32 -> 2.722698363 | GM19: ='Upstream energy demand'!G32 -> 3.928349015 | GN19: ='Upstream energy demand'!H32 -> 5.028312034 | GO19: ='Upstream energy demand'!I32 -> 5.465644844 | GP19: ='Upstream energy demand'!J32 -> 5.559809253
H20: Include | DP20: Baseline | DQ20: Diesel | DR20: 2020 | DS20: 96068.34167 | DT20: Baseline | DU20: EV Charging stations | DV20: 2020 | DW20: =$FO$58 -> 92.36368912 | DX20: Baseline | DY20: ='Vehicle Costs'!$D$17 -> Charging stations, investments | DZ20: 2020 | EA20: 92.36368912 | EB20: ='Vehicle Costs'!$F$17 -> 2.253581244 | EC20: Baseline | ED20: Diesel | EE20: 2020 | EF20: 8028.174027 | EG20: =Results!$D$7 -> 194.1664849 | EH20: Baseline | EI20: Diesel | EJ20: 2020 | EK20: 8028.174027 | EM20: Baseline | EN20: EV Charging stations | EO20: 2020 | EP20: =$FO$58 -> 92.36368912 | EQ20: =$FK$125 -> H2 | ER20: Upstream losses | ES20: 2017 | ET20: =$GI$80 -> 4972.637056 | EU20: =$FK$412 -> Smart Energy Europe | EV20: Upstream losses | EW20: 2050 | EX20: =GP220 -> 7248.363859 | FA20: Sea (international) | FB20: ='Scenario overview 2017-2050'!$AD$130 -> 37915.79877 | FC20: ='Scenario overview 2017-2050'!$AD$272 -> 36767.36937 | FD20: ='Scenario overview 2017-2050'!$AD$414 -> 35377.91403 | FE20: ='Scenario overview 2017-2050'!$AD$556 -> 34476.26766 | FF20: ='Scenario overview 2017-2050'!$AD$698 -> 34816.33081 | FG20: ='Scenario overview 2017-2050'!$AD$840 -> 35248.17815 | FH20: ='Scenario overview 2017-2050'!$AD$982 -> 36317.12566 | FI20: ='Scenario overview 2017-2050'!$AD$1124 -> 37606.14545 | FM20: =Results!AG22 -> Diesel | FN20: =Results!AH22 -> 3190.064666 | FO20: =Results!AI22 -> 3097.9651 | FP20: =Results!AJ22 -> 2781.79663 | FQ20: =Results!AK22 -> 2151.256143 | FR20: =Results!AL22 -> 1493.946838 | FS20: =Results!AM22 -> 856.5790938 | FT20: =Results!AN22 -> 438.7363347 | FU20: =Results!AO22 -> 1.59552e-07 | FX20: Air (international) | FY20: ='Scenario overview 2017-2050'!$D$119 -> 2338.205728 | FZ20: ='Scenario overview 2017-2050'!$D$261 -> 2517.991828 | GA20: ='Scenario overview 2017-2050'!$D$403 -> 2554.460493 | GB20: ='Scenario overview 2017-2050'!$D$545 -> 2591.457341 | GC20: ='Scenario overview 2017-2050'!$D$687 -> 2628.990024 | GD20: ='Scenario overview 2017-2050'!$D$829 -> 2667.066301 | GE20: ='Scenario overview 2017-2050'!$D$971 -> 2705.694046 | GF20: ='Scenario overview 2017-2050'!$D$1113 -> 2744.881246 | GH20: Total losses | GI20: =SUM(GI5:GI19) -> 113.4950083 | GJ20: =SUM(GJ5:GJ19) -> 117.8327158 | GK20: 109.6168361 | GL20: 95.44317118 | GM20: 96.54955531 | GN20: 95.0569423 | GO20: 101.4205141 | GP20: 109.4441394
H21: International sea: | DP21: Baseline | DQ21: Jet-fuel fossil | DR21: 2020 | DS21: 43194.92266 | DT21: Baseline | DU21: O&M Road infrastructure | DV21: 2020 | DW21: =$FO$45 -> 31529.36008 | DX21: Baseline | DY21: ='Vehicle Costs'!$D$18 -> Busses, investments | DZ21: 2020 | EA21: 13679.36071 | EB21: ='Vehicle Costs'!$F$18 -> 285.6255628 | EC21: Baseline | ED21: Jet-fuel fossil | EE21: 2020 | EF21: 3609.684004 | EG21: =Results!$D$8 -> 81.93868039 | EH21: Baseline | EI21: Jet-fuel fossil | EJ21: 2020 | EK21: 3609.684004 | EM21: Baseline | EN21: O&M Road infrastructure | EO21: 2020 | EP21: =$FO$45 -> 31529.36008 | EQ21: H2 | ER21: Upstream losses | ES21: 2020 | ET21: =$GJ$80 -> 5135.387123 | FA21: Total passenger energy consumption | FB21: =SUM(FB4:FB9)/1000 -> 256.4606355 | FC21: 254.2675147 | FD21: 227.4872264 | FE21: 185.027158 | FF21: 153.2113967 | FG21: 122.9915838 | FH21: 106.4346621 | FI21: 91.73390008 | FM21: =Results!AG23 -> Jet-fuel fossil | FN21: =Results!AH23 -> 1259.896174 | FO21: =Results!AI23 -> 1307.348033 | FP21: =Results!AJ23 -> 1193.111909 | FQ21: =Results!AK23 -> 1047.786965 | FR21: =Results!AL23 -> 765.4121911 | FS21: =Results!AM23 -> 496.5013481 | FT21: =Results!AN23 -> 225.0170878 | FU21: =Results!AO23 -> 1.59552e-07 | FX21: Sea (national) | FY21: ='Scenario overview 2017-2050'!$D$124 -> 0.001 | FZ21: ='Scenario overview 2017-2050'!$D$266 -> 0.001051871913 | GA21: ='Scenario overview 2017-2050'!$D$408 -> 0.001144373055 | GB21: ='Scenario overview 2017-2050'!$D$550 -> 0.001245008705 | GC21: ='Scenario overview 2017-2050'!$D$692 -> 0.001289198349 | GD21: ='Scenario overview 2017-2050'!$D$834 -> 0.001334956436 | GE21: ='Scenario overview 2017-2050'!$D$976 -> 0.001382338635 | GF21: ='Scenario overview 2017-2050'!$D$1118 -> 0.001431402591
H22: Include | DP22: Baseline | DQ22: Biogas | DR22: 2020 | DS22: 0 | DT22: Baseline | DU22: New Road infrastructure | DV22: 2020 | DW22: =$FO$46+$FO$47 -> 67176.73919 | DX22: Baseline | DY22: ='Vehicle Costs'!$D$19 -> Busses, O&M | DZ22: 2020 | EA22: 322.9582327 | EB22: ='Vehicle Costs'!$F$19 -> 6.740077508 | EC22: Baseline | ED22: Biogas | EE22: 2020 | EF22: 0 | EG22: =Results!$D$9 -> 0 | EH22: Baseline | EI22: Biogas | EJ22: 2020 | EK22: 0 | EM22: Baseline | EN22: New Road infrastructure | EO22: 2020 | EP22: =$FO$46+$FO$47 -> 67176.73919 | EQ22: H2 | ER22: Upstream losses | ES22: 2025 | ET22: =$GK$80 -> 5032.136975 | FA22: Total freight energy consumption | FB22: =SUM(FB10:FB20)/1000 -> 149.8437274 | FC22: 150.5163741 | FD22: 145.6002812 | FE22: 133.6556803 | FF22: 123.4289897 | FG22: 113.5199397 | FH22: 109.911422 | FI22: 105.3395804 | FM22: =Results!AG24 -> Biogas | FN22: =Results!AH24 -> 0 | FO22: =Results!AI24 -> 0 | FP22: =Results!AJ24 -> 0.2099747131 | FQ22: =Results!AK24 -> 0.4032046178 | FR22: =Results!AL24 -> 1.012909894 | FS22: =Results!AM24 -> 1.224470382 | FT22: =Results!AN24 -> 1.743544889 | FU22: =Results!AO24 -> 2.515075765 | FX22: Sea (international) | FY22: ='Scenario overview 2017-2050'!$D$130 -> 625674.4525 | FZ22: ='Scenario overview 2017-2050'!$D$272 -> 644633.0141 | GA22: ='Scenario overview 2017-2050'!$D$414 -> 677515.7764 | GB22: ='Scenario overview 2017-2050'!$D$556 -> 712075.8901 | GC22: ='Scenario overview 2017-2050'!$D$698 -> 737349.9145 | GD22: ='Scenario overview 2017-2050'!$D$840 -> 763521.0009 | GE22: ='Scenario overview 2017-2050'!$D$982 -> 790620.9893 | GF22: ='Scenario overview 2017-2050'!$D$1124 -> 818682.8495 | GH22: =Scenarios!$AV$5 -> Baseline
H23: Military transport: | DP23: Baseline | DQ23: Bioethanol | DR23: 2020 | DS23: 15022.97481 | DT23: Baseline | DU23: O&M Rail infrastructure | DV23: 2020 | DW23: =$FO$49 -> 29870.91185 | DX23: Baseline | DY23: ='Vehicle Costs'!$D$20 -> Trucks, investments | DZ23: 2020 | EA23: 66878.59987 | EB23: ='Vehicle Costs'!$F$20 -> 701.3502662 | EC23: Baseline | ED23: Bioethanol | EE23: 2020 | EF23: 312.9519106 | EG23: =Results!$D$10 -> 6.816682063 | EH23: Baseline | EI23: Bioethanol | EJ23: 2020 | EK23: 312.9519106 | EM23: Baseline | EN23: O&M Rail infrastructure | EO23: 2020 | EP23: =$FO$49 -> 29870.91185 | EQ23: H2 | ER23: Upstream losses | ES23: 2030 | ET23: =$GL$80 -> 4973.425203 | FA23: Total energy consumption | FB23: =FB21+FB22 -> 406.3043629 | FC23: =FC21+FC22 -> 404.7838887 | FD23: 373.0875076 | FE23: 318.6828383 | FF23: 276.6403864 | FG23: 236.5115235 | FH23: 216.346084 | FI23: 197.0734805 | FM23: =Results!AG25 -> Bioethanol | FN23: =Results!AH25 -> 242.1133898 | FO23: =Results!AI25 -> 327.2286874 | FP23: =Results!AJ25 -> 275.1433648 | FQ23: =Results!AK25 -> 213.4930742 | FR23: =Results!AL25 -> 173.8536439 | FS23: =Results!AM25 -> 102.0979566 | FT23: =Results!AN25 -> 59.43320468 | FU23: =Results!AO25 -> 0 | FW23: Total passenger transport demand | FY23: =SUM(FY4:FY13) -> 164377.6419 | FZ23: 169939.3893 | GA23: 177421.6788 | GB23: 185469.898 | GC23: 188637.6013 | GD23: 192131.633 | GE23: 195966.176 | GF23: 200119.9779 | GH23: Upstream energy losses | GI23: 2017 | GJ23: 2020 | GK23: 2025 | GL23: 2030 | GM23: 2035 | GN23: 2040 | GO23: 2045 | GP23: 2050
H24: Exclude | DP24: Baseline | DQ24: Biodiesel | DR24: 2020 | DS24: 23655.85722 | DT24: Baseline | DU24: New Rail infrastructure | DV24: 2020 | DW24: =$FO$50 -> 57347.37827 | DX24: Baseline | DY24: ='Vehicle Costs'!$D$21 -> Trucks, O&M | DZ24: 2020 | EA24: 2305.2729 | EB24: ='Vehicle Costs'!$F$21 -> 24.22725549 | EC24: Baseline | ED24: Biodiesel | EE24: 2020 | EF24: 559.6343811 | EG24: =Results!$D$11 -> 12.0163383 | EH24: Baseline | EI24: Biodiesel | EJ24: 2020 | EK24: 559.6343811 | EM24: Baseline | EN24: New Rail infrastructure | EO24: 2020 | EP24: =$FO$50 -> 57347.37827 | EQ24: H2 | ER24: Upstream losses | ES24: 2035 | ET24: =$GM$80 -> 5782.128836 | FM24: =Results!AG26 -> Biodiesel | FN24: =Results!AH26 -> 432.5084887 | FO24: =Results!AI26 -> 507.9330232 | FP24: =Results!AJ26 -> 450.4168787 | FQ24: =Results!AK26 -> 350.6871158 | FR24: =Results!AL26 -> 266.8499939 | FS24: =Results!AM26 -> 151.23889 | FT24: =Results!AN26 -> 83.10429415 | FU24: =Results!AO26 -> 0 | FW24: Total freight transport demand | FY24: =SUM(FY14:FY22) -> 688090.4951 | FZ24: 710178.9782 | GA24: 748353.7137 | GB24: 788663.0154 | GC24: 817147.0021 | GD24: 846670.7895 | GE24: 877272.9686 | GF24: 908993.6022 | GI24: PJ | GJ24: PJ | GK24: PJ | GL24: PJ | GM24: PJ | GN24: PJ | GO24: PJ | GP24: PJ
DP25: Baseline | DQ25: Bio e-fuel | DR25: 2020 | DS25: 0 | DT25: Baseline | DU25: Other | DV25: 2020 | DW25: =$FO$54+$FO$55 -> 0 | DX25: Baseline | DY25: =Results!$AG$41 -> Cars and vans fuel | DZ25: 2020 | EA25: 125104.6409 | EB25: =Results!$AI$41 -> 3437.827395 | EC25: Baseline | ED25: Bio e-fuel | EE25: 2020 | EF25: 0 | EG25: =Results!$D$12 -> 0 | EH25: Baseline | EI25: Bio e-fuel | EJ25: 2020 | EK25: 0 | EM25: Baseline | EN25: Other | EO25: 2020 | EP25: =$FO$54+$FO$55 -> 0 | EQ25: H2 | ER25: Upstream losses | ES25: 2040 | ET25: =$GN$80 -> 6950.968492 | FM25: =Results!AG27 -> Bio e-fuel | FN25: =Results!AH27 -> 0 | FO25: =Results!AI27 -> 0 | FP25: =Results!AJ27 -> 0 | FQ25: =Results!AK27 -> 0 | FR25: =Results!AL27 -> 0 | FS25: =Results!AM27 -> 0 | FT25: =Results!AN27 -> 0 | FU25: =Results!AO27 -> 0 | GH25: Petrol | GI25: 1086.854303 | GJ25: 1036.85699 | GK25: 979.5389506 | GL25: 821.5984736 | GM25: 767.9041633 | GN25: 662.5608692 | GO25: 514.5332703 | GP25: 412.3965143
DP26: Baseline | DQ26: Bio e-jetfuel | DR26: 2020 | DS26: 0 | DT26: Baseline | DU26: Fuel | DV26: 2025 | DW26: =$FP$75 -> 231937.4176 | DX26: Baseline | DY26: =Results!$AG$42 -> Bus fuel | DZ26: 2020 | EA26: 5826.135247 | EB26: =Results!$AI$42 -> 65.74778363 | EC26: Baseline | ED26: Bio e-jetfuel | EE26: 2020 | EF26: 0 | EG26: =Results!$D$13 -> 0 | EH26: Baseline | EI26: Bio e-jetfuel | EJ26: 2020 | EK26: 0 | EM26: Baseline | EN26: Fuel | EO26: 2025 | EP26: =$FP$75 -> 231937.4176 | EQ26: H2 | ER26: Upstream losses | ES26: 2045 | ET26: =$GO$80 -> 8189.619345 | EZ26: =Scenarios!$AV$5 -> Baseline | FM26: =Results!AG28 -> Bio e-jetfuel | FN26: =Results!AH28 -> 0 | FO26: =Results!AI28 -> 0 | FP26: =Results!AJ28 -> 52.00044595 | FQ26: =Results!AK28 -> 162.4956642 | FR26: =Results!AL28 -> 331.2914512 | FS26: =Results!AM28 -> 426.3530427 | FT26: =Results!AN28 -> 622.6436043 | FU26: =Results!AO28 -> 794.3090794 | GH26: Diesel | GI26: 2053.344018 | GJ26: 1994.515145 | GK26: 1898.074046 | GL26: 1694.839359 | GM26: 1593.908798 | GN26: 1454.809757 | GO26: 1302.691075 | GP26: 1161.279724
DP27: Baseline | DQ27: CO₂ e-fuel | DR27: 2020 | DS27: 0 | DT27: Baseline | DU27: Fuel (w/o jetfuel) | DV27: 2025 | DW27: =$FP$76 -> 186145.1313 | DX27: Baseline | DY27: =Results!$AG$43 -> Rail fuel | DZ27: 2020 | EA27: 2720.839172 | EB27: =Results!$AI$43 -> 138.4553422 | EC27: Baseline | ED27: CO₂ e-fuel | EE27: 2020 | EF27: 0 | EG27: =Results!$D$14 -> 0.3676736974 | EH27: Baseline | EI27: CO₂ e-fuel | EJ27: 2020 | EK27: 0 | EM27: Baseline | EN27: Fuel (w/o jetfuel) | EO27: 2025 | EP27: =$FP$76 -> 186145.1313 | EQ27: H2 | ER27: Upstream losses | ES27: 2050 | ET27: =$GP$80 -> 9188.835036 | EZ27: Energy consumption | FB27: 2017 | FC27: 2020 | FD27: 2025 | FE27: 2030 | FF27: 2035 | FG27: 2040 | FH27: 2045 | FI27: 2050 | FM27: =Results!AG29 -> CO₂ e-fuel | FN27: =Results!AH29 -> 0 | FO27: =Results!AI29 -> 20.44746562 | FP27: =Results!AJ29 -> 90.8355166 | FQ27: =Results!AK29 -> 162.3487461 | FR27: =Results!AL29 -> 573.8253624 | FS27: =Results!AM29 -> 995.902036 | FT27: =Results!AN29 -> 1453.647446 | FU27: =Results!AO29 -> 2027.730306 | FW27: High growth | GH27: Jet-fuel fossil | GI27: 818.0957318 | GJ27: 847.2662417 | GK27: 898.2133991 | GL27: 952.2240715 | GM27: 975.4143794 | GN27: 1004.231099 | GO27: 1025.509027 | GP27: 1038.529706
C28: Sheet contents | DP28: Baseline | DQ28: CO₂ e-jetfuel | DR28: 2020 | DS28: 0 | DT28: Baseline | DU28: Jetfuel | DV28: 2025 | DW28: =$FP$77 -> 45792.2863 | DX28: Baseline | DY28: =Results!$AG$46 -> Vans fuel | DZ28: 2020 | EA28: 19223.2668 | EB28: =Results!$AI$46 -> 505.5956549 | EC28: Baseline | ED28: CO₂ e-jetfuel | EE28: 2020 | EF28: 0 | EG28: =Results!$D$15 -> 0.3221284474 | EH28: Baseline | EI28: CO₂ e-jetfuel | EJ28: 2020 | EK28: 0 | EM28: Baseline | EN28: Jetfuel | EO28: 2025 | EP28: =$FP$77 -> 45792.2863 | EQ28: =$FK$166 -> BEV + e-fuels | ER28: Upstream losses | ES28: 2017 | ET28: =$GI$100 -> 4972.637056 | EZ28: Passenger | FA28: Cars and vans <2t | FB28: 8984176.537 | FC28: 8769124.704 | FD28: 8366822.214 | FE28: 7577086.203 | FF28: 7382467.943 | FG28: 6810395.401 | FH28: 5867040.584 | FI28: 5201544.625 | FM28: =Results!AG30 -> CO₂ e-jetfuel | FN28: =Results!AH30 -> 0 | FO28: =Results!AI30 -> 18.90980713 | FP28: =Results!AJ30 -> 136.9931288 | FQ28: =Results!AK30 -> 314.5970744 | FR28: =Results!AL30 -> 842.2993544 | FS28: =Results!AM30 -> 1271.498906 | FT28: =Results!AN30 -> 1573.90376 | FU28: =Results!AO30 -> 1816.93481 | FW28: Transport demand | FY28: 2017 | FZ28: 2020 | GA28: 2025 | GB28: 2030 | GC28: 2035 | GD28: 2040 | GE28: 2045 | GF28: 2050 | GH28: Biogas | GI28: 0 | GJ28: 0 | GK28: 0 | GL28: -30.37231709 | GM28: -30.25202081 | GN28: -30.91672793 | GO28: -26.07558378 | GP28: -26.82681006
C29: Sheet name | D29: Sheet content | DP29: Baseline | DQ29: Ammonia | DR29: 2020 | DS29: 0 | DT29: Baseline | DU29: Vehicle | DV29: 2025 | DW29: =$FP$56 -> 752185.5596 | DX29: Baseline | DY29: =Results!$AG$47 -> National truck fuel | DZ29: 2020 | EA29: 16256.05854 | EB29: =Results!$AI$47 -> 351.0361988 | EC29: Baseline | ED29: Ammonia | EE29: 2020 | EF29: 0 | EG29: =Results!$D$16 -> 0 | EH29: Baseline | EI29: Ammonia | EJ29: 2020 | EK29: 0 | EM29: Baseline | EN29: Vehicle | EO29: 2025 | EP29: =$FP$56 -> 752185.5596 | EQ29: BEV + e-fuels | ER29: Upstream losses | ES29: 2020 | ET29: =$GJ$100 -> 5145.402584 | FA29: Rail | FB29: 239435.9111 | FC29: 247215.7671 | FD29: 253371.0853 | FE29: 258872.411 | FF29: 258556.8682 | FG29: 270141.5169 | FH29: 282173.5182 | FI29: 292723.6782 | FM29: =Results!AG31 -> Ammonia | FN29: =Results!AH31 -> 0 | FO29: =Results!AI31 -> 0 | FP29: =Results!AJ31 -> 0.0723687993 | FQ29: =Results!AK31 -> 0.1389664195 | FR29: =Results!AL31 -> 0.3491042886 | FS29: =Results!AM31 -> 0.562692844 | FT29: =Results!AN31 -> 0.8653264841 | FU29: =Results!AO31 -> 1.263099534 | FW29: Passenger | FX29: Cars and vans <2t | FY29: 5004272.67 | FZ29: 5125338.597 | GA29: 5280954.981 | GB29: 5441296.215 | GC29: 5578695.763 | GD29: 5719564.822 | GE29: 5863991.001 | GF29: 6012064.122 | GG29: =(GF29-FY29)/FY29 -> 0.201386199 | GH29: Bioethanol | GI29: 385.6051836 | GJ29: 519.7864193 | GK29: 491.0755968 | GL29: 473.6476048 | GM29: 561.4387033 | GN29: 590.7555352 | GO29: 543.6245161 | GP29: 435.1001017
DP30: Baseline | DQ30: Hydrogen | DR30: 2020 | DS30: 0 | DT30: Baseline | DU30: Vehicle O&M | DV30: 2025 | DW30: =$FP$57 -> 127315.6274 | DX30: Baseline | DY30: =Results!$AG$48 -> International truck fuel | DZ30: 2020 | EA30: 12730.62178 | EB30: =Results!$AI$48 -> 506.2546905 | EC30: Baseline | ED30: Hydrogen | EE30: 2020 | EF30: 0 | EG30: =Results!$D$17 -> 0 | EH30: Baseline | EI30: Hydrogen | EJ30: 2020 | EK30: 0 | EM30: Baseline | EN30: Vehicle O&M | EO30: 2025 | EP30: =$FP$57 -> 127315.6274 | EQ30: BEV + e-fuels | ER30: Upstream losses | ES30: 2025 | ET30: =$GK$100 -> 4967.015437 | FA30: Bus | FB30: 426420.3257 | FC30: 416999.0379 | FD30: 395570.8791 | FE30: 377472.9781 | FF30: 373074.5022 | FG30: 356175.2337 | FH30: 344972.6296 | FI30: 322999.4186 | FM30: =Results!AG32 -> Hydrogen | FN30: =Results!AH32 -> 0 | FO30: =Results!AI32 -> 0 | FP30: =Results!AJ32 -> 0 | FQ30: =Results!AK32 -> 0 | FR30: =Results!AL32 -> 0 | FS30: =Results!AM32 -> 0 | FT30: =Results!AN32 -> 0 | FU30: =Results!AO32 -> 0 | FX30: Rail | FY30: 436028.463 | FZ30: 458646.0935 | GA30: 496530.8519 | GB30: 537544.9402 | GC30: 570581.0459 | GD30: 605647.4643 | GE30: 642868.9731 | GF30: 682378.0184 | GG30: =(GF30-FY30)/FY30 -> 0.5649850325 | GH30: Biodiesel | GI30: 585.3480262 | GJ30: 681.749071 | GK30: 645.2038288 | GL30: 608.1492631 | GM30: 654.8391729 | GN30: 654.0488961 | GO30: 573.460475 | GP30: 474.2233055
C31: Results | D31: Summative tables and graphs of results. | DP31: Baseline | DQ31: Natural gas | DR31: 2020 | DS31: 25.49854033 | DT31: Baseline | DU31: EV Charging stations | DV31: 2025 | DW31: =$FP$58 -> 323.9043461 | DX31: Baseline | DY31: =Results!$AG$49 -> Truck fuel | DZ31: 2020 | EA31: 28986.68032 | EB31: =Results!$AI$49 -> 857.2908893 | EC31: Baseline | ED31: Natural gas | EE31: 2020 | EF31: 4.261689452 | EG31: =Results!$D$18 -> 0 | EH31: Baseline | EI31: Natural gas | EJ31: 2020 | EK31: 4.261689452 | EM31: Baseline | EN31: EV Charging stations | EO31: 2025 | EP31: =$FP$58 -> 323.9043461 | EQ31: BEV + e-fuels | ER31: Upstream losses | ES31: 2030 | ET31: =$GL$100 -> 4758.634454 | FA31: Bicycle/walking | FB31: 0 | FC31: 0 | FD31: 0 | FE31: 0 | FF31: 0 | FG31: 0 | FH31: 0 | FI31: 0 | FM31: =Results!AG33 -> Natural gas | FN31: =Results!AH33 -> 0 | FO31: =Results!AI33 -> 0 | FP31: =Results!AJ33 -> 0 | FQ31: =Results!AK33 -> 0 | FR31: =Results!AL33 -> 0 | FS31: =Results!AM33 -> 0 | FT31: =Results!AN33 -> 0 | FU31: =Results!AO33 -> 0 | FX31: Bus | FY31: 510782.9012 | FZ31: 523140.0227 | GA31: 539023.6871 | GB31: 555389.6141 | GC31: 569413.8978 | GD31: 583792.3123 | GE31: 598533.7997 | GF31: 613647.5282 | GG31: 0.201386199 | GH31: Bio e-fuel | GI31: 0 | GJ31: 0 | GK31: 0 | GL31: 0 | GM31: 0 | GN31: 0 | GO31: 0 | GP31: 0
DP32: Baseline | DQ32: Electricity Train / bus / trucks / ships / aircrafts | DR32: 2020 | DS32: 3067.270528 | DT32: Baseline | DU32: O&M Road infrastructure | DV32: 2025 | DW32: =$FP$45 -> 32851.10091 | DX32: Baseline | DY32: ='Vehicle Costs'!$D$15 -> Cars and vans < 2 ton, investments | DZ32: 2025 | EA32: 663983.153 | EB32: ='Vehicle Costs'!$G$15 -> 14447.25787 | EC32: Baseline | ED32: Electricity Train / bus / trucks / ships / aircrafts | EE32: 2020 | EF32: 316.3765372 | EG32: =Results!$D$19 -> 6.211278712 | EH32: Baseline | EI32: Electricity Train / bus / trucks / ships / aircrafts | EJ32: 2020 | EK32: 316.3765372 | EM32: Baseline | EN32: O&M Road infrastructure | EO32: 2025 | EP32: =$FP$45 -> 32851.10091 | EQ32: BEV + e-fuels | ER32: Upstream losses | ES32: 2035 | ET32: =$GM$100 -> 5206.276046 | FA32: Air | FB32: 2828418.38 | FC32: 2929270.154 | FD32: 3105410.758 | FE32: 3292142.913 | FF32: 3372319.218 | FG32: 3471947.826 | FH32: 3574519.766 | FI32: 3680121.995 | FM32: =Results!AG34 -> Electricity Train / bus / trucks / ships / aircrafts | FN32: =Results!AH34 -> 75.52648211 | FO32: =Results!AI34 -> 86.02621016 | FP32: =Results!AJ34 -> 136.2218035 | FQ32: =Results!AK34 -> 236.8783358 | FR32: =Results!AL34 -> 377.7293595 | FS32: =Results!AM34 -> 568.9966462 | FT32: =Results!AN34 -> 739.8642541 | FU32: =Results!AO34 -> 925.1032893 | FX32: Bicycle/walking | FY32: 247811.7265 | FZ32: 247811.7265 | GA32: 247811.7265 | GB32: 247811.7265 | GC32: 247811.7265 | GD32: 247811.7265 | GE32: 247811.7265 | GF32: 247811.7265 | GG32: 2.348866284e-16 | GH32: Bio e-jetfuel | GI32: 0 | GJ32: 0 | GK32: 0 | GL32: 0 | GM32: 0 | GN32: 0 | GO32: 23.10394805 | GP32: 71.35952768
C33: Transport and energy demand input | D33: Data input regarding transport demand, load factors, trafic work and energy demand for both passenger and freight transport. Contains as a default the latest available data from The Danish Statistics and The Danish Energy Agency's "Energy Statistics". | DP33: Baseline | DQ33: Electricity BEV + Plug-in-hybrid | DR33: 2020 | DS33: 367.5821621 | DT33: Baseline | DU33: New Road infrastructure | DV33: 2025 | DW33: =$FP$46+$FP$47 -> 67446.50844 | DX33: Baseline | DY33: ='Vehicle Costs'!$D$16 -> Cars and vans < 2 ton, O&M | DZ33: 2025 | EA33: 124387.4008 | EB33: ='Vehicle Costs'!$G$16 -> 2629.71046 | EC33: Baseline | ED33: Electricity BEV + Plug-in-hybrid | EE33: 2020 | EF33: 37.91461187 | EG33: =Results!$D$20 -> 0.9286494556 | EH33: Baseline | EI33: Electricity BEV + Plug-in-hybrid | EJ33: 2020 | EK33: 37.91461187 | EM33: Baseline | EN33: New Road infrastructure | EO33: 2025 | EP33: =$FP$46+$FP$47 -> 67446.50844 | EQ33: BEV + e-fuels | ER33: Upstream losses | ES33: 2040 | ET33: =$GN$100 -> 5527.409596 | FA33: Sea | FB33: 246195.953 | FC33: 235210.8341 | FD33: 222980.8004 | FE33: 214089.7994 | FF33: 215130.1513 | FG33: 216719.2594 | FH33: 222185.0598 | FI33: 228931.0796 | FM33: =Results!AG35 -> Electricity BEV + Plug-in-hybrid | FN33: =Results!AH35 -> 0 | FO33: =Results!AI35 -> 12.86179496 | FP33: =Results!AJ35 -> 93.45125065 | FQ33: =Results!AK35 -> 244.9281851 | FR33: =Results!AL35 -> 353.3859673 | FS33: =Results!AM35 -> 452.3363136 | FT33: =Results!AN35 -> 491.677848 | FU33: =Results!AO35 -> 500.1486791 | FX33: Air (national) | FY33: 134340.3585 | FZ33: 144669.8727 | GA33: 161299.3355 | GB33: 179840.3161 | GC33: 194695.358 | GD33: 210777.4455 | GE33: 228187.9341 | GF33: 247036.5515 | GG33: 0.8388856051 | GH33: CO₂ e-fuel | GI33: 0 | GJ33: 0 | GK33: 4.913150567 | GL33: 25.17645173 | GM33: 42.55499082 | GN33: 66.40559603 | GO33: 86.3529439 | GP33: 104.0739655
DP34: Baseline | DQ34: Petrol | DR34: 2025 | DS34: =FP60 -> 52966.93792 | DT34: Baseline | DU34: O&M Rail infrastructure | DV34: 2025 | DW34: =$FP$49 -> 33262.63648 | DX34: Baseline | DY34: ='Vehicle Costs'!$D$17 -> Charging stations, investments | DZ34: 2025 | EA34: 323.9043461 | EB34: ='Vehicle Costs'!$G$17 -> 17.3299226 | EC34: Baseline | ED34: Petrol | EE34: 2025 | EF34: 4426.305148 | EG34: =Results!$E$6 -> 85.76990084 | EH34: Baseline | EI34: Petrol | EJ34: 2025 | EK34: 4426.305148 | EM34: Baseline | EN34: O&M Rail infrastructure | EO34: 2025 | EP34: =$FP$49 -> 33262.63648 | EQ34: BEV + e-fuels | ER34: Upstream losses | ES34: 2045 | ET34: =$GO$100 -> 6062.659505 | EZ34: Freight | FA34: Truck (national) | FB34: 1169186.947 | FC34: 1167690.389 | FD34: 1152054.304 | FE34: 1121385.034 | FF34: 1145854.67 | FG34: 1161417.501 | FH34: 1174598.737 | FI34: 1166700.182 | FM34: All | FN34: =Results!AH5 -> 6902.084076 | FO34: =Results!AI5 -> 7006.40537 | FP34: =Results!AJ5 -> 6578.729194 | FQ34: =Results!AK5 -> 5808.352929 | FR34: =Results!AL5 -> 5773.004604 | FS34: =Results!AM5 -> 5609.004061 | FT34: =Results!AN5 -> 5830.784622 | FU34: =Results!AO5 -> 6068.004339 | FX34: Air (international) | FY34: 593870.9464 | FZ34: 639534.0546 | GA34: 713046.9954 | GB34: 795010.0764 | GC34: 860678.9333 | GD34: 931772.1224 | GE34: 1008737.7 | GF34: 1092060.735 | GG34: 0.8388856051 | GH34: CO₂ e-jetfuel | GI34: 0 | GJ34: 0 | GK34: 0 | GL34: 0 | GM34: 0 | GN34: 0 | GO34: 0 | GP34: 0
C35: Vehicle costs | D35: Data input regarding vehicle costs. Contains as a default vehicle costs from The Danish Energy Agency's model "Alternativ Drivmiddel-model". | DP35: Baseline | DQ35: Diesel | DR35: 2025 | DS35: 91423.13431 | DT35: Baseline | DU35: New Rail infrastructure | DV35: 2025 | DW35: =$FP$50 -> 57372.23123 | DX35: Baseline | DY35: ='Vehicle Costs'!$D$18 -> Busses, investments | DZ35: 2025 | EA35: 14383.09069 | EB35: ='Vehicle Costs'!$G$18 -> 325.0894695 | EC35: Baseline | ED35: Diesel | EE35: 2025 | EF35: 7639.986488 | EG35: =Results!$E$7 -> 174.3504707 | EH35: Baseline | EI35: Diesel | EJ35: 2025 | EK35: 7639.986488 | EM35: Baseline | EN35: New Rail infrastructure | EO35: 2025 | EP35: =$FP$50 -> 57372.23123 | EQ35: BEV + e-fuels | ER35: Upstream losses | ES35: 2050 | ET35: =$GP$100 -> 6991.850331 | FL35: Total fuel cost (w/o jetfuels) | FN35: =SUM(FN19:FN20,FN22:FN25,FN27,FN29:FN33) -> 5642.187903 | FO35: =SUM(FO19:FO20,FO22:FO25,FO27,FO29:FO33) -> 5680.14753 | FP35: 5196.62371 | FQ35: 4283.473225 | FR35: 3834.001607 | FS35: 3414.650764 | FT35: 3409.22017 | FU35: 3456.76045 | FX35: Sea (national) | FY35: 14608.76524 | FZ35: 14828.99421 | GA35: 15355.32625 | GB35: 15900.33963 | GC35: 16383.10839 | GD35: 16880.53506 | GE35: 17393.06467 | GF35: 17921.1558 | GG35: 0.22673994 | GH35: Ammonia | GI35: 0 | GJ35: 0 | GK35: 0 | GL35: 0 | GM35: 0 | GN35: 0 | GO35: 0 | GP35: 0
DP36: =$FK$43 -> Baseline | DQ36: Jet-fuel fossil | DR36: 2025 | DS36: 45792.2863 | DT36: =$FK$43 -> Baseline | DU36: Other | DV36: 2025 | DW36: =$FP$54+$FP$55 -> 0 | DX36: =$FK$43 -> Baseline | DY36: ='Vehicle Costs'!$D$19 -> Busses, O&M | DZ36: 2025 | EA36: 340.3045135 | EB36: ='Vehicle Costs'!$G$19 -> 7.661199029 | EC36: =$FK$43 -> Baseline | ED36: Jet-fuel fossil | EE36: 2025 | EF36: 3826.738726 | EG36: =Results!$E$8 -> 74.77887519 | EH36: =$FK$43 -> Baseline | EI36: Jet-fuel fossil | EJ36: 2025 | EK36: 3826.738726 | EM36: =$FK$43 -> Baseline | EN36: Other | EO36: 2025 | EP36: =$FP$54+$FP$55 -> 0 | EQ36: =$FK$207 -> Heavy elec. | ER36: Upstream losses | ES36: 2017 | ET36: =$GI$120 -> 4972.637056 | FL36: Total jetfuel costs | FN36: =FN21+FN26+FN28 -> 1259.896174 | FO36: =FO21+FO26+FO28 -> 1326.257841 | FP36: 1382.105484 | FQ36: 1524.879704 | FR36: 1939.002997 | FS36: 2194.353296 | FT36: 2421.564452 | FU36: 2611.24389 | GG36: =((GF30+GF31+GF35+GF38)-(FY30+FY31+FY35+FY38))/(FY30+FY31+FY35+FY38) -> 0.364646294 | GH36: Hydrogen | GI36: 0 | GJ36: 0 | GK36: 0 | GL36: 0 | GM36: 0 | GN36: 32.48433043 | GO36: 65.06359611 | GP36: 149.5310246
C37: Scenario development | D37: Allows the user to define and develop specific scenario developments. Annual growth rates, technology and modal shifts can be defined in the sheet "Scenarios". In the sheet "EE improvement, LF development" it is possible to define annual energy efficiency improvements and improvements in load factors. In the sheet Growth, Modal Shift, InfraCosts, the resulting growth in transport demand based on the scenarios defined in "Scenarios" are summed up. Additionally the infrastructure costs can be defined in this sheet. | DP37: Baseline | DQ37: Biogas | DR37: 2025 | DS37: 0 | DT37: Baseline | DU37: Fuel | DV37: 2030 | DW37: =$FQ$75 -> 225488.6808 | DX37: Baseline | DY37: ='Vehicle Costs'!$D$20 -> Trucks, investments | DZ37: 2025 | EA37: 73819.31587 | EB37: ='Vehicle Costs'!$G$20 -> 866.9307515 | EC37: Baseline | ED37: Biogas | EE37: 2025 | EF37: 0 | EG37: =Results!$E$9 -> 0.008450740859 | EH37: Baseline | EI37: Biogas | EJ37: 2025 | EK37: 0 | EM37: Baseline | EN37: Fuel | EO37: 2030 | EP37: =$FQ$75 -> 225488.6808 | EQ37: Heavy elec. | ER37: Upstream losses | ES37: 2020 | ET37: =$GJ$120 -> 5145.402584 | FA37: Truck (international) | FB37: 905840.5314 | FC37: 904681.057 | FD37: 885663.7695 | FE37: 835226.8605 | FF37: 833774.338 | FG37: 817015.0214 | FH37: 804080.2475 | FI37: 770988.6823 | FL37: Total inffrastructure cost | FN37: =FN7+FN10+FN13+FN14 -> 1985.296 | FO37: 2082.772611 | FP37: 4412.727929 | FQ37: 4304.687795 | FR37: 3539.522136 | FS37: 3364.081444 | FT37: 1788.967325 | FU37: 1824.692425 | GH37: Natural gas | GI37: 0 | GJ37: 0.666258573 | GK37: 3.373584857 | GL37: 13.4370032 | GM37: 22.83468578 | GN37: 34.09899368 | GO37: 43.58657656 | GP37: 52.90976578
DP38: Baseline | DQ38: Bioethanol | DR38: 2025 | DS38: 14193.16867 | DT38: Baseline | DU38: Fuel (w/o jetfuel) | DV38: 2030 | DW38: =$FQ$76 -> 176942.8482 | DX38: Baseline | DY38: ='Vehicle Costs'!$D$21 -> Trucks, O&M | DZ38: 2025 | EA38: 2587.92209 | EB38: ='Vehicle Costs'!$G$21 -> 28.40939617 | EC38: Baseline | ED38: Bioethanol | EE38: 2025 | EF38: 295.6657591 | EG38: =Results!$E$10 -> 5.731663855 | EH38: Baseline | EI38: Bioethanol | EJ38: 2025 | EK38: 295.6657591 | EM38: Baseline | EN38: Fuel (w/o jetfuel) | EO38: 2030 | EP38: =$FQ$76 -> 176942.8482 | EQ38: Heavy elec. | ER38: Upstream losses | ES38: 2025 | ET38: =$GK$120 -> 4836.114475 | FA38: Vans (2-6 t) | FB38: 1349989.625 | FC38: 1361442.775 | FD38: 1317766.989 | FE38: 1272079.108 | FF38: 1174514.183 | FG38: 1090079.442 | FH38: 1026034.371 | FI38: 948093.4779 | FL38: Total vehicle cost | FN38: =FN18 -> 16888.83186 | FO38: 17357.37325 | FP38: 18322.38907 | FQ38: 19406.81961 | FR38: 19226.27258 | FS38: 19378.52606 | FT38: 19625.41689 | FU38: 19881.22823 | FX38: Sea (international) | FY38: 14127.59916 | FZ38: 14340.57449 | GA38: 14849.57084 | GB38: 15376.63322 | GC38: 15843.50111 | GD38: 16324.54413 | GE38: 16820.19266 | GF38: 17330.89015 | GG38: 0.22673994 | GH38: Electricity Train / bus / trucks / ships / aircrafts | GI38: 43.38979277 | GJ38: 48.70962741 | GK38: 58.64617803 | GL38: 70.37868467 | GM38: 81.43579567 | GN38: 88.60109251 | GO38: 96.33750447 | GP38: 107.8301561
C39: Scenario overview | D39: This sheet presents all modelled year in detail. If custom scenarios are defined or the predefined scenarios are changed it is neccesary to run the solver in this sheet. The solver can be loaded from the solver module in cell AZ4. | DP39: Baseline | DQ39: Biodiesel | DR39: 2025 | DS39: 22387.7821 | DT39: Baseline | DU39: Jetfuel | DV39: 2030 | DW39: =$FQ$77 -> 48545.83259 | DX39: Baseline | DY39: =Results!$AG$41 -> Cars and vans fuel | DZ39: 2025 | EA39: 118999.5978 | EB39: =Results!$AJ$41 -> 2970.185376 | EC39: Baseline | ED39: Biodiesel | EE39: 2025 | EF39: 529.6351117 | EG39: =Results!$E$11 -> 10.65565999 | EH39: Baseline | EI39: Biodiesel | EJ39: 2025 | EK39: 529.6351117 | EM39: Baseline | EN39: Jetfuel | EO39: 2030 | EP39: =$FQ$77 -> 48545.83259 | EQ39: Heavy elec. | ER39: Upstream losses | ES39: 2030 | ET39: =$GL$120 -> 4264.951071 | FA39: Rail (national) | FB39: 247206.1688 | FC39: 243851.9034 | FD39: 232269.4245 | FE39: 225981.6604 | FF39: 208730.1775 | FG39: 214034.0556 | FH39: 219116.6446 | FI39: 220000.9883 | FL39: Total fuel cost | FN39: =FN34 -> 6902.084076 | FO39: 7006.40537 | FP39: 6578.729194 | FQ39: 5808.352929 | FR39: 5773.004604 | FS39: 5609.004061 | FT39: 5830.784622 | FU39: 6068.004339 | FW39: Freight | FX39: Truck (national) | FY39: 1174121.752 | FZ39: 1227753.726 | GA39: 1322639.449 | GB39: 1424858.322 | GC39: 1475431.448 | GD39: 1527799.589 | GE39: 1582026.455 | GF39: 1638178.019 | GG39: =(GF39-FY39)/FY39 -> 0.3952369216 | GH39: Electricity BEV + Plug-in-hybrid | GI39: 0 | GJ39: 5.837369085 | GK39: 19.7700278 | GL39: 46.14635893 | GM39: 67.8715672 | GN39: 100.3553511 | GO39: 147.0834634 | GP39: 176.7808718 | GR39: Sum of m€ | GS39: Column Labels
DP40: Baseline | DQ40: Bio e-fuel | DR40: 2025 | DS40: 0 | DT40: Baseline | DU40: Vehicle | DV40: 2030 | DW40: =$FQ$56 -> 795839.0526 | DX40: Baseline | DY40: =Results!$AG$42 -> Bus fuel | DZ40: 2025 | EA40: 5478.242915 | EB40: =Results!$AJ$42 -> 60.66245272 | EC40: Baseline | ED40: Bio e-fuel | EE40: 2025 | EF40: 0 | EG40: =Results!$E$12 -> 0 | EH40: Baseline | EI40: Bio e-fuel | EJ40: 2025 | EK40: 0 | EM40: Baseline | EN40: Vehicle | EO40: 2030 | EP40: =$FQ$56 -> 795839.0526 | EQ40: Heavy elec. | ER40: Upstream losses | ES40: 2035 | ET40: =$GM$120 -> 4133.05675 | FA40: Rail (international) | FB40: 143551.165 | FC40: 152281.6451 | FD40: 168028.2447 | FE40: 185403.1127 | FF40: 197771.7461 | FG40: 210965.5173 | FH40: 225039.4727 | FI40: 240052.3315 | FL40: Total costs | FN40: =FN7+FN10+FN13+FN14+FN18+FN34 -> 25776.21194 | FO40: 26446.55123 | FP40: 29313.8462 | FQ40: 29519.86033 | FR40: 28538.79932 | FS40: 28351.61156 | FT40: 27245.16884 | FU40: 27773.92499 | FX40: Truck (international) | FY40: 640226.2923 | FZ40: 669537.7124 | GA40: 721282.2676 | GB40: 777025.8492 | GC40: 804605.1711 | GD40: 833163.3781 | GE40: 862735.2141 | GF40: 893356.6564 | GG40: 0.395376396 | GH40: Total losses | GI40: =SUM(GI25:GI39) -> 4972.637056 | GJ40: =SUM(GJ25:GJ39) -> 5135.387123 | GK40: =SUM(GK25:GK39) -> 4998.808763 | GL40: =SUM(GL25:GL39) -> 4675.224953 | GM40: =SUM(GM25:GM39) -> 4737.950236 | GN40: =SUM(GN25:GN39) -> 4657.434792 | GO40: =SUM(GO25:GO39) -> 4395.270813 | GP40: =SUM(GP25:GP39) -> 4157.187853 | GR40: Row Labels | GS40: Diesel | GT40: Petrol | GU40: Jet-fuel fossil | GV40: Bio e-jetfuel | GW40: CO₂ e-jetfuel | GX40: Electricity BEV + Plug-in-hybrid | GY40: Bio e-fuel | GZ40: CO₂ e-fuel | HA40: Bioethanol | HB40: Biodiesel | HC40: Ammonia | HD40: Biogas | HE40: Hydrogen | HF40: Natural gas | HG40: Electricity Train / bus / trucks / ships / aircrafts | HH40: Grand Total
C41: EnergyPLAN output | DP41: Baseline | DQ41: Bio e-jetfuel | DR41: 2025 | DS41: 0 | DT41: Baseline | DU41: Vehicle O&M | DV41: 2030 | DW41: =$FQ$57 -> 133222.9119 | DX41: Baseline | DY41: =Results!$AG$43 -> Rail fuel | DZ41: 2025 | EA41: 2729.176525 | EB41: =Results!$AJ$43 -> 149.8081871 | EC41: Baseline | ED41: Bio e-jetfuel | EE41: 2025 | EF41: 0 | EG41: =Results!$E$13 -> 0.9459124581 | EH41: Baseline | EI41: Bio e-jetfuel | EJ41: 2025 | EK41: 0 | EM41: Baseline | EN41: Vehicle O&M | EO41: 2030 | EP41: =$FQ$57 -> 133222.9119 | EQ41: Heavy elec. | ER41: Upstream losses | ES41: 2040 | ET41: =$GN$120 -> 3801.539967 | FA41: Air (national) | FB41: 10614.05063 | FC41: 10992.51156 | FD41: 11653.50475 | FE41: 12354.24427 | FF41: 12655.1175 | FG41: 13028.98831 | FH41: 13413.90441 | FI41: 13810.19211 | FX41: Vans (2-6 t) | FY41: 489942.2018 | FZ41: 512321.9654 | GA41: 551916.2582 | GB41: 594570.5564 | GC41: 615673.912 | GD41: 637526.2983 | GE41: 660154.301 | GF41: 683585.4494 | GG41: 0.3952369216 | GR41: 2050 | GS41: 114635.2501 | GT41: 40919.06132 | GU41: 77834.53958 | GV41: 656199.8384 | GW41: 402486.6531 | GX41: 221986.3248 | GY41: 0 | GZ41: 281855.2126 | HA41: 88978.06065 | HB41: 203213.8418 | HC41: 8224.994644 | HD41: 59450.09646 | HE41: 281497.8045 | HF41: 7937.765945 | HG41: 219876.8792 | HH41: 2665096.323
DP42: Baseline | DQ42: CO₂ e-fuel | DR42: 2025 | DS42: 107.0878055 | DT42: Baseline | DU42: EV Charging stations | DV42: 2030 | DW42: =$FQ$58 -> 772.9290035 | DX42: Baseline | DY42: =Results!$AG$46 -> Vans fuel | DZ42: 2025 | EA42: 18525.9969 | EB42: =Results!$AJ$46 -> 456.6248589 | EC42: Baseline | ED42: CO₂ e-fuel | EE42: 2025 | EF42: 3.490126031 | EG42: =Results!$E$14 -> 1.76889572 | EH42: Baseline | EI42: CO₂ e-fuel | EJ42: 2025 | EK42: 3.490126031 | EM42: Baseline | EN42: EV Charging stations | EO42: 2030 | EP42: =$FQ$58 -> 772.9290035 | EQ42: Heavy elec. | ER42: Upstream losses | ES42: 2045 | ET42: =$GO$120 -> 3881.398013 | FA42: Air (international) | FB42: 646373.8462 | FC42: 669421.338 | FD42: 709674.4634 | FE42: 752348.0585 | FF42: 770670.619 | FG42: 793438.5824 | FH42: 816879.181 | FI42: 841012.2864 | FX42: Rail (national) | FY42: 374756.001 | FZ42: 397694.0663 | GA42: 436938.2161 | GB42: 480054.949 | GC42: 507045.2625 | GD42: 535553.0626 | GE42: 565663.6678 | GF42: 597467.193 | GG42: =(GF42-FY42)/FY42 -> 0.5942831908 | GH42: =Scenarios!$AV$6 -> Biofuels | GR42: H2 | GS42: 2.10756282e-07 | GT42: 0 | GU42: 2.09412e-07 | GV42: 142070.4848 | GW42: 0 | GX42: 19073.3565 | GY42: 0 | GZ42: 19241.96828 | HA42: 0 | HB42: 0 | HC42: 5569.131972 | HD42: 0 | HE42: 245576.77 | HF42: 0 | HG42: 29260.95988 | HH42: 460792.6714
C43: Emissions and efficiencies | D43: Emissions and efficiencies for all types of vehicles and technologies. Emissions factors are from The Danish Energy Agency and technology efficiencies are from The Danish Energy Agency's model "Alternativ Drivmiddel-model". | DP43: Baseline | DQ43: CO₂ e-jetfuel | DR43: 2025 | DS43: 0 | DT43: Baseline | DU43: O&M Road infrastructure | DV43: 2030 | DW43: =$FQ$45 -> 34235.4169 | DX43: Baseline | DY43: =Results!$AG$47 -> National truck fuel | DZ43: 2025 | EA43: 15877.52561 | EB43: =Results!$AJ$47 -> 336.2416538 | EC43: Baseline | ED43: CO₂ e-jetfuel | EE43: 2025 | EF43: 0 | EG43: =Results!$E$15 -> 2.491969152 | EH43: Baseline | EI43: CO₂ e-jetfuel | EJ43: 2025 | EK43: 0 | EM43: Baseline | EN43: O&M Road infrastructure | EO43: 2030 | EP43: =$FQ$45 -> 34235.4169 | EQ43: Heavy elec. | ER43: Upstream losses | ES43: 2050 | ET43: =$GP$120 -> 4211.404701 | FA43: Sea (national) | FB43: 65478.9701 | FC43: 64825.05975 | FD43: 64566.98179 | FE43: 65132.29822 | FF43: 65774.7429 | FG43: 66590.58555 | FH43: 68610.03291 | FI43: 71045.23914 | FK43: =Scenarios!$AV$5 -> Baseline | FX43: Rail (international) | FY43: 203140.251 | FZ43: 215574.0595 | GA43: 236846.7447 | GB43: 260218.6024 | GC43: 274848.9727 | GD43: 290301.9119 | GE43: 306623.6675 | GF43: 323863.0875 | GG43: 0.5942831908 | GH43: Upstream energy losses | GI43: 2017 | GJ43: 2020 | GK43: 2025 | GL43: 2030 | GM43: 2035 | GN43: 2040 | GO43: 2045 | GP43: 2050 | GR43: Biofuels | GS43: 2.09412e-07 | GT43: 0 | GU43: 2.09412e-07 | GV43: 284140.9695 | GW43: 0 | GX43: 19073.3565 | GY43: 0 | GZ43: 19241.96828 | HA43: 76208.2511 | HB43: 177057.2289 | HC43: 0 | HD43: 45288.90135 | HE43: 0 | HF43: 0 | HG43: 18336.76051 | HH43: 639347.4361
DP44: Baseline | DQ44: Ammonia | DR44: 2025 | DS44: 0 | DT44: Baseline | DU44: New Road infrastructure | DV44: 2030 | DW44: =$FQ$46+$FQ$47 -> 67791.76754 | DX44: Baseline | DY44: =Results!$AG$48 -> International truck fuel | DZ44: 2025 | EA44: 12475.62756 | EB44: =Results!$AJ$48 -> 518.6510294 | EC44: Baseline | ED44: Ammonia | EE44: 2025 | EF44: 0 | EG44: =Results!$E$16 -> 0.00281691362 | EH44: Baseline | EI44: Ammonia | EJ44: 2025 | EK44: 0 | EM44: Baseline | EN44: New Road infrastructure | EO44: 2030 | EP44: =$FQ$46+$FQ$47 -> 67791.76754 | EQ44: =$FK$248 -> 1.5 TECH | ER44: Upstream losses | ES44: 2017 | ET44: =$GI$140 -> 4972.637056 | FA44: Sea (international) | FB44: 393211.7831 | FC44: 381301.8145 | FD44: 366892.2484 | FE44: 357541.5821 | FF44: 361068.2608 | FG44: 365546.8018 | FH44: 376632.4909 | FI44: 390000.4744 | FK44: Total costs | FN44: 2017 | FO44: 2020 | FP44: 2025 | FQ44: 2030 | FR44: 2035 | FS44: 2040 | FT44: 2045 | FU44: 2050 | FX44: Air (national) | FY44: 802.6056806 | FZ44: 864.318533 | GA44: 963.6699228 | GB44: 1074.441522 | GC44: 1163.191776 | GD44: 1259.272916 | GE44: 1363.290482 | GF44: 1475.900033 | GG44: 0.8388856051 | GI44: PJ | GJ44: PJ | GK44: PJ | GL44: PJ | GM44: PJ | GN44: PJ | GO44: PJ | GP44: PJ | GR44: BEV + e-fuels | GS44: 2.09412e-07 | GT44: 0 | GU44: 2.09412e-07 | GV44: 80446.82174 | GW44: 165481.9075 | GX44: 53415.10512 | GY44: 0 | GZ44: 194645.4954 | HA44: 0 | HB44: 0 | HC44: 946.7524352 | HD44: 1712.003379 | HE44: 0 | HF44: 0 | HG44: 45509.94094 | HH44: 542158.0265
DP45: Baseline | DQ45: Hydrogen | DR45: 2025 | DS45: 0 | DT45: Baseline | DU45: O&M Rail infrastructure | DV45: 2030 | DW45: =$FQ$49 -> 37041.63502 | DX45: Baseline | DY45: =Results!$AG$49 -> Truck fuel | DZ45: 2025 | EA45: 28353.15317 | EB45: =Results!$AJ$49 -> 854.8926832 | EC45: Baseline | ED45: Hydrogen | EE45: 2025 | EF45: 0 | EG45: =Results!$E$17 -> 0 | EH45: Baseline | EI45: Hydrogen | EJ45: 2025 | EK45: 0 | EM45: Baseline | EN45: O&M Rail infrastructure | EO45: 2030 | EP45: =$FQ$49 -> 37041.63502 | EQ45: 1.5 TECH | ER45: Upstream losses | ES45: 2020 | ET45: =$GJ$140 -> 5180.861567 | FA45: Total passenger energy consumption | FB45: =SUM(FB28:FB33)/1000 -> 12724.64711 | FC45: 12597.8205 | FD45: 12344.15574 | FE45: 11719.6643 | FF45: 11601.54868 | FG45: 11125.37924 | FH45: 10290.89156 | FI45: 9726.320797 | FK45: Infrastructure | FL45: Road | FM45: O&M | FN45: 30765 | FO45: 31529.36008 | FP45: 32851.10091 | FQ45: 34235.4169 | FR45: 35308.19603 | FS45: 36414.77527 | FT45: 37556.22632 | FU45: 38733.6551 | FX45: Air (international) | FY45: 48877.03467 | FZ45: 52635.22041 | GA45: 58685.51564 | GB45: 65431.27813 | GC45: 70835.98603 | GD45: 76687.12976 | GE45: 83021.58551 | GF45: 89879.27547 | GG45: 0.8388856051 | GH45: Petrol | GI45: 1086.854303 | GJ45: 1036.85699 | GK45: 826.2738659 | GL45: 571.9911865 | GM45: 413.2340027 | GN45: 165.9438457 | GO45: 74.44986338 | GP45: 0 | GR45: Heavy elec. | GS45: 2.09412e-07 | GT45: 0 | GU45: 2.09412e-07 | GV45: 78435.65119 | GW45: 143194.305 | GX45: 53751.7122 | GY45: 0 | GZ45: 31543.11139 | HA45: 0 | HB45: 0 | HC45: 946.7524352 | HD45: 1712.003379 | HE45: 0 | HF45: 0 | HG45: 79485.14243 | HH45: 389068.6781
B46: TransportPLAN Scenario Tool, CEESA | DP46: Baseline | DQ46: Natural gas | DR46: 2025 | DS46: 129.1112685 | DT46: Baseline | DU46: New Rail infrastructure | DV46: 2030 | DW46: =$FQ$50 -> 57387.9305 | DX46: Baseline | DY46: ='Vehicle Costs'!$D$15 -> Cars and vans < 2 ton, investments | DZ46: 2030 | EA46: 699467.2253 | EB46: ='Vehicle Costs'!$H$15 -> 15354.89506 | EC46: Baseline | ED46: Natural gas | EE46: 2025 | EF46: 21.57896586 | EG46: =Results!$E$18 -> 0 | EH46: Baseline | EI46: Natural gas | EJ46: 2025 | EK46: 21.57896586 | EM46: Baseline | EN46: New Rail infrastructure | EO46: 2030 | EP46: =$FQ$50 -> 57387.9305 | EQ46: 1.5 TECH | ER46: Upstream losses | ES46: 2025 | ET46: =$GK$140 -> 5031.67752 | FA46: Total freight energy consumption | FB46: =SUM(FB34:FB44)/1000 -> 4931.453087 | FC46: 4956.488493 | FD46: 4908.56993 | FE46: 4827.451959 | FF46: 4770.813855 | FG46: 4732.116496 | FH46: 4724.405082 | FI46: 4661.703854 | FM46: New roads | FN46: 66244 | FO46: 67176.73919 | FP46: 67446.50844 | FQ46: 67791.76754 | FR46: 50623.21462 | FS46: 50631.53928 | FT46: 50639.90815 | FU46: 50648.32144 | FX46: Sea (national) | FY46: 176811.241 | FZ46: 182168.7984 | GA46: 191461.2379 | GB46: 201227.6853 | GC46: 208369.9485 | GD46: 215765.7152 | GE46: 223423.9831 | GF46: 231354.0692 | GG46: =((GF40+GF41+GF45+GF48)-(FY40+FY41+FY45+FY48))/(FY40+FY41+FY45+FY48) -> 0.3026695462 | GH46: Diesel | GI46: 2053.344018 | GJ46: 1994.515145 | GK46: 1742.569005 | GL46: 1364.211707 | GM46: 1037.616419 | GN46: 529.4151347 | GO46: 246.0120406 | GP46: 2.484394507e-09 | GR46: Baseline | GS46: 87972.34566 | GT46: 39504.3737 | GU46: 55328.74689 | GV46: 6033.51163 | GW46: 0 | GX46: 31081.97157 | GY46: 0 | GZ46: 6141.362069 | HA46: 12752.62184 | HB46: 16336.88827 | HC46: 0 | HD46: 6633.541036 | HE46: 6844.096555 | HF46: 3234.920405 | HG46: 21130.02881 | HH46: 292994.4084
B47: August 2012 | DP47: Baseline | DQ47: Electricity Train / bus / trucks / ships / aircrafts | DR47: 2025 | DS47: 3692.98028 | DT47: Baseline | DU47: Other | DV47: 2030 | DW47: =$FQ$54+$FQ$55 -> 0 | DX47: Baseline | DY47: ='Vehicle Costs'!$D$16 -> Cars and vans < 2 ton, O&M | DZ47: 2030 | EA47: 129969.4963 | EB47: ='Vehicle Costs'!$H$16 -> 2618.307567 | EC47: Baseline | ED47: Electricity Train / bus / trucks / ships / aircrafts | EE47: 2025 | EF47: 380.915965 | EG47: =Results!$E$19 -> 9.835509281 | EH47: Baseline | EI47: Electricity Train / bus / trucks / ships / aircrafts | EJ47: 2025 | EK47: 380.915965 | EM47: Baseline | EN47: Other | EO47: 2030 | EP47: =$FQ$54+$FQ$55 -> 0 | EQ47: 1.5 TECH | ER47: Upstream losses | ES47: 2030 | ET47: =$GL$140 -> 4703.076497 | FA47: Total energy consumption | FB47: =FB45+FB46 -> 17656.10019 | FC47: =FC45+FC46 -> 17554.30899 | FD47: 17252.72567 | FE47: 16547.11626 | FF47: 16372.36254 | FG47: 15857.49573 | FH47: 15015.29664 | FI47: 14388.02465 | FM47: eRoads | FN47: 0 | FO47: 0 | FP47: 0 | FQ47: 0 | FR47: 0 | FS47: 0 | FT47: 0 | FU47: 0 | FX47: Sea (international) | FY47: 6488655.787 | FZ47: 6685268.546 | GA47: 7026284.429 | GB47: 7384695.55 | GC47: 7646803.813 | GD47: 7918215.201 | GE47: 8199259.913 | GF47: 8490279.87 | GG47: 0.3084805465 | GH47: Jet-fuel fossil | GI47: 818.0957318 | GJ47: 847.2662417 | GK47: 898.2133991 | GL47: 914.1351086 | GM47: 780.3315036 | GN47: 502.1155494 | GO47: 206.7798304 | GP47: 2.347203358e-09 | GR47: 1.5 TECH | GS47: 26662.90442 | GT47: 1414.68762 | GU47: 22505.7927 | GV47: 65072.39953 | GW47: 93810.44058 | GX47: 45590.82294 | GY47: 0 | GZ47: 11041.30723 | HA47: 17.18771081 | HB47: 9819.724654 | HC47: 762.3578016 | HD47: 4103.647314 | HE47: 29076.93798 | HF47: 4702.845541 | HG47: 26154.04668 | HH47: 340735.1027
B48: Brian Vad Mathiesen, Aalborg University | DP48: Baseline | DQ48: Electricity BEV + Plug-in-hybrid | DR48: 2025 | DS48: 1244.928915 | DT48: Baseline | DU48: Fuel | DV48: 2035 | DW48: =$FR$75 -> 225815.985 | DX48: Baseline | DY48: ='Vehicle Costs'!$D$17 -> Charging stations, investments | DZ48: 2030 | EA48: 772.9290035 | EB48: ='Vehicle Costs'!$H$17 -> 47.40879406 | EC48: Baseline | ED48: Electricity BEV + Plug-in-hybrid | EE48: 2025 | EF48: 128.4093776 | EG48: =Results!$E$20 -> 6.747382718 | EH48: Baseline | EI48: Electricity BEV + Plug-in-hybrid | EJ48: 2025 | EK48: 128.4093776 | EM48: Baseline | EN48: Fuel | EO48: 2035 | EP48: =$FR$75 -> 225815.985 | EQ48: 1.5 TECH | ER48: Upstream losses | ES48: 2035 | ET48: =$GM$140 -> 4568.422739 | FM48: Total roads | FN48: 97009 | FO48: 98706.09927 | FP48: 100297.6094 | FQ48: 102027.1844 | FR48: 85931.41065 | FS48: 87046.31455 | FT48: 88196.13447 | FU48: 89381.97654 | FW48: Total passenger transport demand | FY48: =SUM(FY29:FY38) -> 6955843.43 | FZ48: 7168309.936 | GA48: 7468872.474 | GB48: 7788169.861 | GC48: 8054103.334 | GD48: 8332570.972 | GE48: 8624344.392 | GF48: 8930250.727 | GG48: =(GF48-FY48)/FY48 -> 0.2838487261 | GH48: Biogas | GI48: 0 | GJ48: 0 | GK48: -4.211301366 | GL48: -51.46073369 | GM48: -78.98642411 | GN48: -133.9976176 | GO48: -177.746619 | GP48: -223.1090629 | GR48: Grand Total | GS48: 114635.2501 | GT48: 40919.06132 | GU48: 77834.53958 | GV48: 656199.8384 | GW48: 402486.6531 | GX48: 221986.3248 | GY48: 0 | GZ48: 281855.2126 | HA48: 88978.06065 | HB48: 203213.8418 | HC48: 8224.994644 | HD48: 59450.09646 | HE48: 281497.8045 | HF48: 7937.765945 | HG48: 219876.8792 | HH48: 2665096.323
B49: bvm@plan.aau.dk | DP49: Baseline | DQ49: Petrol | DR49: 2030 | DS49: =FQ60 -> 44426.56958 | DT49: Baseline | DU49: Fuel (w/o jetfuel) | DV49: 2035 | DW49: =$FR$76 -> 176087.8752 | DX49: Baseline | DY49: ='Vehicle Costs'!$D$18 -> Busses, investments | DZ49: 2030 | EA49: 14938.43649 | EB49: ='Vehicle Costs'!$H$18 -> 363.4685343 | EC49: Baseline | ED49: Petrol | EE49: 2030 | EF49: 3712.609438 | EG49: =Results!$F$6 -> 57.87075399 | EH49: Baseline | EI49: Petrol | EJ49: 2030 | EK49: 3712.609438 | EM49: Baseline | EN49: Fuel (w/o jetfuel) | EO49: 2035 | EP49: =$FR$76 -> 176087.8752 | EQ49: 1.5 TECH | ER49: Upstream losses | ES49: 2040 | ET49: =$GN$140 -> 4277.636633 | FL49: Rail | FM49: Renewal and maintenance | FN49: 28005 | FO49: 29870.91185 | FP49: 33262.63648 | FQ49: 37041.63502 | FR49: 39355.19787 | FS49: 41813.41999 | FT49: 44425.35677 | FU49: 47200.63116 | FW49: Total freight transport demand | FY49: =SUM(FY39:FY47) -> 9597333.166 | FZ49: 9943818.413 | GA49: 10547017.79 | GB49: 11189157.23 | GC49: 11604777.71 | GD49: 12036271.56 | GE49: 12484272.08 | GF49: 12949439.52 | GG49: =FY29/SUM(FY29:FY38) -> 0.7194343462 | GH49: Bioethanol | GI49: 385.6051836 | GJ49: 519.7864193 | GK49: 955.7380371 | GL49: 1407.683574 | GM49: 1903.834403 | GN49: 2284.991551 | GO49: 2215.765099 | GP49: 2672.145728
DP50: Baseline | DQ50: Diesel | DR50: 2030 | DS50: 81634.07882 | DT50: Baseline | DU50: Jetfuel | DV50: 2035 | DW50: =$FR$77 -> 49728.10979 | DX50: Baseline | DY50: ='Vehicle Costs'!$D$19 -> Busses, O&M | DZ50: 2030 | EA50: 355.9946782 | EB50: ='Vehicle Costs'!$H$19 -> 8.825095629 | EC50: Baseline | ED50: Diesel | EE50: 2030 | EF50: 6821.941338 | EG50: =Results!$F$7 -> 134.8310358 | EH50: Baseline | EI50: Diesel | EJ50: 2030 | EK50: 6821.941338 | EM50: Baseline | EN50: Jetfuel | EO50: 2035 | EP50: =$FR$77 -> 49728.10979 | EQ50: 1.5 TECH | ER50: Upstream losses | ES50: 2045 | ET50: =$GO$140 -> 4185.733442 | EZ50: =Scenarios!$AV$6 -> Biofuels | FM50: New rail constructions | FN50: 41427 | FO50: 57347.37827 | FP50: 57372.23123 | FQ50: 57387.9305 | FR50: 48954.7475 | FS50: 44748.55934 | FT50: 42228.4126 | FU50: 40549.96874 | FW50: Road | FY50: =(FY29+FY31)/1000 -> 5515.055571 | FZ50: =(FZ29+FZ31)/1000 -> 5648.47862 | GA50: 5819.978668 | GB50: 5996.685829 | GC50: 6148.109661 | GD50: 6303.357134 | GE50: 6462.524801 | GF50: =(GF29+GF31)/1000 -> 6625.71165 | GG50: =GF29/SUM($GF$29:$GF$38) -> 0.6732245606 | GH50: Biodiesel | GI50: 585.3480262 | GJ50: 681.749071 | GK50: 1402.129681 | GL50: 1883.654785 | GM50: 2453.216998 | GN50: 3653.093581 | GO50: 4506.323857 | GP50: 5237.742679
DP51: Baseline | DQ51: Jet-fuel fossil | DR51: 2030 | DS51: 48545.83259 | DT51: Baseline | DU51: Vehicle | DV51: 2035 | DW51: =$FR$56 -> 825069.121 | DX51: Baseline | DY51: ='Vehicle Costs'!$D$20 -> Trucks, investments | DZ51: 2030 | EA51: 81433.39086 | EB51: ='Vehicle Costs'!$H$20 -> 982.7817254 | EC51: Baseline | ED51: Jet-fuel fossil | EE51: 2030 | EF51: 4056.845216 | EG51: =Results!$F$8 -> 65.67056289 | EH51: Baseline | EI51: Jet-fuel fossil | EJ51: 2030 | EK51: 4056.845216 | EM51: Baseline | EN51: Vehicle | EO51: 2035 | EP51: =$FR$56 -> 825069.121 | EQ51: 1.5 TECH | ER51: Upstream losses | ES51: 2050 | ET51: =$GP$140 -> 4126.5352 | EZ51: Energy consumption | FB51: 2017 | FC51: 2020 | FD51: 2025 | FE51: 2030 | FF51: 2035 | FG51: 2040 | FH51: 2045 | FI51: 2050 | FM51: Total rail | FN51: 69432 | FO51: 87218.29012 | FP51: 90634.86771 | FQ51: 94429.56552 | FR51: 88309.94538 | FS51: 86561.97933 | FT51: 86653.76937 | FU51: 87750.59991 | FW51: Rail | FY51: =FY30/1000 -> 436.028463 | FZ51: =FZ30/1000 -> 458.6460935 | GA51: 496.5308519 | GB51: 537.5449402 | GC51: 570.5810459 | GD51: 605.6474643 | GE51: 642.8689731 | GF51: 682.3780184 | GG51: =(GF30+GF31+GF35+GF38)/SUM($GF$29:$GF$38) -> 0.1490750521 | GH51: Bio e-fuel | GI51: 0 | GJ51: 0 | GK51: 0 | GL51: 0 | GM51: 0 | GN51: 0 | GO51: 0 | GP51: 0
D52: Battery purchase price development ($USD/kWh) | E52: Alternative Drivmidler | F52: Alternative development | DP52: Baseline | DQ52: Biogas | DR52: 2030 | DS52: 7718.642059 | DT52: Baseline | DU52: Vehicle O&M | DV52: 2035 | DW52: =$FR$57 -> 137575.8093 | DX52: Baseline | DY52: ='Vehicle Costs'!$D$21 -> Trucks, O&M | DZ52: 2030 | EA52: 2897.420919 | EB52: ='Vehicle Costs'!$H$21 -> 31.13283066 | EC52: Baseline | ED52: Biogas | EE52: 2030 | EF52: 310.6480913 | EG52: =Results!$F$9 -> 0.01622756231 | EH52: Baseline | EI52: Biogas | EJ52: 2030 | EK52: 310.6480913 | EM52: Baseline | EN52: Vehicle O&M | EO52: 2035 | EP52: =$FR$57 -> 137575.8093 | EQ52: =$FK$289 -> Custom scenario 1 | ER52: Upstream losses | ES52: 2017 | ET52: =$GI$160 -> 4972.637056 | EZ52: Passenger | FA52: Cars and vans <2t | FB52: 8984176.537 | FC52: 8769124.704 | FD52: 8005703.047 | FE52: 7015154.878 | FF52: 6484926.435 | FG52: 5453149.401 | FH52: 4878125.25 | FI52: 4720823.99 | FW52: Bicycle/walking | FY52: =FY32/1000 -> 247.8117265 | FZ52: =FZ32/1000 -> 247.8117265 | GA52: 247.8117265 | GB52: 247.8117265 | GC52: 247.8117265 | GD52: 247.8117265 | GE52: 247.8117265 | GF52: 247.8117265 | GG52: =GF52/SUM($GF$50:$GF$54) -> 0.02774969416 | GH52: Bio e-jetfuel | GI52: 0 | GJ52: 0 | GK52: 0 | GL52: 104.8858557 | GM52: 537.2011427 | GN52: 1382.679262 | GO52: 2277.644528 | GP52: 2931.166377
D53: 2015 | E53: 400 | F53: 400 | DP53: Baseline | DQ53: Bioethanol | DR53: 2030 | DS53: 13689.46123 | DT53: Baseline | DU53: EV Charging stations | DV53: 2035 | DW53: =$FR$58 -> 1025.225866 | DX53: Baseline | DY53: =Results!$AG$41 -> Cars and vans fuel | DZ53: 2030 | EA53: 112500.1174 | EB53: =Results!$AK$41 -> 2226.592781 | EC53: Baseline | ED53: Bioethanol | EE53: 2030 | EF53: 285.1727505 | EG53: =Results!$F$10 -> 4.447392498 | EH53: Baseline | EI53: Bioethanol | EJ53: 2030 | EK53: 285.1727505 | EM53: Baseline | EN53: EV Charging stations | EO53: 2035 | EP53: =$FR$58 -> 1025.225866 | EQ53: Custom scenario 1 | ER53: Upstream losses | ES53: 2020 | ET53: =$GJ$160 -> 5194.928419 | FA53: Rail | FB53: 239435.9111 | FC53: 247215.7671 | FD53: 253371.0853 | FE53: 258872.411 | FF53: 258556.8682 | FG53: 271899.8755 | FH53: 291505.6314 | FI53: 305601.0108 | FW53: Air | FY53: =(FY33+FY34)/1000 -> 728.2113049 | FZ53: =(FZ33+FZ34)/1000 -> 784.2039273 | GA53: 874.3463309 | GB53: 974.8503925 | GC53: 1055.374291 | GD53: 1142.549568 | GE53: 1236.925635 | GF53: 1339.097286 | GG53: =GF53/SUM($GF$50:$GF$54) -> 0.1499506931 | GH53: CO₂ e-fuel | GI53: 0 | GJ53: 0 | GK53: 4.913150567 | GL53: 33.98097904 | GM53: 71.24301078 | GN53: 107.2688486 | GO53: 205.240417 | GP53: 303.4637865
D54: 2020 | E54: 315 | F54: 200 | DP54: Baseline | DQ54: Biodiesel | DR54: 2030 | DS54: 21102.03408 | DT54: Baseline | DU54: O&M Road infrastructure | DV54: 2035 | DW54: =$FR$45 -> 35308.19603 | DX54: Baseline | DY54: =Results!$AG$42 -> Bus fuel | DZ54: 2030 | EA54: 5112.515199 | EB54: =Results!$AK$42 -> 50.166982 | EC54: Baseline | ED54: Biodiesel | EE54: 2030 | EF54: 499.2177488 | EG54: =Results!$F$11 -> 8.296320241 | EH54: Baseline | EI54: Biodiesel | EJ54: 2030 | EK54: 499.2177488 | EM54: Baseline | EN54: O&M Road infrastructure | EO54: 2035 | EP54: =$FR$45 -> 35308.19603 | EQ54: Custom scenario 1 | ER54: Upstream losses | ES54: 2025 | ET54: =$GK$160 -> 5069.885977 | FA54: Bus | FB54: 426420.3257 | FC54: 416999.0379 | FD54: 392516.7787 | FE54: 363636.1912 | FF54: 335909.1239 | FG54: 316210.392 | FH54: 312234.9688 | FI54: 302732.3536 | FL54: Others | FM54: Bicycle/walking | FN54: 0 | FO54: 0 | FP54: 0 | FQ54: 0 | FR54: 0 | FS54: 0 | FT54: 0 | FU54: 0 | FW54: Sea | FY54: =(FY35+FY38)/1000 -> 28.73636441 | FZ54: =(FZ35+FZ38)/1000 -> 29.16956869 | GA54: 30.20489709 | GB54: 31.27697285 | GC54: 32.22660951 | GD54: 33.20507919 | GE54: 34.21325733 | GF54: 35.25204595 | GG54: =GF54/SUM($GF$50:$GF$54) -> 0.003947486697 | GH54: CO₂ e-jetfuel | GI54: 0 | GJ54: 0 | GK54: 0 | GL54: 0 | GM54: 0 | GN54: 0 | GO54: 0 | GP54: 0
D55: 2035 | E55: 160 | F55: 100 | DP55: Baseline | DQ55: Bio e-fuel | DR55: 2030 | DS55: 0 | DT55: Baseline | DU55: New Road infrastructure | DV55: 2035 | DW55: =$FR$46+$FR$47 -> 50623.21462 | DX55: Baseline | DY55: =Results!$AG$43 -> Rail fuel | DZ55: 2030 | EA55: 2720.56824 | EB55: =Results!$AK$43 -> 159.4075007 | EC55: Baseline | ED55: Bio e-fuel | EE55: 2030 | EF55: 0 | EG55: =Results!$F$12 -> 0 | EH55: Baseline | EI55: Bio e-fuel | EJ55: 2030 | EK55: 0 | EM55: Baseline | EN55: New Road infrastructure | EO55: 2035 | EP55: =$FR$46+$FR$47 -> 50623.21462 | EQ55: Custom scenario 1 | ER55: Upstream losses | ES55: 2030 | ET55: =$GL$160 -> 4862.921244 | FA55: Bicycle/walking | FB55: 0 | FC55: 0 | FD55: 0 | FE55: 0 | FF55: 0 | FG55: 0 | FH55: 0 | FI55: 0 | FM55: Bus | FN55: 0 | FO55: 0 | FP55: 0 | FQ55: 0 | FR55: 0 | FS55: 0 | FT55: 0 | FU55: 0 | FW55: Road | FY55: =(FY39+FY40+FY41)/1000 -> 2304.290246 | FZ55: =(FZ39+FZ40+FZ41)/1000 -> 2409.613404 | GA55: 2595.837975 | GB55: 2796.454727 | GC55: 2895.710531 | GD55: 2998.489265 | GE55: 3104.91597 | GF55: 3215.120125 | GG55: =(FY39+FY40+FY41)/SUM($FY$39:$FY$46) -> 0.741244576 | GH55: Ammonia | GI55: 0 | GJ55: 0 | GK55: 0 | GL55: 0 | GM55: 0 | GN55: 0 | GO55: 0 | GP55: 0
D56: 2050 | E56: 135 | F56: 80 | DP56: Baseline | DQ56: Bio e-jetfuel | DR56: 2030 | DS56: 0 | DT56: Baseline | DU56: O&M Rail infrastructure | DV56: 2035 | DW56: =$FR$49 -> 39355.19787 | DX56: Baseline | DY56: =Results!$AG$46 -> Vans fuel | DZ56: 2030 | EA56: 17800.01531 | EB56: =Results!$AK$46 -> 352.1067002 | EC56: Baseline | ED56: Bio e-jetfuel | EE56: 2030 | EF56: 0 | EG56: =Results!$F$13 -> 3.170956468 | EH56: Baseline | EI56: Bio e-jetfuel | EJ56: 2030 | EK56: 0 | EM56: Baseline | EN56: O&M Rail infrastructure | EO56: 2035 | EP56: =$FR$49 -> 39355.19787 | EQ56: Custom scenario 1 | ER56: Upstream losses | ES56: 2035 | ET56: =$GM$160 -> 4875.748167 | FA56: Air | FB56: 2828418.38 | FC56: 2929270.154 | FD56: 3105410.758 | FE56: 3292142.913 | FF56: 3372319.218 | FG56: 3471947.826 | FH56: 3574519.766 | FI56: 3680121.995 | FK56: Vehicles | FL56: Road | FM56: Vehicles | FN56: 699165.5644 | FO56: 714210.3135 | FP56: 752185.5596 | FQ56: 795839.0526 | FR56: 825069.121 | FS56: 863109.9346 | FT56: 904585.9608 | FU56: 944378.1315 | FW56: Rail | FY56: =(FY42+FY43)/1000 -> 577.896252 | FZ56: =(FZ42+FZ43)/1000 -> 613.2681258 | GA56: 673.7849609 | GB56: 740.2735515 | GC56: 781.8942352 | GD56: 825.8549745 | GE56: 872.2873353 | GF56: 921.3302806 | GG56: =(FY43+FY42)/SUM($FY$39:$FY$46) -> 0.1858977891 | GH56: Hydrogen | GI56: 0 | GJ56: 0 | GK56: 0 | GL56: 0 | GM56: 0 | GN56: 32.48433043 | GO56: 65.06359611 | GP56: 0
DP57: Baseline | DQ57: CO₂ e-fuel | DR57: 2030 | DS57: 520.169192 | DT57: Baseline | DU57: New Rail infrastructure | DV57: 2035 | DW57: =$FR$50 -> 48954.7475 | DX57: Baseline | DY57: =Results!$AG$47 -> National truck fuel | DZ57: 2030 | EA57: 14972.20272 | EB57: =Results!$AK$47 -> 300.1068457 | EC57: Baseline | ED57: CO₂ e-fuel | EE57: 2030 | EF57: 17.88444875 | EG57: =Results!$F$14 -> 3.447626802 | EH57: Baseline | EI57: CO₂ e-fuel | EJ57: 2030 | EK57: 17.88444875 | EM57: Baseline | EN57: New Rail infrastructure | EO57: 2035 | EP57: =$FR$50 -> 48954.7475 | EQ57: Custom scenario 1 | ER57: Upstream losses | ES57: 2040 | ET57: =$GN$160 -> 4773.460205 | FA57: Sea | FB57: 246195.953 | FC57: 235210.8341 | FD57: 222980.8004 | FE57: 214089.7994 | FF57: 215130.1513 | FG57: 216719.2594 | FH57: 222185.0598 | FI57: 228931.0796 | FM57: Vehicles O&M | FN57: 114711.7667 | FO57: 121459.2992 | FP57: 127315.6274 | FQ57: 133222.9119 | FR57: 137575.8093 | FS57: 141150.5654 | FT57: 143639.4376 | FU57: 147251.1045 | FW57: Air | FY57: =(FY44+FY45)/1000 -> 49.67964035 | FZ57: =(FZ44+FZ45)/1000 -> 53.49953894 | GA57: 59.64918557 | GB57: 66.50571965 | GC57: 71.99917781 | GD57: 77.94640268 | GE57: 84.38487599 | GF57: 91.3551755 | GG57: =(FY44+FY45)/SUM($FY$39:$FY$46) -> 0.01598095726 | GH57: Natural gas | GI57: 0 | GJ57: 0.666258573 | GK57: 3.373584857 | GL57: 13.4370032 | GM57: 22.83468578 | GN57: 18.79937751 | GO57: 7.777260435 | GP57: 0
DP58: Baseline | DQ58: CO₂ e-jetfuel | DR58: 2030 | DS58: 0 | DT58: Baseline | DU58: Other | DV58: 2035 | DW58: =$FR$54+$FR$55 -> 0 | DX58: Baseline | DY58: =Results!$AG$48 -> International truck fuel | DZ58: 2030 | EA58: 11928.39061 | EB58: =Results!$AK$48 -> 456.0019141 | EC58: Baseline | ED58: CO₂ e-jetfuel | EE58: 2030 | EF58: 0 | EG58: =Results!$F$15 -> 6.139078435 | EH58: Baseline | EI58: CO₂ e-jetfuel | EJ58: 2030 | EK58: 0 | EM58: Baseline | EN58: Other | EO58: 2035 | EP58: =$FR$54+$FR$55 -> 0 | EQ58: Custom scenario 1 | ER58: Upstream losses | ES58: 2045 | ET58: =$GO$160 -> 4838.806961 | EZ58: Freight | FA58: Truck (national) | FB58: 1169186.947 | FC58: 1167690.389 | FD58: 1153352.501 | FE58: 1126678.23 | FF58: 1154501.494 | FG58: 1248238.376 | FH58: 1361258.53 | FI58: 1451338.953 | FM58: EV Charging stations | FN58: 0 | FO58: 92.36368912 | FP58: 323.9043461 | FQ58: 772.9290035 | FR58: 1025.225866 | FS58: 1573.091241 | FT58: 2377.939702 | FU58: 2937.668677 | FW58: Sea | FY58: =FY46/1000 -> 176.811241 | FZ58: =FZ46/1000 -> 182.1687984 | GA58: 191.4612379 | GB58: 201.2276853 | GC58: 208.3699485 | GD58: 215.7657152 | GE58: 223.4239831 | GF58: 231.3540692 | GG58: =(FY46)/SUM($FY$39:$FY$46) -> 0.05687667758 | GH58: Electricity Train / bus / trucks / ships / aircrafts | GI58: 43.38979277 | GJ58: 48.70962741 | GK58: 58.64617803 | GL58: 69.99919031 | GM58: 79.71269951 | GN58: 84.43124409 | GO58: 86.44228997 | GP58: 92.32728743
DP59: Baseline | DQ59: Ammonia | DR59: 2030 | DS59: 0 | DT59: Baseline | DU59: Fuel | DV59: 2040 | DW59: =$FS$75 -> 219956.5445 | DX59: Baseline | DY59: =Results!$AG$49 -> Truck fuel | DZ59: 2030 | EA59: 26900.59334 | EB59: =Results!$AK$49 -> 756.1087598 | EC59: Baseline | ED59: Ammonia | EE59: 2030 | EF59: 0 | EG59: =Results!$F$16 -> 0.005409187435 | EH59: Baseline | EI59: Ammonia | EJ59: 2030 | EK59: 0 | EM59: Baseline | EN59: Fuel | EO59: 2040 | EP59: =$FS$75 -> 219956.5445 | EQ59: Custom scenario 1 | ER59: Upstream losses | ES59: 2050 | ET59: =$GP$160 -> 4693.694079 | FM59: Total vehicles + charging | FN59: 813877.3311 | FO59: 835761.9764 | FP59: 879825.0913 | FQ59: 929834.8935 | FR59: 963670.1562 | FS59: 1005833.591 | FT59: 1050603.338 | FU59: 1094566.905 | GH59: Electricity BEV + Plug-in-hybrid | GI59: 0 | GJ59: 5.837369085 | GK59: 19.7700278 | GL59: 46.14635893 | GM59: 67.8715672 | GN59: 100.3553511 | GO59: 113.8439949 | GP59: 108.3874683
DP60: Baseline | DQ60: Hydrogen | DR60: 2030 | DS60: 0 | DT60: Baseline | DU60: Fuel (w/o jetfuel) | DV60: 2040 | DW60: =$FS$76 -> 168759.3145 | DX60: Baseline | DY60: ='Vehicle Costs'!$D$15 -> Cars and vans < 2 ton, investments | DZ60: 2035 | EA60: 724394.167 | EB60: ='Vehicle Costs'!$I$15 -> 15386.36402 | EC60: Baseline | ED60: Hydrogen | EE60: 2030 | EF60: 0 | EG60: =Results!$F$17 -> 0 | EH60: Baseline | EI60: Hydrogen | EJ60: 2030 | EK60: 0 | EM60: Baseline | EN60: Fuel (w/o jetfuel) | EO60: 2040 | EP60: =$FS$76 -> 168759.3145 | EQ60: =$FK$330 -> Custom scenario 2 | ER60: Upstream losses | ES60: 2017 | ET60: =$GI$180 -> 4972.637056 | FK60: Fuels | FL60: All | FM60: Petrol | FN60: 58769.83695 | FO60: 56066.31548 | FP60: 52966.93792 | FQ60: 44426.56958 | FR60: 41523.13915 | FS60: 35826.8759 | FT60: 27822.52995 | FU60: 22299.65491 | GH60: Total losses | GI60: =SUM(GI45:GI59) -> 4972.637056 | GJ60: =SUM(GJ45:GJ59) -> 5135.387123 | GK60: =SUM(GK45:GK59) -> 5907.415628 | GL60: =SUM(GL45:GL59) -> 6358.665014 | GM60: =SUM(GM45:GM59) -> 7288.110008 | GN60: =SUM(GN45:GN59) -> 8727.580459 | GO60: =SUM(GO45:GO59) -> 9827.596157 | GP60: =SUM(GP45:GP59) -> 11122.12426
DP61: Baseline | DQ61: Natural gas | DR61: 2030 | DS61: 514.2507457 | DT61: Baseline | DU61: Jetfuel | DV61: 2040 | DW61: =$FS$77 -> 51197.23 | DX61: Baseline | DY61: ='Vehicle Costs'!$D$16 -> Cars and vans < 2 ton, O&M | DZ61: 2035 | EA61: 134114.8035 | EB61: ='Vehicle Costs'!$I$16 -> 2512.486191 | EC61: Baseline | ED61: Natural gas | EE61: 2030 | EF61: 85.94911514 | EG61: =Results!$F$18 -> 0 | EH61: Baseline | EI61: Natural gas | EJ61: 2030 | EK61: 85.94911514 | EM61: Baseline | EN61: Jetfuel | EO61: 2040 | EP61: =$FS$77 -> 51197.23 | EQ61: Custom scenario 2 | ER61: Upstream losses | ES61: 2020 | ET61: =$GJ$180 -> 5135.387123 | FA61: Truck (international) | FB61: 905840.5314 | FC61: 904681.057 | FD61: 886669.5614 | FE61: 839327.823 | FF61: 840473.5602 | FG61: 932583.9822 | FH61: 1040523.033 | FI61: 1124440.922 | FM61: Diesel | FN61: 98901.90864 | FO61: 96068.34167 | FP61: 91423.13431 | FQ61: 81634.07882 | FR61: 76772.63088 | FS61: 70072.74983 | FT61: 62745.76136 | FU61: 55934.50496 | FW61: High growth + modal shifts
DP62: Baseline | DQ62: Electricity Train / bus / trucks / ships / aircrafts | DR62: 2030 | DS62: 4431.782315 | DT62: Baseline | DU62: Vehicle | DV62: 2040 | DW62: =$FS$56 -> 863109.9346 | DX62: Baseline | DY62: ='Vehicle Costs'!$D$17 -> Charging stations, investments | DZ62: 2035 | EA62: 1025.225866 | EB62: ='Vehicle Costs'!$I$17 -> 61.49321446 | EC62: Baseline | ED62: Electricity Train / bus / trucks / ships / aircrafts | EE62: 2030 | EF62: 457.1204038 | EG62: =Results!$F$19 -> 17.10312894 | EH62: Baseline | EI62: Electricity Train / bus / trucks / ships / aircrafts | EJ62: 2030 | EK62: 457.1204038 | EM62: Baseline | EN62: Vehicle | EO62: 2040 | EP62: =$FS$56 -> 863109.9346 | EQ62: Custom scenario 2 | ER62: Upstream losses | ES62: 2025 | ET62: =$GK$180 -> 4998.808763 | FA62: Vans (2-6 t) | FB62: 1349989.625 | FC62: 1361442.775 | FD62: 1305321.92 | FE62: 1207217.57 | FF62: 1040127.174 | FG62: 744700.3529 | FH62: 716602.2634 | FI62: 623774.8736 | FM62: Jet-fuel fossil | FN62: 41707.76567 | FO62: 43194.92266 | FP62: 45792.2863 | FQ62: 48545.83259 | FR62: 49728.10979 | FS62: 51197.23 | FT62: 52282.01118 | FU62: 52945.8252 | FW62: Transport demand | FY62: 2017 | FZ62: 2020 | GA62: 2025 | GB62: 2030 | GC62: 2035 | GD62: 2040 | GE62: 2045 | GF62: 2050 | GH62: =Scenarios!$AV$7 -> H2
DP63: Baseline | DQ63: Electricity BEV + Plug-in-hybrid | DR63: 2030 | DS63: 2905.860181 | DT63: Baseline | DU63: Vehicle O&M | DV63: 2040 | DW63: =$FS$57 -> 141150.5654 | DX63: Baseline | DY63: ='Vehicle Costs'!$D$18 -> Busses, investments | DZ63: 2035 | EA63: 14938.3839 | EB63: ='Vehicle Costs'!$I$18 -> 357.2626855 | EC63: Baseline | ED63: Electricity BEV + Plug-in-hybrid | EE63: 2030 | EF63: 299.7277134 | EG63: =Results!$F$20 -> 17.68434549 | EH63: Baseline | EI63: Electricity BEV + Plug-in-hybrid | EJ63: 2030 | EK63: 299.7277134 | EM63: Baseline | EN63: Vehicle O&M | EO63: 2040 | EP63: =$FS$57 -> 141150.5654 | EQ63: Custom scenario 2 | ER63: Upstream losses | ES63: 2030 | ET63: =$GL$180 -> 4763.388677 | FA63: Rail (national) | FB63: 247206.1688 | FC63: 243851.9034 | FD63: 232269.4245 | FE63: 227020.0939 | FF63: 210945.5968 | FG63: 219942.0921 | FH63: 229200.1232 | FI63: 237479.7626 | FM63: Biogas | FN63: 0 | FO63: 0 | FP63: 0 | FQ63: 7718.642059 | FR63: 7688.07067 | FS63: 7856.995429 | FT63: 6626.695524 | FU63: 6817.607753 | FW63: Passenger | FX63: Cars and vans <2t | FY63: 5004272.67 | FZ63: 5125338.597 | GA63: 5168404.266 | GB63: 5212837.007 | GC63: 5232583.302 | GD63: 5253421.439 | GE63: 5386076.913 | GF63: 5522082.105 | GH63: Upstream energy losses | GI63: 2017 | GJ63: 2020 | GK63: 2025 | GL63: 2030 | GM63: 2035 | GN63: 2040 | GO63: 2045 | GP63: 2050
DP64: Baseline | DQ64: Petrol | DR64: 2035 | DS64: =FR60 -> 41523.13915 | DT64: Baseline | DU64: EV Charging stations | DV64: 2040 | DW64: =$FS$58 -> 1573.091241 | DX64: Baseline | DY64: ='Vehicle Costs'!$D$19 -> Busses, O&M | DZ64: 2035 | EA64: 359.7583427 | EB64: ='Vehicle Costs'!$I$19 -> 9.017431596 | EC64: Baseline | ED64: Petrol | EE64: 2035 | EF64: 3469.977533 | EG64: =Results!$G$6 -> 37.16960161 | EH64: Baseline | EI64: Petrol | EJ64: 2035 | EK64: 3469.977533 | EM64: Baseline | EN64: EV Charging stations | EO64: 2040 | EP64: =$FS$58 -> 1573.091241 | EQ64: Custom scenario 2 | ER64: Upstream losses | ES64: 2035 | ET64: =$GM$180 -> 5189.504479 | FA64: Rail (international) | FB64: 143551.165 | FC64: 152281.6451 | FD64: 168028.2447 | FE64: 185747.6156 | FF64: 199609.1731 | FG64: 214885.5285 | FH64: 233402.5197 | FI64: 253433.7768 | FM64: Bioethanol | FN64: 11144.84093 | FO64: 15022.97481 | FP64: 14193.16867 | FQ64: 13689.46123 | FR64: 16226.81776 | FS64: 17074.13891 | FT64: 15711.94842 | FU64: 12575.35331 | FX64: Rail | FY64: 436028.463 | FZ64: 458646.0935 | GA64: 579372.3379 | GB64: 712873.4155 | GC64: 843345.1333 | GD64: 982864.1504 | GE64: 1103807.843 | GF64: 1233011.535 | GI64: PJ | GJ64: PJ | GK64: PJ | GL64: PJ | GM64: PJ | GN64: PJ | GO64: PJ | GP64: PJ
DP65: Baseline | DQ65: Diesel | DR65: 2035 | DS65: 76772.63088 | DT65: Baseline | DU65: O&M Road infrastructure | DV65: 2040 | DW65: =$FS$45 -> 36414.77527 | DX65: Baseline | DY65: ='Vehicle Costs'!$D$20 -> Trucks, investments | DZ65: 2035 | EA65: 85736.57007 | EB65: ='Vehicle Costs'!$I$20 -> 871.7710505 | EC65: Baseline | ED65: Diesel | EE65: 2035 | EF65: 6415.683153 | EG65: =Results!$G$7 -> 93.63385217 | EH65: Baseline | EI65: Diesel | EJ65: 2035 | EK65: 6415.683153 | EM65: Baseline | EN65: O&M Road infrastructure | EO65: 2040 | EP65: =$FS$45 -> 36414.77527 | EQ65: Custom scenario 2 | ER65: Upstream losses | ES65: 2040 | ET65: =$GN$180 -> 5920.66912 | FA65: Air (national) | FB65: 10614.05063 | FC65: 10992.51156 | FD65: 11653.50475 | FE65: 12354.24427 | FF65: 12655.1175 | FG65: 13028.98831 | FH65: 13413.90441 | FI65: 13810.19211 | FM65: Biodiesel | FN65: 20310.85911 | FO65: 23655.85722 | FP65: 22387.7821 | FQ65: 21102.03408 | FR65: 22722.11673 | FS65: 22694.6951 | FT65: 19898.37565 | FU65: 16454.96749 | FX65: Bus | FY65: 510782.9012 | FZ65: 523140.0227 | GA65: 549222.5676 | GB65: 576230.5926 | GC65: 601196.9585 | GD65: 626877.8127 | GE65: 642707.263 | GF65: 658936.4268 | GH65: Petrol | GI65: 1086.854303 | GJ65: 1036.85699 | GK65: 968.1733974 | GL65: 719.176266 | GM65: 509.6628049 | GN65: 276.9244959 | GO65: 93.12719922 | GP65: 0
DP66: Baseline | DQ66: Jet-fuel fossil | DR66: 2035 | DS66: 49728.10979 | DT66: Baseline | DU66: New Road infrastructure | DV66: 2040 | DW66: =$FS$46+$FS$47 -> 50631.53928 | DX66: Baseline | DY66: ='Vehicle Costs'!$D$21 -> Trucks, O&M | DZ66: 2035 | EA66: 3101.247429 | EB66: ='Vehicle Costs'!$I$21 -> 27.87798538 | EC66: Baseline | ED66: Jet-fuel fossil | EE66: 2035 | EF66: 4155.644955 | EG66: =Results!$G$8 -> 47.97258518 | EH66: Baseline | EI66: Jet-fuel fossil | EJ66: 2035 | EK66: 4155.644955 | EM66: Baseline | EN66: New Road infrastructure | EO66: 2040 | EP66: =$FS$46+$FS$47 -> 50631.53928 | EQ66: Custom scenario 2 | ER66: Upstream losses | ES66: 2045 | ET66: =$GO$180 -> 6840.509469 | FA66: Air (international) | FB66: 646373.8462 | FC66: 669421.338 | FD66: 709674.4634 | FE66: 752348.0585 | FF66: 770670.619 | FG66: 793438.5824 | FH66: 816879.181 | FI66: 841012.2864 | FM66: Bio e-fuel | FN66: 0 | FO66: 0 | FP66: 0 | FQ66: 0 | FR66: 0 | FS66: 0 | FT66: 0 | FU66: 0 | FX66: Bicycle/walking | FY66: 247811.7265 | FZ66: 247811.7265 | GA66: 322999.4812 | GB66: 397638.4521 | GC66: 471365.1148 | GD66: 544190.6203 | GE66: 544190.6203 | GF66: 544190.6203 | GH66: Diesel | GI66: 2053.344018 | GJ66: 1994.515145 | GK66: 1858.388767 | GL66: 1477.446799 | GM66: 959.8742009 | GN66: 446.2064789 | GO66: 171.036964 | GP66: 2.484394507e-09
DP67: Baseline | DQ67: Biogas | DR67: 2035 | DS67: 7688.07067 | DT67: Baseline | DU67: O&M Rail infrastructure | DV67: 2040 | DW67: =$FS$49 -> 41813.41999 | DX67: Baseline | DY67: =Results!$AG$41 -> Cars and vans fuel | DZ67: 2035 | EA67: 113424.0491 | EB67: =Results!$AL$41 -> 1683.677405 | EC67: Baseline | ED67: Biogas | EE67: 2035 | EF67: 309.4177008 | EG67: =Results!$G$9 -> 0.04076604704 | EH67: Baseline | EI67: Biogas | EJ67: 2035 | EK67: 309.4177008 | EM67: Baseline | EN67: O&M Rail infrastructure | EO67: 2040 | EP67: =$FS$49 -> 41813.41999 | EQ67: Custom scenario 2 | ER67: Upstream losses | ES67: 2050 | ET67: =$GP$180 -> 7399.178152 | FA67: Sea (national) | FB67: 65478.9701 | FC67: 64825.05975 | FD67: 64566.98179 | FE67: 65132.29822 | FF67: 65774.7429 | FG67: 66590.58555 | FH67: 68610.03291 | FI67: 71045.23914 | FM67: Bio e-jetfuel | FN67: 0 | FO67: 0 | FP67: 0 | FQ67: 0 | FR67: 0 | FS67: 0 | FT67: 1138.663272 | FU67: 3516.908585 | FX67: Air (national) | FY67: 134340.3585 | FZ67: 144669.8727 | GA67: 151027.9723 | GB67: 157665.5042 | GC67: 159819.5991 | GD67: 162003.1242 | GE67: 164216.4817 | GF67: 166460.0789 | GH67: Jet-fuel fossil | GI67: 818.0957318 | GJ67: 847.2662417 | GK67: 898.2133991 | GL67: 917.7249322 | GM67: 780.3315036 | GN67: 521.0449833 | GO67: 206.7798304 | GP67: 2.347203358e-09
DP68: =$FK$43 -> Baseline | DQ68: Bioethanol | DR68: 2035 | DS68: 16226.81776 | DT68: =$FK$43 -> Baseline | DU68: New Rail infrastructure | DV68: 2040 | DW68: =$FS$50 -> 44748.55934 | DX68: =$FK$43 -> Baseline | DY68: =Results!$AG$42 -> Bus fuel | DZ68: 2035 | EA68: 4873.571944 | EB68: =Results!$AL$42 -> 44.65802295 | EC68: =$FK$43 -> Baseline | ED68: Bioethanol | EE68: 2035 | EF68: 338.0298299 | EG68: =Results!$G$10 -> 3.621641566 | EH68: =$FK$43 -> Baseline | EI68: Bioethanol | EJ68: 2035 | EK68: 338.0298299 | EM68: =$FK$43 -> Baseline | EN68: New Rail infrastructure | EO68: 2040 | EP68: =$FS$50 -> 44748.55934 | EQ68: =$FK$371 -> Custom scenario 3 | ER68: Upstream losses | ES68: 2017 | ET68: =$GI$200 -> 4972.637056 | FA68: Sea (international) | FB68: 393211.7831 | FC68: 381301.8145 | FD68: 366892.2484 | FE68: 357541.5821 | FF68: 361068.2608 | FG68: 365546.8018 | FH68: 376632.4909 | FI68: 390000.4744 | FM68: CO₂ e-fuel | FN68: 0 | FO68: 0 | FP68: 107.0878055 | FQ68: 520.169192 | FR68: 879.2261685 | FS68: 1372.002123 | FT68: 1784.133107 | FU68: 2150.266096 | FX68: Air (international) | FY68: 593870.9464 | FZ68: 639534.0546 | GA68: 667640.9517 | GB68: 696983.1195 | GC68: 706505.6071 | GD68: 716158.1951 | GE68: 725942.661 | GF68: 735860.8066 | GH68: Biogas | GI68: 0 | GJ68: 0 | GK68: 0 | GL68: -30.37231709 | GM68: -30.25202081 | GN68: -18.97381313 | GO68: -0.651696432 | GP68: 0
DP69: Baseline | DQ69: Biodiesel | DR69: 2035 | DS69: 22722.11673 | DT69: Baseline | DU69: Other | DV69: 2040 | DW69: =$FS$54+$FS$55 -> 0 | DX69: Baseline | DY69: =Results!$AG$43 -> Rail fuel | DZ69: 2035 | EA69: 2640.962104 | EB69: =Results!$AL$43 -> 168.8476007 | EC69: Baseline | ED69: Biodiesel | EE69: 2035 | EF69: 537.5445759 | EG69: =Results!$G$11 -> 6.31295792 | EH69: Baseline | EI69: Biodiesel | EJ69: 2035 | EK69: 537.5445759 | EM69: Baseline | EN69: Other | EO69: 2040 | EP69: =$FS$54+$FS$55 -> 0 | EQ69: Custom scenario 3 | ER69: Upstream losses | ES69: 2020 | ET69: =$GJ$200 -> 5135.387123 | FA69: Total passenger energy consumption | FB69: =SUM(FB52:FB57)/1000 -> 12724.64711 | FC69: 12597.8205 | FD69: 11979.98247 | FE69: 11143.89619 | FF69: 10666.8418 | FG69: 9729.926754 | FH69: 9278.570676 | FI69: 9238.210429 | FM69: CO₂ e-jetfuel | FN69: 0 | FO69: 0 | FP69: 0 | FQ69: 0 | FR69: 0 | FS69: 0 | FT69: 0 | FU69: 0 | FX69: Sea (national) | FY69: 14608.76524 | FZ69: 14828.99421 | GA69: 15355.32625 | GB69: 15900.33963 | GC69: 16383.10839 | GD69: 16880.53506 | GE69: 17393.06467 | GF69: 17921.1558 | GH69: Bioethanol | GI69: 385.6051836 | GJ69: 519.7864193 | GK69: 485.3376882 | GL69: 414.6339199 | GM69: 373.1086919 | GN69: 247.8754205 | GO69: 99.11940017 | GP69: 0
DP70: Baseline | DQ70: Bio e-fuel | DR70: 2035 | DS70: 0 | DT70: Baseline | DU70: Fuel | DV70: 2045 | DW70: =$FT$75 -> 206324.8212 | DX70: Baseline | DY70: =Results!$AG$46 -> Vans fuel | DZ70: 2035 | EA70: 16291.79292 | EB70: =Results!$AL$46 -> 265.9141529 | EC70: Baseline | ED70: Bio e-fuel | EE70: 2035 | EF70: 0 | EG70: =Results!$G$12 -> 0 | EH70: Baseline | EI70: Bio e-fuel | EJ70: 2035 | EK70: 0 | EM70: Baseline | EN70: Fuel | EO70: 2045 | EP70: =$FT$75 -> 206324.8212 | EQ70: Custom scenario 3 | ER70: Upstream losses | ES70: 2025 | ET70: =$GK$200 -> 5664.195073 | FA70: Total freight energy consumption | FB70: =SUM(FB58:FB68)/1000 -> 4931.453087 | FC70: 4956.488493 | FD70: 4898.42885 | FE70: 4773.367516 | FF70: 4655.825739 | FG70: 4598.95529 | FH70: 4856.52208 | FI70: 5006.336481 | FM70: Ammonia | FN70: 0 | FO70: 0 | FP70: 0 | FQ70: 0 | FR70: 0 | FS70: 0 | FT70: 0 | FU70: 0 | GH70: Biodiesel | GI70: 585.3480262 | GJ70: 681.749071 | GK70: 630.8335091 | GL70: 527.1236278 | GM70: 392.0710328 | GN70: 213.9263203 | GO70: 79.81405891 | GP70: 0
DP71: Baseline | DQ71: Bio e-jetfuel | DR71: 2035 | DS71: 0 | DT71: Baseline | DU71: Fuel (w/o jetfuel) | DV71: 2045 | DW71: =$FT$76 -> 152904.1467 | DX71: Baseline | DY71: =Results!$AG$47 -> National truck fuel | DZ71: 2035 | EA71: 14940.97288 | EB71: =Results!$AL$47 -> 270.3693341 | EC71: Baseline | ED71: Bio e-jetfuel | EE71: 2035 | EF71: 0 | EG71: =Results!$G$13 -> 6.464854156 | EH71: Baseline | EI71: Bio e-jetfuel | EJ71: 2035 | EK71: 0 | EM71: Baseline | EN71: Fuel (w/o jetfuel) | EO71: 2045 | EP71: =$FT$76 -> 152904.1467 | EQ71: Custom scenario 3 | ER71: Upstream losses | ES71: 2030 | ET71: =$GL$200 -> 6120.053532 | FA71: Total energy consumption | FB71: =FB69+FB70 -> 17656.10019 | FC71: =FC69+FC70 -> 17554.30899 | FD71: =FD69+FD70 -> 16878.41132 | FE71: =FE69+FE70 -> 15917.26371 | FF71: =FF69+FF70 -> 15322.66753 | FG71: =FG69+FG70 -> 14328.88204 | FH71: =FH69+FH70 -> 14135.09276 | FI71: =FI69+FI70 -> 14244.54691 | FM71: Hydrogen | FN71: 0 | FO71: 0 | FP71: 0 | FQ71: 0 | FR71: 0 | FS71: 658.1611404 | FT71: 1318.245752 | FU71: 3029.630236 | GH71: Bio e-fuel | GI71: 0 | GJ71: 0 | GK71: 0 | GL71: 0 | GM71: 0 | GN71: 0 | GO71: 0 | GP71: 0
DP72: Baseline | DQ72: CO₂ e-fuel | DR72: 2035 | DS72: 879.2261685 | DT72: Baseline | DU72: Jetfuel | DV72: 2045 | DW72: =$FT$77 -> 53420.67445 | DX72: Baseline | DY72: =Results!$AG$48 -> International truck fuel | DZ72: 2035 | EA72: 12063.0315 | EB72: =Results!$AL$48 -> 371.9877444 | EC72: Baseline | ED72: CO₂ e-fuel | EE72: 2035 | EF72: 30.22953992 | EG72: =Results!$G$14 -> 12.18571591 | EH72: Baseline | EI72: CO₂ e-fuel | EJ72: 2035 | EK72: 30.22953992 | EM72: Baseline | EN72: Jetfuel | EO72: 2045 | EP72: =$FT$77 -> 53420.67445 | EQ72: Custom scenario 3 | ER72: Upstream losses | ES72: 2035 | ET72: =$GM$200 -> 7068.472311 | FM72: Natural gas | FN72: 0 | FO72: 25.49854033 | FP72: 129.1112685 | FQ72: 514.2507457 | FR72: 873.9116912 | FS72: 1305.010698 | FT72: 1668.11224 | FU72: 2024.922232 | FX72: Sea (international) | FY72: 14127.59916 | FZ72: 14340.57449 | GA72: 14849.57084 | GB72: 15376.63322 | GC72: 15843.50111 | GD72: 16324.54413 | GE72: 16820.19266 | GF72: 17330.89015 | GH72: Bio e-jetfuel | GI72: 0 | GJ72: 0 | GK72: 0 | GL72: 47.50026607 | GM72: 268.6005714 | GN72: 665.2765708 | GO72: 1138.822264 | GP72: 1465.583189
DP73: Baseline | DQ73: CO₂ e-jetfuel | DR73: 2035 | DS73: 0 | DT73: Baseline | DU73: Vehicle | DV73: 2045 | DW73: =$FT$56 -> 904585.9608 | DX73: Baseline | DY73: =Results!$AG$49 -> Truck fuel | DZ73: 2035 | EA73: 27004.00438 | EB73: =Results!$AL$49 -> 642.3570784 | EC73: Baseline | ED73: CO₂ e-jetfuel | EE73: 2035 | EF73: 0 | EG73: =Results!$G$15 -> 16.43671294 | EH73: Baseline | EI73: CO₂ e-jetfuel | EJ73: 2035 | EK73: 0 | EM73: Baseline | EN73: Vehicle | EO73: 2045 | EP73: =$FT$56 -> 904585.9608 | EQ73: Custom scenario 3 | ER73: Upstream losses | ES73: 2040 | ET73: =$GN$200 -> 8318.845538 | FM73: Electricity Train / bus / trucks / ships / aircrafts | FN73: 2732.277779 | FO73: 3067.270528 | FP73: 3692.98028 | FQ73: 4431.782315 | FR73: 5128.054336 | FS73: 5579.256798 | FT73: 6066.422676 | FU73: 6790.120916 | FW73: Freight | FX73: Truck (national) | FY73: 1174121.752 | FZ73: 1227753.726 | GA73: 1322639.449 | GB73: 1424858.322 | GC73: 1475431.448 | GD73: 1527799.589 | GE73: 1582026.455 | GF73: 1638178.019 | GH73: CO₂ e-fuel | GI73: 0 | GJ73: 0 | GK73: 4.913150567 | GL73: 25.17645173 | GM73: 45.85640019 | GN73: 115.4035879 | GO73: 234.0247316 | GP73: 303.4637865
DP74: Baseline | DQ74: Ammonia | DR74: 2035 | DS74: 0 | DT74: Baseline | DU74: Vehicle O&M | DV74: 2045 | DW74: =$FT$57 -> 143639.4376 | DX74: Baseline | DY74: ='Vehicle Costs'!$D$15 -> Cars and vans < 2 ton, investments | DZ74: 2040 | EA74: 756667.5779 | EB74: ='Vehicle Costs'!$J$15 -> 15526.11435 | EC74: Baseline | ED74: Ammonia | EE74: 2035 | EF74: 0 | EG74: =Results!$G$16 -> 0.01358868235 | EH74: Baseline | EI74: Ammonia | EJ74: 2035 | EK74: 0 | EM74: Baseline | EN74: Vehicle O&M | EO74: 2045 | EP74: =$FT$57 -> 143639.4376 | EQ74: Custom scenario 3 | ER74: Upstream losses | ES74: 2045 | ET74: =$GO$200 -> 9794.452698 | EZ74: =Scenarios!$AV$7 -> H2 | FM74: Electricity BEV + Plug-in-hybrid | FN74: 0 | FO74: 367.5821621 | FP74: 1244.928915 | FQ74: 2905.860181 | FR74: 4273.907826 | FS74: 6319.428566 | FT74: 9261.922055 | FU74: 11131.98329 | FX74: Truck (international) | FY74: 640226.2923 | FZ74: 669537.7124 | GA74: 721282.2676 | GB74: 777025.8492 | GC74: 804605.1711 | GD74: 833163.3781 | GE74: 862735.2141 | GF74: 893356.6564 | GH74: CO₂ e-jetfuel | GI74: 0 | GJ74: 0 | GK74: 0 | GL74: 0 | GM74: 0 | GN74: 0 | GO74: 0 | GP74: 0
DP75: Baseline | DQ75: Hydrogen | DR75: 2035 | DS75: 0 | DT75: Baseline | DU75: EV Charging stations | DV75: 2045 | DW75: =$FT$58 -> 2377.939702 | DX75: Baseline | DY75: ='Vehicle Costs'!$D$16 -> Cars and vans < 2 ton, O&M | DZ75: 2040 | EA75: 137488.4378 | EB75: ='Vehicle Costs'!$J$16 -> 2420.504688 | EC75: Baseline | ED75: Hydrogen | EE75: 2035 | EF75: 0 | EG75: =Results!$G$17 -> 0 | EH75: Baseline | EI75: Hydrogen | EJ75: 2035 | EK75: 0 | EM75: Baseline | EN75: EV Charging stations | EO75: 2045 | EP75: =$FT$58 -> 2377.939702 | EQ75: Custom scenario 3 | ER75: Upstream losses | ES75: 2050 | ET75: =$GP$200 -> 11436.24007 | EZ75: Energy consumption | FB75: 2017 | FC75: 2020 | FD75: 2025 | FE75: 2030 | FF75: 2035 | FG75: 2040 | FH75: 2045 | FI75: 2050 | FM75: All | FN75: 233567.4891 | FO75: 237468.7631 | FP75: 231937.4176 | FQ75: 225488.6808 | FR75: 225815.985 | FS75: 219956.5445 | FT75: 206324.8212 | FU75: 195671.745 | FX75: Vans (2-6 t) | FY75: 489942.2018 | FZ75: 512321.9654 | GA75: 551916.2582 | GB75: 594570.5564 | GC75: 615673.912 | GD75: 637526.2983 | GE75: 660154.301 | GF75: 683585.4494 | GH75: Ammonia | GI75: 0 | GJ75: 0 | GK75: 6.854865395 | GL75: 99.64320757 | GM75: 267.8381434 | GN75: 507.4848922 | GO75: 626.2927834 | GP75: 719.2551855
DP76: Baseline | DQ76: Natural gas | DR76: 2035 | DS76: 873.9116912 | DT76: Baseline | DU76: O&M Road infrastructure | DV76: 2045 | DW76: =$FT$45 -> 37556.22632 | DX76: Baseline | DY76: ='Vehicle Costs'!$D$17 -> Charging stations, investments | DZ76: 2040 | EA76: 1573.091241 | EB76: ='Vehicle Costs'!$J$17 -> 81.07079696 | EC76: Baseline | ED76: Natural gas | EE76: 2035 | EF76: 146.0609191 | EG76: =Results!$G$18 -> 0 | EH76: Baseline | EI76: Natural gas | EJ76: 2035 | EK76: 146.0609191 | EM76: Baseline | EN76: O&M Road infrastructure | EO76: 2045 | EP76: =$FT$45 -> 37556.22632 | EQ76: =$FK$412 -> Smart Energy Europe | ER76: Upstream losses | ES76: 2017 | ET76: =$GI$220 -> 4972.637056 | EZ76: Passenger | FA76: Cars and vans <2t | FB76: 8984176.537 | FC76: 8769124.704 | FD76: 8307176.421 | FE76: 6998535.983 | FF76: 5867797.29 | FG76: 4404727.147 | FH76: 3096324.797 | FI76: 2455682.875 | FL76: Total fuel cost (w/o jetfuels) | FN76: =SUM(FN60:FN61,FN63:FN66,FN68,FN70:FN74) -> 191859.7234 | FO76: =SUM(FO60:FO61,FO63:FO66,FO68,FO70:FO74) -> 194273.8404 | FP76: 186145.1313 | FQ76: 176942.8482 | FR76: 176087.8752 | FS76: 168759.3145 | FT76: 152904.1467 | FU76: 139209.0112 | FX76: Rail (national) | FY76: 374756.001 | FZ76: 397694.0663 | GA76: 436938.2161 | GB76: 480054.949 | GC76: 507045.2625 | GD76: 535553.0626 | GE76: 565663.6678 | GF76: 597467.193 | GH76: Hydrogen | GI76: 0 | GJ76: 0 | GK76: 97.6324074 | GL76: 644.2326599 | GM76: 2031.139794 | GN76: 3730.243019 | GO76: 5268.817419 | GP76: 6434.013486 | GR76: Sum of m€ | GS76: Column Labels
D77: Vehicle purchase price development (DKK) | E77: Alternative Drivmidler | F77: Alternative development | DP77: Baseline | DQ77: Electricity Train / bus / trucks / ships / aircrafts | DR77: 2035 | DS77: 5128.054336 | DT77: Baseline | DU77: New Road infrastructure | DV77: 2045 | DW77: =$FT$46+$FT$47 -> 50639.90815 | DX77: Baseline | DY77: ='Vehicle Costs'!$D$18 -> Busses, investments | DZ77: 2040 | EA77: 15842.77076 | EB77: ='Vehicle Costs'!$J$18 -> 396.8480159 | EC77: Baseline | ED77: Electricity Train / bus / trucks / ships / aircrafts | EE77: 2035 | EF77: 528.9380439 | EG77: =Results!$G$19 -> 27.27287794 | EH77: Baseline | EI77: Electricity Train / bus / trucks / ships / aircrafts | EJ77: 2035 | EK77: 528.9380439 | EM77: Baseline | EN77: New Road infrastructure | EO77: 2045 | EP77: =$FT$46+$FT$47 -> 50639.90815 | EQ77: Smart Energy Europe | ER77: Upstream losses | ES77: 2020 | ET77: =$GJ$220 -> 5135.387123 | FA77: Rail | FB77: 239435.9111 | FC77: 247215.7671 | FD77: 253371.0853 | FE77: 258872.411 | FF77: 258556.8682 | FG77: 271899.8755 | FH77: 291505.6314 | FI77: 305601.0108 | FL77: Total jetfuel costs | FN77: =FN62+FN67+FN69 -> 41707.76567 | FO77: =FO62+FO67+FO69 -> 43194.92266 | FP77: 45792.2863 | FQ77: 48545.83259 | FR77: 49728.10979 | FS77: 51197.23 | FT77: 53420.67445 | FU77: 56462.73378 | FX77: Rail (international) | FY77: 203140.251 | FZ77: 215574.0595 | GA77: 236846.7447 | GB77: 260218.6024 | GC77: 274848.9727 | GD77: 290301.9119 | GE77: 306623.6675 | GF77: 323863.0875 | GH77: Natural gas | GI77: 0 | GJ77: 0.666258573 | GK77: 3.373584857 | GL77: 13.4370032 | GM77: 22.83468578 | GN77: 34.09899368 | GO77: 20.12198941 | GP77: 0 | GR77: Row Labels | GS77: Jet-fuel fossil | GT77: Bio e-jetfuel | GU77: CO₂ e-jetfuel | GV77: Electricity BEV + Plug-in-hybrid | GW77: Hydrogen | GX77: Grand Total
D78: Cars and vans | DP78: Baseline | DQ78: Electricity BEV + Plug-in-hybrid | DR78: 2035 | DS78: 4273.907826 | DT78: Baseline | DU78: O&M Rail infrastructure | DV78: 2045 | DW78: =$FT$49 -> 44425.35677 | DX78: Baseline | DY78: ='Vehicle Costs'!$D$19 -> Busses, O&M | DZ78: 2040 | EA78: 385.735934 | EB78: ='Vehicle Costs'!$J$19 -> 9.950437427 | EC78: Baseline | ED78: Electricity BEV + Plug-in-hybrid | EE78: 2035 | EF78: 440.8362894 | EG78: =Results!$G$20 -> 25.51523229 | EH78: Baseline | EI78: Electricity BEV + Plug-in-hybrid | EJ78: 2035 | EK78: 440.8362894 | EM78: Baseline | EN78: O&M Rail infrastructure | EO78: 2045 | EP78: =$FT$49 -> 44425.35677 | EQ78: Smart Energy Europe | ER78: Upstream losses | ES78: 2025 | ET78: =$GK$220 -> 4976.552552 | FA78: Bus | FB78: 426420.3257 | FC78: 416999.0379 | FD78: 395882.4714 | FE78: 377563.9139 | FF78: 360409.0499 | FG78: 342648.5278 | FH78: 338141.1136 | FI78: 328874.8394 | FL78: Total inffrastructure cost | FN78: =FN48+FN51+FN54+FN55 -> 166441 | FO78: 185924.3894 | FP78: 190932.4771 | FQ78: 196456.75 | FR78: 174241.356 | FS78: 173608.2939 | FT78: 174849.9038 | FU78: 177132.5764 | FX78: Air (national) | FY78: 802.6056806 | FZ78: 864.318533 | GA78: 963.6699228 | GB78: 1074.441522 | GC78: 1163.191776 | GD78: 1259.272916 | GE78: 1363.290482 | GF78: 1475.900033 | GH78: Electricity Train / bus / trucks / ships / aircrafts | GI78: 43.38979277 | GJ78: 48.70962741 | GK78: 58.64617803 | GL78: 71.55602749 | GM78: 93.1914607 | GN78: 111.1021918 | GO78: 137.5753698 | GP78: 158.1319214 | GR78: 2050 | GS78: 77834.53958 | GT78: 656199.8384 | GU78: 402486.6531 | GV78: 221986.3248 | GW78: 281497.8045 | GX78: 1640005.16
D79: 2020 | E79: 217508.6911 | F79: ='Vehicle Costs'!N71 -> 244468.9711 | DP79: Baseline | DQ79: Petrol | DR79: 2040 | DS79: =FS60 -> 35826.8759 | DT79: Baseline | DU79: New Rail infrastructure | DV79: 2045 | DW79: =$FT$50 -> 42228.4126 | DX79: Baseline | DY79: ='Vehicle Costs'!$D$20 -> Trucks, investments | DZ79: 2040 | EA79: 90599.58598 | EB79: ='Vehicle Costs'!$J$20 -> 917.0196019 | EC79: Baseline | ED79: Petrol | EE79: 2040 | EF79: 2993.956069 | EG79: =Results!$H$6 -> 17.90718167 | EH79: Baseline | EI79: Petrol | EJ79: 2040 | EK79: 2993.956069 | EM79: Baseline | EN79: New Rail infrastructure | EO79: 2045 | EP79: =$FT$50 -> 42228.4126 | EQ79: Smart Energy Europe | ER79: Upstream losses | ES79: 2030 | ET79: =$GL$220 -> 4727.558127 | FA79: Bicycle/walking | FB79: 0 | FC79: 0 | FD79: 0 | FE79: 0 | FF79: 0 | FG79: 0 | FH79: 0 | FI79: 0 | FL79: Total vehicle cost | FN79: =FN59 -> 813877.3311 | FO79: 835761.9764 | FP79: 879825.0913 | FQ79: 929834.8935 | FR79: 963670.1562 | FS79: 1005833.591 | FT79: 1050603.338 | FU79: 1094566.905 | FX79: Air (international) | FY79: 48877.03467 | FZ79: 52635.22041 | GA79: 58685.51564 | GB79: 65431.27813 | GC79: 70835.98603 | GD79: 76687.12976 | GE79: 83021.58551 | GF79: 89879.27547 | GH79: Electricity BEV + Plug-in-hybrid | GI79: 0 | GJ79: 5.837369085 | GK79: 19.7700278 | GL79: 46.14635893 | GM79: 67.8715672 | GN79: 100.3553511 | GO79: 114.7390323 | GP79: 108.3874683 | GR79: H2 | GS79: 2.09412e-07 | GT79: 142070.4848 | GU79: 0 | GV79: 19073.3565 | GW79: 245576.77 | GX79: 406720.6113
D80: 2035 | E80: 193304.4235 | F80: ='Vehicle Costs'!R71 -> 183935.0296 | DP80: Baseline | DQ80: Diesel | DR80: 2040 | DS80: 70072.74983 | DT80: Baseline | DU80: Other | DV80: 2045 | DW80: =$FT$54+$FT$55 -> 0 | DX80: Baseline | DY80: ='Vehicle Costs'!$D$21 -> Trucks, O&M | DZ80: 2040 | EA80: 3276.391599 | EB80: ='Vehicle Costs'!$J$21 -> 27.01816498 | EC80: Baseline | ED80: Diesel | EE80: 2040 | EF80: 5855.792037 | EG80: =Results!$H$7 -> 53.6865156 | EH80: Baseline | EI80: Diesel | EJ80: 2040 | EK80: 5855.792037 | EM80: Baseline | EN80: Other | EO80: 2045 | EP80: =$FT$54+$FT$55 -> 0 | EQ80: Smart Energy Europe | ER80: Upstream losses | ES80: 2035 | ET80: =$GM$220 -> 5355.853043 | FA80: Air | FB80: 2828418.38 | FC80: 2929270.154 | FD80: 3105410.758 | FE80: 3292142.913 | FF80: 3372319.218 | FG80: 3471947.826 | FH80: 3574519.766 | FI80: 3680121.995 | FL80: Total fuel cost | FN80: =FN75 -> 233567.4891 | FO80: 237468.7631 | FP80: 231937.4176 | FQ80: 225488.6808 | FR80: 225815.985 | FS80: 219956.5445 | FT80: 206324.8212 | FU80: 195671.745 | FX80: Sea (national) | FY80: 176811.241 | FZ80: 182168.7984 | GA80: 191461.2379 | GB80: 201227.6853 | GC80: 208369.9485 | GD80: 215765.7152 | GE80: 223423.9831 | GF80: 231354.0692 | GH80: Total losses | GI80: =SUM(GI65:GI79) -> 4972.637056 | GJ80: =SUM(GJ65:GJ79) -> 5135.387123 | GK80: =SUM(GK65:GK79) -> 5032.136975 | GL80: =SUM(GL65:GL79) -> 4973.425203 | GM80: =SUM(GM65:GM79) -> 5782.128836 | GN80: =SUM(GN65:GN79) -> 6950.968492 | GO80: =SUM(GO65:GO79) -> 8189.619345 | GP80: =SUM(GP65:GP79) -> 9188.835036 | GR80: Biofuels | GS80: 2.09412e-07 | GT80: 284140.9695 | GU80: 0 | GV80: 19073.3565 | GW80: 0 | GX80: 303214.326
D81: 2050 | E81: 189400.5094 | F81: ='Vehicle Costs'!U71 -> 180811.8983 | DP81: Baseline | DQ81: Jet-fuel fossil | DR81: 2040 | DS81: 51197.23 | DT81: Baseline | DU81: Fuel | DV81: 2050 | DW81: =$FU$75 -> 195671.745 | DX81: Baseline | DY81: =Results!$AG$41 -> Cars and vans fuel | DZ81: 2040 | EA81: 107695.8793 | EB81: =Results!$AM$41 -> 1113.291031 | EC81: Baseline | ED81: Jet-fuel fossil | EE81: 2040 | EF81: 4278.415396 | EG81: =Results!$H$8 -> 31.11846596 | EH81: Baseline | EI81: Jet-fuel fossil | EJ81: 2040 | EK81: 4278.415396 | EM81: Baseline | EN81: Fuel | EO81: 2050 | EP81: =$FU$75 -> 195671.745 | EQ81: Smart Energy Europe | ER81: Upstream losses | ES81: 2040 | ET81: =$GN$220 -> 6125.963299 | FA81: Sea | FB81: 246195.953 | FC81: 235210.8341 | FD81: 222980.8004 | FE81: 214089.7994 | FF81: 215130.1513 | FG81: 216719.2594 | FH81: 222185.0598 | FI81: 228931.0796 | FL81: Total costs | FN81: =FN48+FN51+FN54+FN55+FN59+FN75 -> 1213885.82 | FO81: 1259155.129 | FP81: 1302694.986 | FQ81: 1351780.324 | FR81: 1363727.497 | FS81: 1399398.43 | FT81: 1431778.063 | FU81: 1467371.226 | FX81: Sea (international) | FY81: 6488655.787 | FZ81: 6685268.546 | GA81: 7026284.429 | GB81: 7384695.55 | GC81: 7646803.813 | GD81: 7918215.201 | GE81: 8199259.913 | GF81: 8490279.87 | GR81: BEV + e-fuels | GS81: 2.09412e-07 | GT81: 80446.82174 | GU81: 165481.9075 | GV81: 53415.10512 | GW81: 0 | GX81: 299343.8343
D82: Trucks and busses | DP82: Baseline | DQ82: Biogas | DR82: 2040 | DS82: 7856.995429 | DT82: Baseline | DU82: Fuel (w/o jetfuel) | DV82: 2050 | DW82: =$FU$76 -> 139209.0112 | DX82: Baseline | DY82: =Results!$AG$42 -> Bus fuel | DZ82: 2040 | EA82: 4480.003793 | EB82: =Results!$AM$42 -> 35.0339068 | EC82: Baseline | ED82: Biogas | EE82: 2040 | EF82: 316.2163259 | EG82: =Results!$H$9 -> 0.04928060975 | EH82: Baseline | EI82: Biogas | EJ82: 2040 | EK82: 316.2163259 | EM82: Baseline | EN82: Fuel (w/o jetfuel) | EO82: 2050 | EP82: =$FU$76 -> 139209.0112 | EQ82: Smart Energy Europe | ER82: Upstream losses | ES82: 2045 | ET82: =$GO$220 -> 6796.320947 | EZ82: Freight | FA82: Truck (national) | FB82: 1169186.947 | FC82: 1167690.389 | FD82: 1138627.422 | FE82: 1055143.501 | FF82: 876309.853 | FG82: 757158.9518 | FH82: 752523.4279 | FI82: 735298.408 | FW82: Total passenger transport demand | FY82: =SUM(FY63:FY72) -> 6955843.43 | FZ82: 7168309.936 | GA82: 7468872.474 | GB82: 7785505.064 | GC82: 8047042.325 | GD82: 8318720.421 | GE82: 8601155.04 | GF82: 8895793.618 | GH82: =Scenarios!$AV$8 -> BEV + e-fuels | GR82: Heavy elec. | GS82: 2.09412e-07 | GT82: 78435.65119 | GU82: 143194.305 | GV82: 53751.7122 | GW82: 0 | GX82: 275381.6684
D83: 2020 | E83: 2479945.051 | F83: ='Vehicle Costs'!N204 -> 2762905.642 | DP83: Baseline | DQ83: Bioethanol | DR83: 2040 | DS83: 17074.13891 | DT83: Baseline | DU83: Jetfuel | DV83: 2050 | DW83: =$FU$77 -> 56462.73378 | DX83: Baseline | DY83: =Results!$AG$43 -> Rail fuel | DZ83: 2040 | EA83: 2737.775441 | EB83: =Results!$AM$43 -> 187.3945427 | EC83: Baseline | ED83: Bioethanol | EE83: 2040 | EF83: 355.6808461 | EG83: =Results!$H$10 -> 2.126859093 | EH83: Baseline | EI83: Bioethanol | EJ83: 2040 | EK83: 355.6808461 | EM83: Baseline | EN83: Jetfuel | EO83: 2050 | EP83: =$FU$77 -> 56462.73378 | EQ83: Smart Energy Europe | ER83: Upstream losses | ES83: 2050 | ET83: =$GP$220 -> 7248.363859 | FW83: Total freight transport demand | FY83: =SUM(FY73:FY81) -> 9597333.166 | FZ83: 9943818.413 | GA83: 10547017.79 | GB83: 11189157.23 | GC83: 11604777.71 | GD83: 12036271.56 | GE83: 12484272.08 | GF83: 12949439.52 | GH83: Upstream energy losses | GI83: 2017 | GJ83: 2020 | GK83: 2025 | GL83: 2030 | GM83: 2035 | GN83: 2040 | GO83: 2045 | GP83: 2050 | GR83: Baseline | GS83: 55328.74689 | GT83: 6033.51163 | GU83: 0 | GV83: 31081.97157 | GW83: 6844.096555 | GX83: 99288.32664
D84: 2035 | E84: 1631063.275 | F84: ='Vehicle Costs'!R204 -> 1514423.275 | DP84: Baseline | DQ84: Biodiesel | DR84: 2040 | DS84: 22694.6951 | DT84: Baseline | DU84: Vehicle | DV84: 2050 | DW84: =$FU$56 -> 944378.1315 | DX84: Baseline | DY84: =Results!$AG$46 -> Vans fuel | DZ84: 2040 | EA84: 14981.97807 | EB84: =Results!$AM$46 -> 178.5031116 | EC84: Baseline | ED84: Biodiesel | EE84: 2040 | EF84: 536.8958532 | EG84: =Results!$H$11 -> 3.577908077 | EH84: Baseline | EI84: Biodiesel | EJ84: 2040 | EK84: 536.8958532 | EM84: Baseline | EN84: Vehicle | EO84: 2050 | EP84: =$FU$56 -> 944378.1315 | FK84: =Scenarios!$AV$6 -> Biofuels | GI84: PJ | GJ84: PJ | GK84: PJ | GL84: PJ | GM84: PJ | GN84: PJ | GO84: PJ | GP84: PJ | GR84: 1.5 TECH | GS84: 22505.7927 | GT84: 65072.39953 | GU84: 93810.44058 | GV84: 45590.82294 | GW84: 29076.93798 | GX84: 256056.3937
D85: 2050 | E85: 1582463.275 | F85: ='Vehicle Costs'!U204 -> 1475543.275 | DP85: Baseline | DQ85: Bio e-fuel | DR85: 2040 | DS85: 0 | DT85: Baseline | DU85: Vehicle O&M | DV85: 2050 | DW85: =$FU$57 -> 147251.1045 | DX85: Baseline | DY85: =Results!$AG$47 -> National truck fuel | DZ85: 2040 | EA85: 14641.57691 | EB85: =Results!$AM$47 -> 222.3949399 | EC85: Baseline | ED85: Bio e-fuel | EE85: 2040 | EF85: 0 | EG85: =Results!$H$12 -> 0 | EH85: Baseline | EI85: Bio e-fuel | EJ85: 2040 | EK85: 0 | EM85: Baseline | EN85: Vehicle O&M | EO85: 2050 | EP85: =$FU$57 -> 147251.1045 | FA85: Truck (international) | FB85: 905840.5314 | FC85: 904681.057 | FD85: 875299.8411 | FE85: 784306.7323 | FF85: 627513.2627 | FG85: 508707.5356 | FH85: 540042.3639 | FI85: 569680.5822 | FK85: Total costs | FN85: 2017 | FO85: 2020 | FP85: 2025 | FQ85: 2030 | FR85: 2035 | FS85: 2040 | FT85: 2045 | FU85: 2050 | GH85: Petrol | GI85: 1086.854303 | GJ85: 1036.417941 | GK85: 885.7977856 | GL85: 607.4439039 | GM85: 409.309706 | GN85: 206.8298825 | GO85: 104.4629183 | GP85: 0 | GR85: Grand Total | GS85: 77834.53958 | GT85: 656199.8384 | GU85: 402486.6531 | GV85: 221986.3248 | GW85: 281497.8045 | GX85: 1640005.16
DP86: Baseline | DQ86: Bio e-jetfuel | DR86: 2040 | DS86: 0 | DT86: Baseline | DU86: EV Charging stations | DV86: 2050 | DW86: =$FU$58 -> 2937.668677 | DX86: Baseline | DY86: =Results!$AG$48 -> International truck fuel | DZ86: 2040 | EA86: 12042.1781 | EB86: =Results!$AM$48 -> 301.9648901 | EC86: Baseline | ED86: Bio e-jetfuel | EE86: 2040 | EF86: 0 | EG86: =Results!$H$13 -> 8.319895457 | EH86: Baseline | EI86: Bio e-jetfuel | EJ86: 2040 | EK86: 0 | EM86: Baseline | EN86: EV Charging stations | EO86: 2050 | EP86: =$FU$58 -> 2937.668677 | FA86: Vans (2-6 t) | FB86: 1349989.625 | FC86: 1361442.775 | FD86: 1265103.314 | FE86: 1111847.81 | FF86: 796953.3874 | FG86: 542644.0174 | FH86: 398999.8629 | FI86: 329710.9404 | FK86: Infrastructure | FL86: Road | FM86: O&M | FN86: 30765 | FO86: 31529.36008 | FP86: 32851.10091 | FQ86: 34235.4169 | FR86: 35308.19603 | FS86: 36414.77527 | FT86: 37556.22632 | FU86: 38733.6551 | FW86: Low growth | GH86: Diesel | GI86: 2053.344018 | GJ86: 1994.151773 | GK86: 1773.688298 | GL86: 1350.736319 | GM86: 958.1172945 | GN86: 557.2926175 | GO86: 303.629611 | GP86: 2.484394507e-09
DP87: Baseline | DQ87: CO₂ e-fuel | DR87: 2040 | DS87: 1372.002123 | DT87: Baseline | DU87: O&M Road infrastructure | DV87: 2050 | DW87: =$FU$45 -> 38733.6551 | DX87: Baseline | DY87: =Results!$AG$49 -> Truck fuel | DZ87: 2040 | EA87: 26683.755 | EB87: =Results!$AM$49 -> 524.35983 | EC87: Baseline | ED87: CO₂ e-fuel | EE87: 2040 | EF87: 47.17215484 | EG87: =Results!$H$14 -> 21.14890711 | EH87: Baseline | EI87: CO₂ e-fuel | EJ87: 2040 | EK87: 47.17215484 | EM87: Baseline | EN87: O&M Road infrastructure | EO87: 2050 | EP87: =$FU$45 -> 38733.6551 | FA87: Rail (national) | FB87: 247206.1688 | FC87: 243851.9034 | FD87: 232269.4245 | FE87: 225981.6604 | FF87: 208730.1775 | FG87: 217578.8775 | FH87: 229200.1232 | FI87: 237479.7626 | FM87: New roads | FN87: 66244 | FO87: 67176.73919 | FP87: 67446.50844 | FQ87: 67791.76754 | FR87: 50623.21462 | FS87: 50631.53928 | FT87: 50639.90815 | FU87: 50648.32144 | FW87: Transport demand | FY87: 2017 | FZ87: 2020 | GA87: 2025 | GB87: 2030 | GC87: 2035 | GD87: 2040 | GE87: 2045 | GF87: 2050 | GH87: Jet-fuel fossil | GI87: 818.0957318 | GJ87: 845.669172 | GK87: 860.5917597 | GL87: 826.0923487 | GM87: 665.6814226 | GN87: 523.9329534 | GO87: 280.9367448 | GP87: 2.347203358e-09
DP88: Baseline | DQ88: CO₂ e-jetfuel | DR88: 2040 | DS88: 0 | DT88: Baseline | DU88: New Road infrastructure | DV88: 2050 | DW88: =$FU$46+$FU$47 -> 50648.32144 | DX88: Baseline | DY88: ='Vehicle Costs'!$D$15 -> Cars and vans < 2 ton, investments | DZ88: 2045 | EA88: 792511.0482 | EB88: ='Vehicle Costs'!$K$15 -> 15731.61735 | EC88: Baseline | ED88: CO₂ e-jetfuel | EE88: 2040 | EF88: 0 | EG88: =Results!$H$15 -> 24.81215544 | EH88: Baseline | EI88: CO₂ e-jetfuel | EJ88: 2040 | EK88: 0 | EM88: Baseline | EN88: New Road infrastructure | EO88: 2050 | EP88: =$FU$46+$FU$47 -> 50648.32144 | FA88: Rail (international) | FB88: 143551.165 | FC88: 152281.6451 | FD88: 168028.2447 | FE88: 185403.1127 | FF88: 198139.2315 | FG88: 212925.5229 | FH88: 233402.5197 | FI88: 253433.7768 | FM88: eRoads | FN88: 0 | FO88: 0 | FP88: 0 | FQ88: 0 | FR88: 0 | FS88: 0 | FT88: 0 | FU88: 0 | FW88: Passenger | FX88: Cars and vans <2t | FY88: 5004272.67 | FZ88: 5004272.67 | GA88: 5196197.067 | GB88: 5395482.169 | GC88: 5395482.169 | GD88: 5395482.169 | GE88: 5395482.169 | GF88: 5395482.169 | GH88: Biogas | GI88: 0 | GJ88: 0 | GK88: -0.6540304381 | GL88: -1.255904051 | GM88: -3.155017536 | GN88: -3.813987356 | GO88: -5.4308036 | GP88: -7.833972388
DP89: Baseline | DQ89: Ammonia | DR89: 2040 | DS89: 0 | DT89: Baseline | DU89: O&M Rail infrastructure | DV89: 2050 | DW89: =$FU$49 -> 47200.63116 | DX89: Baseline | DY89: ='Vehicle Costs'!$D$16 -> Cars and vans < 2 ton, O&M | DZ89: 2045 | EA89: 139776.9588 | EB89: ='Vehicle Costs'!$K$16 -> 2398.673859 | EC89: Baseline | ED89: Ammonia | EE89: 2040 | EF89: 0 | EG89: =Results!$H$16 -> 0.02190249322 | EH89: Baseline | EI89: Ammonia | EJ89: 2040 | EK89: 0 | EM89: Baseline | EN89: O&M Rail infrastructure | EO89: 2050 | EP89: =$FU$49 -> 47200.63116 | FA89: Air (national) | FB89: 10614.05063 | FC89: 10992.51156 | FD89: 11653.50475 | FE89: 12354.24427 | FF89: 12655.1175 | FG89: 13028.98831 | FH89: 13413.90441 | FI89: 13810.19211 | FM89: Total roads | FN89: 97009 | FO89: 98706.09927 | FP89: 100297.6094 | FQ89: 102027.1844 | FR89: 85931.41065 | FS89: 87046.31455 | FT89: 88196.13447 | FU89: 89381.97654 | FX89: Rail | FY89: 436028.463 | FZ89: 458646.0935 | GA89: 496530.8519 | GB89: 537544.9402 | GC89: 570581.0459 | GD89: 605647.4643 | GE89: 642868.9731 | GF89: 682378.0184 | GH89: Bioethanol | GI89: 385.6051836 | GJ89: 519.5331604 | GK89: 444.0577205 | GL89: 350.1747277 | GM89: 299.2235259 | GN89: 184.4025157 | GO89: 110.5843087 | GP89: 0
DP90: Baseline | DQ90: Hydrogen | DR90: 2040 | DS90: 658.1611404 | DT90: Baseline | DU90: New Rail infrastructure | DV90: 2050 | DW90: =$FU$50 -> 40549.96874 | DX90: Baseline | DY90: ='Vehicle Costs'!$D$17 -> Charging stations, investments | DZ90: 2045 | EA90: 2377.939702 | EB90: ='Vehicle Costs'!$K$17 -> 91.67336359 | EC90: Baseline | ED90: Hydrogen | EE90: 2040 | EF90: 27.95332939 | EG90: =Results!$H$17 -> 0 | EH90: Baseline | EI90: Hydrogen | EJ90: 2040 | EK90: 27.95332939 | EM90: Baseline | EN90: New Rail infrastructure | EO90: 2050 | EP90: =$FU$50 -> 40549.96874 | FA90: Air (international) | FB90: 646373.8462 | FC90: 669421.338 | FD90: 709674.4634 | FE90: 752348.0585 | FF90: 770670.619 | FG90: 793438.5824 | FH90: 816879.181 | FI90: 841012.2864 | FL90: Rail | FM90: Renewal and maintenance | FN90: 28005 | FO90: 29870.91185 | FP90: 33262.63648 | FQ90: 37041.63502 | FR90: 39355.19787 | FS90: 41813.41999 | FT90: 44425.35677 | FU90: 47200.63116 | FX90: Bus | FY90: 510782.9012 | FZ90: 523140.0227 | GA90: 539023.6871 | GB90: 555389.6141 | GC90: 569413.8978 | GD90: 583792.3123 | GE90: 598533.7997 | GF90: 613647.5282 | GH90: Biodiesel | GI90: 585.3480262 | GJ90: 683.4020821 | GK90: 602.7022161 | GL90: 475.3537203 | GM90: 376.0774262 | GN90: 221.364199 | GO90: 123.0416072 | GP90: 0
DP91: Baseline | DQ91: Natural gas | DR91: 2040 | DS91: 1305.010698 | DT91: Baseline | DU91: Other | DV91: 2050 | DW91: =$FU$54+$FU$55 -> 0 | DX91: Baseline | DY91: ='Vehicle Costs'!$D$18 -> Busses, investments | DZ91: 2045 | EA91: 16358.634 | EB91: ='Vehicle Costs'!$K$18 -> 409.4501321 | EC91: Baseline | ED91: Natural gas | EE91: 2040 | EF91: 218.112498 | EG91: =Results!$H$18 -> 0 | EH91: Baseline | EI91: Natural gas | EJ91: 2040 | EK91: 218.112498 | EM91: Baseline | EN91: Other | EO91: 2050 | EP91: =$FU$54+$FU$55 -> 0 | FA91: Sea (national) | FB91: 65478.9701 | FC91: 64825.05975 | FD91: 64566.98179 | FE91: 65132.29822 | FF91: 65774.7429 | FG91: 66590.58555 | FH91: 68610.03291 | FI91: 71045.23914 | FM91: New rail constructions | FN91: 41427 | FO91: 57347.37827 | FP91: 57372.23123 | FQ91: 57387.9305 | FR91: 48954.7475 | FS91: 44748.55934 | FT91: 42228.4126 | FU91: 40549.96874 | FX91: Bicycle/walking | FY91: 247811.7265 | FZ91: 247811.7265 | GA91: 247811.7265 | GB91: 247811.7265 | GC91: 247811.7265 | GD91: 247811.7265 | GE91: 247811.7265 | GF91: 247811.7265 | GH91: Bio e-fuel | GI91: 0 | GJ91: 0 | GK91: 0 | GL91: 0 | GM91: 0 | GN91: 0 | GO91: 0 | GP91: 0
DP92: Baseline | DQ92: Electricity Train / bus / trucks / ships / aircrafts | DR92: 2040 | DS92: 5579.256798 | DT92: =$FK$84 -> Biofuels | DU92: Fuel | DV92: 2017 | DW92: =$FN$116 -> 233567.4891 | DX92: Baseline | DY92: ='Vehicle Costs'!$D$19 -> Busses, O&M | DZ92: 2045 | EA92: 402.5900394 | EB92: ='Vehicle Costs'!$K$19 -> 10.53032122 | EC92: Baseline | ED92: Electricity Train / bus / trucks / ships / aircrafts | EE92: 2040 | EF92: 575.4777512 | EG92: =Results!$H$19 -> 41.08279034 | EH92: Baseline | EI92: Electricity Train / bus / trucks / ships / aircrafts | EJ92: 2040 | EK92: 575.4777512 | EM92: =$FK$84 -> Biofuels | EN92: Fuel | EO92: 2050 | EP92: =$FU$116 -> 479043.4025 | FA92: Sea (international) | FB92: 393211.7831 | FC92: 381301.8145 | FD92: 366892.2484 | FE92: 357541.5821 | FF92: 361068.2608 | FG92: 365546.8018 | FH92: 376632.4909 | FI92: 390000.4744 | FM92: Total rail | FN92: 69432 | FO92: 87218.29012 | FP92: 90634.86771 | FQ92: 94429.56552 | FR92: 88309.94538 | FS92: 86561.97933 | FT92: 86653.76937 | FU92: 87750.59991 | FX92: Air (national) | FY92: 134340.3585 | FZ92: 134340.3585 | GA92: 136286.0414 | GB92: 138259.904 | GC92: 140262.3545 | GD92: 142293.807 | GE92: 144354.6815 | GF92: 146445.4041 | GH92: Bio e-jetfuel | GI92: 0 | GJ92: 0 | GK92: 40.14371358 | GL92: 148.951615 | GM92: 326.9553386 | GN92: 448.8194636 | GO92: 693.1184416 | GP92: 951.4603691
DP93: Baseline | DQ93: Electricity BEV + Plug-in-hybrid | DR93: 2040 | DS93: 6319.428566 | DT93: Biofuels | DU93: Fuel (w/o jetfuel) | DV93: 2017 | DW93: =$FN$117 -> 191859.7234 | DX93: Baseline | DY93: ='Vehicle Costs'!$D$20 -> Trucks, investments | DZ93: 2045 | EA93: 95716.27864 | EB93: ='Vehicle Costs'!$K$20 -> 956.649623 | EC93: Baseline | ED93: Electricity BEV + Plug-in-hybrid | EE93: 2040 | EF93: 651.8234726 | EG93: =Results!$H$20 -> 32.65966163 | EH93: Baseline | EI93: Electricity BEV + Plug-in-hybrid | EJ93: 2040 | EK93: 651.8234726 | EM93: Biofuels | EN93: Fuel (w/o jetfuel) | EO93: 2050 | EP93: =$FU$117 -> 334582.7463 | FA93: Total passenger energy consumption | FB93: =SUM(FB76:FB81)/1000 -> 12724.64711 | FC93: 12597.8205 | FD93: 12284.82154 | FE93: 11141.20502 | FF93: 10074.21258 | FG93: 8707.942636 | FH93: 7522.676368 | FI93: 6999.2118 | FX93: Air (international) | FY93: 593870.9464 | FZ93: 593870.9464 | GA93: 602472.1181 | GB93: 611197.8627 | GC93: 620049.9843 | GD93: 629030.3132 | GE93: 638140.7063 | GF93: 647383.0474 | GH93: CO₂ e-fuel | GI93: 0 | GJ93: 6.280256032 | GK93: 180.2763773 | GL93: 579.48663 | GM93: 1341.621921 | GN93: 2177.601725 | GO93: 2760.824317 | GP93: 3872.35983
DP94: Baseline | DQ94: Petrol | DR94: 2045 | DS94: =FT60 -> 27822.52995 | DT94: Biofuels | DU94: Jetfuel | DV94: 2017 | DW94: =$FN$118 -> 41707.76567 | DX94: Baseline | DY94: ='Vehicle Costs'!$D$21 -> Trucks, O&M | DZ94: 2045 | EA94: 3459.888761 | EB94: ='Vehicle Costs'!$K$21 -> 26.82224233 | EC94: Baseline | ED94: Petrol | EE94: 2045 | EF94: 2325.054314 | EG94: =Results!$I$6 -> 8.783839601 | EH94: Baseline | EI94: Petrol | EJ94: 2045 | EK94: 2325.054314 | EM94: Biofuels | EN94: Jetfuel | EO94: 2050 | EP94: =$FU$118 -> 144460.6562 | FA94: Total freight energy consumption | FB94: =SUM(FB82:FB92)/1000 -> 4931.453087 | FC94: 4956.488493 | FD94: 4832.115444 | FE94: 4550.059 | FF94: 3917.814652 | FG94: 3477.619863 | FH94: 3429.703907 | FI94: 3441.471662 | FX94: Sea (national) | FY94: 14608.76524 | FZ94: 14828.99421 | GA94: 15355.32625 | GB94: 15900.33963 | GC94: 16383.10839 | GD94: 16880.53506 | GE94: 17393.06467 | GF94: 17921.1558 | GH94: CO₂ e-jetfuel | GI94: 0 | GJ94: 4.397862443 | GK94: 63.45527009 | GL94: 198.3782329 | GM94: 504.1615483 | GN94: 761.5761875 | GO94: 1149.280168 | GP94: 1527.762333
DP95: Baseline | DQ95: Diesel | DR95: 2045 | DS95: 62745.76136 | DT95: Biofuels | DU95: Vehicle | DV95: 2017 | DW95: =$FN$97 -> 699165.5644 | DX95: Baseline | DY95: =Results!$AG$41 -> Cars and vans fuel | DZ95: 2045 | EA95: 92755.53213 | EB95: =Results!$AN$41 -> 801.1867047 | EC95: Baseline | ED95: Diesel | EE95: 2045 | EF95: 5243.495233 | EG95: =Results!$I$7 -> 27.49801536 | EH95: Baseline | EI95: Diesel | EJ95: 2045 | EK95: 5243.495233 | EM95: Biofuels | EN95: Vehicle | EO95: 2050 | EP95: =$FU$97 -> 928810.8827 | FA95: Total energy consumption | FB95: =FB93+FB94 -> 17656.10019 | FC95: =FC93+FC94 -> 17554.30899 | FD95: =FD93+FD94 -> 17116.93698 | FE95: =FE93+FE94 -> 15691.26402 | FF95: =FF93+FF94 -> 13992.02723 | FG95: =FG93+FG94 -> 12185.5625 | FH95: =FH93+FH94 -> 10952.38027 | FI95: =FI93+FI94 -> 10440.68346 | FL95: Others | FM95: Bicycle/walking | FN95: 0 | FO95: 0 | FP95: 0 | FQ95: 0 | FR95: 0 | FS95: 0 | FT95: 0 | FU95: 0 | GH95: Ammonia | GI95: 0 | GJ95: 0 | GK95: 2.591241243 | GL95: 4.975839328 | GM95: 12.50004753 | GN95: 20.1478112 | GO95: 30.98392811 | GP95: 45.22661199
DP96: Baseline | DQ96: Jet-fuel fossil | DR96: 2045 | DS96: 52282.01118 | DT96: Biofuels | DU96: Vehicle O&M | DV96: 2017 | DW96: =$FN$98 -> 114711.7667 | DX96: Baseline | DY96: =Results!$AG$42 -> Bus fuel | DZ96: 2045 | EA96: 4194.722093 | EB96: =Results!$AN$42 -> 26.37148077 | EC96: Baseline | ED96: Jet-fuel fossil | EE96: 2045 | EF96: 4369.067654 | EG96: =Results!$I$8 -> 14.10305655 | EH96: Baseline | EI96: Jet-fuel fossil | EJ96: 2045 | EK96: 4369.067654 | EM96: Biofuels | EN96: Vehicle O&M | EO96: 2050 | EP96: =$FU$98 -> 155022.3495 | FM96: Bus | FN96: 0 | FO96: 0 | FP96: 0 | FQ96: 0 | FR96: 0 | FS96: 0 | FT96: 0 | FU96: 0 | GH96: Hydrogen | GI96: 0 | GJ96: 0 | GK96: 0 | GL96: 0 | GM96: 0 | GN96: 0 | GO96: 0 | GP96: 0
DP97: Baseline | DQ97: Biogas | DR97: 2045 | DS97: 6626.695524 | DT97: Biofuels | DU97: EV Charging stations | DV97: 2017 | DW97: =$FN$99 -> 0 | DX97: Baseline | DY97: =Results!$AG$43 -> Rail fuel | DZ97: 2045 | EA97: 2836.513626 | EB97: =Results!$AN$43 -> 198.2658795 | EC97: Baseline | ED97: Biogas | EE97: 2045 | EF97: 266.7010985 | EG97: =Results!$I$9 -> 0.07017152599 | EH97: Baseline | EI97: Biogas | EJ97: 2045 | EK97: 266.7010985 | EM97: Biofuels | EN97: EV Charging stations | EO97: 2050 | EP97: =$FU$99 -> 1882.89373 | FK97: Vehicles | FL97: Road | FM97: Vehicles | FN97: 699165.5644 | FO97: 714210.3135 | FP97: 754684.1398 | FQ97: 799819.5344 | FR97: 831016.5442 | FS97: 870632.1916 | FT97: 904051.4292 | FU97: 928810.8827 | FX97: Sea (international) | FY97: 14127.59916 | FZ97: 14340.57449 | GA97: 14849.57084 | GB97: 15376.63322 | GC97: 15843.50111 | GD97: 16324.54413 | GE97: 16820.19266 | GF97: 17330.89015 | GH97: Natural gas | GI97: 0 | GJ97: 0 | GK97: 0 | GL97: 0 | GM97: 0 | GN97: 0 | GO97: 0 | GP97: 0
DP98: Baseline | DQ98: Bioethanol | DR98: 2045 | DS98: 15711.94842 | DT98: Biofuels | DU98: O&M Road infrastructure | DV98: 2017 | DW98: =$FN$86 -> 30765 | DX98: Baseline | DY98: =Results!$AG$46 -> Vans fuel | DZ98: 2045 | EA98: 13982.82017 | EB98: =Results!$AN$46 -> 131.089962 | EC98: Baseline | ED98: Bioethanol | EE98: 2045 | EF98: 327.3043016 | EG98: =Results!$I$10 -> 1.238086011 | EH98: Baseline | EI98: Bioethanol | EJ98: 2045 | EK98: 327.3043016 | EM98: Biofuels | EN98: O&M Road infrastructure | EO98: 2050 | EP98: =$FU$86 -> 38733.6551 | EZ98: =Scenarios!$AV$8 -> BEV + e-fuels | FM98: Vehicles O&M | FN98: 114711.7667 | FO98: 121459.2992 | FP98: 127904.0716 | FQ98: 134250.8037 | FR98: 139110.1077 | FS98: 143468.3241 | FT98: 147860.7412 | FU98: 155022.3495 | FW98: Freight | FX98: Truck (national) | FY98: 1174121.752 | FZ98: 1227753.726 | GA98: 1322639.449 | GB98: 1424858.322 | GC98: 1475431.448 | GD98: 1527799.589 | GE98: 1582026.455 | GF98: 1638178.019 | GH98: Electricity Train / bus / trucks / ships / aircrafts | GI98: 43.38979277 | GJ98: 48.86055774 | GK98: 65.03957874 | GL98: 87.13672656 | GM98: 118.3017052 | GN98: 165.6030497 | GO98: 217.220435 | GP98: 298.5225766
DP99: Baseline | DQ99: Biodiesel | DR99: 2045 | DS99: 19898.37565 | DT99: Biofuels | DU99: New Road infrastructure | DV99: 2017 | DW99: =$FN$87+$FN$88 -> 66244 | DX99: Baseline | DY99: =Results!$AG$47 -> National truck fuel | DZ99: 2045 | EA99: 14392.16458 | EB99: =Results!$AN$47 -> 197.2488296 | EC99: Baseline | ED99: Biodiesel | EE99: 2045 | EF99: 470.742406 | EG99: =Results!$I$11 -> 1.966025572 | EH99: Baseline | EI99: Biodiesel | EJ99: 2045 | EK99: 470.742406 | EM99: Biofuels | EN99: New Road infrastructure | EO99: 2050 | EP99: =$FU$87+$FU$88 -> 50648.32144 | EZ99: Energy consumption | FB99: 2017 | FC99: 2020 | FD99: 2025 | FE99: 2030 | FF99: 2035 | FG99: 2040 | FH99: 2045 | FI99: 2050 | FM99: EV Charging stations | FN99: 0 | FO99: 92.36368912 | FP99: 323.9043461 | FQ99: 772.9290035 | FR99: 1025.225866 | FS99: 1573.091241 | FT99: 1880.420901 | FU99: 1882.89373 | FX99: Truck (international) | FY99: 640226.2923 | FZ99: 669537.7124 | GA99: 721282.2676 | GB99: 777025.8492 | GC99: 804605.1711 | GD99: 833163.3781 | GE99: 862735.2141 | GF99: 893356.6564 | GH99: Electricity BEV + Plug-in-hybrid | GI99: 0 | GJ99: 6.689779284 | GK99: 49.32550686 | GL99: 131.1602944 | GM99: 197.4811282 | GN99: 263.6531785 | GO99: 294.0078294 | GP99: 304.3525824
DP100: =$FK$43 -> Baseline | DQ100: Bio e-fuel | DR100: 2045 | DS100: 0 | DT100: Biofuels | DU100: O&M Rail infrastructure | DV100: 2017 | DW100: =$FN$90 -> 28005 | DX100: =$FK$43 -> Baseline | DY100: =Results!$AG$48 -> International truck fuel | DZ100: 2045 | EA100: 12030.70967 | EB100: =Results!$AN$48 -> 283.0177909 | EC100: =$FK$43 -> Baseline | ED100: Bio e-fuel | EE100: 2045 | EF100: 0 | EG100: =Results!$I$12 -> 0 | EH100: =$FK$43 -> Baseline | EI100: Bio e-fuel | EJ100: 2045 | EK100: 0 | EM100: Biofuels | EN100: O&M Rail infrastructure | EO100: 2050 | EP100: =$FU$90 -> 47200.63116 | EZ100: Passenger | FA100: Cars and vans <2t | FB100: 8984176.537 | FC100: 8769124.704 | FD100: 7768233.196 | FE100: 5971968.564 | FF100: 4772262.65 | FG100: 3468524.692 | FH100: 2717244.983 | FI100: 2028014.104 | FM100: Total vehicles + charging | FN100: 813877.3311 | FO100: 835761.9764 | FP100: 882912.1157 | FQ100: 934843.267 | FR100: 971151.8778 | FS100: 1015673.607 | FT100: 1053792.591 | FU100: 1085716.126 | FX100: Vans (2-6 t) | FY100: 489942.2018 | FZ100: 512321.9654 | GA100: 551916.2582 | GB100: 594570.5564 | GC100: 615673.912 | GD100: 637526.2983 | GE100: 660154.301 | GF100: 683585.4494 | GH100: Total losses | GI100: =SUM(GI85:GI99) -> 4972.637056 | GJ100: =SUM(GJ85:GJ99) -> 5145.402584 | GK100: =SUM(GK85:GK99) -> 4967.015437 | GL100: =SUM(GL85:GL99) -> 4758.634454 | GM100: =SUM(GM85:GM99) -> 5206.276046 | GN100: =SUM(GN85:GN99) -> 5527.409596 | GO100: =SUM(GO85:GO99) -> 6062.659505 | GP100: =SUM(GP85:GP99) -> 6991.850331
DP101: Baseline | DQ101: Bio e-jetfuel | DR101: 2045 | DS101: 1138.663272 | DT101: Biofuels | DU101: New Rail infrastructure | DV101: 2017 | DW101: =$FN$91 -> 41427 | DX101: Baseline | DY101: =Results!$AG$49 -> Truck fuel | DZ101: 2045 | EA101: 26422.87425 | EB101: =Results!$AN$49 -> 480.2666205 | EC101: Baseline | ED101: Bio e-jetfuel | EE101: 2045 | EF101: 35.74519766 | EG101: =Results!$I$13 -> 12.1503289 | EH101: Baseline | EI101: Bio e-jetfuel | EJ101: 2045 | EK101: 35.74519766 | EM101: Biofuels | EN101: New Rail infrastructure | EO101: 2050 | EP101: =$FU$91 -> 40549.96874 | FA101: Rail | FB101: 239435.9111 | FC101: 247215.7671 | FD101: 253371.0853 | FE101: 258872.411 | FF101: 258556.8682 | FG101: 270141.5169 | FH101: 277603.3285 | FI101: 280110.918 | FK101: Fuels | FL101: All | FM101: Petrol | FN101: 58769.83695 | FO101: 56066.31548 | FP101: 44679.38364 | FQ101: 30929.4711 | FR101: 22344.9407 | FS101: 8973.137174 | FT101: 4025.752411 | FU101: 0 | FX101: Rail (national) | FY101: 374756.001 | FZ101: 397694.0663 | GA101: 436938.2161 | GB101: 480054.949 | GC101: 507045.2625 | GD101: 535553.0626 | GE101: 565663.6678 | GF101: 597467.193
DP102: Baseline | DQ102: CO₂ e-fuel | DR102: 2045 | DS102: 1784.133107 | DT102: Biofuels | DU102: Other | DV102: 2017 | DW102: =$FN$95+$FN$96 -> 0 | DX102: Baseline | DY102: ='Vehicle Costs'!$D$15 -> Cars and vans < 2 ton, investments | DZ102: 2050 | EA102: 825762.8586 | EB102: ='Vehicle Costs'!$L$15 -> 15936.48425 | EC102: Baseline | ED102: CO₂ e-fuel | EE102: 2045 | EF102: 61.34203566 | EG102: =Results!$I$14 -> 30.86955714 | EH102: Baseline | EI102: CO₂ e-fuel | EJ102: 2045 | EK102: 61.34203566 | EM102: Biofuels | EN102: Other | EO102: 2050 | EP102: =$FU$95+$FU$96 -> 0 | FA102: Bus | FB102: 426420.3257 | FC102: 415469.2703 | FD102: 371834.7415 | FE102: 303837.7645 | FF102: 268260.8606 | FG102: 215021.9362 | FH102: 173920.346 | FI102: 113708.3299 | FM102: Diesel | FN102: 98901.90864 | FO102: 96068.34167 | FP102: 83933.03753 | FQ102: 65708.98028 | FR102: 49978.10564 | FS102: 25499.94878 | FT102: 11849.48073 | FU102: 1.19664e-07 | FX102: Rail (international) | FY102: 203140.251 | FZ102: 215574.0595 | GA102: 236846.7447 | GB102: 260218.6024 | GC102: 274848.9727 | GD102: 290301.9119 | GE102: 306623.6675 | GF102: 323863.0875 | GH102: =Scenarios!$AV$9 -> Heavy elec.
DP103: Baseline | DQ103: CO₂ e-jetfuel | DR103: 2045 | DS103: 0 | DT103: Biofuels | DU103: Fuel | DV103: 2020 | DW103: =$FO$116 -> 237468.7631 | DX103: Baseline | DY103: ='Vehicle Costs'!$D$16 -> Cars and vans < 2 ton, O&M | DZ103: 2050 | EA103: 143180.7885 | EB103: ='Vehicle Costs'!$L$16 -> 2389.202878 | EC103: Baseline | ED103: CO₂ e-jetfuel | EE103: 2045 | EF103: 0 | EG103: =Results!$I$15 -> 30.71331369 | EH103: Baseline | EI103: CO₂ e-jetfuel | EJ103: 2045 | EK103: 0 | EM103: =$FK$125 -> H2 | EN103: Fuel | EO103: 2050 | EP103: =$FU$157 -> 239934.3492 | FA103: Bicycle/walking | FB103: 0 | FC103: 0 | FD103: 0 | FE103: 0 | FF103: 0 | FG103: 0 | FH103: 0 | FI103: 0 | FM103: Jet-fuel fossil | FN103: 41707.76567 | FO103: 43194.92266 | FP103: 45792.2863 | FQ103: 46603.99928 | FR103: 39782.48783 | FS103: 25598.615 | FT103: 10541.9505 | FU103: 1.19664e-07 | FX103: Air (national) | FY103: 802.6056806 | FZ103: 802.6056806 | GA103: 814.2300063 | GB103: 826.0226899 | GC103: 837.9861697 | GD103: 850.1229193 | GE103: 862.4354484 | GF103: 874.9263026 | GH103: Upstream energy losses | GI103: 2017 | GJ103: 2020 | GK103: 2025 | GL103: 2030 | GM103: 2035 | GN103: 2040 | GO103: 2045 | GP103: 2050
DP104: Baseline | DQ104: Ammonia | DR104: 2045 | DS104: 0 | DT104: Biofuels | DU104: Fuel (w/o jetfuel) | DV104: 2020 | DW104: =$FO$117 -> 194273.8404 | DX104: Baseline | DY104: ='Vehicle Costs'!$D$17 -> Charging stations, investments | DZ104: 2050 | EA104: 2937.668677 | EB104: ='Vehicle Costs'!$L$17 -> 98.06530159 | EC104: Baseline | ED104: Ammonia | EE104: 2045 | EF104: 0 | EG104: =Results!$I$16 -> 0.03368233247 | EH104: Baseline | EI104: Ammonia | EJ104: 2045 | EK104: 0 | EM104: H2 | EN104: Fuel (w/o jetfuel) | EO104: 2050 | EP104: =$FU$158 -> 167704.0211 | FA104: Air | FB104: 2828418.38 | FC104: 2929270.154 | FD104: 3105410.758 | FE104: 3292142.913 | FF104: 3372319.218 | FG104: 3471947.826 | FH104: 3574519.766 | FI104: 3680121.995 | FM104: Biogas | FN104: 0 | FO104: 0 | FP104: 1070.235364 | FQ104: 13077.92824 | FR104: 20073.14534 | FS104: 34053.36655 | FT104: 45171.4805 | FU104: 56699.62525 | FX104: Air (international) | FY104: 48877.03467 | FZ104: 48877.03467 | GA104: 49584.93219 | GB104: 50303.08236 | GC104: 51031.63366 | GD104: 51770.73675 | GE104: 52520.54443 | GF104: 53281.21176 | GI104: PJ | GJ104: PJ | GK104: PJ | GL104: PJ | GM104: PJ | GN104: PJ | GO104: PJ | GP104: PJ
DP105: Baseline | DQ105: Hydrogen | DR105: 2045 | DS105: 1318.245752 | DT105: Biofuels | DU105: Jetfuel | DV105: 2020 | DW105: =$FO$118 -> 43194.92266 | DX105: Baseline | DY105: ='Vehicle Costs'!$D$18 -> Busses, investments | DZ105: 2050 | EA105: 16911.1574 | EB105: ='Vehicle Costs'!$L$18 -> 422.8226096 | EC105: Baseline | ED105: Hydrogen | EE105: 2045 | EF105: 55.9883522 | EG105: =Results!$I$17 -> 0 | EH105: Baseline | EI105: Hydrogen | EJ105: 2045 | EK105: 55.9883522 | EM105: H2 | EN105: Jetfuel | EO105: 2050 | EP105: =$FU$159 -> 72230.32811 | FA105: Sea | FB105: 246195.953 | FC105: 235210.8341 | FD105: 222980.8004 | FE105: 214089.7994 | FF105: 215130.1513 | FG105: 216719.2594 | FH105: 222185.0598 | FI105: 228931.0796 | FM105: Bioethanol | FN105: 11144.84093 | FO105: 15022.97481 | FP105: 27622.93881 | FQ105: 40685.16239 | FR105: 55025.01646 | FS105: 66041.29936 | FT105: 64040.50209 | FU105: 77230.9096 | FX105: Sea (national) | FY105: 176811.241 | FZ105: 182168.7984 | GA105: 191461.2379 | GB105: 201227.6853 | GC105: 208369.9485 | GD105: 215765.7152 | GE105: 223423.9831 | GF105: 231354.0692 | GH105: Petrol | GI105: 1086.854303 | GJ105: 1036.417941 | GK105: 885.7977856 | GL105: 607.4439039 | GM105: 409.309706 | GN105: 206.8298825 | GO105: 104.4629183 | GP105: 0
DP106: Baseline | DQ106: Natural gas | DR106: 2045 | DS106: 1668.11224 | DT106: Biofuels | DU106: Vehicle | DV106: 2020 | DW106: =$FO$97 -> 714210.3135 | DX106: Baseline | DY106: ='Vehicle Costs'!$D$19 -> Busses, O&M | DZ106: 2050 | EA106: 422.3852949 | EB106: ='Vehicle Costs'!$L$19 -> 11.24174892 | EC106: Baseline | ED106: Natural gas | EE106: 2045 | EF106: 278.7993448 | EG106: =Results!$I$18 -> 0 | EH106: Baseline | EI106: Natural gas | EJ106: 2045 | EK106: 278.7993448 | EM106: H2 | EN106: Vehicle | EO106: 2050 | EP106: =$FU$138 -> 1081582.001 | EZ106: Freight | FA106: Truck (national) | FB106: 1169186.947 | FC106: 1182690.095 | FD106: 1177502.011 | FE106: 1141431.382 | FF106: 1134680.325 | FG106: 1114646.747 | FH106: 1130228.117 | FI106: 1140452.425 | FM106: Biodiesel | FN106: 20310.85911 | FO106: 23655.85722 | FP106: 48652.1815 | FQ106: 65360.51243 | FR106: 85123.62319 | FS106: 126757.87 | FT106: 156363.9149 | FU106: 181743.2516 | FX106: Sea (international) | FY106: 6488655.787 | FZ106: 6685268.546 | GA106: 7026284.429 | GB106: 7384695.55 | GC106: 7646803.813 | GD106: 7918215.201 | GE106: 8199259.913 | GF106: 8490279.87 | GH106: Diesel | GI106: 2053.344018 | GJ106: 1994.151773 | GK106: 1784.53302 | GL106: 1350.736319 | GM106: 958.1172945 | GN106: 557.2926175 | GO106: 303.629611 | GP106: 2.484394507e-09
DP107: Baseline | DQ107: Electricity Train / bus / trucks / ships / aircrafts | DR107: 2045 | DS107: 6066.422676 | DT107: Biofuels | DU107: Vehicle O&M | DV107: 2020 | DW107: =$FO$98 -> 121459.2992 | DX107: Baseline | DY107: ='Vehicle Costs'!$D$20 -> Trucks, investments | DZ107: 2050 | EA107: 101704.1155 | EB107: ='Vehicle Costs'!$L$20 -> 996.9063081 | EC107: Baseline | ED107: Electricity Train / bus / trucks / ships / aircrafts | EE107: 2045 | EF107: 625.7269393 | EG107: =Results!$I$19 -> 53.41980174 | EH107: Baseline | EI107: Electricity Train / bus / trucks / ships / aircrafts | EJ107: 2045 | EK107: 625.7269393 | EM107: H2 | EN107: Vehicle O&M | EO107: 2050 | EP107: =$FU$139 -> 135957.7283 | FM107: Bio e-fuel | FN107: 0 | FO107: 0 | FP107: 0 | FQ107: 0 | FR107: 0 | FS107: 0 | FT107: 0 | FU107: 0 | FW107: Total passenger transport demand | FY107: =SUM(FY88:FY97) -> 6955843.43 | FZ107: 6991251.387 | GA107: 7248526.39 | GB107: 7516963.19 | GC107: 7575827.788 | GD107: 7637262.872 | GE107: 7701405.314 | GF107: 7768399.94 | GH107: Jet-fuel fossil | GI107: 818.0957318 | GJ107: 845.669172 | GK107: 860.5917597 | GL107: 826.0923487 | GM107: 663.8427978 | GN107: 494.3836145 | GO107: 238.9861208 | GP107: 2.347203358e-09
DP108: Baseline | DQ108: Electricity BEV + Plug-in-hybrid | DR108: 2045 | DS108: 9261.922055 | DT108: Biofuels | DU108: EV Charging stations | DV108: 2020 | DW108: =$FO$99 -> 92.36368912 | DX108: Baseline | DY108: ='Vehicle Costs'!$D$21 -> Trucks, O&M | DZ108: 2050 | EA108: 3647.930698 | EB108: ='Vehicle Costs'!$L$21 -> 26.50513515 | EC108: Baseline | ED108: Electricity BEV + Plug-in-hybrid | EE108: 2045 | EF108: 955.3297633 | EG108: =Results!$I$20 -> 35.50020564 | EH108: Baseline | EI108: Electricity BEV + Plug-in-hybrid | EJ108: 2045 | EK108: 955.3297633 | EM108: H2 | EN108: EV Charging stations | EO108: 2050 | EP108: =$FU$140 -> 1882.89373 | FM108: Bio e-jetfuel | FN108: 0 | FO108: 0 | FP108: 0 | FQ108: 5169.232174 | FR108: 26475.61401 | FS108: 68144.46123 | FT108: 112252.2507 | FU108: 144460.6562 | FW108: Total freight transport demand | FY108: =SUM(FY98:FY106) -> 9597333.166 | FZ108: 9939998.514 | GA108: 10537767.77 | GB108: 11173780.62 | GC108: 11584648.15 | GD108: 12010946.02 | GE108: 12453270.18 | GF108: 12912240.48 | GH108: Biogas | GI108: 0 | GJ108: 0 | GK108: -0.6540304381 | GL108: -1.255904051 | GM108: -3.155017536 | GN108: -3.813987356 | GO108: -5.4308036 | GP108: -7.833972388
DP109: Baseline | DQ109: Petrol | DR109: 2050 | DS109: =FU60 -> 22299.65491 | DT109: Biofuels | DU109: O&M Road infrastructure | DV109: 2020 | DW109: =$FO$86 -> 31529.36008 | DX109: Baseline | DY109: =Results!$AG$41 -> Cars and vans fuel | DZ109: 2050 | EA109: 80895.33034 | EB109: =Results!$AO$41 -> 679.1001327 | EC109: Baseline | ED109: Petrol | EE109: 2050 | EF109: 1863.522439 | EG109: =Results!$J$6 -> 0 | EH109: Baseline | EI109: Petrol | EJ109: 2050 | EK109: 1863.522439 | EM109: H2 | EN109: O&M Road infrastructure | EO109: 2050 | EP109: =$FU$127 -> 38733.6551 | FA109: Truck (international) | FB109: 905840.5314 | FC109: 916302.245 | FD109: 938289.2845 | FE109: 945482.3376 | FF109: 981302.4186 | FG109: 1019079.288 | FH109: 1059791.056 | FI109: 1101710.345 | FM109: CO₂ e-fuel | FN109: 0 | FO109: 0 | FP109: 107.0878055 | FQ109: 702.0790142 | FR109: 1471.947666 | FS109: 2216.275386 | FT109: 4240.460213 | FU109: 6269.847488 | GH109: Bioethanol | GI109: 385.6051836 | GJ109: 519.5331604 | GK109: 444.0577205 | GL109: 350.1747277 | GM109: 299.2235259 | GN109: 184.4025157 | GO109: 110.5843087 | GP109: 0
DP110: Baseline | DQ110: Diesel | DR110: 2050 | DS110: 55934.50496 | DT110: Biofuels | DU110: New Road infrastructure | DV110: 2020 | DW110: =$FO$87+$FO$88 -> 67176.73919 | DX110: Baseline | DY110: =Results!$AG$42 -> Bus fuel | DZ110: 2050 | EA110: 3775.456933 | EB110: =Results!$AO$42 -> 13.97944578 | EC110: Baseline | ED110: Diesel | EE110: 2050 | EF110: 4674.296778 | EG110: =Results!$J$7 -> 1e-08 | EH110: Baseline | EI110: Diesel | EJ110: 2050 | EK110: 4674.296778 | EM110: H2 | EN110: New Road infrastructure | EO110: 2050 | EP110: =$FU$128+$FU$129 -> 50648.32144 | FA110: Vans (2-6 t) | FB110: 1349989.625 | FC110: 1340825.945 | FD110: 1219964.846 | FE110: 959725.4576 | FF110: 744849.7026 | FG110: 526981.1445 | FH110: 407051.4098 | FI110: 297852.2926 | FM110: CO₂ e-jetfuel | FN110: 0 | FO110: 0 | FP110: 0 | FQ110: 0 | FR110: 0 | FS110: 0 | FT110: 0 | FU110: 0 | GH110: Biodiesel | GI110: 585.3480262 | GJ110: 683.4020821 | GK110: 606.7047327 | GL110: 475.3537203 | GM110: 376.0774262 | GN110: 221.364199 | GO110: 123.0416072 | GP110: 0
DP111: Baseline | DQ111: Jet-fuel fossil | DR111: 2050 | DS111: 52945.8252 | DT111: Biofuels | DU111: O&M Rail infrastructure | DV111: 2020 | DW111: =$FO$90 -> 29870.91185 | DX111: Baseline | DY111: =Results!$AG$43 -> Rail fuel | DZ111: 2050 | EA111: 2907.531289 | EB111: =Results!$AO$43 -> 204.283411 | EC111: Baseline | ED111: Jet-fuel fossil | EE111: 2050 | EF111: 4424.540814 | EG111: =Results!$J$8 -> 1e-08 | EH111: Baseline | EI111: Jet-fuel fossil | EJ111: 2050 | EK111: 4424.540814 | EM111: H2 | EN111: O&M Rail infrastructure | EO111: 2050 | EP111: =$FU$131 -> 47200.63116 | FA111: Rail (national) | FB111: 247206.1688 | FC111: 243851.9034 | FD111: 232269.4245 | FE111: 225981.6604 | FF111: 208730.1775 | FG111: 214034.0556 | FH111: 209920.5694 | FI111: 194496.12 | FM111: Ammonia | FN111: 0 | FO111: 0 | FP111: 0 | FQ111: 0 | FR111: 0 | FS111: 0 | FT111: 0 | FU111: 0 | FW111: Low growth + modal shifts | GH111: Bio e-fuel | GI111: 0 | GJ111: 0 | GK111: 0 | GL111: 0 | GM111: 0 | GN111: 0 | GO111: 0 | GP111: 0
DP112: Baseline | DQ112: Biogas | DR112: 2050 | DS112: 6817.607753 | DT112: Biofuels | DU112: New Rail infrastructure | DV112: 2020 | DW112: =$FO$91 -> 57347.37827 | DX112: Baseline | DY112: =Results!$AG$46 -> Vans fuel | DZ112: 2050 | EA112: 12819.64294 | EB112: =Results!$AO$46 -> 77.90544406 | EC112: Baseline | ED112: Biogas | EE112: 2050 | EF112: 274.3846416 | EG112: =Results!$J$9 -> 0.1012229198 | EH112: Baseline | EI112: Biogas | EJ112: 2050 | EK112: 274.3846416 | EM112: H2 | EN112: New Rail infrastructure | EO112: 2050 | EP112: =$FU$132 -> 40549.96874 | FA112: Rail (international) | FB112: 143551.165 | FC112: 152281.6451 | FD112: 168028.2447 | FE112: 185403.1127 | FF112: 197771.7461 | FG112: 210965.5173 | FH112: 225039.4727 | FI112: 240052.3315 | FM112: Hydrogen | FN112: 0 | FO112: 0 | FP112: 0 | FQ112: 0 | FR112: 0 | FS112: 658.1611404 | FT112: 1318.245752 | FU112: 0 | FW112: Transport demand | FY112: 2017 | FZ112: 2020 | GA112: 2025 | GB112: 2030 | GC112: 2035 | GD112: 2040 | GE112: 2045 | GF112: 2050 | GH112: Bio e-jetfuel | GI112: 0 | GJ112: 0 | GK112: 40.14371358 | GL112: 148.951615 | GM112: 326.9553386 | GN112: 448.8194636 | GO112: 693.1184416 | GP112: 927.6738599
DP113: Baseline | DQ113: Bioethanol | DR113: 2050 | DS113: 12575.35331 | DT113: Biofuels | DU113: Other | DV113: 2020 | DW113: =$FO$95+$FO$96 -> 0 | DX113: Baseline | DY113: =Results!$AG$47 -> National truck fuel | DZ113: 2050 | EA113: 13872.56975 | EB113: =Results!$AO$47 -> 171.1055538 | EC113: Baseline | ED113: Bioethanol | EE113: 2050 | EF113: 261.9641512 | EG113: =Results!$J$10 -> 0 | EH113: Baseline | EI113: Bioethanol | EJ113: 2050 | EK113: 261.9641512 | EM113: H2 | EN113: Other | EO113: 2050 | EP113: =$FU$136+$FU$137 -> 0 | FA113: Air (national) | FB113: 10614.05063 | FC113: 10992.51156 | FD113: 11653.50475 | FE113: 12354.24427 | FF113: 12655.1175 | FG113: 13028.98831 | FH113: 13413.90441 | FI113: 13810.19211 | FM113: Natural gas | FN113: 0 | FO113: 25.49854033 | FP113: 129.1112685 | FQ113: 514.2507457 | FR113: 873.9116912 | FS113: 719.4754484 | FT113: 297.6453841 | FU113: 0 | FW113: Passenger | FX113: Cars and vans <2t | FY113: 5004272.67 | FZ113: 5004272.67 | GA113: 5085452.762 | GB113: 5168946.518 | GC113: 5060736.614 | GD113: 4955751.457 | GE113: 4955751.457 | GF113: 4955751.457 | GG113: =(GF113-FY113)/FY113 -> -0.009695957099 | GH113: CO₂ e-fuel | GI113: 0 | GJ113: 6.280256032 | GK113: 30.36887698 | GL113: 59.50101505 | GM113: 210.3077008 | GN113: 364.9993206 | GO113: 532.763576 | GP113: 1082.295289 | GR113: Sum of m€ | GS113: Column Labels
DP114: Baseline | DQ114: Biodiesel | DR114: 2050 | DS114: 16454.96749 | DT114: Biofuels | DU114: Fuel | DV114: 2025 | DW114: =$FP$116 -> 256924.1714 | DX114: Baseline | DY114: =Results!$AG$48 -> International truck fuel | DZ114: 2050 | EA114: 11746.37836 | EB114: =Results!$AO$48 -> 244.939371 | EC114: Baseline | ED114: Biodiesel | EE114: 2050 | EF114: 389.2805687 | EG114: =Results!$J$11 -> 0 | EH114: Baseline | EI114: Biodiesel | EJ114: 2050 | EK114: 389.2805687 | EM114: =$FK$166 -> BEV + e-fuels | EN114: Fuel | EO114: 2050 | EP114: =$FU$198 -> 243046.4538 | FA114: Air (international) | FB114: 646373.8462 | FC114: 669421.338 | FD114: 709674.4634 | FE114: 752348.0585 | FF114: 770670.619 | FG114: 793438.5824 | FH114: 816879.181 | FI114: 841012.2864 | FM114: Electricity Train / bus / trucks / ships / aircrafts | FN114: 2732.277779 | FO114: 3067.270528 | FP114: 3692.98028 | FQ114: 4407.885358 | FR114: 5019.550076 | FS114: 5316.679278 | FT114: 5443.315881 | FU114: 5813.897227 | FX114: Rail | FY114: 436028.463 | FZ114: 458646.0935 | GA114: 619297.5155 | GB114: 782504.0548 | GC114: 932237.9582 | GD114: 1081941.533 | GE114: 1206712.495 | GF114: 1332309.78 | GG114: =(GF114-FY114)/FY114 -> 2.055556903 | GH114: CO₂ e-jetfuel | GI114: 0 | GJ114: 4.397862443 | GK114: 63.45527009 | GL114: 198.3782329 | GM114: 504.1615483 | GN114: 761.5761875 | GO114: 1068.78104 | GP114: 1358.635915 | GR114: Row Labels | GS114: Diesel | GT114: Petrol | GU114: Electricity BEV + Plug-in-hybrid | GV114: Hydrogen | GW114: Biodiesel | GX114: Bioethanol | GY114: Ammonia | GZ114: Bio e-fuel | HA114: Biogas | HB114: CO₂ e-fuel | HC114: Natural gas | HD114: Grand Total
DP115: Baseline | DQ115: Bio e-fuel | DR115: 2050 | DS115: 0 | DT115: Biofuels | DU115: Fuel (w/o jetfuel) | DV115: 2025 | DW115: =$FP$117 -> 211131.8851 | DX115: Baseline | DY115: =Results!$AG$49 -> Truck fuel | DZ115: 2050 | EA115: 25618.94811 | EB115: =Results!$AO$49 -> 416.0449248 | EC115: Baseline | ED115: Bio e-fuel | EE115: 2050 | EF115: 0 | EG115: =Results!$J$12 -> 0 | EH115: Baseline | EI115: Bio e-fuel | EJ115: 2050 | EK115: 0 | EM115: BEV + e-fuels | EN115: Fuel (w/o jetfuel) | EO115: 2050 | EP115: =$FU$199 -> 120859.5519 | FA115: Sea (national) | FB115: 65478.9701 | FC115: 64825.05975 | FD115: 64566.98179 | FE115: 65132.29822 | FF115: 65774.7429 | FG115: 66590.58555 | FH115: 68610.03291 | FI115: 71045.23914 | FM115: Electricity BEV + Plug-in-hybrid | FN115: 0 | FO115: 367.5821621 | FP115: 1244.928915 | FQ115: 2905.860181 | FR115: 4273.907826 | FS115: 6319.428566 | FT115: 7168.815466 | FU115: 6825.215152 | FX115: Bus | FY115: 510782.9012 | FZ115: 523140.0227 | GA115: 549058.8783 | GB115: 575974.9374 | GC115: 600592.7749 | GD115: 625663.4274 | GE115: 641462.2129 | GF115: 657659.9376 | GG115: 0.2875527667 | GH115: Ammonia | GI115: 0 | GJ115: 0 | GK115: 2.591241243 | GL115: 4.975839328 | GM115: 12.50004753 | GN115: 20.1478112 | GO115: 30.98392811 | GP115: 45.22661199 | GR115: 2050 | GS115: 114635.2501 | GT115: 40919.06132 | GU115: 221986.3248 | GV115: 281497.8045 | GW115: 203213.8418 | GX115: 88978.06065 | GY115: 8224.994644 | GZ115: 0 | HA115: 59450.09646 | HB115: 281855.2126 | HC115: 7937.765945 | HD115: 1308698.413
DP116: Baseline | DQ116: Bio e-jetfuel | DR116: 2050 | DS116: 3516.908585 | DT116: Biofuels | DU116: Jetfuel | DV116: 2025 | DW116: =$FP$118 -> 45792.2863 | DX116: =$FK$84 -> Biofuels | DY116: ='Vehicle Costs'!$D$15 -> Cars and vans < 2 ton, investments | DZ116: 2017 | EC116: Baseline | ED116: Bio e-jetfuel | EE116: 2050 | EF116: 110.4036599 | EG116: =Results!$J$13 -> 15.50022596 | EH116: Baseline | EI116: Bio e-jetfuel | EJ116: 2050 | EK116: 110.4036599 | EM116: BEV + e-fuels | EN116: Jetfuel | EO116: 2050 | EP116: =$FU$200 -> 122186.9018 | FA116: Sea (international) | FB116: 393211.7831 | FC116: 381301.8145 | FD116: 366892.2484 | FE116: 357541.5821 | FF116: 361068.2608 | FG116: 365546.8018 | FH116: 376632.4909 | FI116: 390000.4744 | FM116: All | FN116: 233567.4891 | FO116: 237468.7631 | FP116: 256924.1714 | FQ116: 276065.3612 | FR116: 310442.2504 | FS116: 370298.718 | FT116: 422713.8145 | FU116: 479043.4025 | FX116: Bicycle/walking | FY116: 247811.7265 | FZ116: 247811.7265 | GA116: 321792.7379 | GB116: 395803.2716 | GC116: 467108.6287 | GD116: 535807.6869 | GE116: 535807.6869 | GF116: 535807.6869 | GG116: 1.162156305 | GH116: Hydrogen | GI116: 0 | GJ116: 0 | GK116: 0 | GL116: 0 | GM116: 0 | GN116: 0 | GO116: 0 | GP116: 0 | GR116: H2 | GS116: 2.10756282e-07 | GT116: 0 | GU116: 19073.3565 | GV116: 245576.77 | GW116: 0 | GX116: 0 | GY116: 5569.131972 | GZ116: 0 | HA116: 0 | HB116: 19241.96828 | HC116: 0 | HD116: 289461.2267
DP117: Baseline | DQ117: CO₂ e-fuel | DR117: 2050 | DS117: 2150.266096 | DT117: Biofuels | DU117: Vehicle | DV117: 2025 | DW117: =$FP$97 -> 754684.1398 | DX117: Biofuels | DY117: ='Vehicle Costs'!$D$16 -> Cars and vans < 2 ton, O&M | DZ117: 2017 | EC117: Baseline | ED117: CO₂ e-fuel | EE117: 2050 | EF117: 73.93041415 | EG117: =Results!$J$14 -> 43.06074126 | EH117: Baseline | EI117: CO₂ e-fuel | EJ117: 2050 | EK117: 73.93041415 | EM117: BEV + e-fuels | EN117: Vehicle | EO117: 2050 | EP117: =$FU$179 -> 974790.7869 | FA117: Total passenger energy consumption | FB117: =SUM(FB100:FB105)/1000 -> 12724.64711 | FC117: 12596.29073 | FD117: 11721.83058 | FE117: 10040.91145 | FF117: 8886.529748 | FG117: 7642.35523 | FH117: 6965.473484 | FI117: 6330.886427 | FL117: Total fuel cost (w/o jetfuels) | FN117: =SUM(FN101:FN102,FN104:FN107,FN109,FN111:FN115) -> 191859.7234 | FO117: =SUM(FO101:FO102,FO104:FO107,FO109,FO111:FO115) -> 194273.8404 | FP117: 211131.8851 | FQ117: 224292.1297 | FR117: 244184.1486 | FS117: 276555.6417 | FT117: 299919.6133 | FU117: 334582.7463 | FX117: Air (national) | FY117: 134340.3585 | FZ117: 134340.3585 | GA117: 118568.856 | GB117: 104648.9213 | GC117: 92363.18123 | GD117: 81519.78194 | GE117: 71949.39324 | GF117: 63502.56422 | GG117: -0.5273009176 | GH117: Natural gas | GI117: 0 | GJ117: 0 | GK117: 0 | GL117: 0 | GM117: 0 | GN117: 0 | GO117: 0 | GP117: 0 | GR117: Biofuels | GS117: 2.09412e-07 | GT117: 0 | GU117: 19073.3565 | GV117: 0 | GW117: 177057.2289 | GX117: 76208.2511 | GY117: 0 | GZ117: 0 | HA117: 45288.90135 | HB117: 19241.96828 | HC117: 0 | HD117: 336869.7061
DP118: Baseline | DQ118: CO₂ e-jetfuel | DR118: 2050 | DS118: 0 | DT118: Biofuels | DU118: Vehicle O&M | DV118: 2025 | DW118: =$FP$98 -> 127904.0716 | DX118: Biofuels | DY118: ='Vehicle Costs'!$D$17 -> Charging stations, investments | DZ118: 2017 | EC118: Baseline | ED118: CO₂ e-jetfuel | EE118: 2050 | EF118: 0 | EG118: =Results!$J$15 -> 35.45584564 | EH118: Baseline | EI118: CO₂ e-jetfuel | EJ118: 2050 | EK118: 0 | EM118: BEV + e-fuels | EN118: Vehicle O&M | EO118: 2050 | EP118: =$FU$180 -> 133407.9279 | FA118: Total freight energy consumption | FB118: =SUM(FB106:FB116)/1000 -> 4931.453087 | FC118: 4962.492557 | FD118: 4888.841009 | FE118: 4645.400133 | FF118: 4477.50311 | FG118: 4324.311711 | FH118: 4307.566234 | FI118: 4290.431706 | FL118: Total jetfuel costs | FN118: =FN103+FN108+FN110 -> 41707.76567 | FO118: =FO103+FO108+FO110 -> 43194.92266 | FP118: 45792.2863 | FQ118: 51773.23146 | FR118: 66258.10184 | FS118: 93743.07623 | FT118: 122794.2012 | FU118: 144460.6562 | FX118: Air (international) | FY118: 593870.9464 | FZ118: 593870.9464 | GA118: 524150.7428 | GB118: 462615.6623 | GC118: 408304.7748 | GD118: 360369.963 | GE118: 318062.6784 | GF118: 280722.2514 | GG118: -0.5273009176 | GH118: Electricity Train / bus / trucks / ships / aircrafts | GI118: 43.38979277 | GJ118: 48.86055774 | GK118: 69.19887759 | GL118: 113.4389581 | GM118: 178.235254 | GN118: 281.8851634 | GO118: 386.4694362 | GP118: 498.975287 | GR118: BEV + e-fuels | GS118: 2.09412e-07 | GT118: 0 | GU118: 53415.10512 | GV118: 0 | GW118: 0 | GX118: 0 | GY118: 946.7524352 | GZ118: 0 | HA118: 1712.003379 | HB118: 194645.4954 | HC118: 0 | HD118: 250719.3563
DP119: Baseline | DQ119: Ammonia | DR119: 2050 | DS119: 0 | DT119: Biofuels | DU119: EV Charging stations | DV119: 2025 | DW119: =$FP$99 -> 323.9043461 | DX119: Biofuels | DY119: ='Vehicle Costs'!$D$18 -> Busses, investments | DZ119: 2017 | EC119: Baseline | ED119: Ammonia | EE119: 2050 | EF119: 0 | EG119: =Results!$J$16 -> 0.04916541817 | EH119: Baseline | EI119: Ammonia | EJ119: 2050 | EK119: 0 | EM119: BEV + e-fuels | EN119: EV Charging stations | EO119: 2050 | EP119: =$FU$181 -> 5273.874737 | FA119: Total energy consumption | FB119: =FB117+FB118 -> 17656.10019 | FC119: =FC117+FC118 -> 17558.78329 | FD119: =FD117+FD118 -> 16610.67159 | FE119: =FE117+FE118 -> 14686.31159 | FF119: =FF117+FF118 -> 13364.03286 | FG119: =FG117+FG118 -> 11966.66694 | FH119: =FH117+FH118 -> 11273.03972 | FI119: =FI117+FI118 -> 10621.31813 | FL119: Total inffrastructure cost | FN119: =FN89+FN92+FN95+FN96 -> 166441 | FO119: 185924.3894 | FP119: 190932.4771 | FQ119: 196456.75 | FR119: 174241.356 | FS119: 173608.2939 | FT119: 174849.9038 | FU119: 177132.5764 | FX119: Sea (national) | FY119: 14608.76524 | FZ119: 14828.99421 | GA119: 15355.32625 | GB119: 15900.33963 | GC119: 16383.10839 | GD119: 16880.53506 | GE119: 17393.06467 | GF119: 17921.1558 | GG119: 0.22673994 | GH119: Electricity BEV + Plug-in-hybrid | GI119: 0 | GJ119: 6.689779284 | GK119: 49.32550686 | GL119: 131.1602944 | GM119: 197.4811282 | GN119: 263.6531785 | GO119: 294.0078294 | GP119: 306.4317104 | GR119: Heavy elec. | GS119: 2.09412e-07 | GT119: 0 | GU119: 53751.7122 | GV119: 0 | GW119: 0 | GX119: 0 | GY119: 946.7524352 | GZ119: 0 | HA119: 1712.003379 | HB119: 31543.11139 | HC119: 0 | HD119: 87953.57941
DP120: Baseline | DQ120: Hydrogen | DR120: 2050 | DS120: 3029.630236 | DT120: Biofuels | DU120: O&M Road infrastructure | DV120: 2025 | DW120: =$FP$86 -> 32851.10091 | DX120: Biofuels | DY120: ='Vehicle Costs'!$D$19 -> Busses, O&M | DZ120: 2017 | EC120: Baseline | ED120: Hydrogen | EE120: 2050 | EF120: 128.6740385 | EG120: =Results!$J$17 -> 0 | EH120: Baseline | EI120: Hydrogen | EJ120: 2050 | EK120: 128.6740385 | EM120: BEV + e-fuels | EN120: O&M Road infrastructure | EO120: 2050 | EP120: =$FU$168 -> 38733.6551 | FL120: Total vehicle cost | FN120: =FN100 -> 813877.3311 | FO120: 835761.9764 | FP120: 882912.1157 | FQ120: 934843.267 | FR120: 971151.8778 | FS120: 1015673.607 | FT120: 1053792.591 | FU120: 1085716.126 | GG120: =((GF114+GF115+GF119+GF122)-(FY114+FY115+FY119+FY122))/(FY114+FY115+FY119+FY122) -> 1.075984295 | GH120: Total losses | GI120: =SUM(GI105:GI119) -> 4972.637056 | GJ120: =SUM(GJ105:GJ119) -> 5145.402584 | GK120: =SUM(GK105:GK119) -> 4836.114475 | GL120: =SUM(GL105:GL119) -> 4264.951071 | GM120: =SUM(GM105:GM119) -> 4133.05675 | GN120: =SUM(GN105:GN119) -> 3801.539967 | GO120: =SUM(GO105:GO119) -> 3881.398013 | GP120: =SUM(GP105:GP119) -> 4211.404701 | GR120: Baseline | GS120: 87972.34566 | GT120: 39504.3737 | GU120: 31081.97157 | GV120: 6844.096555 | GW120: 16336.88827 | GX120: 12752.62184 | GY120: 0 | GZ120: 0 | HA120: 6633.541036 | HB120: 6141.362069 | HC120: 3234.920405 | HD120: 210502.1211
DP121: Baseline | DQ121: Natural gas | DR121: 2050 | DS121: 2024.922232 | DT121: Biofuels | DU121: New Road infrastructure | DV121: 2025 | DW121: =$FP$87+$FP$88 -> 67446.50844 | DX121: Biofuels | DY121: ='Vehicle Costs'!$D$20 -> Trucks, investments | DZ121: 2017 | EC121: Baseline | ED121: Natural gas | EE121: 2050 | EF121: 338.4346556 | EG121: =Results!$J$18 -> 0 | EH121: Baseline | EI121: Natural gas | EJ121: 2050 | EK121: 338.4346556 | EM121: BEV + e-fuels | EN121: New Road infrastructure | EO121: 2050 | EP121: =$FU$169+$FU$170 -> 50648.32144 | FL121: Total fuel cost | FN121: =FN116 -> 233567.4891 | FO121: 237468.7631 | FP121: 256924.1714 | FQ121: 276065.3612 | FR121: 310442.2504 | FS121: 370298.718 | FT121: 422713.8145 | FU121: 479043.4025 | GR121: 1.5 TECH | GS121: 26662.90442 | GT121: 1414.68762 | GU121: 45590.82294 | GV121: 29076.93798 | GW121: 9819.724654 | GX121: 17.18771081 | GY121: 762.3578016 | GZ121: 0 | HA121: 4103.647314 | HB121: 11041.30723 | HC121: 4702.845541 | HD121: 133192.4232
DP122: Baseline | DQ122: Electricity Train / bus / trucks / ships / aircrafts | DR122: 2050 | DS122: 6790.120916 | DT122: Biofuels | DU122: O&M Rail infrastructure | DV122: 2025 | DW122: =$FP$90 -> 33262.63648 | DX122: Biofuels | DY122: ='Vehicle Costs'!$D$21 -> Trucks, O&M | DZ122: 2017 | EC122: Baseline | ED122: Electricity Train / bus / trucks / ships / aircrafts | EE122: 2050 | EF122: 700.3734828 | EG122: =Results!$J$19 -> 66.79446132 | EH122: Baseline | EI122: Electricity Train / bus / trucks / ships / aircrafts | EJ122: 2050 | EK122: 700.3734828 | EM122: BEV + e-fuels | EN122: O&M Rail infrastructure | EO122: 2050 | EP122: =$FU$172 -> 47200.63116 | EZ122: =Scenarios!$AV$9 -> Heavy elec. | FL122: Total costs | FN122: =FN89+FN92+FN95+FN96+FN100+FN116 -> 1213885.82 | FO122: 1259155.129 | FP122: 1330768.764 | FQ122: 1407365.378 | FR122: 1455835.484 | FS122: 1559580.619 | FT122: 1651356.31 | FU122: 1741892.105 | FX122: Sea (international) | FY122: 14127.59916 | FZ122: 14340.57449 | GA122: 14849.57084 | GB122: 15376.63322 | GC122: 15843.50111 | GD122: 16324.54413 | GE122: 16820.19266 | GF122: 17330.89015 | GG122: 0.22673994 | GH122: =Scenarios!$AV$10 -> 1.5 TECH | GR122: Grand Total | GS122: 114635.2501 | GT122: 40919.06132 | GU122: 221986.3248 | GV122: 281497.8045 | GW122: 203213.8418 | GX122: 88978.06065 | GY122: 8224.994644 | GZ122: 0 | HA122: 59450.09646 | HB122: 281855.2126 | HC122: 7937.765945 | HD122: 1308698.413
DP123: Baseline | DQ123: Electricity BEV + Plug-in-hybrid | DR123: 2050 | DS123: 11131.98329 | DT123: Biofuels | DU123: New Rail infrastructure | DV123: 2025 | DW123: =$FP$91 -> 57372.23123 | DX123: Biofuels | DY123: =Results!$AG$41 -> Cars and vans fuel | DZ123: 2017 | EC123: Baseline | ED123: Electricity BEV + Plug-in-hybrid | EE123: 2050 | EF123: 1148.219008 | EG123: =Results!$J$20 -> 36.11181799 | EH123: Baseline | EI123: Electricity BEV + Plug-in-hybrid | EJ123: 2050 | EK123: 1148.219008 | EM123: BEV + e-fuels | EN123: New Rail infrastructure | EO123: 2050 | EP123: =$FU$173 -> 40549.96874 | EZ123: Energy consumption | FB123: 2017 | FC123: 2020 | FD123: 2025 | FE123: 2030 | FF123: 2035 | FG123: 2040 | FH123: 2045 | FI123: 2050 | FW123: Freight | FX123: Truck (national) | FY123: 1174121.752 | FZ123: 1227753.726 | GA123: 1322639.449 | GB123: 1424858.322 | GC123: 1475431.448 | GD123: 1527799.589 | GE123: 1582026.455 | GF123: 1638178.019 | GG123: =(GF123-FY123)/FY123 -> 0.3952369216 | GH123: Upstream energy losses | GI123: 2017 | GJ123: 2020 | GK123: 2025 | GL123: 2030 | GM123: 2035 | GN123: 2040 | GO123: 2045 | GP123: 2050
DP124: =$FK$84 -> Biofuels | DQ124: Petrol | DR124: 2017 | DS124: =FN101 -> 58769.83695 | DT124: =$FK$84 -> Biofuels | DU124: Other | DV124: 2025 | DW124: =$FP$95+$FP$96 -> 0 | DX124: Biofuels | DY124: =Results!$AG$42 -> Bus fuel | DZ124: 2017 | EA124: 622349.2762 | EC124: =$FK$84 -> Biofuels | ED124: Petrol | EE124: 2017 | EF124: 4911.237879 | EH124: =$FK$84 -> Biofuels | EI124: Petrol | EJ124: 2050 | EK124: 0 | EM124: BEV + e-fuels | EN124: Other | EO124: 2050 | EP124: =$FU$177+$FU$178 -> 0 | EZ124: Passenger | FA124: Cars and vans <2t | FB124: 8984176.537 | FC124: 8769124.704 | FD124: 7768233.196 | FE124: 5971968.564 | FF124: 4772262.65 | FG124: 3468524.692 | FH124: 2717244.983 | FI124: 2028014.104 | FX124: Truck (international) | FY124: 640226.2923 | FZ124: 669537.7124 | GA124: 721282.2676 | GB124: 777025.8492 | GC124: 804605.1711 | GD124: 833163.3781 | GE124: 862735.2141 | GF124: 893356.6564 | GG124: 0.395376396 | GI124: PJ | GJ124: PJ | GK124: PJ | GL124: PJ | GM124: PJ | GN124: PJ | GO124: PJ | GP124: PJ
DP125: Biofuels | DQ125: Diesel | DR125: 2017 | DS125: 98901.90864 | DT125: Biofuels | DU125: Fuel | DV125: 2030 | DW125: =$FQ$116 -> 276065.3612 | DX125: Biofuels | DY125: =Results!$AG$43 -> Rail fuel | DZ125: 2017 | EA125: 112237.5911 | EC125: Biofuels | ED125: Diesel | EE125: 2017 | EF125: 8264.967629 | EH125: Biofuels | EI125: Diesel | EJ125: 2050 | EK125: 1e-08 | EM125: =$FK$207 -> Heavy elec. | EN125: Fuel | EO125: 2050 | EP125: =$FU$239 -> 188647.039 | FA125: Rail | FB125: 239435.9111 | FC125: 247215.7671 | FD125: 253371.0853 | FE125: 258872.411 | FF125: 258556.8682 | FG125: 270141.5169 | FH125: 277603.3285 | FI125: 280110.918 | FK125: =Scenarios!$AV$7 -> H2 | FX125: Vans (2-6 t) | FY125: 489942.2018 | FZ125: 512321.9654 | GA125: 551916.2582 | GB125: 594570.5564 | GC125: 615673.912 | GD125: 637526.2983 | GE125: 660154.301 | GF125: 683585.4494 | GG125: 0.3952369216 | GH125: Petrol | GI125: 1086.854303 | GJ125: 1057.3617 | GK125: 989.4808515 | GL125: 809.1915353 | GM125: 600.1913635 | GN125: 358.0242151 | GO125: 145.6281743 | GP125: 15.25475795
DP126: Biofuels | DQ126: Jet-fuel fossil | DR126: 2017 | DS126: 41707.76567 | DT126: Biofuels | DU126: Fuel (w/o jetfuel) | DV126: 2030 | DW126: =$FQ$117 -> 224292.1297 | DX126: Biofuels | DY126: =Results!$AG$46 -> Vans fuel | DZ126: 2017 | EA126: 0 | EC126: Biofuels | ED126: Jet-fuel fossil | EE126: 2017 | EF126: 3485.406277 | EH126: Biofuels | EI126: Jet-fuel fossil | EJ126: 2050 | EK126: 1e-08 | EM126: Heavy elec. | EN126: Fuel (w/o jetfuel) | EO126: 2050 | EP126: =$FU$240 -> 75967.72719 | FA126: Bus | FB126: 426420.3257 | FC126: 415469.2703 | FD126: 371834.7415 | FE126: 303837.7645 | FF126: 268260.8606 | FG126: 215021.9362 | FH126: 173920.346 | FI126: 113708.3299 | FK126: Total costs | FN126: 2017 | FO126: 2020 | FP126: 2025 | FQ126: 2030 | FR126: 2035 | FS126: 2040 | FT126: 2045 | FU126: 2050 | FX126: Rail (national) | FY126: 374756.001 | FZ126: 397694.0663 | GA126: 436938.2161 | GB126: 480054.949 | GC126: 507045.2625 | GD126: 535553.0626 | GE126: 565663.6678 | GF126: 597467.193 | GG126: 0.5942831908 | GH126: Diesel | GI126: 2053.344018 | GJ126: 2011.440115 | GK126: 1908.393382 | GL126: 1637.527586 | GM126: 1334.136028 | GN126: 981.4941877 | GO126: 653.955657 | GP126: 371.1823635
DP127: Biofuels | DQ127: Biogas | DR127: 2017 | DS127: 0 | DT127: Biofuels | DU127: Jetfuel | DV127: 2030 | DW127: =$FQ$118 -> 51773.23146 | DX127: Biofuels | DY127: =Results!$AG$47 -> National truck fuel | DZ127: 2017 | EA127: 13383.50871 | EC127: Biofuels | ED127: Biogas | EE127: 2017 | EF127: 0 | EH127: Biofuels | EI127: Biogas | EJ127: 2050 | EK127: 2281.959731 | EM127: Heavy elec. | EN127: Jetfuel | EO127: 2050 | EP127: =$FU$241 -> 112679.3118 | FA127: Bicycle/walking | FB127: 0 | FC127: 0 | FD127: 0 | FE127: 0 | FF127: 0 | FG127: 0 | FH127: 0 | FI127: 0 | FK127: Infrastructure | FL127: Road | FM127: O&M | FN127: 30765 | FO127: 31529.36008 | FP127: 32851.10091 | FQ127: 34235.4169 | FR127: 35308.19603 | FS127: 36414.77527 | FT127: 37556.22632 | FU127: 38733.6551 | FX127: Rail (international) | FY127: 203140.251 | FZ127: 215574.0595 | GA127: 236846.7447 | GB127: 260218.6024 | GC127: 274848.9727 | GD127: 290301.9119 | GE127: 306623.6675 | GF127: 323863.0875 | GG127: 0.5942831908 | GH127: Jet-fuel fossil | GI127: 818.0957318 | GJ127: 842.306647 | GK127: 884.2608479 | GL127: 919.9221576 | GM127: 805.0937959 | GN127: 731.3635809 | GO127: 552.1782159 | GP127: 423.7843837
DP128: Biofuels | DQ128: Bioethanol | DR128: 2017 | DS128: 11144.84093 | DT128: Biofuels | DU128: Vehicle | DV128: 2030 | DW128: =$FQ$97 -> 799819.5344 | DX128: Biofuels | DY128: =Results!$AG$48 -> International truck fuel | DZ128: 2017 | EA128: 315.4402979 | EC128: Biofuels | ED128: Bioethanol | EE128: 2017 | EF128: 232.1643553 | EH128: Biofuels | EI128: Bioethanol | EJ128: 2050 | EK128: 1608.839861 | EM128: Heavy elec. | EN128: Vehicle | EO128: 2050 | EP128: =$FU$220 -> 976026.6415 | FA128: Air | FB128: 2828418.38 | FC128: 2929270.154 | FD128: 3105410.758 | FE128: 3292142.913 | FF128: 3372319.218 | FG128: 3471947.826 | FH128: 3574519.766 | FI128: 3680121.995 | FM128: New roads | FN128: 66244 | FO128: 67176.73919 | FP128: 67446.50844 | FQ128: 67791.76754 | FR128: 50623.21462 | FS128: 50631.53928 | FT128: 50639.90815 | FU128: 50648.32144 | FX128: Air (national) | FY128: 802.6056806 | FZ128: 802.6056806 | GA128: 814.2300063 | GB128: 826.0226899 | GC128: 837.9861697 | GD128: 850.1229193 | GE128: 862.4354484 | GF128: 874.9263026 | GG128: 0.09010728906 | GH128: Biogas | GI128: 0 | GJ128: 0 | GK128: 0 | GL128: -0.6265558149 | GM128: -5.078170341 | GN128: -12.88127735 | GO128: -19.9350098 | GP128: -31.37648114
DP129: Biofuels | DQ129: Biodiesel | DR129: 2017 | DS129: 20310.85911 | DT129: Biofuels | DU129: Vehicle O&M | DV129: 2030 | DW129: =$FQ$98 -> 134250.8037 | DX129: Biofuels | DY129: =Results!$AG$49 -> Truck fuel | DZ129: 2017 | EA129: 63432.77948 | EC129: Biofuels | ED129: Biodiesel | EE129: 2017 | EF129: 480.5006626 | EH129: Biofuels | EI129: Biodiesel | EJ129: 2050 | EK129: 4299.559775 | EM129: Heavy elec. | EN129: Vehicle O&M | EO129: 2050 | EP129: =$FU$221 -> 132580.3491 | FA129: Sea | FB129: 246195.953 | FC129: 235210.8341 | FD129: 222980.8004 | FE129: 214089.7994 | FF129: 215130.1513 | FG129: 216719.2594 | FH129: 222185.0598 | FI129: 228931.0796 | FM129: eRoads | FN129: 0 | FO129: 0 | FP129: 0 | FQ129: 0 | FR129: 0 | FS129: 0 | FT129: 0 | FU129: 0 | FX129: Air (international) | FY129: 48877.03467 | FZ129: 48877.03467 | GA129: 49584.93219 | GB129: 50303.08236 | GC129: 51031.63366 | GD129: 51770.73675 | GE129: 52520.54443 | GF129: 53281.21176 | GG129: 0.09010728906 | GH129: Bioethanol | GI129: 385.6051836 | GJ129: 530.0239272 | GK129: 496.0142901 | GL129: 466.5062983 | GM129: 438.9109905 | GN129: 319.3807735 | GO129: 153.7031408 | GP129: 0.6616336983
DP130: Biofuels | DQ130: Bio e-fuel | DR130: 2017 | DS130: 0 | DT130: Biofuels | DU130: EV Charging stations | DV130: 2030 | DW130: =$FQ$99 -> 772.9290035 | DX130: Biofuels | DY130: ='Vehicle Costs'!$D$15 -> Cars and vans < 2 ton, investments | DZ130: 2020 | EA130: 2158.735284 | EC130: Biofuels | ED130: Bio e-fuel | EE130: 2017 | EF130: 0 | EH130: Biofuels | EI130: Bio e-fuel | EJ130: 2050 | EK130: 0 | EM130: Heavy elec. | EN130: EV Charging stations | EO130: 2050 | EP130: =$FU$222 -> 5307.270711 | EZ130: Freight | FA130: Truck (national) | FB130: 1169186.947 | FC130: 1182690.095 | FD130: 1144515.467 | FE130: 1043772.429 | FF130: 969080.3958 | FG130: 846275.0045 | FH130: 790705.3609 | FI130: 735298.408 | FM130: Total roads | FN130: 97009 | FO130: 98706.09927 | FP130: 100297.6094 | FQ130: 102027.1844 | FR130: 85931.41065 | FS130: 87046.31455 | FT130: 88196.13447 | FU130: 89381.97654 | FX130: Sea (national) | FY130: 176811.241 | FZ130: 182168.7984 | GA130: 191461.2379 | GB130: 201227.6853 | GC130: 208369.9485 | GD130: 215765.7152 | GE130: 223423.9831 | GF130: 231354.0692 | GG130: =((GF124+GF125+GF129+GF132)-(FY124+FY125+FY129+FY132))/(FY124+FY125+FY129+FY132) -> 0.1667312349 | GH130: Biodiesel | GI130: 585.3480262 | GJ130: 691.0195501 | GK130: 665.5627425 | GL130: 643.0673807 | GM130: 644.6477759 | GN130: 567.5739133 | GO130: 443.1251074 | GP130: 316.6055815
DP131: Biofuels | DQ131: Bio e-jetfuel | DR131: 2017 | DS131: 0 | DT131: Biofuels | DU131: O&M Road infrastructure | DV131: 2030 | DW131: =$FQ$86 -> 34235.4169 | DX131: Biofuels | DY131: ='Vehicle Costs'!$D$16 -> Cars and vans < 2 ton, O&M | DZ131: 2020 | EA131: 122408.8438 | EC131: Biofuels | ED131: Bio e-jetfuel | EE131: 2017 | EF131: 0 | EH131: Biofuels | EI131: Bio e-jetfuel | EJ131: 2050 | EK131: 4534.944474 | EM131: Heavy elec. | EN131: O&M Road infrastructure | EO131: 2050 | EP131: =$FU$209 -> 38733.6551 | FL131: Rail | FM131: Renewal and maintenance | FN131: 28005 | FO131: 29870.91185 | FP131: 33262.63648 | FQ131: 37041.63502 | FR131: 39355.19787 | FS131: 41813.41999 | FT131: 44425.35677 | FU131: 47200.63116 | FX131: Sea (international) | FY131: 6488655.787 | FZ131: 6685268.546 | GA131: 7026284.429 | GB131: 7384695.55 | GC131: 7646803.813 | GD131: 7918215.201 | GE131: 8199259.913 | GF131: 8490279.87 | GG131: 0.3084805465 | GH131: Bio e-fuel | GI131: 0 | GJ131: 0 | GK131: 0 | GL131: 0 | GM131: 0 | GN131: 0 | GO131: 0 | GP131: 0
DP132: Biofuels | DQ132: CO₂ e-fuel | DR132: 2017 | DS132: 0 | DT132: Biofuels | DU132: New Road infrastructure | DV132: 2030 | DW132: =$FQ$87+$FQ$88 -> 67791.76754 | DX132: Biofuels | DY132: ='Vehicle Costs'!$D$17 -> Charging stations, investments | DZ132: 2020 | EA132: 5998.221615 | EC132: Biofuels | ED132: CO₂ e-fuel | EE132: 2017 | EF132: 0 | EH132: Biofuels | EI132: CO₂ e-fuel | EJ132: 2050 | EK132: 215.569795 | EM132: Heavy elec. | EN132: New Road infrastructure | EO132: 2050 | EP132: =$FU$210+$FU$211 -> 60526.99394 | FM132: New rail constructions | FN132: 41427 | FO132: 57347.37827 | FP132: 57372.23123 | FQ132: 57387.9305 | FR132: 48954.7475 | FS132: 44748.55934 | FT132: 42228.4126 | FU132: 40549.96874 | FW132: Total passenger transport demand | FY132: =SUM(FY113:FY122) -> 6955843.43 | FZ132: 6991251.387 | GA132: 7248526.39 | GB132: 7521770.338 | GC132: 7593570.541 | GD132: 7674258.928 | GE132: 7763959.181 | GF132: 7861005.723 | GH132: Bio e-jetfuel | GI132: 0 | GJ132: 0 | GK132: 0 | GL132: 0 | GM132: 130.4113339 | GN132: 268.5281659 | GO132: 552.9226157 | GP132: 665.3766077
DP133: Biofuels | DQ133: CO₂ e-jetfuel | DR133: 2017 | DS133: 0 | DT133: Biofuels | DU133: O&M Rail infrastructure | DV133: 2030 | DW133: =$FQ$90 -> 37041.63502 | DX133: Biofuels | DY133: ='Vehicle Costs'!$D$18 -> Busses, investments | DZ133: 2020 | EA133: 2664.783394 | EC133: Biofuels | ED133: CO₂ e-jetfuel | EE133: 2017 | EF133: 0 | EH133: Biofuels | EI133: CO₂ e-jetfuel | EJ133: 2050 | EK133: 0 | EM133: Heavy elec. | EN133: O&M Rail infrastructure | EO133: 2050 | EP133: =$FU$213 -> 47200.63116 | FA133: Truck (international) | FB133: 905840.5314 | FC133: 916302.245 | FD133: 938739.1595 | FE133: 844599.198 | FF133: 724701.6616 | FG133: 629221.8274 | FH133: 612607.7324 | FI133: 569680.5822 | FM133: Total rail | FN133: 69432 | FO133: 87218.29012 | FP133: 90634.86771 | FQ133: 94429.56552 | FR133: 88309.94538 | FS133: 86561.97933 | FT133: 86653.76937 | FU133: 87750.59991 | FW133: Total freight transport demand | FY133: =SUM(FY123:FY131) -> 9597333.166 | FZ133: 9939998.514 | GA133: 10537767.77 | GB133: 11173780.62 | GC133: 11584648.15 | GD133: 12010946.02 | GE133: 12453270.18 | GF133: 12912240.48 | GH133: CO₂ e-fuel | GI133: 0 | GJ133: 0 | GK133: 9.596344522 | GL133: 48.40424429 | GM133: 76.51266215 | GN133: 105.8662627 | GO133: 142.8190051 | GP133: 187.1103861
DP134: Biofuels | DQ134: Ammonia | DR134: 2017 | DS134: 0 | DT134: Biofuels | DU134: New Rail infrastructure | DV134: 2030 | DW134: =$FQ$91 -> 57387.9305 | DX134: Biofuels | DY134: ='Vehicle Costs'!$D$19 -> Busses, O&M | DZ134: 2020 | EA134: 19061.55089 | EC134: Biofuels | ED134: Ammonia | EE134: 2017 | EF134: 0 | EH134: Biofuels | EI134: Ammonia | EJ134: 2050 | EK134: 0 | EM134: Heavy elec. | EN134: New Rail infrastructure | EO134: 2050 | EP134: =$FU$214 -> 40549.96874 | FA134: Vans (2-6 t) | FB134: 1349989.625 | FC134: 1340825.945 | FD134: 1219964.846 | FE134: 959725.4576 | FF134: 744849.7026 | FG134: 526981.1445 | FH134: 407051.4098 | FI134: 270085.1436 | FW134: Road | FY134: =(FY113+FY115)/1000 -> 5515.055571 | FZ134: =(FZ113+FZ115)/1000 -> 5527.412693 | GA134: 5634.51164 | GB134: 5744.921455 | GC134: 5661.329389 | GD134: 5581.414884 | GE134: 5597.21367 | GF134: 5613.411395 | GH134: CO₂ e-jetfuel | GI134: 0 | GJ134: 0 | GK134: 0 | GL134: 25.58784219 | GM134: 260.8226678 | GN134: 402.7922488 | GO134: 691.1532697 | GP134: 967.737985
DP135: Biofuels | DQ135: Hydrogen | DR135: 2017 | DS135: 0 | DT135: Biofuels | DU135: Other | DV135: 2030 | DW135: =$FQ$95+$FQ$96 -> 0 | DX135: Biofuels | DY135: ='Vehicle Costs'!$D$20 -> Trucks, investments | DZ135: 2020 | EA135: 16293.96116 | EC135: Biofuels | ED135: Hydrogen | EE135: 2017 | EF135: 0 | EH135: Biofuels | EI135: Hydrogen | EJ135: 2050 | EK135: 0 | EM135: Heavy elec. | EN135: Other | EO135: 2050 | EP135: =$FU$218+$FU$219 -> 0 | FA135: Rail (national) | FB135: 247206.1688 | FC135: 243851.9034 | FD135: 232269.4245 | FE135: 225981.6604 | FF135: 208730.1775 | FG135: 214034.0556 | FH135: 209920.5694 | FI135: 194496.12 | FW135: Rail | FY135: =FY114/1000 -> 436.028463 | FZ135: =FZ114/1000 -> 458.6460935 | GA135: 619.2975155 | GB135: 782.5040548 | GC135: 932.2379582 | GD135: 1081.941533 | GE135: 1206.712495 | GF135: 1332.30978 | GH135: Ammonia | GI135: 0 | GJ135: 0 | GK135: 0 | GL135: 0 | GM135: 6.768995371 | GN135: 34.32957595 | GO135: 70.80836201 | GP135: 95.3361499
DP136: Biofuels | DQ136: Natural gas | DR136: 2017 | DS136: 0 | DT136: Biofuels | DU136: Fuel | DV136: 2035 | DW136: =$FR$116 -> 310442.2504 | DX136: Biofuels | DY136: ='Vehicle Costs'!$D$21 -> Trucks, O&M | DZ136: 2020 | EA136: 12761.17886 | EC136: Biofuels | ED136: Natural gas | EE136: 2017 | EF136: 0 | EH136: Biofuels | EI136: Natural gas | EJ136: 2050 | EK136: 0 | EM136: =$FK$248 -> 1.5 TECH | EN136: Fuel | EO136: 2050 | EP136: =$FU$280 -> 186528.0383 | FA136: Rail (international) | FB136: 143551.165 | FC136: 152281.6451 | FD136: 168028.2447 | FE136: 185403.1127 | FF136: 197771.7461 | FG136: 210965.5173 | FH136: 225039.4727 | FI136: 240052.3315 | FL136: Others | FM136: Bicycle/walking | FN136: 0 | FO136: 0 | FP136: 0 | FQ136: 0 | FR136: 0 | FS136: 0 | FT136: 0 | FU136: 0 | FW136: Bicycle/walking | FY136: =FY116/1000 -> 247.8117265 | FZ136: =FZ116/1000 -> 247.8117265 | GA136: 321.7927379 | GB136: 395.8032716 | GC136: 467.1086287 | GD136: 535.8076869 | GE136: 535.8076869 | GF136: 535.8076869 | GH136: Hydrogen | GI136: 0 | GJ136: 0 | GK136: 0 | GL136: 0 | GM136: 36.02039088 | GN136: 196.7597577 | GO136: 395.6748891 | GP136: 640.5226233
DP137: Biofuels | DQ137: Electricity Train / bus / trucks / ships / aircrafts | DR137: 2017 | DS137: 2732.277779 | DT137: Biofuels | DU137: Fuel (w/o jetfuel) | DV137: 2035 | DW137: =$FR$117 -> 244184.1486 | DX137: Biofuels | DY137: =Results!$AG$41 -> Cars and vans fuel | DZ137: 2020 | EA137: 29055.14002 | EC137: Biofuels | ED137: Electricity Train / bus / trucks / ships / aircrafts | EE137: 2017 | EF137: 281.8233913 | EH137: Biofuels | EI137: Electricity Train / bus / trucks / ships / aircrafts | EJ137: 2050 | EK137: 599.6799615 | EM137: 1.5 TECH | EN137: Fuel (w/o jetfuel) | EO137: 2050 | EP137: =$FU$281 -> 84435.85936 | FA137: Air (national) | FB137: 10614.05063 | FC137: 10992.51156 | FD137: 11653.50475 | FE137: 12354.24427 | FF137: 12655.1175 | FG137: 13028.98831 | FH137: 13413.90441 | FI137: 13810.19211 | FM137: Bus | FN137: 0 | FO137: 0 | FP137: 0 | FQ137: 0 | FR137: 0 | FS137: 0 | FT137: 0 | FU137: 0 | FW137: Air | FY137: =(FY117+FY118)/1000 -> 728.2113049 | FZ137: =(FZ117+FZ118)/1000 -> 728.2113049 | GA137: 642.7195988 | GB137: 567.2645836 | GC137: 500.667956 | GD137: 441.889745 | GE137: 390.0120716 | GF137: 344.2248157 | GH137: Natural gas | GI137: 0 | GJ137: 0 | GK137: 4.096260567 | GL137: 19.96538708 | GM137: 30.55519424 | GN137: 41.81351182 | GO137: 55.83229279 | GP137: 75.04406059
DP138: Biofuels | DQ138: Electricity BEV + Plug-in-hybrid | DR138: 2017 | DS138: 0 | DT138: Biofuels | DU138: Jetfuel | DV138: 2035 | DW138: =$FR$118 -> 66258.10184 | DX138: Biofuels | DY138: =Results!$AG$42 -> Bus fuel | DZ138: 2020 | EA138: 633652.3529 | EC138: Biofuels | ED138: Electricity BEV + Plug-in-hybrid | EE138: 2017 | EF138: 0 | EH138: Biofuels | EI138: Electricity BEV + Plug-in-hybrid | EJ138: 2050 | EK138: 703.9933112 | EM138: 1.5 TECH | EN138: Jetfuel | EO138: 2050 | EP138: =$FU$282 -> 102092.1789 | FA138: Air (international) | FB138: 646373.8462 | FC138: 669421.338 | FD138: 709674.4634 | FE138: 752348.0585 | FF138: 770670.619 | FG138: 793438.5824 | FH138: 816879.181 | FI138: 841012.2864 | FK138: Vehicles | FL138: Road | FM138: Vehicles | FN138: 699165.5644 | FO138: 714210.3135 | FP138: 758109.7869 | FQ138: 810479.7733 | FR138: 890990.4547 | FS138: 966402.075 | FT138: 1029877.555 | FU138: 1081582.001 | FW138: Sea | FY138: =(FY119+FY122)/1000 -> 28.73636441 | FZ138: =(FZ119+FZ122)/1000 -> 29.16956869 | GA138: 30.20489709 | GB138: 31.27697285 | GC138: 32.22660951 | GD138: 33.20507919 | GE138: 34.21325733 | GF138: 35.25204595 | GH138: Electricity Train / bus / trucks / ships / aircrafts | GI138: 43.38979277 | GJ138: 48.70962741 | GK138: 58.64617803 | GL138: 70.37868467 | GM138: 82.80310206 | GN138: 93.27492588 | GO138: 109.7062631 | GP138: 139.5985474
DP139: Biofuels | DQ139: Petrol | DR139: 2020 | DS139: =FO101 -> 56066.31548 | DT139: Biofuels | DU139: Vehicle | DV139: 2035 | DW139: =$FR$97 -> 831016.5442 | DX139: Biofuels | DY139: =Results!$AG$43 -> Rail fuel | DZ139: 2020 | EA139: 118831.068 | EC139: Biofuels | ED139: Petrol | EE139: 2020 | EF139: 4685.31183 | EH139: =$FK$125 -> H2 | EI139: Petrol | EJ139: 2050 | EK139: 0 | EM139: 1.5 TECH | EN139: Vehicle | EO139: 2050 | EP139: =$FU$261 -> 973808.8974 | FA139: Sea (national) | FB139: 65478.9701 | FC139: 64825.05975 | FD139: 64566.98179 | FE139: 65132.29822 | FF139: 65774.7429 | FG139: 66590.58555 | FH139: 68610.03291 | FI139: 71045.23914 | FM139: Vehicles O&M | FN139: 114711.7667 | FO139: 121459.2992 | FP139: 127184.3262 | FQ139: 129579.2917 | FR139: 132293.891 | FS139: 132421.8513 | FT139: 132710.057 | FU139: 135957.7283 | FW139: Road | FY139: =(FY123+FY124+FY125)/1000 -> 2304.290246 | FZ139: =(FZ123+FZ124+FZ125)/1000 -> 2409.613404 | GA139: 2595.837975 | GB139: 2796.454727 | GC139: 2895.710531 | GD139: 2998.489265 | GE139: 3104.91597 | GF139: 3215.120125 | GH139: Electricity BEV + Plug-in-hybrid | GI139: 0 | GJ139: 0 | GK139: 15.62662275 | GL139: 63.15193692 | GM139: 126.6266097 | GN139: 189.3167905 | GO139: 238.1614589 | GP139: 259.6966008
DP140: Biofuels | DQ140: Diesel | DR140: 2020 | DS140: 96068.34167 | DT140: Biofuels | DU140: Vehicle O&M | DV140: 2035 | DW140: =$FR$98 -> 139110.1077 | DX140: Biofuels | DY140: =Results!$AG$46 -> Vans fuel | DZ140: 2020 | EA140: 92.36368912 | EC140: Biofuels | ED140: Diesel | EE140: 2020 | EF140: 8028.174027 | EH140: H2 | EI140: Diesel | EJ140: 2050 | EK140: 1e-08 | EM140: 1.5 TECH | EN140: Vehicle O&M | EO140: 2050 | EP140: =$FU$262 -> 131864.0647 | FA140: Sea (international) | FB140: 393211.7831 | FC140: 381301.8145 | FD140: 366892.2484 | FE140: 357541.5821 | FF140: 361068.2608 | FG140: 365546.8018 | FH140: 376632.4909 | FI140: 390000.4744 | FM140: EV Charging stations | FN140: 0 | FO140: 92.36368912 | FP140: 323.9043461 | FQ140: 772.9290035 | FR140: 1025.225866 | FS140: 1573.091241 | FT140: 1893.321407 | FU140: 1882.89373 | FW140: Rail | FY140: =(FY126+FY127)/1000 -> 577.896252 | FZ140: =(FZ126+FZ127)/1000 -> 613.2681258 | GA140: 673.7849609 | GB140: 740.2735515 | GC140: 781.8942352 | GD140: 825.8549745 | GE140: 872.2873353 | GF140: 921.3302806 | GH140: Total losses | GI140: =SUM(GI125:GI139) -> 4972.637056 | GJ140: =SUM(GJ125:GJ139) -> 5180.861567 | GK140: =SUM(GK125:GK139) -> 5031.67752 | GL140: =SUM(GL125:GL139) -> 4703.076497 | GM140: =SUM(GM125:GM139) -> 4568.422739 | GN140: =SUM(GN125:GN139) -> 4277.636633 | GO140: =SUM(GO125:GO139) -> 4185.733442 | GP140: =SUM(GP125:GP139) -> 4126.5352
DP141: Biofuels | DQ141: Jet-fuel fossil | DR141: 2020 | DS141: 43194.92266 | DT141: Biofuels | DU141: EV Charging stations | DV141: 2035 | DW141: =$FR$99 -> 1025.225866 | DX141: Biofuels | DY141: =Results!$AG$47 -> National truck fuel | DZ141: 2020 | EA141: 13679.36071 | EC141: Biofuels | ED141: Jet-fuel fossil | EE141: 2020 | EF141: 3609.684004 | EH141: H2 | EI141: Jet-fuel fossil | EJ141: 2050 | EK141: 1e-08 | EM141: 1.5 TECH | EN141: EV Charging stations | EO141: 2050 | EP141: =$FU$263 -> 4487.120488 | FA141: Total passenger energy consumption | FB141: =SUM(FB124:FB129)/1000 -> 12724.64711 | FC141: 12596.29073 | FD141: 11721.83058 | FE141: 10040.91145 | FF141: 8886.529748 | FG141: 7642.35523 | FH141: 6965.473484 | FI141: 6330.886427 | FM141: Total vehicles + charging | FN141: 813877.3311 | FO141: 835761.9764 | FP141: 885618.0174 | FQ141: 940831.9939 | FR141: 1024309.572 | FS141: 1100397.018 | FT141: 1164480.934 | FU141: 1219422.623 | FW141: Air | FY141: =(FY128+FY129)/1000 -> 49.67964035 | FZ141: =(FZ128+FZ129)/1000 -> 49.67964035 | GA141: 50.3991622 | GB141: 51.12910505 | GC141: 51.86961983 | GD141: 52.62085966 | GE141: 53.38297988 | GF141: =(GF128+GF129)/1000 -> 54.15613806
DP142: Biofuels | DQ142: Biogas | DR142: 2020 | DS142: 0 | DT142: Biofuels | DU142: O&M Road infrastructure | DV142: 2035 | DW142: =$FR$86 -> 35308.19603 | DX142: Biofuels | DY142: =Results!$AG$48 -> International truck fuel | DZ142: 2020 | EA142: 322.9582327 | EC142: Biofuels | ED142: Biogas | EE142: 2020 | EF142: 0 | EH142: H2 | EI142: Biogas | EJ142: 2050 | EK142: 0 | EM142: 1.5 TECH | EN142: O&M Road infrastructure | EO142: 2050 | EP142: =$FU$250 -> 38123.17634 | FA142: Total freight energy consumption | FB142: =SUM(FB130:FB140)/1000 -> 4931.453087 | FC142: 4962.492557 | FD142: 4856.30434 | FE142: 4446.858041 | FF142: 4055.302424 | FG142: 3666.082507 | FH142: 3520.860155 | FI142: 3325.480777 | FK142: Fuels | FL142: All | FM142: Petrol | FN142: 58769.83695 | FO142: 56066.31548 | FP142: 52352.36455 | FQ142: 38888.25923 | FR142: 27559.16764 | FS142: 14974.23107 | FT142: 5035.69825 | FU142: 0 | FW142: Sea | FY142: =FY130/1000 -> 176.811241 | FZ142: =FZ130/1000 -> 182.1687984 | GA142: 191.4612379 | GB142: 201.2276853 | GC142: 208.3699485 | GD142: 215.7657152 | GE142: 223.4239831 | GF142: 231.3540692 | GH142: =Scenarios!$AV$11 -> Custom scenario 1
DP143: Biofuels | DQ143: Bioethanol | DR143: 2020 | DS143: 15022.97481 | DT143: Biofuels | DU143: New Road infrastructure | DV143: 2035 | DW143: =$FR$87+$FR$88 -> 50623.21462 | DX143: Biofuels | DY143: =Results!$AG$49 -> Truck fuel | DZ143: 2020 | EA143: 66878.59987 | EC143: Biofuels | ED143: Bioethanol | EE143: 2020 | EF143: 312.9519106 | EH143: H2 | EI143: Bioethanol | EJ143: 2050 | EK143: 0 | EM143: 1.5 TECH | EN143: New Road infrastructure | EO143: 2050 | EP143: =$FU$251+$FU$252 -> 50506.30074 | FA143: Total energy consumption | FB143: =FB141+FB142 -> 17656.10019 | FC143: =FC141+FC142 -> 17558.78329 | FD143: =FD141+FD142 -> 16578.13492 | FE143: =FE141+FE142 -> 14487.76949 | FF143: =FF141+FF142 -> 12941.83217 | FG143: =FG141+FG142 -> 11308.43774 | FH143: =FH141+FH142 -> 10486.33364 | FI143: =FI141+FI142 -> 9656.367204 | FM143: Diesel | FN143: 98901.90864 | FO143: 96068.34167 | FP143: 89511.64269 | FQ143: 71163.09158 | FR143: 46233.55351 | FS143: 21492.09875 | FT143: 8238.211447 | FU143: 1.19664e-07 | GH143: Upstream energy losses | GI143: 2017 | GJ143: 2020 | GK143: 2025 | GL143: 2030 | GM143: 2035 | GN143: 2040 | GO143: 2045 | GP143: 2050
DP144: Biofuels | DQ144: Biodiesel | DR144: 2020 | DS144: 23655.85722 | DT144: Biofuels | DU144: O&M Rail infrastructure | DV144: 2035 | DW144: =$FR$90 -> 39355.19787 | DX144: Biofuels | DY144: ='Vehicle Costs'!$D$15 -> Cars and vans < 2 ton, investments | DZ144: 2025 | EA144: 2305.2729 | EC144: Biofuels | ED144: Biodiesel | EE144: 2020 | EF144: 559.6343811 | EH144: H2 | EI144: Biodiesel | EJ144: 2050 | EK144: 0 | EM144: 1.5 TECH | EN144: O&M Rail infrastructure | EO144: 2050 | EP144: =$FU$254 -> 49628.03165 | FM144: Jet-fuel fossil | FN144: 41707.76567 | FO144: 43194.92266 | FP144: 45792.2863 | FQ144: 46787.01396 | FR144: 39782.48783 | FS144: 26563.66635 | FT144: 10541.9505 | FU144: 1.19664e-07 | GI144: PJ | GJ144: PJ | GK144: PJ | GL144: PJ | GM144: PJ | GN144: PJ | GO144: PJ | GP144: PJ | GR144: Sum of m€ | GS144: Column Labels
DP145: Biofuels | DQ145: Bio e-fuel | DR145: 2020 | DS145: 0 | DT145: Biofuels | DU145: New Rail infrastructure | DV145: 2035 | DW145: =$FR$91 -> 48954.7475 | DX145: Biofuels | DY145: ='Vehicle Costs'!$D$16 -> Cars and vans < 2 ton, O&M | DZ145: 2025 | EA145: 125104.6409 | EC145: Biofuels | ED145: Bio e-fuel | EE145: 2020 | EF145: 0 | EH145: H2 | EI145: Bio e-fuel | EJ145: 2050 | EK145: 0 | EM145: 1.5 TECH | EN145: New Rail infrastructure | EO145: 2050 | EP145: =$FU$255 -> 45032.33588 | FM145: Biogas | FN145: 0 | FO145: 0 | FP145: 0 | FQ145: 7718.642059 | FR145: 7688.07067 | FS145: 4821.893292 | FT145: 165.6182989 | FU145: 0 | GH145: Petrol | GI145: 1086.854303 | GJ145: 1057.559873 | GK145: 989.9862653 | GL145: 809.8878164 | GM145: 601.5374126 | GN145: 390.9168035 | GO145: 207.5472781 | GP145: 1.21715938 | GR145: Row Labels | GS145: Vehicle | GT145: Vehicle O&M | GU145: Fuel (w/o jetfuel) | GV145: Jetfuel | GW145: New Road infrastructure | GX145: New Rail infrastructure | GY145: O&M Road infrastructure | GZ145: O&M Rail infrastructure | HA145: EV Charging stations | HB145: Other | HC145: Grand Total
DP146: Biofuels | DQ146: Bio e-jetfuel | DR146: 2020 | DS146: 0 | DT146: Biofuels | DU146: Other | DV146: 2035 | DW146: =$FR$95+$FR$96 -> 0 | DX146: Biofuels | DY146: ='Vehicle Costs'!$D$17 -> Charging stations, investments | DZ146: 2025 | EA146: 5826.135247 | EC146: Biofuels | ED146: Bio e-jetfuel | EE146: 2020 | EF146: 0 | EH146: H2 | EI146: Bio e-jetfuel | EJ146: 2050 | EK146: 2267.472237 | EM146: 1.5 TECH | EN146: Other | EO146: 2050 | EP146: =$FU$259+$FU$260 -> 0 | EZ146: =Scenarios!$AV$10 -> 1.5 TECH | FM146: Bioethanol | FN146: 11144.84093 | FO146: 15022.97481 | FP146: 14027.33045 | FQ146: 11983.83548 | FR146: 10783.66474 | FS146: 7164.146772 | FT146: 2864.769445 | FU146: 0 | FW146: Pivot | FX146: Growth | FY146: year | FZ146: pkm | GA146: Pivot | GB146: Growth | GC146: year | GD146: tkm | GH146: Diesel | GI146: 2053.344018 | GJ146: 2017.774245 | GK146: 1935.538991 | GL146: 1689.753797 | GM146: 1319.89476 | GN146: 977.3255921 | GO146: 621.2762684 | GP146: 346.806598 | GR146: 2050 | GS146: 6055352.192 | GT146: 831027.7763 | GU146: 1528575.292 | GV146: 1136521.031 | GW146: 211655.7271 | GX146: 210818.3804 | GY146: 155129.822 | GZ146: 119905.2444 | HA146: 21406.60824 | HB146: 0 | HC146: 10270392.07
DP147: Biofuels | DQ147: CO₂ e-fuel | DR147: 2020 | DS147: 0 | DT147: Biofuels | DU147: Fuel | DV147: 2040 | DW147: =$FS$116 -> 370298.718 | DX147: Biofuels | DY147: ='Vehicle Costs'!$D$18 -> Busses, investments | DZ147: 2025 | EA147: 2720.839172 | EC147: Biofuels | ED147: CO₂ e-fuel | EE147: 2020 | EF147: 0 | EH147: H2 | EI147: CO₂ e-fuel | EJ147: 2050 | EK147: 215.569795 | EM147: =$FK$289 -> Custom scenario 1 | EN147: Fuel | EO147: 2050 | EP147: =$FU$321 -> 224922.2206 | EZ147: Energy consumption | FB147: 2017 | FC147: 2020 | FD147: 2025 | FE147: 2030 | FF147: 2035 | FG147: 2040 | FH147: 2045 | FI147: 2050 | FM147: Biodiesel | FN147: 20310.85911 | FO147: 23655.85722 | FP147: 21889.14962 | FQ147: 18290.54384 | FR147: 13604.38432 | FS147: 7422.981129 | FT147: 2769.450024 | FU147: 0 | FW147: Road | FX147: Traditional urban growth | FY147: 2017 | FZ147: 5515.055571 | GA147: Road | GB147: Traditional urban growth | GC147: 2017 | GD147: 2304.290246 | GH147: Jet-fuel fossil | GI147: 818.0957318 | GJ147: 847.2662417 | GK147: 898.2133991 | GL147: 942.7018307 | GM147: 829.1022225 | GN147: 753.173324 | GO147: 568.6445335 | GP147: 436.4219129 | GR147: Biofuels | GS147: 954401.2646 | GT147: 153970.2577 | GU147: 355206.4666 | GV147: 284140.9695 | GW147: 33645.05097 | GX147: 34498.18011 | GY147: 25923.19734 | GZ147: 19814.02526 | HA147: 1850.544913 | HB147: 0 | HC147: 1863449.957
DP148: Biofuels | DQ148: CO₂ e-jetfuel | DR148: 2020 | DS148: 0 | DT148: Biofuels | DU148: Fuel (w/o jetfuel) | DV148: 2040 | DW148: =$FS$117 -> 276555.6417 | DX148: =$FK$84 -> Biofuels | DY148: ='Vehicle Costs'!$D$19 -> Busses, O&M | DZ148: 2025 | EA148: 19223.2668 | EC148: Biofuels | ED148: CO₂ e-jetfuel | EE148: 2020 | EF148: 0 | EH148: H2 | EI148: CO₂ e-jetfuel | EJ148: 2050 | EK148: 0 | EM148: Custom scenario 1 | EN148: Fuel (w/o jetfuel) | EO148: 2050 | EP148: =$FU$322 -> 117440.98 | EZ148: Passenger | FA148: Cars and vans <2t | FB148: 8984176.537 | FC148: 8901686.037 | FD148: 8416171.86 | FE148: 7229892.588 | FF148: 5942891.016 | FG148: 4373229.249 | FH148: 2948020.027 | FI148: 2089166.04 | FM148: Bio e-fuel | FN148: 0 | FO148: 0 | FP148: 0 | FQ148: 0 | FR148: 0 | FS148: 0 | FT148: 0 | FU148: 0 | FW148: Rail | FX148: Traditional urban growth | FY148: 2017 | FZ148: 436.028463 | GA148: Rail | GB148: Traditional urban growth | GC148: 2017 | GD148: 577.896252 | GH148: Biogas | GI148: 0 | GJ148: 0 | GK148: 0 | GL148: 0 | GM148: -11.78882101 | GN148: -24.25887266 | GO148: -49.95781817 | GP148: -64.34520014 | GR148: H2 | GS148: 1125096.077 | GT148: 135330.4705 | GU148: 318722.1866 | GV148: 142070.4848 | GW148: 33645.05097 | GX148: 34498.18011 | GY148: 25923.19734 | GZ148: 19814.02526 | HA148: 1850.544913 | HB148: 0 | HC148: 1836950.218
DP149: Biofuels | DQ149: Ammonia | DR149: 2020 | DS149: 0 | DT149: Biofuels | DU149: Jetfuel | DV149: 2040 | DW149: =$FS$118 -> 93743.07623 | DX149: Biofuels | DY149: ='Vehicle Costs'!$D$20 -> Trucks, investments | DZ149: 2025 | EA149: 16256.05854 | EC149: Biofuels | ED149: Ammonia | EE149: 2020 | EF149: 0 | EH149: H2 | EI149: Ammonia | EJ149: 2050 | EK149: 618.931554 | EM149: Custom scenario 1 | EN149: Jetfuel | EO149: 2050 | EP149: =$FU$323 -> 107481.2406 | FA149: Rail | FB149: 239435.9111 | FC149: 247215.7671 | FD149: 253371.0853 | FE149: 258872.411 | FF149: 263707.2416 | FG149: 281010.9795 | FH149: 295417.2549 | FI149: 299961.5151 | FM149: Bio e-jetfuel | FN149: 0 | FO149: 0 | FP149: 0 | FQ149: 2341.020168 | FR149: 13237.807 | FS149: 32787.72939 | FT149: 56126.12536 | FU149: 72230.32811 | FW149: Bicycle/walking | FX149: Traditional urban growth | FY149: 2017 | FZ149: 247.8117265 | GA149: Air | GB149: Traditional urban growth | GC149: 2017 | GD149: 49.67964035 | GH149: Bioethanol | GI149: 385.6051836 | GJ149: 530.135878 | GK149: 496.2998052 | GL149: 466.8996369 | GM149: 440.1709237 | GN149: 349.2968041 | GO149: 220.4911547 | GP149: 0.6875899231 | GR149: BEV + e-fuels | GS149: 997299.083 | GT149: 132648.9666 | GU149: 296229.2973 | GV149: 245928.7292 | GW149: 33645.05097 | GX149: 34498.18011 | GY149: 25923.19734 | GZ149: 19814.02526 | HA149: 5186.070807 | HB149: 0 | HC149: 1791172.6
DP150: Biofuels | DQ150: Hydrogen | DR150: 2020 | DS150: 0 | DT150: Biofuels | DU150: Vehicle | DV150: 2040 | DW150: =$FS$97 -> 870632.1916 | DX150: Biofuels | DY150: ='Vehicle Costs'!$D$21 -> Trucks, O&M | DZ150: 2025 | EA150: 12730.62178 | EC150: Biofuels | ED150: Hydrogen | EE150: 2020 | EF150: 0 | EH150: H2 | EI150: Hydrogen | EJ150: 2050 | EK150: 5536.580125 | EM150: Custom scenario 1 | EN150: Vehicle | EO150: 2050 | EP150: =$FU$302 -> 988611.7565 | FA150: Bus | FB150: 426420.3257 | FC150: 418675.7117 | FD150: 400760.0506 | FE150: 382797.2414 | FF150: 374530.5935 | FG150: 354657.4606 | FH150: 317527.7644 | FI150: 280719.3841 | FM150: CO₂ e-fuel | FN150: 0 | FO150: 0 | FP150: 107.0878055 | FQ150: 520.169192 | FR150: 947.4363937 | FS150: 2384.346758 | FT150: 4835.171248 | FU150: 6269.847488 | FW150: Air | FX150: Traditional urban growth | FY150: 2017 | FZ150: 728.2113049 | GA150: Sea | GB150: Traditional urban growth | GC150: 2017 | GD150: =GE150/1000 -> 625.6744535 | GE150: ='Scenario overview 2017-2050'!D124+'Scenario overview 2017-2050'!D130 -> 625674.4535 | GH150: Biodiesel | GI150: 585.3480262 | GJ150: 693.482554 | GK150: 675.5270751 | GL150: 793.6168251 | GM150: 1048.161813 | GN150: 1280.139163 | GO150: 1474.521558 | GP150: 1493.396787 | GR150: Heavy elec. | GS150: 999365.7676 | GT150: 131421.2231 | GU150: 167438.7218 | GV150: 221629.9562 | GW150: 43523.72347 | GX150: 34498.18011 | GY150: 25923.19734 | GZ150: 19814.02526 | HA150: 5219.466781 | HB150: 0 | HC150: 1648834.262
DP151: Biofuels | DQ151: Natural gas | DR151: 2020 | DS151: 25.49854033 | DT151: Biofuels | DU151: Vehicle O&M | DV151: 2040 | DW151: =$FS$98 -> 143468.3241 | DX151: Biofuels | DY151: =Results!$AG$41 -> Cars and vans fuel | DZ151: 2025 | EA151: 28986.68032 | EC151: Biofuels | ED151: Natural gas | EE151: 2020 | EF151: 4.261689452 | EH151: H2 | EI151: Natural gas | EJ151: 2050 | EK151: 0 | EM151: Custom scenario 1 | EN151: Vehicle O&M | EO151: 2050 | EP151: =$FU$303 -> 133981.679 | FA151: Bicycle/walking | FB151: 0 | FC151: 0 | FD151: 0 | FE151: 0 | FF151: 0 | FG151: 0 | FH151: 0 | FI151: 0 | FM151: CO₂ e-jetfuel | FN151: 0 | FO151: 0 | FP151: 0 | FQ151: 0 | FR151: 0 | FS151: 0 | FT151: 0 | FU151: 0 | FW151: Sea | FX151: Traditional urban growth | FY151: 2017 | FZ151: 28.73636441 | GA151: Road | GB151: Energy Efficient Urban Growth | GC151: 2017 | GD151: 2304.290246 | GH151: Bio e-fuel | GI151: 0 | GJ151: 0 | GK151: 0 | GL151: 0 | GM151: 0 | GN151: 0 | GO151: 0 | GP151: 0 | GR151: Baseline | GS151: 975073.2251 | GT151: 146436.2428 | GU151: 231632.1499 | GV151: 61362.25852 | GW151: 33645.05097 | GX151: 34498.18011 | GY151: 25923.19734 | GZ151: 19814.02526 | HA151: 2887.759074 | HB151: 0 | HC151: 1531272.089
DP152: Biofuels | DQ152: Electricity Train / bus / trucks / ships / aircrafts | DR152: 2020 | DS152: 3067.270528 | DT152: Biofuels | DU152: EV Charging stations | DV152: 2040 | DW152: =$FS$99 -> 1573.091241 | DX152: Biofuels | DY152: =Results!$AG$42 -> Bus fuel | DZ152: 2025 | EA152: 666396.9414 | EC152: Biofuels | ED152: Electricity Train / bus / trucks / ships / aircrafts | EE152: 2020 | EF152: 316.3765372 | EH152: H2 | EI152: Electricity Train / bus / trucks / ships / aircrafts | EJ152: 2050 | EK152: 1027.091201 | EM152: Custom scenario 1 | EN152: EV Charging stations | EO152: 2050 | EP152: =$FU$304 -> 4785.521976 | FA152: Air | FB152: 2828418.38 | FC152: 2912123.251 | FD152: 3057172.33 | FE152: 3212590.782 | FF152: 3274666.509 | FG152: 3371410.157 | FH152: 3471011.908 | FI152: 3573556.198 | FM152: Ammonia | FN152: 0 | FO152: 0 | FP152: 136.2150361 | FQ152: 1980.039335 | FR152: 5322.290121 | FS152: 10084.38079 | FT152: 12445.24716 | FU152: 14292.53026 | FW152: Road | FX152: Energy Efficient Urban Growth | FY152: 2017 | FZ152: 5515.055571 | GA152: Rail | GB152: Energy Efficient Urban Growth | GC152: 2017 | GD152: 577.896252 | GH152: Bio e-jetfuel | GI152: 0 | GJ152: 0 | GK152: 0 | GL152: 0 | GM152: 134.3002857 | GN152: 276.5358524 | GO152: 569.4111319 | GP152: 732.7915944 | GR152: 1.5 TECH | GS152: 1004116.775 | GT152: 131220.6156 | GU152: 159346.4699 | GV152: 181388.6328 | GW152: 33551.79978 | GX152: 38327.47984 | GY152: 25513.83528 | GZ152: 20835.11811 | HA152: 4412.221756 | HB152: 0 | HC152: 1598712.948
DP153: Biofuels | DQ153: Electricity BEV + Plug-in-hybrid | DR153: 2020 | DS153: 367.5821621 | DT153: Biofuels | DU153: O&M Road infrastructure | DV153: 2040 | DW153: =$FS$86 -> 36414.77527 | DX153: Biofuels | DY153: =Results!$AG$43 -> Rail fuel | DZ153: 2025 | EA153: 124973.1168 | EC153: Biofuels | ED153: Electricity BEV + Plug-in-hybrid | EE153: 2020 | EF153: 37.91461187 | EH153: H2 | EI153: Electricity BEV + Plug-in-hybrid | EJ153: 2050 | EK153: 703.9933112 | EM153: Custom scenario 1 | EN153: O&M Road infrastructure | EO153: 2050 | EP153: =$FU$291 -> 38733.6551 | FA153: Sea | FB153: 246195.953 | FC153: 237323.4937 | FD153: 226102.9292 | FE153: 218167.4733 | FF153: 221415.5235 | FG153: 225277.1009 | FH153: 232685.7374 | FI153: 241064.2137 | FM153: Hydrogen | FN153: 0 | FO153: 0 | FP153: 2201.887616 | FQ153: 13052.721 | FR153: 41152.68085 | FS153: 75578.00843 | FT153: 106750.8806 | FU153: 130358.779 | FW153: Rail | FX153: Energy Efficient Urban Growth | FY153: 2017 | FZ153: 436.028463 | GA153: Air | GB153: Energy Efficient Urban Growth | GC153: 2017 | GD153: 49.67964035 | GH153: CO₂ e-fuel | GI153: 0 | GJ153: 0 | GK153: 0 | GL153: 0 | GM153: 0 | GN153: 0 | GO153: 0 | GP153: 0 | GR153: Grand Total | GS153: 6055352.192 | GT153: 831027.7763 | GU153: 1528575.292 | GV153: 1136521.031 | GW153: 211655.7271 | GX153: 210818.3804 | GY153: 155129.822 | GZ153: 119905.2444 | HA153: 21406.60824 | HB153: 0 | HC153: 10270392.07
DP154: Biofuels | DQ154: Petrol | DR154: 2025 | DS154: =FP101 -> 44679.38364 | DT154: Biofuels | DU154: New Road infrastructure | DV154: 2040 | DW154: =$FS$87+$FS$88 -> 50631.53928 | DX154: Biofuels | DY154: =Results!$AG$46 -> Vans fuel | DZ154: 2025 | EA154: 323.9043461 | EC154: Biofuels | ED154: Petrol | EE154: 2025 | EF154: 3733.736432 | EH154: =$FK$166 -> BEV + e-fuels | EI154: Petrol | EJ154: 2050 | EK154: 0 | EM154: Custom scenario 1 | EN154: New Road infrastructure | EO154: 2050 | EP154: =$FU$292+$FU$293 -> 50648.32144 | EZ154: Freight | FA154: Truck (national) | FB154: 1169186.947 | FC154: 1172234.153 | FD154: 1185830.295 | FE154: 1185485.652 | FF154: 1194868.415 | FG154: 1189479.139 | FH154: 1162213.628 | FI154: 1115632.92 | FM154: Natural gas | FN154: 0 | FO154: 25.49854033 | FP154: 129.1112685 | FQ154: 514.2507457 | FR154: 873.9116912 | FS154: 1305.010698 | FT154: 770.093443 | FU154: 0 | FW154: Bicycle/walking | FX154: Energy Efficient Urban Growth | FY154: 2017 | FZ154: 247.8117265 | GA154: Sea | GB154: Energy Efficient Urban Growth | GC154: 2017 | GD154: 176.811241 | GH154: CO₂ e-jetfuel | GI154: 0 | GJ154: 0 | GK154: 0 | GL154: 26.22146393 | GM154: 268.6005714 | GN154: 414.8037787 | GO154: 711.7639149 | GP154: 996.5965683
DP155: Biofuels | DQ155: Diesel | DR155: 2025 | DS155: 83933.03753 | DT155: Biofuels | DU155: O&M Rail infrastructure | DV155: 2040 | DW155: =$FS$90 -> 41813.41999 | DX155: Biofuels | DY155: =Results!$AG$47 -> National truck fuel | DZ155: 2025 | EA155: 14383.09069 | EC155: Biofuels | ED155: Diesel | EE155: 2025 | EF155: 7014.05916 | EH155: BEV + e-fuels | EI155: Diesel | EJ155: 2050 | EK155: 1e-08 | EM155: Custom scenario 1 | EN155: O&M Rail infrastructure | EO155: 2050 | EP155: =$FU$295 -> 47200.63116 | FM155: Electricity Train / bus / trucks / ships / aircrafts | FN155: 2732.277779 | FO155: 3067.270528 | FP155: 3692.98028 | FQ155: 4505.920203 | FR155: 5868.314666 | FS155: 6996.162706 | FT155: 8663.192467 | FU155: 9957.649191 | FW155: Air | FX155: Energy Efficient Urban Growth | FY155: 2017 | FZ155: 728.2113049 | GA155: Road | GB155: Traditional urban growth | GC155: 2020 | GD155: 2409.613404 | GH155: Ammonia | GI155: 0 | GJ155: 0 | GK155: 0 | GL155: 0 | GM155: 0 | GN155: 0 | GO155: 0 | GP155: 0
DP156: =$FK$84 -> Biofuels | DQ156: Jet-fuel fossil | DR156: 2025 | DS156: 45792.2863 | DT156: =$FK$84 -> Biofuels | DU156: New Rail infrastructure | DV156: 2040 | DW156: =$FS$91 -> 44748.55934 | DX156: Biofuels | DY156: =Results!$AG$48 -> International truck fuel | DZ156: 2025 | EA156: 340.3045135 | EC156: =$FK$84 -> Biofuels | ED156: Jet-fuel fossil | EE156: 2025 | EF156: 3826.738726 | EH156: BEV + e-fuels | EI156: Jet-fuel fossil | EJ156: 2050 | EK156: 1e-08 | EM156: Custom scenario 1 | EN156: New Rail infrastructure | EO156: 2050 | EP156: =$FU$296 -> 40549.96874 | FM156: Electricity BEV + Plug-in-hybrid | FN156: 0 | FO156: 367.5821621 | FP156: 1244.928915 | FQ156: 2905.860181 | FR156: 4273.907826 | FS156: 6319.428566 | FT156: 7225.176439 | FU156: 6825.215152 | FW156: Sea | FX156: Energy Efficient Urban Growth | FY156: 2017 | FZ156: 28.73636441 | GA156: Rail | GB156: Traditional urban growth | GC156: 2020 | GD156: 613.2681258 | GH156: Hydrogen | GI156: 0 | GJ156: 0 | GK156: 0 | GL156: 0 | GM156: 32.43080872 | GN156: 69.14778884 | GO156: 170.7765937 | GP156: 345.4945834
DP157: Biofuels | DQ157: Biogas | DR157: 2025 | DS157: 1070.235364 | DT157: Biofuels | DU157: Other | DV157: 2040 | DW157: =$FS$95+$FS$96 -> 0 | DX157: Biofuels | DY157: =Results!$AG$49 -> Truck fuel | DZ157: 2025 | EA157: 73904.10766 | EC157: Biofuels | ED157: Biogas | EE157: 2025 | EF157: 43.07319482 | EH157: BEV + e-fuels | EI157: Biogas | EJ157: 2050 | EK157: 80.12587786 | EM157: Custom scenario 1 | EN157: Other | EO157: 2050 | EP157: =$FU$300+$FU$301 -> 0 | FA157: Truck (international) | FB157: 905840.5314 | FC157: 908201.3882 | FD157: 905252.1274 | FE157: 853909.9014 | FF157: 828666.3916 | FG157: 789616.5706 | FH157: 725347.2178 | FI157: 625368.0979 | FM157: All | FN157: 233567.4891 | FO157: 237468.7631 | FP157: 231084.9845 | FQ157: 220651.367 | FR157: 217327.6773 | FS157: 217894.0847 | FT157: 226431.5847 | FU157: 239934.3492 | FW157: Road | FX157: Traditional urban growth | FY157: 2020 | FZ157: 5648.47862 | GA157: Air | GB157: Traditional urban growth | GC157: 2020 | GD157: 53.49953894 | GH157: Natural gas | GI157: 0 | GJ157: 0 | GK157: 0 | GL157: 0 | GM157: 0 | GN157: 0 | GO157: 0 | GP157: 0
DP158: Biofuels | DQ158: Bioethanol | DR158: 2025 | DS158: 27622.93881 | DT158: Biofuels | DU158: Fuel | DV158: 2045 | DW158: =$FT$116 -> 422713.8145 | DX158: Biofuels | DY158: ='Vehicle Costs'!$D$15 -> Cars and vans < 2 ton, investments | DZ158: 2030 | EA158: 2590.650252 | EC158: Biofuels | ED158: Bioethanol | EE158: 2025 | EF158: 575.4287408 | EH158: BEV + e-fuels | EI158: Bioethanol | EJ158: 2050 | EK158: 0 | EM158: =$FK$330 -> Custom scenario 2 | EN158: Fuel | EO158: 2050 | EP158: =$FU$362 -> 224668.2875 | FA158: Vans (2-6 t) | FB158: 1349989.625 | FC158: 1349406.514 | FD158: 1293926.404 | FE158: 1129172.832 | FF158: 908663.635 | FG158: 654310.3272 | FH158: 484510.9906 | FI158: 331854.9679 | FL158: Total fuel cost (w/o jetfuels) | FN158: =SUM(FN142:FN143,FN145:FN148,FN150,FN152:FN156) -> 191859.7234 | FO158: =SUM(FO142:FO143,FO145:FO148,FO150,FO152:FO156) -> 194273.8404 | FP158: 185292.6982 | FQ158: 171523.3329 | FR158: 164307.3824 | FS158: 158542.689 | FT158: 159763.5089 | FU158: 167704.0211 | FW158: Rail | FX158: Traditional urban growth | FY158: 2020 | FZ158: 458.6460935 | GA158: Sea | GB158: Traditional urban growth | GC158: 2020 | GD158: =GE158/1000 -> 644.6330151 | GE158: ='Scenario overview 2017-2050'!D266+'Scenario overview 2017-2050'!D272 -> 644633.0151 | GH158: Electricity Train / bus / trucks / ships / aircrafts | GI158: 43.38979277 | GJ158: 48.70962741 | GK158: 58.64617803 | GL158: 70.37868467 | GM158: 81.43579567 | GN158: 90.35401223 | GO158: 100.0923785 | GP158: 128.1527608
DP159: Biofuels | DQ159: Biodiesel | DR159: 2025 | DS159: 48652.1815 | DT159: Biofuels | DU159: Fuel (w/o jetfuel) | DV159: 2045 | DW159: =$FT$117 -> 299919.6133 | DX159: Biofuels | DY159: ='Vehicle Costs'!$D$16 -> Cars and vans < 2 ton, O&M | DZ159: 2030 | EA159: 142396.7514 | EC159: Biofuels | ED159: Biodiesel | EE159: 2025 | EF159: 1150.980632 | EH159: BEV + e-fuels | EI159: Biodiesel | EJ159: 2050 | EK159: 0 | EM159: Custom scenario 2 | EN159: Fuel (w/o jetfuel) | EO159: 2050 | EP159: =$FU$363 -> 155823.9967 | FA159: Rail (national) | FB159: 247206.1688 | FC159: 243851.9034 | FD159: 232269.4245 | FE159: 225981.6604 | FF159: 211839.3111 | FG159: 220457.819 | FH159: 229054.7528 | FI159: 224047.5591 | FL159: Total jetfuel costs | FN159: =FN144+FN149+FN151 -> 41707.76567 | FO159: =FO144+FO149+FO151 -> 43194.92266 | FP159: 45792.2863 | FQ159: 49128.03412 | FR159: 53020.29483 | FS159: 59351.39574 | FT159: 66668.07586 | FU159: 72230.32811 | FW159: Bicycle/walking | FX159: Traditional urban growth | FY159: 2020 | FZ159: 247.8117265 | GA159: Road | GB159: Energy Efficient Urban Growth | GC159: 2020 | GD159: 2409.613404 | GH159: Electricity BEV + Plug-in-hybrid | GI159: 0 | GJ159: 0 | GK159: 15.6742632 | GL159: 63.46118998 | GM159: 131.902396 | GN159: 196.0259585 | GO159: 244.2399671 | GP159: 276.4737246
DP160: Biofuels | DQ160: Bio e-fuel | DR160: 2025 | DS160: 0 | DT160: Biofuels | DU160: Jetfuel | DV160: 2045 | DW160: =$FT$118 -> 122794.2012 | DX160: Biofuels | DY160: ='Vehicle Costs'!$D$17 -> Charging stations, investments | DZ160: 2030 | EA160: 5916.014971 | EC160: Biofuels | ED160: Bio e-fuel | EE160: 2025 | EF160: 0 | EH160: BEV + e-fuels | EI160: Bio e-fuel | EJ160: 2050 | EK160: 0 | EM160: Custom scenario 2 | EN160: Jetfuel | EO160: 2050 | EP160: =$FU$364 -> 68844.29079 | FA160: Rail (international) | FB160: 143551.165 | FC160: 152281.6451 | FD160: 168028.2447 | FE160: 185403.1127 | FF160: 200717.6488 | FG160: 217297.1852 | FH160: 235246.2127 | FI160: 251187.8022 | FL160: Total inffrastructure cost | FN160: =FN130+FN133+FN136+FN137 -> 166441 | FO160: 185924.3894 | FP160: 190932.4771 | FQ160: 196456.75 | FR160: 174241.356 | FS160: 173608.2939 | FT160: 174849.9038 | FU160: 177132.5764 | FW160: Air | FX160: Traditional urban growth | FY160: 2020 | FZ160: 784.2039273 | GA160: Rail | GB160: Energy Efficient Urban Growth | GC160: 2020 | GD160: 613.2681258 | GH160: Total losses | GI160: =SUM(GI145:GI159) -> 4972.637056 | GJ160: =SUM(GJ145:GJ159) -> 5194.928419 | GK160: =SUM(GK145:GK159) -> 5069.885977 | GL160: =SUM(GL145:GL159) -> 4862.921244 | GM160: =SUM(GM145:GM159) -> 4875.748167 | GN160: =SUM(GN145:GN159) -> 4773.460205 | GO160: =SUM(GO145:GO159) -> 4838.806961 | GP160: =SUM(GP145:GP159) -> 4693.694079
DP161: Biofuels | DQ161: Bio e-jetfuel | DR161: 2025 | DS161: 0 | DT161: Biofuels | DU161: Vehicle | DV161: 2045 | DW161: =$FT$97 -> 904051.4292 | DX161: Biofuels | DY161: ='Vehicle Costs'!$D$18 -> Busses, investments | DZ161: 2030 | EA161: 2729.176525 | EC161: Biofuels | ED161: Bio e-jetfuel | EE161: 2025 | EF161: 0 | EH161: BEV + e-fuels | EI161: Bio e-jetfuel | EJ161: 2050 | EK161: 1472.048798 | EM161: Custom scenario 2 | EN161: Vehicle | EO161: 2050 | EP161: =$FU$343 -> 1027186.889 | FA161: Air (national) | FB161: 10614.05063 | FC161: 10928.16531 | FD161: 11472.48304 | FE161: 12055.71335 | FF161: 12288.66153 | FG161: 12651.70611 | FH161: 13025.47614 | FI161: 13410.28848 | FL161: Total vehicle cost | FN161: =FN141 -> 813877.3311 | FO161: 835761.9764 | FP161: 885618.0174 | FQ161: 940831.9939 | FR161: 1024309.572 | FS161: 1100397.018 | FT161: 1164480.934 | FU161: 1219422.623 | FW161: Sea | FX161: Traditional urban growth | FY161: 2020 | FZ161: 29.16956869 | GA161: Air | GB161: Energy Efficient Urban Growth | GC161: 2020 | GD161: 53.18698157
DP162: Biofuels | DQ162: CO₂ e-fuel | DR162: 2025 | DS162: 107.0878055 | DT162: Biofuels | DU162: Vehicle O&M | DV162: 2045 | DW162: =$FT$98 -> 147860.7412 | DX162: Biofuels | DY162: ='Vehicle Costs'!$D$19 -> Busses, O&M | DZ162: 2030 | EA162: 18635.90171 | EC162: Biofuels | ED162: CO₂ e-fuel | EE162: 2025 | EF162: 3.490126031 | EH162: BEV + e-fuels | EI162: CO₂ e-fuel | EJ162: 2050 | EK162: 2750.785602 | EM162: Custom scenario 2 | EN162: Vehicle O&M | EO162: 2050 | EP162: =$FU$344 -> 137438.6768 | FA162: Air (international) | FB162: 646373.8462 | FC162: 665502.784 | FD162: 698650.6139 | FE162: 734168.1396 | FF162: 748354.2043 | FG162: 770462.8727 | FH162: 793224.6986 | FI162: 816658.9784 | FL162: Total fuel cost | FN162: =FN157 -> 233567.4891 | FO162: 237468.7631 | FP162: 231084.9845 | FQ162: 220651.367 | FR162: 217327.6773 | FS162: 217894.0847 | FT162: 226431.5847 | FU162: 239934.3492 | FW162: Road | FX162: Energy Efficient Urban Growth | FY162: 2020 | FZ162: 5527.412693 | GA162: Sea | GB162: Energy Efficient Urban Growth | GC162: 2020 | GD162: 182.1687984 | GH162: =Scenarios!$AV$12 -> Custom scenario 2
DP163: Biofuels | DQ163: CO₂ e-jetfuel | DR163: 2025 | DS163: 0 | DT163: Biofuels | DU163: EV Charging stations | DV163: 2045 | DW163: =$FT$99 -> 1880.420901 | DX163: Biofuels | DY163: ='Vehicle Costs'!$D$20 -> Trucks, investments | DZ163: 2030 | EA163: 16385.29141 | EC163: Biofuels | ED163: CO₂ e-jetfuel | EE163: 2025 | EF163: 0 | EH163: BEV + e-fuels | EI163: CO₂ e-jetfuel | EJ163: 2050 | EK163: 2363.672497 | EM163: Custom scenario 2 | EN163: EV Charging stations | EO163: 2050 | EP163: =$FU$345 -> 2009.79843 | FA163: Sea (national) | FB163: 65478.9701 | FC163: 64825.05975 | FD163: 64566.98179 | FE163: 65132.29822 | FF163: 66760.36083 | FG163: 67924.68885 | FH163: 70332.77604 | FI163: 72829.12835 | FL163: Total costs | FN163: =FN130+FN133+FN136+FN137+FN141+FN157 -> 1213885.82 | FO163: 1259155.129 | FP163: 1307635.479 | FQ163: 1357940.111 | FR163: 1415878.605 | FS163: 1491899.396 | FT163: 1565762.422 | FU163: 1636489.549 | FW163: Rail | FX163: Energy Efficient Urban Growth | FY163: 2020 | FZ163: 458.6460935 | GA163: Road | GB163: Traditional urban growth | GC163: 2025 | GD163: 2595.837975 | GH163: Upstream energy losses | GI163: 2017 | GJ163: 2020 | GK163: 2025 | GL163: 2030 | GM163: 2035 | GN163: 2040 | GO163: 2045 | GP163: 2050
DP164: Biofuels | DQ164: Ammonia | DR164: 2025 | DS164: 0 | DT164: Biofuels | DU164: O&M Road infrastructure | DV164: 2045 | DW164: =$FT$86 -> 37556.22632 | DX164: Biofuels | DY164: ='Vehicle Costs'!$D$21 -> Trucks, O&M | DZ164: 2030 | EA164: 12866.18 | EC164: Biofuels | ED164: Ammonia | EE164: 2025 | EF164: 0 | EH164: BEV + e-fuels | EI164: Ammonia | EJ164: 2050 | EK164: 38.91828353 | EM164: Custom scenario 2 | EN164: O&M Road infrastructure | EO164: 2050 | EP164: =$FU$332 -> 38733.6551 | FA164: Sea (international) | FB164: 393211.7831 | FC164: 381301.8145 | FD164: 366892.2484 | FE164: 357541.5821 | FF164: 361068.2608 | FG164: 365546.8018 | FH164: 376632.4909 | FI164: 390000.4744 | FW164: Bicycle/walking | FX164: Energy Efficient Urban Growth | FY164: 2020 | FZ164: 247.8117265 | GA164: Rail | GB164: Traditional urban growth | GC164: 2025 | GD164: 673.7849609 | GI164: PJ | GJ164: PJ | GK164: PJ | GL164: PJ | GM164: PJ | GN164: PJ | GO164: PJ | GP164: PJ
DP165: Biofuels | DQ165: Hydrogen | DR165: 2025 | DS165: 0 | DT165: Biofuels | DU165: New Road infrastructure | DV165: 2045 | DW165: =$FT$87+$FT$88 -> 50639.90815 | DX165: Biofuels | DY165: =Results!$AG$41 -> Cars and vans fuel | DZ165: 2030 | EA165: 29251.47141 | EC165: Biofuels | ED165: Hydrogen | EE165: 2025 | EF165: 0 | EH165: BEV + e-fuels | EI165: Hydrogen | EJ165: 2050 | EK165: 0 | EM165: Custom scenario 2 | EN165: New Road infrastructure | EO165: 2050 | EP165: =$FU$333+$FU$334 -> 50648.32144 | FA165: Total passenger energy consumption | FB165: =SUM(FB148:FB153)/1000 -> 12724.64711 | FC165: 12717.02426 | FD165: 12353.57826 | FE165: 11302.3205 | FF165: 10077.21088 | FG165: 8605.584946 | FH165: 7264.662692 | FI165: =SUM(FI148:FI153)/1000 -> 6484.467351 | FW165: Air | FX165: Energy Efficient Urban Growth | FY165: 2020 | FZ165: 728.2113049 | GA165: Air | GB165: Traditional urban growth | GC165: 2025 | GD165: 59.64918557 | GH165: Petrol | GI165: 1086.854303 | GJ165: 1036.85699 | GK165: 979.5389506 | GL165: 821.5984736 | GM165: 767.9041633 | GN165: 682.8582503 | GO165: 647.2831269 | GP165: 13.1453213
DP166: Biofuels | DQ166: Natural gas | DR166: 2025 | DS166: 129.1112685 | DT166: Biofuels | DU166: O&M Rail infrastructure | DV166: 2045 | DW166: =$FT$90 -> 44425.35677 | DX166: Biofuels | DY166: =Results!$AG$42 -> Bus fuel | DZ166: 2030 | EA166: 702990.9845 | EC166: Biofuels | ED166: Natural gas | EE166: 2025 | EF166: 21.57896586 | EH166: BEV + e-fuels | EI166: Natural gas | EJ166: 2050 | EK166: 0 | EM166: Custom scenario 2 | EN166: O&M Rail infrastructure | EO166: 2050 | EP166: =$FU$336 -> 47200.63116 | FA166: Total freight energy consumption | FB166: =SUM(FB154:FB164)/1000 -> 4931.453087 | FC166: 4948.533427 | FD166: 4926.888823 | FE166: 4748.850893 | FF166: 4533.226889 | FG166: 4287.74711 | FH166: 4089.588244 | FI166: 3840.990217 | FK166: =Scenarios!$AV$8 -> BEV + e-fuels | FW166: Sea | FX166: Energy Efficient Urban Growth | FY166: 2020 | FZ166: 29.16956869 | GA166: Sea | GB166: Traditional urban growth | GC166: 2025 | GD166: =GE166/1000 -> 677.5157776 | GE166: ='Scenario overview 2017-2050'!D408+'Scenario overview 2017-2050'!D414 -> 677515.7776 | GH166: Diesel | GI166: 2053.344018 | GJ166: 1994.515145 | GK166: 1898.074046 | GL166: 1694.839359 | GM166: 1593.908798 | GN166: 1476.00963 | GO166: 1413.56136 | GP166: 717.4477493
DP167: Biofuels | DQ167: Electricity Train / bus / trucks / ships / aircrafts | DR167: 2025 | DS167: 3692.98028 | DT167: Biofuels | DU167: New Rail infrastructure | DV167: 2045 | DW167: =$FT$91 -> 42228.4126 | DX167: Biofuels | DY167: =Results!$AG$43 -> Rail fuel | DZ167: 2030 | EA167: 130984.5755 | EC167: Biofuels | ED167: Electricity Train / bus / trucks / ships / aircrafts | EE167: 2025 | EF167: 380.915965 | EH167: BEV + e-fuels | EI167: Electricity Train / bus / trucks / ships / aircrafts | EJ167: 2050 | EK167: 1938.950144 | EM167: Custom scenario 2 | EN167: New Rail infrastructure | EO167: 2050 | EP167: =$FU$337 -> 40549.96874 | FA167: Total energy consumption | FB167: =FB165+FB166 -> 17656.10019 | FC167: =FC165+FC166 -> 17665.55769 | FD167: =FD165+FD166 -> 17280.46708 | FE167: =FE165+FE166 -> 16051.17139 | FF167: =FF165+FF166 -> 14610.43777 | FG167: =FG165+FG166 -> 12893.33206 | FH167: =FH165+FH166 -> 11354.25094 | FI167: =FI165+FI166 -> 10325.45757 | FK167: Total costs | FN167: 2017 | FO167: 2020 | FP167: 2025 | FQ167: 2030 | FR167: 2035 | FS167: 2040 | FT167: 2045 | FU167: 2050 | FW167: Road | FX167: Traditional urban growth | FY167: 2025 | FZ167: 5819.978668 | GA167: Road | GB167: Energy Efficient Urban Growth | GC167: 2025 | GD167: 2595.837975 | GH167: Jet-fuel fossil | GI167: 818.0957318 | GJ167: 847.2662417 | GK167: 898.2133991 | GL167: 921.3147559 | GM167: 817.1039995 | GN167: 596.7627189 | GO167: 362.6891679 | GP167: 200.6442192
DP168: Biofuels | DQ168: Electricity BEV + Plug-in-hybrid | DR168: 2025 | DS168: 1244.928915 | DT168: Biofuels | DU168: Other | DV168: 2045 | DW168: =$FT$95+$FT$96 -> 0 | DX168: Biofuels | DY168: =Results!$AG$46 -> Vans fuel | DZ168: 2030 | EA168: 772.9290035 | EC168: Biofuels | ED168: Electricity BEV + Plug-in-hybrid | EE168: 2025 | EF168: 128.4093776 | EH168: BEV + e-fuels | EI168: Electricity BEV + Plug-in-hybrid | EJ168: 2050 | EK168: 1976.81693 | EM168: Custom scenario 2 | EN168: Other | EO168: 2050 | EP168: =$FU$341+$FU$342 -> 0 | FK168: Infrastructure | FL168: Road | FM168: O&M | FN168: 30765 | FO168: 31529.36008 | FP168: 32851.10091 | FQ168: 34235.4169 | FR168: 35308.19603 | FS168: 36414.77527 | FT168: 37556.22632 | FU168: 38733.6551 | FW168: Rail | FX168: Traditional urban growth | FY168: 2025 | FZ168: 496.5308519 | GA168: Rail | GB168: Energy Efficient Urban Growth | GC168: 2025 | GD168: 673.7849609 | GH168: Biogas | GI168: 0 | GJ168: 0 | GK168: 0 | GL168: -30.37231709 | GM168: -30.25202081 | GN168: -18.97381313 | GO168: -2.17232144 | GP168: -2.909761173
DP169: Biofuels | DQ169: Petrol | DR169: 2030 | DS169: =FQ101 -> 30929.4711 | DT169: Biofuels | DU169: Fuel | DV169: 2050 | DW169: =$FU$116 -> 479043.4025 | DX169: Biofuels | DY169: =Results!$AG$47 -> National truck fuel | DZ169: 2030 | EA169: 14938.43649 | EC169: Biofuels | ED169: Petrol | EE169: 2030 | EF169: 2584.693066 | EH169: =$FK$207 -> Heavy elec. | EI169: Petrol | EJ169: 2050 | EK169: 0 | EM169: =$FK$371 -> Custom scenario 3 | EN169: Fuel | EO169: 2050 | EP169: =$FU$403 -> 483747.1271 | FM169: New roads | FN169: 66244 | FO169: 67176.73919 | FP169: 67446.50844 | FQ169: 67791.76754 | FR169: 50623.21462 | FS169: 50631.53928 | FT169: 50639.90815 | FU169: 50648.32144 | FW169: Bicycle/walking | FX169: Traditional urban growth | FY169: 2025 | FZ169: 247.8117265 | GA169: Air | GB169: Energy Efficient Urban Growth | GC169: 2025 | GD169: 59.59138961 | GH169: Bioethanol | GI169: 385.6051836 | GJ169: 519.7864193 | GK169: 491.0755968 | GL169: 473.6476048 | GM169: 561.4387033 | GN169: 608.9287928 | GO169: 685.6227141 | GP169: 7.425971169
DP170: Biofuels | DQ170: Diesel | DR170: 2030 | DS170: 65708.98028 | DT170: Biofuels | DU170: Fuel (w/o jetfuel) | DV170: 2050 | DW170: =$FU$117 -> 334582.7463 | DX170: Biofuels | DY170: =Results!$AG$48 -> International truck fuel | DZ170: 2030 | EA170: 355.9946782 | EC170: Biofuels | ED170: Diesel | EE170: 2030 | EF170: 5491.123503 | EH170: Heavy elec. | EI170: Diesel | EJ170: 2050 | EK170: 1e-08 | EM170: Custom scenario 3 | EN170: Fuel (w/o jetfuel) | EO170: 2050 | EP170: =$FU$404 -> 339286.4709 | EZ170: =Scenarios!$AV$11 -> Custom scenario 1 | FM170: eRoads | FN170: 0 | FO170: 0 | FP170: 0 | FQ170: 0 | FR170: 0 | FS170: 0 | FT170: 0 | FU170: 0 | FW170: Air | FX170: Traditional urban growth | FY170: 2025 | FZ170: 874.3463309 | GA170: Sea | GB170: Energy Efficient Urban Growth | GC170: 2025 | GD170: 191.4612379 | GH170: Biodiesel | GI170: 585.3480262 | GJ170: 681.749071 | GK170: 645.2038288 | GL170: 608.1492631 | GM170: 654.8391729 | GN170: 671.9208634 | GO170: 682.0520302 | GP170: 168.8523897 | GR170: Sum of m€ (static) | GS170: Column Labels
DP171: Biofuels | DQ171: Jet-fuel fossil | DR171: 2030 | DS171: 46603.99928 | DT171: Biofuels | DU171: Jetfuel | DV171: 2050 | DW171: =$FU$118 -> 144460.6562 | DX171: Biofuels | DY171: =Results!$AG$49 -> Truck fuel | DZ171: 2030 | EA171: 81890.11338 | EC171: Biofuels | ED171: Jet-fuel fossil | EE171: 2030 | EF171: 3894.571407 | EH171: Heavy elec. | EI171: Jet-fuel fossil | EJ171: 2050 | EK171: 1e-08 | EM171: Custom scenario 3 | EN171: Jetfuel | EO171: 2050 | EP171: =$FU$405 -> 144460.6562 | EZ171: Energy consumption | FB171: 2017 | FC171: 2020 | FD171: 2025 | FE171: 2030 | FF171: 2035 | FG171: 2040 | FH171: 2045 | FI171: 2050 | FM171: Total roads | FN171: 97009 | FO171: 98706.09927 | FP171: 100297.6094 | FQ171: 102027.1844 | FR171: 85931.41065 | FS171: 87046.31455 | FT171: 88196.13447 | FU171: 89381.97654 | FW171: Sea | FX171: Traditional urban growth | FY171: 2025 | FZ171: 30.20489709 | GA171: Road | GB171: Traditional urban growth | GC171: 2030 | GD171: 2796.454727 | GH171: Bio e-fuel | GI171: 0 | GJ171: 0 | GK171: 0 | GL171: 0 | GM171: 0 | GN171: 0 | GO171: 0 | GP171: 0 | GR171: Row Labels | GS171: Cars and vans < 2 ton, investments | GT171: Cars and vans < 2 ton, O&M | GU171: Trucks, investments | GV171: Busses, investments | GW171: Trucks, O&M | GX171: Busses, O&M | GY171: Charging stations, investments | GZ171: Grand Total
DP172: Biofuels | DQ172: Biogas | DR172: 2030 | DS172: 13077.92824 | DT172: Biofuels | DU172: Vehicle | DV172: 2050 | DW172: =$FU$97 -> 928810.8827 | DX172: Biofuels | DY172: ='Vehicle Costs'!$D$15 -> Cars and vans < 2 ton, investments | DZ172: 2035 | EA172: 2910.233512 | EC172: Biofuels | ED172: Biogas | EE172: 2030 | EF172: 526.3404385 | EH172: Heavy elec. | EI172: Biogas | EJ172: 2050 | EK172: 80.12587786 | EM172: Custom scenario 3 | EN172: Vehicle | EO172: 2050 | EP172: =$FU$384 -> 922140.7334 | EZ172: Passenger | FA172: Cars and vans <2t | FB172: 8984176.537 | FC172: 8901686.037 | FD172: 8416171.86 | FE172: 7229892.588 | FF172: 5972516.536 | FG172: 4606622.255 | FH172: 3376797.458 | FI172: 2129229.292 | FL172: Rail | FM172: Renewal and maintenance | FN172: 28005 | FO172: 29870.91185 | FP172: 33262.63648 | FQ172: 37041.63502 | FR172: 39355.19787 | FS172: 41813.41999 | FT172: 44425.35677 | FU172: 47200.63116 | FW172: Road | FX172: Energy Efficient Urban Growth | FY172: 2025 | FZ172: 5634.51164 | GA172: Rail | GB172: Traditional urban growth | GC172: 2030 | GD172: 740.2735515 | GH172: Bio e-jetfuel | GI172: 0 | GJ172: 0 | GK172: 0 | GL172: 42.55760427 | GM172: 217.9702257 | GN172: 561.0243295 | GO172: 924.1579221 | GP172: 1189.325461 | GR172: 2050 | GS172: 3307557.832 | GT172: 533556.5116 | GU172: 589853.9284 | GV172: 75117.18638 | GW172: 19055.97335 | GX172: 1897.472578 | GY172: 10130.99023 | GZ172: 4537169.894
DP173: Biofuels | DQ173: Bioethanol | DR173: 2030 | DS173: 40685.16239 | DT173: Biofuels | DU173: Vehicle O&M | DV173: 2050 | DW173: =$FU$98 -> 155022.3495 | DX173: Biofuels | DY173: ='Vehicle Costs'!$D$16 -> Cars and vans < 2 ton, O&M | DZ173: 2035 | EA173: 151837.9341 | EC173: Biofuels | ED173: Bioethanol | EE173: 2030 | EF173: 847.5351563 | EH173: Heavy elec. | EI173: Bioethanol | EJ173: 2050 | EK173: 0 | EM173: Custom scenario 3 | EN173: Vehicle O&M | EO173: 2050 | EP173: =$FU$385 -> 154795.0413 | FA173: Rail | FB173: 239435.9111 | FC173: 247215.7671 | FD173: 253371.0853 | FE173: 258872.411 | FF173: 258556.8682 | FG173: 270141.5169 | FH173: 282173.5182 | FI173: 284961.9796 | FM173: New rail constructions | FN173: 41427 | FO173: 57347.37827 | FP173: 57372.23123 | FQ173: 57387.9305 | FR173: 48954.7475 | FS173: 44748.55934 | FT173: 42228.4126 | FU173: 40549.96874 | FW173: Rail | FX173: Energy Efficient Urban Growth | FY173: 2025 | FZ173: 619.2975155 | GA173: Air | GB173: Traditional urban growth | GC173: 2030 | GD173: 66.50571965 | GH173: CO₂ e-fuel | GI173: 0 | GJ173: 0 | GK173: 4.913150567 | GL173: 25.17645173 | GM173: 42.55499082 | GN173: 78.30493366 | GO173: 149.5061429 | GP173: 191.2187237 | GR173: Biofuels | GS173: 753129.2008 | GT173: 156367.1395 | GU173: 132378.7998 | GV173: 15838.73366 | GW173: 4904.719514 | GX173: 383.397712 | GY173: 0 | GZ173: 1063001.991
DP174: Biofuels | DQ174: Biodiesel | DR174: 2030 | DS174: 65360.51243 | DT174: Biofuels | DU174: EV Charging stations | DV174: 2050 | DW174: =$FU$99 -> 1882.89373 | DX174: Biofuels | DY174: ='Vehicle Costs'!$D$17 -> Charging stations, investments | DZ174: 2035 | EA174: 7276.704006 | EC174: Biofuels | ED174: Biodiesel | EE174: 2030 | EF174: 1546.255102 | EH174: Heavy elec. | EI174: Biodiesel | EJ174: 2050 | EK174: 0 | EM174: Custom scenario 3 | EN174: EV Charging stations | EO174: 2050 | EP174: =$FU$386 -> 1882.89373 | FA174: Bus | FB174: 426420.3257 | FC174: 418675.7117 | FD174: 400760.0506 | FE174: 382797.2414 | FF174: 374530.5935 | FG174: 354657.4606 | FH174: 317527.7644 | FI174: 280719.3841 | FM174: Total rail | FN174: 69432 | FO174: 87218.29012 | FP174: 90634.86771 | FQ174: 94429.56552 | FR174: 88309.94538 | FS174: 86561.97933 | FT174: 86653.76937 | FU174: 87750.59991 | FW174: Bicycle/walking | FX174: Energy Efficient Urban Growth | FY174: 2025 | FZ174: 321.7927379 | GA174: Sea | GB174: Traditional urban growth | GC174: 2030 | GD174: =GE174/1000 -> 712.0758914 | GE174: ='Scenario overview 2017-2050'!D550+'Scenario overview 2017-2050'!D556 -> 712075.8914 | GH174: CO₂ e-jetfuel | GI174: 0 | GJ174: 0 | GK174: 0 | GL174: 0 | GM174: 0 | GN174: 0 | GO174: 0 | GP174: 0 | GR174: BEV + e-fuels | GS174: 899847.834 | GT174: 128206.452 | GU174: 199142.0124 | GV174: 25240.41054 | GW174: 5294.666017 | GX174: 610.9778633 | GY174: 0 | GZ174: 1258342.353
DP175: Biofuels | DQ175: Bio e-fuel | DR175: 2030 | DS175: 0 | DT175: Biofuels | DU175: O&M Road infrastructure | DV175: 2050 | DW175: =$FU$86 -> 38733.6551 | DX175: Biofuels | DY175: ='Vehicle Costs'!$D$18 -> Busses, investments | DZ175: 2035 | EA175: 2720.56824 | EC175: Biofuels | ED175: Bio e-fuel | EE175: 2030 | EF175: 0 | EH175: Heavy elec. | EI175: Bio e-fuel | EJ175: 2050 | EK175: 0 | EM175: Custom scenario 3 | EN175: O&M Road infrastructure | EO175: 2050 | EP175: =$FU$373 -> 38733.6551 | FA175: Bicycle/walking | FB175: 0 | FC175: 0 | FD175: 0 | FE175: 0 | FF175: 0 | FG175: 0 | FH175: 0 | FI175: 0 | FW175: Air | FX175: Energy Efficient Urban Growth | FY175: 2025 | FZ175: 642.7195988 | GA175: Road | GB175: Energy Efficient Urban Growth | GC175: 2030 | GD175: 2796.454727 | GH175: Ammonia | GI175: 0 | GJ175: 0 | GK175: 0 | GL175: 0 | GM175: 0 | GN175: 0 | GO175: 0 | GP175: 0 | GR175: H2 | GS175: 824810.1635 | GT175: 124251.5872 | GU175: 130629.5945 | GV175: 16988.75731 | GW175: 4461.721888 | GX175: 449.8010453 | GY175: 5065.495116 | GZ175: 1106657.121
DP176: Biofuels | DQ176: Bio e-jetfuel | DR176: 2030 | DS176: 5169.232174 | DT176: Biofuels | DU176: New Road infrastructure | DV176: 2050 | DW176: =$FU$87+$FU$88 -> 50648.32144 | DX176: Biofuels | DY176: ='Vehicle Costs'!$D$19 -> Busses, O&M | DZ176: 2035 | EA176: 18299.5033 | EC176: Biofuels | ED176: Bio e-jetfuel | EE176: 2030 | EF176: 162.2738086 | EH176: Heavy elec. | EI176: Bio e-jetfuel | EJ176: 2050 | EK176: 1435.247578 | EM176: Custom scenario 3 | EN176: New Road infrastructure | EO176: 2050 | EP176: =$FU$374+$FU$375 -> 50648.32144 | FA176: Air | FB176: 2828418.38 | FC176: 2929270.154 | FD176: 3105410.758 | FE176: 3292142.913 | FF176: 3372319.218 | FG176: 3471947.826 | FH176: 3574519.766 | FI176: 3680121.995 | FW176: Sea | FX176: Energy Efficient Urban Growth | FY176: 2025 | FZ176: 30.20489709 | GA176: Rail | GB176: Energy Efficient Urban Growth | GC176: 2030 | GD176: 740.2735515 | GH176: Hydrogen | GI176: 0 | GJ176: 0 | GK176: 0 | GL176: 76.51543523 | GM176: 391.8943976 | GN176: 1041.164717 | GO176: 1726.631413 | GP176: 4650.36364 | GR176: Heavy elec. | GS176: 829770.6334 | GT176: 124731.3329 | GU176: 127703.5217 | GV176: 17049.28487 | GW176: 4394.865929 | GX176: 453.2959576 | GY176: 5065.495116 | GZ176: 1109168.43
DP177: Biofuels | DQ177: CO₂ e-fuel | DR177: 2030 | DS177: 702.0790142 | DT177: Biofuels | DU177: O&M Rail infrastructure | DV177: 2050 | DW177: =$FU$90 -> 47200.63116 | DX177: Biofuels | DY177: ='Vehicle Costs'!$D$20 -> Trucks, investments | DZ177: 2035 | EA177: 17502.80544 | EC177: Biofuels | ED177: CO₂ e-fuel | EE177: 2030 | EF177: 24.13886932 | EH177: Heavy elec. | EI177: CO₂ e-fuel | EJ177: 2050 | EK177: 768.823774 | EM177: Custom scenario 3 | EN177: O&M Rail infrastructure | EO177: 2050 | EP177: =$FU$377 -> 47200.63116 | FA177: Sea | FB177: 246195.953 | FC177: 235210.8341 | FD177: 222980.8004 | FE177: 214089.7994 | FF177: 215130.1513 | FG177: 216719.2594 | FH177: 222185.0598 | FI177: 228931.0796 | FL177: Others | FM177: Bicycle/walking | FN177: 0 | FO177: 0 | FP177: 0 | FQ177: 0 | FR177: 0 | FS177: 0 | FT177: 0 | FU177: 0 | FW177: Road | FX177: Traditional urban growth | FY177: 2030 | FZ177: 5996.685829 | GA177: Air | GB177: Energy Efficient Urban Growth | GC177: 2030 | GD177: 66.76697211 | GH177: Natural gas | GI177: 0 | GJ177: 0.666258573 | GK177: 3.373584857 | GL177: 13.4370032 | GM177: 22.83468578 | GN177: 34.09899368 | GO177: 38.12625186 | GP177: 41.7407774 | GR177: Grand Total | GS177: 3307557.832 | GT177: 533556.5116 | GU177: 589853.9284 | GV177: 75117.18638 | GW177: 19055.97335 | GX177: 1897.472578 | GY177: 10130.99023 | GZ177: 4537169.894
DP178: Biofuels | DQ178: CO₂ e-jetfuel | DR178: 2030 | DS178: 0 | DT178: Biofuels | DU178: New Rail infrastructure | DV178: 2050 | DW178: =$FU$91 -> 40549.96874 | DX178: Biofuels | DY178: ='Vehicle Costs'!$D$21 -> Trucks, O&M | DZ178: 2035 | EA178: 13874.65057 | EC178: Biofuels | ED178: CO₂ e-jetfuel | EE178: 2030 | EF178: 0 | EH178: Heavy elec. | EI178: CO₂ e-jetfuel | EJ178: 2050 | EK178: 2102.009111 | EM178: Custom scenario 3 | EN178: New Rail infrastructure | EO178: 2050 | EP178: =$FU$378 -> 40549.96874 | EZ178: Freight | FA178: Truck (national) | FB178: 1169186.947 | FC178: 1182690.095 | FD178: 1211649.881 | FE178: 1222624.568 | FF178: 1237411.991 | FG178: 1242943.397 | FH178: 1206368.924 | FI178: 1150425.844 | FM178: Bus | FN178: 0 | FO178: 0 | FP178: 0 | FQ178: 0 | FR178: 0 | FS178: 0 | FT178: 0 | FU178: 0 | FW178: Rail | FX178: Traditional urban growth | FY178: 2030 | FZ178: 537.5449402 | GA178: Sea | GB178: Energy Efficient Urban Growth | GC178: 2030 | GD178: 201.2276853 | GH178: Electricity Train / bus / trucks / ships / aircrafts | GI178: 43.38979277 | GJ178: 48.70962741 | GK178: 58.64617803 | GL178: 70.37868467 | GM178: 81.43579567 | GN178: 88.21435175 | GO178: 94.28496031 | GP178: 104.9978615
DP179: Biofuels | DQ179: Ammonia | DR179: 2030 | DS179: 0 | DT179: Biofuels | DU179: Other | DV179: 2050 | DW179: =$FU$95+$FU$96 -> 0 | DX179: Biofuels | DY179: =Results!$AG$41 -> Cars and vans fuel | DZ179: 2035 | EA179: 31377.45601 | EC179: Biofuels | ED179: Ammonia | EE179: 2030 | EF179: 0 | EH179: Heavy elec. | EI179: Ammonia | EJ179: 2050 | EK179: 38.91828353 | EM179: Custom scenario 3 | EN179: Other | EO179: 2050 | EP179: =$FU$382+$FU$383 -> 0 | FK179: Vehicles | FL179: Road | FM179: Vehicles | FN179: 699165.5644 | FO179: 713985.9835 | FP179: 767057.9132 | FQ179: 828246.4419 | FR179: 858103.537 | FS179: 902609.133 | FT179: 938204.1548 | FU179: 974790.7869 | FW179: Bicycle/walking | FX179: Traditional urban growth | FY179: 2030 | FZ179: 247.8117265 | GA179: Road | GB179: Traditional urban growth | GC179: 2035 | GD179: 2895.710531 | GH179: Electricity BEV + Plug-in-hybrid | GI179: 0 | GJ179: 5.837369085 | GK179: 19.7700278 | GL179: 46.14635893 | GM179: 67.8715672 | GN179: 100.3553511 | GO179: 118.7667008 | GP179: 116.9257983
DP180: Biofuels | DQ180: Hydrogen | DR180: 2030 | DS180: 0 | DT180: =$FK$125 -> H2 | DU180: Fuel | DV180: 2017 | DW180: =$FN$157 -> 233567.4891 | DX180: =$FK$84 -> Biofuels | DY180: =Results!$AG$42 -> Bus fuel | DZ180: 2035 | EA180: 729168.5595 | EC180: Biofuels | ED180: Hydrogen | EE180: 2030 | EF180: 0 | EH180: Heavy elec. | EI180: Hydrogen | EJ180: 2050 | EK180: 0 | EM180: =$FK$412 -> Smart Energy Europe | EN180: Fuel | EO180: 2050 | EP180: =$FU$444 -> 270725.4492 | FM180: Vehicles O&M | FN180: 114711.7667 | FO180: 121416.6435 | FP180: 125826.5299 | FQ180: 127297.5022 | FR180: 127396.0616 | FS180: 128037.1664 | FT180: 130215.7263 | FU180: 133407.9279 | FW180: Air | FX180: Traditional urban growth | FY180: 2030 | FZ180: 974.8503925 | GA180: Rail | GB180: Traditional urban growth | GC180: 2035 | GD180: 781.8942352 | GH180: Total losses | GI180: =SUM(GI165:GI179) -> 4972.637056 | GJ180: =SUM(GJ165:GJ179) -> 5135.387123 | GK180: =SUM(GK165:GK179) -> 4998.808763 | GL180: =SUM(GL165:GL179) -> 4763.388677 | GM180: =SUM(GM165:GM179) -> 5189.504479 | GN180: =SUM(GN165:GN179) -> 5920.66912 | GO180: =SUM(GO165:GO179) -> 6840.509469 | GP180: =SUM(GP165:GP179) -> 7399.178152
DP181: Biofuels | DQ181: Natural gas | DR181: 2030 | DS181: 514.2507457 | DT181: H2 | DU181: Fuel (w/o jetfuel) | DV181: 2017 | DW181: =$FN$158 -> 191859.7234 | DX181: Biofuels | DY181: =Results!$AG$43 -> Rail fuel | DZ181: 2035 | EA181: 135621.0257 | EC181: Biofuels | ED181: Natural gas | EE181: 2030 | EF181: 85.94911514 | EH181: Heavy elec. | EI181: Natural gas | EJ181: 2050 | EK181: 0 | EM181: Smart Energy Europe | EN181: Fuel (w/o jetfuel) | EO181: 2050 | EP181: =$FU$445 -> 126264.793 | FA181: Truck (international) | FB181: 905840.5314 | FC181: 916302.245 | FD181: 938739.1595 | FE181: 947241.9201 | FF181: 958698.6395 | FG181: 962984.1575 | FH181: 934647.6798 | FI181: 891305.1596 | FM181: EV Charging stations | FN181: 0 | FO181: 103.8055382 | FP181: 809.7608652 | FQ181: 2246.307818 | FR181: 3039.583742 | FS181: 4178.298886 | FT181: 4846.182947 | FU181: 5273.874737 | FW181: Sea | FX181: Traditional urban growth | FY181: 2030 | FZ181: 31.27697285 | GA181: Air | GB181: Traditional urban growth | GC181: 2035 | GD181: 71.99917781
DP182: Biofuels | DQ182: Electricity Train / bus / trucks / ships / aircrafts | DR182: 2030 | DS182: 4407.885358 | DT182: H2 | DU182: Jetfuel | DV182: 2017 | DW182: =$FN$159 -> 41707.76567 | DX182: Biofuels | DY182: =Results!$AG$46 -> Vans fuel | DZ182: 2035 | EA182: 1025.225866 | EC182: Biofuels | ED182: Electricity Train / bus / trucks / ships / aircrafts | EE182: 2030 | EF182: 454.6555294 | EH182: Heavy elec. | EI182: Electricity Train / bus / trucks / ships / aircrafts | EJ182: 2050 | EK182: 3240.921392 | EM182: Smart Energy Europe | EN182: Jetfuel | EO182: 2050 | EP182: =$FU$446 -> 144460.6562 | FA182: Vans (2-6 t) | FB182: 1349989.625 | FC182: 1361442.775 | FD182: 1324932.683 | FE182: 1173470.854 | FF182: 840338.3435 | FG182: 617963.5757 | FH182: 447048.1472 | FI182: 330506.3667 | FM182: Total vehicles + charging | FN182: 813877.3311 | FO182: 835506.4325 | FP182: 893694.204 | FQ182: 957790.2519 | FR182: 988539.1824 | FS182: 1034824.598 | FT182: 1073266.064 | FU182: 1113472.589 | FW182: Road | FX182: Energy Efficient Urban Growth | FY182: 2030 | FZ182: 5744.921455 | GA182: Sea | GB182: Traditional urban growth | GC182: 2035 | GD182: =GE182/1000 -> 737.3499157 | GE182: ='Scenario overview 2017-2050'!D692+'Scenario overview 2017-2050'!D698 -> 737349.9157 | GH182: =Scenarios!$AV$13 -> Custom scenario 3
DP183: Biofuels | DQ183: Electricity BEV + Plug-in-hybrid | DR183: 2030 | DS183: 2905.860181 | DT183: H2 | DU183: Vehicle | DV183: 2017 | DW183: =$FN$138 -> 699165.5644 | DX183: Biofuels | DY183: =Results!$AG$47 -> National truck fuel | DZ183: 2035 | EA183: 15160.84592 | EC183: Biofuels | ED183: Electricity BEV + Plug-in-hybrid | EE183: 2030 | EF183: 299.7277134 | EH183: Heavy elec. | EI183: Electricity BEV + Plug-in-hybrid | EJ183: 2050 | EK183: 1990.321187 | EM183: Smart Energy Europe | EN183: Vehicle | EO183: 2050 | EP183: =$FU$425 -> 972608.467 | FA183: Rail (national) | FB183: 247206.1688 | FC183: 243851.9034 | FD183: 232269.4245 | FE183: 225981.6604 | FF183: 208730.1775 | FG183: 214034.0556 | FH183: 219116.6446 | FI183: 214115.2495 | FK183: Fuels | FL183: All | FM183: Petrol | FN183: 58769.83695 | FO183: 56042.57463 | FP183: 47898.04049 | FQ183: 32846.51777 | FR183: 22132.74089 | FS183: 11183.98154 | FT183: 5648.658386 | FU183: 0 | FW183: Rail | FX183: Energy Efficient Urban Growth | FY183: 2030 | FZ183: 782.5040548 | GA183: Road | GB183: Energy Efficient Urban Growth | GC183: 2035 | GD183: 2895.710531 | GH183: Upstream energy losses | GI183: 2017 | GJ183: 2020 | GK183: 2025 | GL183: 2030 | GM183: 2035 | GN183: 2040 | GO183: 2045 | GP183: 2050
DP184: Biofuels | DQ184: Petrol | DR184: 2035 | DS184: =FR101 -> 22344.9407 | DT184: H2 | DU184: Vehicle O&M | DV184: 2017 | DW184: =$FN$139 -> 114711.7667 | DX184: Biofuels | DY184: =Results!$AG$48 -> International truck fuel | DZ184: 2035 | EA184: 365.0857395 | EC184: Biofuels | ED184: Petrol | EE184: 2035 | EF184: 1867.306851 | EH184: =$FK$248 -> 1.5 TECH | EI184: Petrol | EJ184: 2050 | EK184: 68.93264796 | EM184: Smart Energy Europe | EN184: Vehicle O&M | EO184: 2050 | EP184: =$FU$426 -> 133987.0685 | FA184: Rail (international) | FB184: 143551.165 | FC184: 152281.6451 | FD184: 168028.2447 | FE184: 185403.1127 | FF184: 197771.7461 | FG184: 210965.5173 | FH184: 225039.4727 | FI184: 240052.3315 | FM184: Diesel | FN184: 98901.90864 | FO184: 96050.8394 | FP184: 85431.9376 | FQ184: 65059.92123 | FR184: 46148.9299 | FS184: 26842.70296 | FT184: 14624.70379 | FU184: 1.19664e-07 | FW184: Bicycle/walking | FX184: Energy Efficient Urban Growth | FY184: 2030 | FZ184: 395.8032716 | GA184: Rail | GB184: Energy Efficient Urban Growth | GC184: 2035 | GD184: 781.8942352 | GI184: PJ | GJ184: PJ | GK184: PJ | GL184: PJ | GM184: PJ | GN184: PJ | GO184: PJ | GP184: PJ
DP185: Biofuels | DQ185: Diesel | DR185: 2035 | DS185: 49978.10564 | DT185: H2 | DU185: EV Charging stations | DV185: 2017 | DW185: =$FN$140 -> 0 | DX185: Biofuels | DY185: =Results!$AG$49 -> Truck fuel | DZ185: 2035 | EA185: 86687.13873 | EC185: Biofuels | ED185: Diesel | EE185: 2035 | EF185: 4176.536439 | EH185: 1.5 TECH | EI185: Diesel | EJ185: 2050 | EK185: 1494.055644 | EM185: Smart Energy Europe | EN185: EV Charging stations | EO185: 2050 | EP185: =$FU$427 -> 5217.487355 | FA185: Air (national) | FB185: 10614.05063 | FC185: 10992.51156 | FD185: 11653.50475 | FE185: 12354.24427 | FF185: 12655.1175 | FG185: 13028.98831 | FH185: 13413.90441 | FI185: 13810.19211 | FM185: Jet-fuel fossil | FN185: 41707.76567 | FO185: 43113.50162 | FP185: 43874.27785 | FQ185: 42115.44537 | FR185: 33937.45219 | FS185: 26710.89947 | FT185: 14322.58288 | FU185: 1.19664e-07 | FW185: Air | FX185: Energy Efficient Urban Growth | FY185: 2030 | FZ185: 567.2645836 | GA185: Air | GB185: Energy Efficient Urban Growth | GC185: 2035 | GD185: 72.28201005 | GH185: Petrol | GI185: 1086.854303 | GJ185: 1036.85699 | GK185: 877.195844 | GL185: 621.4083845 | GM185: 463.172429 | GN185: 266.8353459 | GO185: 125.3877079 | GP185: 0
DP186: Biofuels | DQ186: Jet-fuel fossil | DR186: 2035 | DS186: 39782.48783 | DT186: H2 | DU186: O&M Road infrastructure | DV186: 2017 | DW186: =$FN$127 -> 30765 | DX186: Biofuels | DY186: ='Vehicle Costs'!$D$15 -> Cars and vans < 2 ton, investments | DZ186: 2040 | EA186: 3123.996256 | EC186: Biofuels | ED186: Jet-fuel fossil | EE186: 2035 | EF186: 3324.515964 | EH186: 1.5 TECH | EI186: Jet-fuel fossil | EJ186: 2050 | EK186: 1805.486441 | EM186: Smart Energy Europe | EN186: O&M Road infrastructure | EO186: 2050 | EP186: =$FU$414 -> 38733.6551 | FA186: Air (international) | FB186: 646373.8462 | FC186: 669421.338 | FD186: 709674.4634 | FE186: 752348.0585 | FF186: 770670.619 | FG186: 793438.5824 | FH186: 816879.181 | FI186: 841012.2864 | FM186: Biogas | FN186: 0 | FO186: 0 | FP186: 166.2114495 | FQ186: 319.1680702 | FR186: 801.7976033 | FS186: 969.2643182 | FT186: 1380.152491 | FU186: 1990.879675 | FW186: Sea | FX186: Energy Efficient Urban Growth | FY186: 2030 | FZ186: 31.27697285 | GA186: Sea | GB186: Energy Efficient Urban Growth | GC186: 2035 | GD186: 208.3699485 | GH186: Diesel | GI186: 2053.344018 | GJ186: 1994.515145 | GK186: 1786.669269 | GL186: 1406.886848 | GM186: 1080.487998 | GN186: 615.4963468 | GO186: 289.7759341 | GP186: 2.484394507e-09
DP187: Biofuels | DQ187: Biogas | DR187: 2035 | DS187: 20073.14534 | DT187: H2 | DU187: New Road infrastructure | DV187: 2017 | DW187: =$FN$128+$FN$129 -> 66244 | DX187: Biofuels | DY187: ='Vehicle Costs'!$D$16 -> Cars and vans < 2 ton, O&M | DZ187: 2040 | EA187: 164601.9487 | EC187: Biofuels | ED187: Biogas | EE187: 2035 | EF187: 807.8732292 | EH187: 1.5 TECH | EI187: Biogas | EJ187: 2050 | EK187: 320.9186822 | EM187: Smart Energy Europe | EN187: New Road infrastructure | EO187: 2050 | EP187: =$FU$415+$FU$416 -> 50648.32144 | FA187: Sea (national) | FB187: 65478.9701 | FC187: 64825.05975 | FD187: 64566.98179 | FE187: 65132.29822 | FF187: 65774.7429 | FG187: 66590.58555 | FH187: 68610.03291 | FI187: 71045.23914 | FM187: Bioethanol | FN187: 11144.84093 | FO187: 15015.65507 | FP187: 12834.24826 | FQ187: 10120.82255 | FR187: 8648.220356 | FS187: 5329.639725 | FT187: 3196.130608 | FU187: 0 | FW187: Road | FX187: Traditional urban growth | FY187: 2035 | FZ187: 6148.109661 | GA187: Road | GB187: Traditional urban growth | GC187: 2040 | GD187: 2998.489265 | GH187: Jet-fuel fossil | GI187: 818.0957318 | GJ187: 847.2662417 | GK187: 898.2133991 | GL187: 914.1351086 | GM187: 780.3315036 | GN187: 502.1155494 | GO187: 206.7798304 | GP187: 2.347203358e-09
DP188: =$FK$84 -> Biofuels | DQ188: Bioethanol | DR188: 2035 | DS188: 55025.01646 | DT188: H2 | DU188: O&M Rail infrastructure | DV188: 2017 | DW188: =$FN$131 -> 28005 | DX188: Biofuels | DY188: ='Vehicle Costs'!$D$17 -> Charging stations, investments | DZ188: 2040 | EA188: 8967.664678 | EC188: =$FK$84 -> Biofuels | ED188: Bioethanol | EE188: 2035 | EF188: 1146.2566 | EH188: 1.5 TECH | EI188: Bioethanol | EJ188: 2050 | EK188: 0.398355021 | EM188: Smart Energy Europe | EN188: O&M Rail infrastructure | EO188: 2050 | EP188: =$FU$418 -> 47200.63116 | FA188: Sea (international) | FB188: 393211.7831 | FC188: 381301.8145 | FD188: 366892.2484 | FE188: 357541.5821 | FF188: 361068.2608 | FG188: 365546.8018 | FH188: 376632.4909 | FI188: 390000.4744 | FM188: Biodiesel | FN188: 20310.85911 | FO188: 23713.21467 | FP188: 20913.02823 | FQ188: 16494.1915 | FR188: 13049.42577 | FS188: 7681.066401 | FT188: 4269.392972 | FU188: 0 | FW188: Rail | FX188: Traditional urban growth | FY188: 2035 | FZ188: 570.5810459 | GA188: Rail | GB188: Traditional urban growth | GC188: 2040 | GD188: 825.8549745 | GH188: Biogas | GI188: 0 | GJ188: 0 | GK188: -4.211301366 | GL188: -51.46073369 | GM188: -78.98642411 | GN188: -133.9976176 | GO188: -177.746619 | GP188: -223.1090629
DP189: Biofuels | DQ189: Biodiesel | DR189: 2035 | DS189: 85123.62319 | DT189: H2 | DU189: New Rail infrastructure | DV189: 2017 | DW189: =$FN$132 -> 41427 | DX189: Biofuels | DY189: ='Vehicle Costs'!$D$18 -> Busses, investments | DZ189: 2040 | EA189: 2640.962104 | EC189: Biofuels | ED189: Biodiesel | EE189: 2035 | EF189: 2013.797503 | EH189: 1.5 TECH | EI189: Biodiesel | EJ189: 2050 | EK189: 259.8952843 | EM189: Smart Energy Europe | EN189: New Rail infrastructure | EO189: 2050 | EP189: =$FU$419 -> 40549.96874 | FA189: Total passenger energy consumption | FB189: =SUM(FB172:FB177)/1000 -> 12724.64711 | FC189: 12732.0585 | FD189: 12398.69455 | FE189: 11377.79495 | FF189: 10193.05337 | FG189: 8920.088317 | FH189: 7773.203567 | FI189: 6603.963731 | FM189: Bio e-fuel | FN189: 0 | FO189: 0 | FP189: 0 | FQ189: 0 | FR189: 0 | FS189: 0 | FT189: 0 | FU189: 0 | FW189: Bicycle/walking | FX189: Traditional urban growth | FY189: 2035 | FZ189: 247.8117265 | GA189: Air | GB189: Traditional urban growth | GC189: 2040 | GD189: 77.94640268 | GH189: Bioethanol | GI189: 385.6051836 | GJ189: 519.7864193 | GK189: 981.2169543 | GL189: 1436.213571 | GM189: 1940.57969 | GN189: 2375.857839 | GO189: 2804.765572 | GP189: 3741.004019
DP190: Biofuels | DQ190: Bio e-fuel | DR190: 2035 | DS190: 0 | DT190: H2 | DU190: Other | DV190: 2017 | DW190: =$FN$136+$FN$137 -> 0 | DX190: Biofuels | DY190: ='Vehicle Costs'!$D$19 -> Busses, O&M | DZ190: 2040 | EA190: 17189.03611 | EC190: Biofuels | ED190: Bio e-fuel | EE190: 2035 | EF190: 0 | EH190: 1.5 TECH | EI190: Bio e-fuel | EJ190: 2050 | EK190: 0 | EM190: Smart Energy Europe | EN190: Other | EO190: 2050 | EP190: =$FU$423+$FU$424 -> 0 | FA190: Total freight energy consumption | FB190: =SUM(FB178:FB188)/1000 -> 4931.453087 | FC190: 4983.109387 | FD190: 5028.40659 | FE190: 4942.098298 | FF190: 4653.119638 | FG190: 4487.495661 | FH190: 4307.756477 | FI190: 4142.273144 | FM190: Bio e-jetfuel | FN190: 0 | FO190: 0 | FP190: 2143.880036 | FQ190: 7340.984874 | FR190: 16113.7843 | FS190: 22119.7796 | FT190: 34159.89815 | FU190: 46892.11446 | FW190: Air | FX190: Traditional urban growth | FY190: 2035 | FZ190: 1055.374291 | GA190: Sea | GB190: Traditional urban growth | GC190: 2040 | GD190: =GE190/1000 -> 763.5210022 | GE190: ='Scenario overview 2017-2050'!D834+'Scenario overview 2017-2050'!D840 -> 763521.0022 | GH190: Biodiesel | GI190: 585.3480262 | GJ190: 681.749071 | GK190: 1038.407968 | GL190: 1524.420967 | GM190: 2104.024008 | GN190: 2966.51966 | GO190: 3789.478187 | GP190: 4483.000192
DP191: Biofuels | DQ191: Bio e-jetfuel | DR191: 2035 | DS191: 26475.61401 | DT191: H2 | DU191: Fuel | DV191: 2020 | DW191: =$FO$157 -> 237468.7631 | DX191: Biofuels | DY191: ='Vehicle Costs'!$D$20 -> Trucks, investments | DZ191: 2040 | EA191: 20149.00819 | EC191: Biofuels | ED191: Bio e-jetfuel | EE191: 2035 | EF191: 831.128991 | EH191: 1.5 TECH | EI191: Bio e-jetfuel | EJ191: 2050 | EK191: 1029.435242 | FA191: Total energy consumption | FB191: =FB189+FB190 -> 17656.10019 | FC191: =FC189+FC190 -> 17715.16789 | FD191: =FD189+FD190 -> 17427.10114 | FE191: =FE189+FE190 -> 16319.89325 | FF191: =FF189+FF190 -> 14846.173 | FG191: =FG189+FG190 -> 13407.58398 | FH191: =FH189+FH190 -> 12080.96004 | FI191: =FI189+FI190 -> 10746.23687 | FM191: CO₂ e-fuel | FN191: 0 | FO191: 144.0149026 | FP191: 3929.332381 | FQ191: 11972.73926 | FR191: 27719.17179 | FS191: 44991.30147 | FT191: 57041.22922 | FU191: 80006.59924 | FW191: Sea | FX191: Traditional urban growth | FY191: 2035 | FZ191: 32.22660951 | GA191: Road | GB191: Energy Efficient Urban Growth | GC191: 2040 | GD191: 2998.489265 | GH191: Bio e-fuel | GI191: 0 | GJ191: 0 | GK191: 0 | GL191: 0 | GM191: 0 | GN191: 0 | GO191: 0 | GP191: 0
DP192: Biofuels | DQ192: CO₂ e-fuel | DR192: 2035 | DS192: 1471.947666 | DT192: H2 | DU192: Fuel (w/o jetfuel) | DV192: 2020 | DW192: =$FO$158 -> 194273.8404 | DX192: Biofuels | DY192: ='Vehicle Costs'!$D$21 -> Trucks, O&M | DZ192: 2040 | EA192: 16068.14276 | EC192: Biofuels | ED192: CO₂ e-fuel | EE192: 2035 | EF192: 50.60848086 | EH192: 1.5 TECH | EI192: CO₂ e-fuel | EJ192: 2050 | EK192: 132.9165106 | FM192: CO₂ e-jetfuel | FN192: 0 | FO192: 252.9909541 | FP192: 3388.836623 | FQ192: 9776.94406 | FR192: 24847.27877 | FS192: 37533.79428 | FT192: 56641.53645 | FU192: 75294.78738 | FW192: Road | FX192: Energy Efficient Urban Growth | FY192: 2035 | FZ192: 5661.329389 | GA192: Rail | GB192: Energy Efficient Urban Growth | GC192: 2040 | GD192: 825.8549745 | GH192: Bio e-jetfuel | GI192: 0 | GJ192: 0 | GK192: 0 | GL192: 104.8858557 | GM192: 537.2011427 | GN192: 1382.679262 | GO192: 2277.644528 | GP192: 2931.166377
DP193: Biofuels | DQ193: CO₂ e-jetfuel | DR193: 2035 | DS193: 0 | DT193: H2 | DU193: Jetfuel | DV193: 2020 | DW193: =$FO$159 -> 43194.92266 | DX193: Biofuels | DY193: =Results!$AG$41 -> Cars and vans fuel | DZ193: 2040 | EA193: 36217.15095 | EC193: Biofuels | ED193: CO₂ e-jetfuel | EE193: 2035 | EF193: 0 | EH193: 1.5 TECH | EI193: CO₂ e-jetfuel | EJ193: 2050 | EK193: 1497.232658 | FM193: Ammonia | FN193: 0 | FO193: 0 | FP193: 51.49131299 | FQ193: 98.87635931 | FR193: 248.3921022 | FS193: 400.3630519 | FT193: 615.6907018 | FU193: 898.711241 | FW193: Rail | FX193: Energy Efficient Urban Growth | FY193: 2035 | FZ193: 932.2379582 | GA193: Air | GB193: Energy Efficient Urban Growth | GC193: 2040 | GD193: 78.25259724 | GH193: CO₂ e-fuel | GI193: 0 | GJ193: 0 | GK193: 4.913150567 | GL193: 33.98097904 | GM193: 71.24301078 | GN193: 107.2688486 | GO193: 205.240417 | GP193: 303.4637865
DP194: Biofuels | DQ194: Ammonia | DR194: 2035 | DS194: 0 | DT194: H2 | DU194: Vehicle | DV194: 2020 | DW194: =$FO$138 -> 714210.3135 | DX194: Biofuels | DY194: =Results!$AG$42 -> Bus fuel | DZ194: 2040 | EA194: 764958.6221 | EC194: Biofuels | ED194: Ammonia | EE194: 2035 | EF194: 0 | EH194: 1.5 TECH | EI194: Ammonia | EJ194: 2050 | EK194: 82.03840945 | EZ194: =Scenarios!$AV$12 -> Custom scenario 2 | FM194: Hydrogen | FN194: 0 | FO194: 0 | FP194: 0 | FQ194: 0 | FR194: 0 | FS194: 0 | FT194: 0 | FU194: 0 | FW194: Bicycle/walking | FX194: Energy Efficient Urban Growth | FY194: 2035 | FZ194: 467.1086287 | GA194: Sea | GB194: Energy Efficient Urban Growth | GC194: 2040 | GD194: 215.7657152 | GH194: CO₂ e-jetfuel | GI194: 0 | GJ194: 0 | GK194: 0 | GL194: 0 | GM194: 0 | GN194: 0 | GO194: 0 | GP194: 0
DP195: Biofuels | DQ195: Hydrogen | DR195: 2035 | DS195: 0 | DT195: H2 | DU195: Vehicle O&M | DV195: 2020 | DW195: =$FO$139 -> 121459.2992 | DX195: Biofuels | DY195: =Results!$AG$43 -> Rail fuel | DZ195: 2040 | EA195: 139822.7197 | EC195: Biofuels | ED195: Hydrogen | EE195: 2035 | EF195: 0 | EH195: 1.5 TECH | EI195: Hydrogen | EJ195: 2050 | EK195: 551.1808195 | EZ195: Energy consumption | FB195: 2017 | FC195: 2020 | FD195: 2025 | FE195: 2030 | FF195: 2035 | FG195: 2040 | FH195: 2045 | FI195: 2050 | FM195: Natural gas | FN195: 0 | FO195: 0 | FP195: 0 | FQ195: 0 | FR195: 0 | FS195: 0 | FT195: 0 | FU195: 0 | FW195: Air | FX195: Energy Efficient Urban Growth | FY195: 2035 | FZ195: 500.667956 | GA195: Road | GB195: Traditional urban growth | GC195: 2045 | GD195: 3104.91597 | GH195: Ammonia | GI195: 0 | GJ195: 0 | GK195: 0 | GL195: 0 | GM195: 0 | GN195: 0 | GO195: 0 | GP195: 0
DP196: Biofuels | DQ196: Natural gas | DR196: 2035 | DS196: 873.9116912 | DT196: H2 | DU196: EV Charging stations | DV196: 2020 | DW196: =$FO$140 -> 92.36368912 | DX196: Biofuels | DY196: =Results!$AG$46 -> Vans fuel | DZ196: 2040 | EA196: 1573.091241 | EC196: Biofuels | ED196: Natural gas | EE196: 2035 | EF196: 146.0609191 | EH196: 1.5 TECH | EI196: Natural gas | EJ196: 2050 | EK196: 480.0155592 | EZ196: Passenger | FA196: Cars and vans <2t | FB196: 8984176.537 | FC196: 8769124.704 | FD196: 8366822.214 | FE196: 7577086.203 | FF196: 7382467.943 | FG196: 6870605.199 | FH196: 6591952.914 | FI196: 2455682.875 | FM196: Electricity Train / bus / trucks / ships / aircrafts | FN196: 2732.277779 | FO196: 3076.77469 | FP196: 4095.576042 | FQ196: 5487.044914 | FR196: 7449.5198 | FS196: 10428.11002 | FT196: 13678.48357 | FU196: 18798.12165 | FW196: Sea | FX196: Energy Efficient Urban Growth | FY196: 2035 | FZ196: 32.22660951 | GA196: Rail | GB196: Traditional urban growth | GC196: 2045 | GD196: 872.2873353 | GH196: Hydrogen | GI196: 0 | GJ196: 0 | GK196: 0 | GL196: 0 | GM196: 0 | GN196: 32.48433043 | GO196: 65.06359611 | GP196: 0
DP197: Biofuels | DQ197: Electricity Train / bus / trucks / ships / aircrafts | DR197: 2035 | DS197: 5019.550076 | DT197: H2 | DU197: O&M Road infrastructure | DV197: 2020 | DW197: =$FO$127 -> 31529.36008 | DX197: Biofuels | DY197: =Results!$AG$47 -> National truck fuel | DZ197: 2040 | EA197: 15702.01414 | EC197: Biofuels | ED197: Electricity Train / bus / trucks / ships / aircrafts | EE197: 2035 | EF197: 517.7462688 | EH197: 1.5 TECH | EI197: Electricity Train / bus / trucks / ships / aircrafts | EJ197: 2050 | EK197: 906.7140808 | FA197: Rail | FB197: 239435.9111 | FC197: 247215.7671 | FD197: 253371.0853 | FE197: 258872.411 | FF197: 258556.8682 | FG197: 271899.8755 | FH197: 291505.6314 | FI197: 305601.0108 | FM197: Electricity BEV + Plug-in-hybrid | FN197: 0 | FO197: 421.2588749 | FP197: 3106.052777 | FQ197: 8259.231836 | FR197: 12435.48918 | FS197: 16602.37754 | FT197: 18513.82567 | FU197: 19165.24014 | FW197: Road | FX197: Traditional urban growth | FY197: 2040 | FZ197: 6303.357134 | GA197: Air | GB197: Traditional urban growth | GC197: 2045 | GD197: 84.38487599 | GH197: Natural gas | GI197: 0 | GJ197: 0.666258573 | GK197: 3.373584857 | GL197: 13.4370032 | GM197: 22.83468578 | GN197: 18.79937751 | GO197: 7.777260435 | GP197: 0
DP198: Biofuels | DQ198: Electricity BEV + Plug-in-hybrid | DR198: 2035 | DS198: 4273.907826 | DT198: H2 | DU198: New Road infrastructure | DV198: 2020 | DW198: =$FO$128+$FO$129 -> 67176.73919 | DX198: Biofuels | DY198: =Results!$AG$48 -> International truck fuel | DZ198: 2040 | EA198: 379.9035423 | EC198: Biofuels | ED198: Electricity BEV + Plug-in-hybrid | EE198: 2035 | EF198: 440.8362894 | EH198: 1.5 TECH | EI198: Electricity BEV + Plug-in-hybrid | EJ198: 2050 | EK198: 1686.769447 | FA198: Bus | FB198: 426420.3257 | FC198: 416999.0379 | FD198: 395570.8791 | FE198: 377472.9781 | FF198: 373074.5022 | FG198: 380659.5411 | FH198: 399694.0569 | FI198: 328874.8394 | FM198: All | FN198: 233567.4891 | FO198: 237830.8248 | FP198: 227832.9131 | FQ198: 209891.8878 | FR198: 213532.2026 | FS198: 210793.2804 | FT198: 224092.2849 | FU198: 243046.4538 | FW198: Rail | FX198: Traditional urban growth | FY198: 2040 | FZ198: 605.6474643 | GA198: Sea | GB198: Traditional urban growth | GC198: 2045 | GD198: =GE198/1000 -> 790.6209906 | GE198: ='Scenario overview 2017-2050'!D976+'Scenario overview 2017-2050'!D982 -> 790620.9906 | GH198: Electricity Train / bus / trucks / ships / aircrafts | GI198: 43.38979277 | GJ198: 48.70962741 | GK198: 58.64617803 | GL198: 69.99919031 | GM198: 79.71269951 | GN198: 84.43124409 | GO198: 86.44228997 | GP198: 92.32728743
DP199: Biofuels | DQ199: Petrol | DR199: 2040 | DS199: =FS101 -> 8973.137174 | DT199: H2 | DU199: O&M Rail infrastructure | DV199: 2020 | DW199: =$FO$131 -> 29870.91185 | DX199: Biofuels | DY199: =Results!$AG$49 -> Truck fuel | DZ199: 2040 | EA199: 89971.55543 | EC199: Biofuels | ED199: Petrol | EE199: 2040 | EF199: 749.8610421 | EH199: =$FK$289 -> Custom scenario 1 | EI199: Petrol | EJ199: 2050 | EK199: 5.500055739 | FA199: Bicycle/walking | FB199: 0 | FC199: 0 | FD199: 0 | FE199: 0 | FF199: 0 | FG199: 0 | FH199: 0 | FI199: 0 | FL199: Total fuel cost (w/o jetfuels) | FN199: =SUM(FN183:FN184,FN186:FN189,FN191,FN193:FN197) -> 191859.7234 | FO199: =SUM(FO183:FO184,FO186:FO189,FO191,FO193:FO197) -> 194464.3322 | FP199: 178425.9185 | FQ199: 150658.5135 | FR199: 138633.6874 | FS199: 124428.807 | FT199: 118968.2674 | FU199: 120859.5519 | FW199: Bicycle/walking | FX199: Traditional urban growth | FY199: 2040 | FZ199: 247.8117265 | GA199: Road | GB199: Energy Efficient Urban Growth | GC199: 2045 | GD199: 3104.91597 | GH199: Electricity BEV + Plug-in-hybrid | GI199: 0 | GJ199: 5.837369085 | GK199: 19.7700278 | GL199: 46.14635893 | GM199: 67.8715672 | GN199: 100.3553511 | GO199: 113.8439949 | GP199: 108.3874683
DP200: Biofuels | DQ200: Diesel | DR200: 2040 | DS200: 25499.94878 | DT200: H2 | DU200: New Rail infrastructure | DV200: 2020 | DW200: =$FO$132 -> 57347.37827 | DX200: Biofuels | DY200: ='Vehicle Costs'!$D$15 -> Cars and vans < 2 ton, investments | DZ200: 2045 | EA200: 3265.70086 | EC200: Biofuels | ED200: Diesel | EE200: 2040 | EF200: 2130.962427 | EH200: Custom scenario 1 | EI200: Diesel | EJ200: 2050 | EK200: 1395.940126 | FA200: Air | FB200: 2828418.38 | FC200: 2929270.154 | FD200: 3105410.758 | FE200: 3292142.913 | FF200: 3372319.218 | FG200: 3471947.826 | FH200: 3574519.766 | FI200: 3680121.995 | FL200: Total jetfuel costs | FN200: =FN185+FN190+FN192 -> 41707.76567 | FO200: =FO185+FO190+FO192 -> 43366.49257 | FP200: 49406.99451 | FQ200: 59233.3743 | FR200: 74898.51527 | FS200: 86364.47334 | FT200: 105124.0175 | FU200: 122186.9018 | FW200: Air | FX200: Traditional urban growth | FY200: 2040 | FZ200: 1142.549568 | GA200: Rail | GB200: Energy Efficient Urban Growth | GC200: 2045 | GD200: 872.2873353 | GH200: Total losses | GI200: =SUM(GI185:GI199) -> 4972.637056 | GJ200: =SUM(GJ185:GJ199) -> 5135.387123 | GK200: =SUM(GK185:GK199) -> 5664.195073 | GL200: =SUM(GL185:GL199) -> 6120.053532 | GM200: =SUM(GM185:GM199) -> 7068.472311 | GN200: =SUM(GN185:GN199) -> 8318.845538 | GO200: =SUM(GO185:GO199) -> 9794.452698 | GP200: =SUM(GP185:GP199) -> 11436.24007
DP201: Biofuels | DQ201: Jet-fuel fossil | DR201: 2040 | DS201: 25598.615 | DT201: H2 | DU201: Other | DV201: 2020 | DW201: =$FO$136+$FO$137 -> 0 | DX201: Biofuels | DY201: ='Vehicle Costs'!$D$16 -> Cars and vans < 2 ton, O&M | DZ201: 2045 | EA201: 175039.6983 | EC201: Biofuels | ED201: Jet-fuel fossil | EE201: 2040 | EF201: 2139.207698 | EH201: Custom scenario 1 | EI201: Jet-fuel fossil | EJ201: 2050 | EK201: 1859.327234 | FA201: Sea | FB201: 246195.953 | FC201: 235210.8341 | FD201: 222980.8004 | FE201: 214089.7994 | FF201: 215130.1513 | FG201: 216719.2594 | FH201: 222185.0598 | FI201: 228931.0796 | FL201: Total inffrastructure cost | FN201: =FN171+FN174+FN177+FN178 -> 166441 | FO201: 185924.3894 | FP201: 190932.4771 | FQ201: 196456.75 | FR201: 174241.356 | FS201: 173608.2939 | FT201: 174849.9038 | FU201: 177132.5764 | FW201: Sea | FX201: Traditional urban growth | FY201: 2040 | FZ201: 33.20507919 | GA201: Air | GB201: Energy Efficient Urban Growth | GC201: 2045 | GD201: 84.71636261
... 361 more rows

Sheet Vehicle Costs
C3: Vehicle costs
M5: GREEN CELLS ARE INPUTS FROM THE DANISH ENERGY AGENCY'S AD MODEL
M6: BLUE CELLS CONTAINS CALCULATIONS
D7: Interest rate | E7: 0.03 | F7: Lifetime | G7: 13 | H7: Years | M7: ORANGE CELLS ARE EQUAL TO A GREEN CELL
M8: PURPLE TEXT INDICATE LINEAR INTERPOLATION
D9: Vehicle costs are provided for cars and vans <2 ton, busses and for trucks, as well as charging stations. Trains and included in the infrastructure costs. Airplane costs and ship costs are not included in the tool.
D12: Total Annual Costs (Scenario)
E13: 2017 | F13: 2020 | G13: 2025 | H13: 2030 | I13: 2035 | J13: 2040 | K13: 2045 | L13: 2050
E14: m€/year | F14: =E14 -> m€/year | G14: =E14 -> m€/year | H14: =G14 -> m€/year | I14: =H14 -> m€/year | J14: m€/year | K14: m€/year | L14: m€/year
D15: Cars and vans < 2 ton, investments | E15: =AX86/7.45 -> 13478.53097 | F15: =AY86/7.45 -> 13757.98481 | G15: 14447.25787 | H15: 15354.89506 | I15: 15386.36402 | J15: 15526.11435 | K15: 15731.61735 | L15: 15936.48425
D16: Cars and vans < 2 ton, O&M | E16: =AF109/7.45 -> 2430.816513 | F16: =AG109/7.45 -> 2579.191698 | G16: 2629.71046 | H16: 2618.307567 | I16: 2512.486191 | J16: 2420.504688 | K16: 2398.673859 | L16: 2389.202878
D17: Charging stations, investments | E17: =(N176+N177)/7.45 -> 0 | F17: =(O176+O177)/7.45 -> 2.253581244 | G17: 17.3299226 | H17: 47.40879406 | I17: 61.49321446 | J17: 81.07079696 | K17: 91.67336359 | L17: 98.06530159
D18: Busses, investments | E18: =AX214/7.45 -> 279.3612352 | F18: =AY214/7.45 -> 285.6255628 | G18: 325.0894695 | H18: 363.4685343 | I18: 357.2626855 | J18: 396.8480159 | K18: 409.4501321 | L18: 422.8226096
D19: Busses, O&M | E19: =AF229/7.45 -> 6.5843564 | F19: =AG229/7.45 -> 6.740077508 | G19: 7.661199029 | H19: 8.825095629 | I19: 9.017431596 | J19: 9.950437427 | K19: 10.53032122 | L19: 11.24174892
D20: Trucks, investments | E20: =AX302/7.45 -> 670.7131781 | F20: =AY302/7.45 -> 701.3502662 | G20: 866.9307515 | H20: 982.7817254 | I20: 871.7710505 | J20: 917.0196019 | K20: 956.649623 | L20: 996.9063081
D21: Trucks, O&M | E21: =AF320/7.45 -> 22.82561501 | F21: =AG320/7.45 -> 24.22725549 | G21: 28.40939617 | H21: 31.13283066 | I21: 27.87798538 | J21: 27.01816498 | K21: 26.82224233 | L21: 26.50513515
D22: Total | E22: =SUM(E15:E21) -> 16888.83186 | F22: =SUM(F15:F21) -> 17357.37325 | G22: =SUM(G15:G21) -> 18322.38907 | H22: 19406.81961 | I22: 19226.27258 | J22: 19378.52606 | K22: 19625.41689 | L22: 19881.22823
D25: Total Costs (Scenario)
E26: 2017 | F26: 2020 | G26: 2025 | H26: 2030 | I26: 2035 | J26: 2040 | K26: 2045 | L26: 2050
E27: MDKK | F27: MDKK | G27: MDKK | H27: =G27 -> MDKK | I27: =H27 -> MDKK | J27: MDKK | K27: MDKK | L27: MDKK
D28: Cars and vans < 2 ton, investments | E28: =AF86 -> 1067909.632 | F28: =AG86 -> 1090050.877 | G28: =AH86 -> 1144662.269 | H28: =AJ86 -> 1219068.041 | I28: =AJ86 -> 1219068.041 | J28: =AK86 -> 1230140.518 | K28: =AM86 -> 1262654.296 | L28: =AM86 -> 1262654.296
D29: Cars and vans < 2 ton, O&M | E29: =AF110 -> 0.01695797329 | F29: =AG110 -> 0.01762759754 | G29: =AH110 -> 0.01711539155 | H29: =AJ110 -> 0.0153543703 | I29: =AJ110 -> 0.0153543703 | J29: =AK110 -> 0.01465910573 | K29: =AM110 -> 0.01409693968 | L29: =AM110 -> 0.01409693968
D30: Busses, investments | E30: =AF214 -> 22133.90722 | F30: =AG214 -> 22630.23251 | G30: =AH214 -> 25756.97431 | H30: =AJ214 -> 28306.07163 | I30: =AJ214 -> 28306.07163 | J30: 31442.43388 | K30: =AM214 -> 33500.41178 | L30: =AM214 -> 33500.41178
D31: Busses, O&M | E31: =AF230 -> 0.002216213102 | F31: =AG230 -> 0.002218871477 | G31: =AH230 -> 0.002215940898 | H31: =AJ230 -> 0.002373337645 | I31: =AJ230 -> 0.002373337645 | J31: 0.002357666048 | K31: =AM230 -> 0.0025 | L31: =AM230 -> 0.0025
D32: Trucks, investments | E32: =AF302 -> 53140.88495 | F32: =AG302 -> 55568.27422 | G32: =AH302 -> 68687.28516 | H32: =AJ302 -> 69070.78407 | I32: =AJ302 -> 69070.78407 | J32: 72655.84567 | K32: =AM302 -> 78985.30274 | L32: =AM302 -> 78985.30274
D33: Trucks, O&M | E33: =AF321 -> 0.0032 | F33: =AG321 -> 0.003248131347 | G33: =AH321 -> 0.003081356338 | H33: =AJ321 -> 0.003006929686 | I33: =AJ321 -> 0.003006929686 | J33: 0.002770394141 | K33: =AM321 -> 0.0025 | L33: =AM321 -> 0.0025
D34: Total inv. | E34: =SUM(E28:E33) -> 1143184.447 | F34: =SUM(F28:F33) -> 1168249.407 | G34: =SUM(G28:G33) -> 1239106.551 | H34: =SUM(H28:H33) -> 1316444.918 | I34: =SUM(I28:I33) -> 1316444.918 | J34: 1334238.818 | K34: 1375140.03 | L34: 1375140.03
D35: Total O&M | E35: =(E28*E29+E30*E31+E32*E33)/E34 -> 0.01603300969 | F35: =(F28*F29+F30*F31+F32*F33)/F34 -> 0.01664514844 | G35: =(G28*G29+G30*G31+G32*G33)/G34 -> 0.01602773292 | H35: =(H28*H29+H30*H31+H32*H33)/H34 -> 0.01442741183 | I35: =(I28*I29+I30*I31+I32*I33)/I34 -> 0.01442741183 | J35: 0.01372181335 | K35: 0.01314831605 | L35: 0.01314831605
D36: Charging stations, investments | E36: =N173++N174 -> 0 | F36: =O173++O174 -> 143.2151131 | G36: =P173++P174 -> 1101.316774 | H36: =Q173++Q174 -> 3012.82939 | I36: =R173++R174 -> 3907.894463 | J36: 5152.050049 | K36: 5825.843277 | L36: 6232.051008
D41: Cars and Vans
D43: Reference | M43: Scenario
D46: No. of cars and vans pr. type | M46: No. of cars and vans pr. type | W46: CEESA and AD vehicles
D47: Reference | E47: 2017 | F47: 2020 | G47: 2025 | H47: 2030 | I47: 2035 | J47: 2040 | K47: 2045 | L47: 2050 | M47: Scenario | N47: 2017 | O47: 2020 | P47: 2025 | Q47: 2030 | R47: 2035 | S47: 2040 | T47: 2045 | U47: 2050 | W47: CEESA | AB47: AD
D48: ='Scenario overview 2017-2050'!$O$7 -> Petrol | E48: ='Scenario overview 2017-2050'!U7+'Scenario overview 2017-2050'!U89 -> 3150978.793 | F48: ='Scenario overview 2017-2050'!U149+'Scenario overview 2017-2050'!U229 -> 3109355.905 | G48: ='Scenario overview 2017-2050'!U291+'Scenario overview 2017-2050'!U371 -> 3166158.93 | H48: ='Scenario overview 2017-2050'!U433+'Scenario overview 2017-2050'!U513 -> 3193972.177 | I48: ='Scenario overview 2017-2050'!U575+'Scenario overview 2017-2050'!U655 -> 3073263.373 | J48: ='Scenario overview 2017-2050'!U717+'Scenario overview 2017-2050'!U797 -> 2956606.167 | K48: ='Scenario overview 2017-2050'!U859+'Scenario overview 2017-2050'!U939 -> 2897474.044 | L48: ='Scenario overview 2017-2050'!U1001+'Scenario overview 2017-2050'!U1081 -> 2897474.044 | M48: ='Scenario overview 2017-2050'!$V$7 -> Battery electric vehicles | N48: ='Scenario overview 2017-2050'!AW7+'Scenario overview 2017-2050'!AW89 -> 0 | O48: ='Scenario overview 2017-2050'!AW149+'Scenario overview 2017-2050'!AW231 -> 67271.12978 | P48: ='Scenario overview 2017-2050'!AW291+'Scenario overview 2017-2050'!AW373 -> 689748.654 | Q48: ='Scenario overview 2017-2050'!AW433+'Scenario overview 2017-2050'!AW515 -> 2122783.334 | R48: ='Scenario overview 2017-2050'!AW575+'Scenario overview 2017-2050'!AW657 -> 3146776.54 | S48: ='Scenario overview 2017-2050'!AW717+'Scenario overview 2017-2050'!AW799 -> 4148615.164 | T48: ='Scenario overview 2017-2050'!AW859+'Scenario overview 2017-2050'!AW941 -> 5212419.55 | U48: ='Scenario overview 2017-2050'!AW1001+'Scenario overview 2017-2050'!AW1083 -> 6691027.472 | W48: Battery electric vehicles | AB48: EU el personbil
D49: ='Scenario overview 2017-2050'!$O$8 -> Share of bioethanol in petrol | E49: ='Scenario overview 2017-2050'!U8+'Scenario overview 2017-2050'!U90 -> 148875.6866 | F49: ='Scenario overview 2017-2050'!U150+'Scenario overview 2017-2050'!U230 -> 1011820.696 | G49: ='Scenario overview 2017-2050'!U292+'Scenario overview 2017-2050'!U372 -> 1077784.887 | H49: ='Scenario overview 2017-2050'!U434+'Scenario overview 2017-2050'!U514 -> 1179380.428 | I49: ='Scenario overview 2017-2050'!U576+'Scenario overview 2017-2050'!U656 -> 1268130.473 | J49: ='Scenario overview 2017-2050'!U718+'Scenario overview 2017-2050'!U798 -> 1355939.012 | K49: ='Scenario overview 2017-2050'!U860+'Scenario overview 2017-2050'!U940 -> 1450605.262 | L49: ='Scenario overview 2017-2050'!U1002+'Scenario overview 2017-2050'!U1082 -> 1487400.618 | M49: ='Scenario overview 2017-2050'!$V$8 -> ICE Diesel | N49: ='Scenario overview 2017-2050'!AW8+'Scenario overview 2017-2050'!AW90 -> 0 | O49: ='Scenario overview 2017-2050'!AW150+'Scenario overview 2017-2050'!AW232 -> 0 | P49: ='Scenario overview 2017-2050'!AW292+'Scenario overview 2017-2050'!AW374 -> 0 | Q49: ='Scenario overview 2017-2050'!AW434+'Scenario overview 2017-2050'!AW516 -> 0 | R49: ='Scenario overview 2017-2050'!AW576+'Scenario overview 2017-2050'!AW658 -> 0 | S49: ='Scenario overview 2017-2050'!AW718+'Scenario overview 2017-2050'!AW800 -> 0 | T49: ='Scenario overview 2017-2050'!AW860+'Scenario overview 2017-2050'!AW942 -> 0 | U49: ='Scenario overview 2017-2050'!AW1002+'Scenario overview 2017-2050'!AW1084 -> 0 | W49: Fuel cell hybrid vehicle Syn-methanol | AB49: EU plugin hybrid personbil
D50: ='Scenario overview 2017-2050'!$O$9 -> Diesel | E50: ='Scenario overview 2017-2050'!U9+'Scenario overview 2017-2050'!U91 -> 3058100.937 | F50: ='Scenario overview 2017-2050'!U151+'Scenario overview 2017-2050'!U231 -> 2458503.038 | G50: ='Scenario overview 2017-2050'!U293+'Scenario overview 2017-2050'!U373 -> 2506948.508 | H50: ='Scenario overview 2017-2050'!U435+'Scenario overview 2017-2050'!U515 -> 2526368.23 | I50: ='Scenario overview 2017-2050'!U577+'Scenario overview 2017-2050'!U657 -> 2422074.742 | J50: ='Scenario overview 2017-2050'!U719+'Scenario overview 2017-2050'!U799 -> 2321505.97 | K50: ='Scenario overview 2017-2050'!U861+'Scenario overview 2017-2050'!U941 -> 2294583.647 | L50: ='Scenario overview 2017-2050'!U1003+'Scenario overview 2017-2050'!U1083 -> 2297321.222 | M50: ='Scenario overview 2017-2050'!$V$9 -> ICE hybrid vehicle Diesel | N50: ='Scenario overview 2017-2050'!AW9+'Scenario overview 2017-2050'!AW92 -> 0 | O50: ='Scenario overview 2017-2050'!AW151+'Scenario overview 2017-2050'!AW234 -> 0 | P50: ='Scenario overview 2017-2050'!AW293+'Scenario overview 2017-2050'!AW376 -> 0 | Q50: ='Scenario overview 2017-2050'!AW435+'Scenario overview 2017-2050'!AW518 -> 0 | R50: ='Scenario overview 2017-2050'!AW577+'Scenario overview 2017-2050'!AW660 -> 0 | S50: ='Scenario overview 2017-2050'!AW719+'Scenario overview 2017-2050'!AW802 -> 0 | T50: ='Scenario overview 2017-2050'!AW861+'Scenario overview 2017-2050'!AW944 -> 0 | U50: ='Scenario overview 2017-2050'!AW1003+'Scenario overview 2017-2050'!AW1086 -> 0 | W50: Plug-in fuel cell hybrid vehicle Electricity & Syn-methanol | AB50: fc, methanolhybrid personbil
D51: ='Scenario overview 2017-2050'!$O$10 -> Share of biodiesel in diesel | E51: ='Scenario overview 2017-2050'!U10+'Scenario overview 2017-2050'!U92 -> 194115.5834 | F51: ='Scenario overview 2017-2050'!U152+'Scenario overview 2017-2050'!U232 -> 211795.7634 | G51: ='Scenario overview 2017-2050'!U294+'Scenario overview 2017-2050'!U374 -> 215930.8247 | H51: ='Scenario overview 2017-2050'!U436+'Scenario overview 2017-2050'!U516 -> 250918.8329 | I51: ='Scenario overview 2017-2050'!U578+'Scenario overview 2017-2050'!U658 -> 306714.5795 | J51: ='Scenario overview 2017-2050'!U720+'Scenario overview 2017-2050'!U800 -> 360399.1592 | K51: ='Scenario overview 2017-2050'!U862+'Scenario overview 2017-2050'!U942 -> 390164.212 | L51: ='Scenario overview 2017-2050'!U1004+'Scenario overview 2017-2050'!U1084 -> 390370.266 | M51: ='Scenario overview 2017-2050'!$V$10 -> ICE Plug-in hybrid vehicle Diesel | N51: ='Scenario overview 2017-2050'!AW10+'Scenario overview 2017-2050'!AW93 -> 0 | O51: ='Scenario overview 2017-2050'!AW152+'Scenario overview 2017-2050'!AW235 -> 67271.12978 | P51: ='Scenario overview 2017-2050'!AW294+'Scenario overview 2017-2050'!AW377 -> 344874.327 | Q51: ='Scenario overview 2017-2050'!AW436+'Scenario overview 2017-2050'!AW519 -> 707594.4448 | R51: ='Scenario overview 2017-2050'!AW578+'Scenario overview 2017-2050'!AW661 -> 1048925.513 | S51: ='Scenario overview 2017-2050'!AW720+'Scenario overview 2017-2050'!AW803 -> 1382871.721 | T51: ='Scenario overview 2017-2050'!AW862+'Scenario overview 2017-2050'!AW945 -> 1042483.91 | U51: ='Scenario overview 2017-2050'!AW1004+'Scenario overview 2017-2050'!AW1087 -> 0 | W51: ICE Bio-methanol | AB51: Diesel DME
M52: ='Scenario overview 2017-2050'!$V$11 -> ICE Biodiesel | N52: ='Scenario overview 2017-2050'!AW11+'Scenario overview 2017-2050'!AW94 -> 0 | O52: ='Scenario overview 2017-2050'!AW153+'Scenario overview 2017-2050'!AW236 -> 0 | P52: ='Scenario overview 2017-2050'!AW295+'Scenario overview 2017-2050'!AW378 -> 0 | Q52: ='Scenario overview 2017-2050'!AW437+'Scenario overview 2017-2050'!AW520 -> 0 | R52: ='Scenario overview 2017-2050'!AW579+'Scenario overview 2017-2050'!AW662 -> 0 | S52: ='Scenario overview 2017-2050'!AW721+'Scenario overview 2017-2050'!AW804 -> 0 | T52: ='Scenario overview 2017-2050'!AW863+'Scenario overview 2017-2050'!AW946 -> 0 | U52: ='Scenario overview 2017-2050'!AW1005+'Scenario overview 2017-2050'!AW1088 -> 0 | W52: ICE Bioethanol | AB52: Std benxinbil
M53: ='Scenario overview 2017-2050'!$V$12 -> ICE Petrol | N53: ='Scenario overview 2017-2050'!AW12+'Scenario overview 2017-2050'!AW95 -> 0 | O53: ='Scenario overview 2017-2050'!AW154+'Scenario overview 2017-2050'!AW237 -> 0 | P53: ='Scenario overview 2017-2050'!AW296+'Scenario overview 2017-2050'!AW379 -> 0 | Q53: ='Scenario overview 2017-2050'!AW438+'Scenario overview 2017-2050'!AW521 -> 0 | R53: ='Scenario overview 2017-2050'!AW580+'Scenario overview 2017-2050'!AW663 -> 0 | S53: ='Scenario overview 2017-2050'!AW722+'Scenario overview 2017-2050'!AW805 -> 0 | T53: ='Scenario overview 2017-2050'!AW864+'Scenario overview 2017-2050'!AW947 -> 0 | U53: ='Scenario overview 2017-2050'!AW1006+'Scenario overview 2017-2050'!AW1089 -> 0 | W53: ICE Biogas | AB53: Tilpasset Otto
M54: ='Scenario overview 2017-2050'!$V$13 -> ICE Bioethanol | N54: ='Scenario overview 2017-2050'!AW13+'Scenario overview 2017-2050'!AW96 -> 0 | O54: ='Scenario overview 2017-2050'!AW155+'Scenario overview 2017-2050'!AW238 -> 0 | P54: ='Scenario overview 2017-2050'!AW297+'Scenario overview 2017-2050'!AW380 -> 0 | Q54: ='Scenario overview 2017-2050'!AW439+'Scenario overview 2017-2050'!AW522 -> 0 | R54: ='Scenario overview 2017-2050'!AW581+'Scenario overview 2017-2050'!AW664 -> 0 | S54: ='Scenario overview 2017-2050'!AW723+'Scenario overview 2017-2050'!AW806 -> 0 | T54: ='Scenario overview 2017-2050'!AW865+'Scenario overview 2017-2050'!AW948 -> 0 | U54: ='Scenario overview 2017-2050'!AW1007+'Scenario overview 2017-2050'!AW1090 -> 0 | W54: ICE hybrid vehicle Bio-methanol | AB54: el*0,73+petrol*0,27"
M55: ='Scenario overview 2017-2050'!$V$14 -> ICE e-methanol | N55: ='Scenario overview 2017-2050'!AW14+'Scenario overview 2017-2050'!AW97 -> 0 | O55: ='Scenario overview 2017-2050'!AW156+'Scenario overview 2017-2050'!AW239 -> 0 | P55: ='Scenario overview 2017-2050'!AW298+'Scenario overview 2017-2050'!AW381 -> 0 | Q55: ='Scenario overview 2017-2050'!AW440+'Scenario overview 2017-2050'!AW523 -> 0 | R55: ='Scenario overview 2017-2050'!AW582+'Scenario overview 2017-2050'!AW665 -> 0 | S55: ='Scenario overview 2017-2050'!AW724+'Scenario overview 2017-2050'!AW807 -> 0 | T55: ='Scenario overview 2017-2050'!AW866+'Scenario overview 2017-2050'!AW949 -> 0 | U55: ='Scenario overview 2017-2050'!AW1008+'Scenario overview 2017-2050'!AW1091 -> 295660.6167 | W55: ICE hybrid vehicle Diesel | AB55: el*0,73+diesel*0,27"
M56: ='Scenario overview 2017-2050'!$V$15 -> ICE hybrid vehicle e-methanol | N56: ='Scenario overview 2017-2050'!AW15+'Scenario overview 2017-2050'!AW98 -> 0 | O56: ='Scenario overview 2017-2050'!AW157+'Scenario overview 2017-2050'!AW240 -> 0 | P56: ='Scenario overview 2017-2050'!AW299+'Scenario overview 2017-2050'!AW382 -> 0 | Q56: ='Scenario overview 2017-2050'!AW441+'Scenario overview 2017-2050'!AW524 -> 0 | R56: ='Scenario overview 2017-2050'!AW583+'Scenario overview 2017-2050'!AW666 -> 0 | S56: ='Scenario overview 2017-2050'!AW725+'Scenario overview 2017-2050'!AW808 -> 0 | T56: ='Scenario overview 2017-2050'!AW867+'Scenario overview 2017-2050'!AW950 -> 0 | U56: ='Scenario overview 2017-2050'!AW1009+'Scenario overview 2017-2050'!AW1092 -> 0 | W56: ICE Plug-in hybrid vehicle Bio-methanol | AB56: EU plugin hybrid personbil
M57: ='Scenario overview 2017-2050'!$V$16 -> ICE Plug-in hybrid vehicle e-methanol | N57: ='Scenario overview 2017-2050'!AW16+'Scenario overview 2017-2050'!AW99 -> 0 | O57: ='Scenario overview 2017-2050'!AW158+'Scenario overview 2017-2050'!AW241 -> 0 | P57: ='Scenario overview 2017-2050'!AW300+'Scenario overview 2017-2050'!AW383 -> 0 | Q57: ='Scenario overview 2017-2050'!AW442+'Scenario overview 2017-2050'!AW525 -> 0 | R57: ='Scenario overview 2017-2050'!AW584+'Scenario overview 2017-2050'!AW667 -> 0 | S57: ='Scenario overview 2017-2050'!AW726+'Scenario overview 2017-2050'!AW809 -> 0 | T57: ='Scenario overview 2017-2050'!AW868+'Scenario overview 2017-2050'!AW951 -> 0 | U57: ='Scenario overview 2017-2050'!AW1010+'Scenario overview 2017-2050'!AW1093 -> 0 | W57: ICE Plug-in hybrid vehicle Diesel | AB57: el*0,73+diesel*0,27"
M58: ='Scenario overview 2017-2050'!$V$17 -> Fuel cell hybrid vehicle e-methanol | N58: ='Scenario overview 2017-2050'!AW17+'Scenario overview 2017-2050'!AW100 -> 0 | O58: ='Scenario overview 2017-2050'!AW159+'Scenario overview 2017-2050'!AW242 -> 0 | P58: ='Scenario overview 2017-2050'!AW301+'Scenario overview 2017-2050'!AW384 -> 0 | Q58: ='Scenario overview 2017-2050'!AW443+'Scenario overview 2017-2050'!AW526 -> 0 | R58: ='Scenario overview 2017-2050'!AW585+'Scenario overview 2017-2050'!AW668 -> 0 | S58: ='Scenario overview 2017-2050'!AW727+'Scenario overview 2017-2050'!AW810 -> 0 | T58: ='Scenario overview 2017-2050'!AW869+'Scenario overview 2017-2050'!AW952 -> 0 | U58: ='Scenario overview 2017-2050'!AW1011+'Scenario overview 2017-2050'!AW1094 -> 0 | W58: ICE Biodiesel | AB58: Std dielselbil
M59: ='Scenario overview 2017-2050'!$V$18 -> Plug-in fuel cell hybrid vehicle Electricity & e-methanol | N59: ='Scenario overview 2017-2050'!AW18+'Scenario overview 2017-2050'!AW101 -> 0 | O59: ='Scenario overview 2017-2050'!AW160+'Scenario overview 2017-2050'!AW243 -> 0 | P59: ='Scenario overview 2017-2050'!AW302+'Scenario overview 2017-2050'!AW385 -> 0 | Q59: ='Scenario overview 2017-2050'!AW444+'Scenario overview 2017-2050'!AW527 -> 0 | R59: ='Scenario overview 2017-2050'!AW586+'Scenario overview 2017-2050'!AW669 -> 0 | S59: ='Scenario overview 2017-2050'!AW728+'Scenario overview 2017-2050'!AW811 -> 0 | T59: ='Scenario overview 2017-2050'!AW870+'Scenario overview 2017-2050'!AW953 -> 0 | U59: ='Scenario overview 2017-2050'!AW1012+'Scenario overview 2017-2050'!AW1095 -> 0 | W59: ICE Diesel | AB59: Std dielselbil
M60: ='Scenario overview 2017-2050'!$V$19 -> Hydrogen | N60: ='Scenario overview 2017-2050'!AW19+'Scenario overview 2017-2050'!AW91 -> 0 | O60: ='Scenario overview 2017-2050'!AW161+'Scenario overview 2017-2050'!AW233 -> 0 | P60: ='Scenario overview 2017-2050'!AW303+'Scenario overview 2017-2050'!AW375 -> 0 | Q60: ='Scenario overview 2017-2050'!AW445+'Scenario overview 2017-2050'!AW504 -> 0 | R60: ='Scenario overview 2017-2050'!AW587+'Scenario overview 2017-2050'!AW659 -> 0 | S60: ='Scenario overview 2017-2050'!AW729+'Scenario overview 2017-2050'!AW801 -> 0 | T60: ='Scenario overview 2017-2050'!AW871+'Scenario overview 2017-2050'!AW943 -> 0 | U60: ='Scenario overview 2017-2050'!AW1013+'Scenario overview 2017-2050'!AW1085 -> 0 | W60: ICE Petrol | AB60: Std bezinbil
M61: ='Scenario overview 2017-2050'!$V$20 -> ICE Biogas | N61: ='Scenario overview 2017-2050'!AW20+'Scenario overview 2017-2050'!AW102 -> 0 | O61: ='Scenario overview 2017-2050'!AW162+'Scenario overview 2017-2050'!AW244 -> 0 | P61: ='Scenario overview 2017-2050'!AW304+'Scenario overview 2017-2050'!AW386 -> 0 | Q61: ='Scenario overview 2017-2050'!AW446+'Scenario overview 2017-2050'!AW528 -> 0 | R61: ='Scenario overview 2017-2050'!AW588+'Scenario overview 2017-2050'!AW670 -> 0 | S61: ='Scenario overview 2017-2050'!AW730+'Scenario overview 2017-2050'!AW812 -> 0 | T61: ='Scenario overview 2017-2050'!AW872+'Scenario overview 2017-2050'!AW954 -> 0 | U61: ='Scenario overview 2017-2050'!AW1014+'Scenario overview 2017-2050'!AW1096 -> 0 | W61: ICE Syn-methanol | AB61: Diesel DME
M62: ='Scenario overview 2017-2050'!$V$21 -> No shift in technology | N62: ='Scenario overview 2017-2050'!AW21+'Scenario overview 2017-2050'!AW103 -> 6552071 | O62: ='Scenario overview 2017-2050'!AW163+'Scenario overview 2017-2050'!AW245 -> 6592570.719 | P62: ='Scenario overview 2017-2050'!AW305+'Scenario overview 2017-2050'!AW387 -> 5862863.559 | Q62: ='Scenario overview 2017-2050'!AW447+'Scenario overview 2017-2050'!AW529 -> 4245566.669 | R62: ='Scenario overview 2017-2050'!AW589+'Scenario overview 2017-2050'!AW671 -> 2797134.702 | S62: ='Scenario overview 2017-2050'!AW731+'Scenario overview 2017-2050'!AW813 -> 1382871.721 | T62: ='Scenario overview 2017-2050'!AW873+'Scenario overview 2017-2050'!AW955 -> 694989.2733 | U62: ='Scenario overview 2017-2050'!AW1015+'Scenario overview 2017-2050'!AW1097 -> 0 | W62: ICE hybrid vehicle Syn-methanol | AB62: el*0,73+petrol*0,27"
D63: Sum | E63: =SUM(E48:E62) -> 6552071 | F63: 6791475.403 | G63: 6966823.15 | H63: 7150639.669 | I63: 7070183.167 | J63: 6994450.308 | K63: 7032827.165 | L63: 7072566.149 | M63: Sum | N63: =SUM(N48:N62) -> 6552071 | O63: 6727112.978 | P63: 6897486.54 | Q63: 7075944.448 | R63: 6992836.756 | S63: 6914358.606 | T63: 6949892.733 | U63: 6986688.089 | W63: ICE Plug-in hybrid vehicle Syn-methanol | AB63: EU plugin hybrid personbil
D69: Investments costs pr. vehicle | M69: Investments costs pr. vehicle | V69: Total investments costs | W69: 2010 | Y69: 2020 | Z69: 2030 | AA69: 2040 | AD69: 2050 | AE69: Total investments costs | AF69: 2010 | AH69: 2020 | AI69: 2030 | AJ69: 2040 | AM69: 2050 | AN69: Total annual investments costs | AO69: 2010 | AQ69: 2020 | AR69: 2030 | AS69: 2040 | AV69: 2050 | AW69: Total annual investments costs | AX69: 2010 | AZ69: 2020 | BA69: 2030 | BB69: 2040 | BE69: 2050
D70: DKK/vehicle | E70: 2017 | F70: 2020 | G70: 2025 | H70: 2030 | I70: 2035 | J70: 2040 | K70: 2045 | L70: 2050 | M70: DKK/vehicle | N70: 2017 | O70: 2020 | P70: 2025 | Q70: 2030 | R70: 2035 | S70: 2040 | T70: 2045 | U70: 2050 | V70: MDKK | W70: 2017 | X70: 2020 | Y70: 2025 | Z70: 2030 | AA70: 2035 | AB70: 2040 | AC70: 2045 | AD70: 2050 | AE70: MDKK | AF70: 2017 | AG70: 2020 | AH70: 2025 | AI70: 2030 | AJ70: 2035 | AK70: 2040 | AL70: 2045 | AM70: 2050 | AN70: MDKK | AO70: 2017 | AP70: 2020 | AQ70: 2025 | AR70: 2030 | AS70: 2035 | AT70: 2040 | AU70: 2045 | AV70: 2050 | AW70: MDKK | AX70: 2017 | AY70: 2020 | AZ70: 2025 | BA70: 2030 | BB70: 2035 | BC70: 2040 | BD70: 2045 | BE70: 2050
